Workbook

Sheet Ананьевский пер. 4 2 стр.1
A1: Фактические расходы по проведению работ (оказанию услуг) на 2017 год
A2: по содержанию и ремонту общего имущества многоквартирного дома
A3: и предоставлению коммунальных услуг по адресу:
A4: Ананьевский пер. 4/2 стр.1
A7: № п/п | B7: Наименование работ (услуг) | C7: Кол-во / число проведенных работ | E7: Ед.измер. работ (услуг) | F7: Фактическое количество /объем | G7: Фактическая стоимость за единицу работ (услуг), руб. | H7: Фактическая стоимость в год за работы (услуги), тыс. руб. для портала | I7: Фактическая стоимость в год за работы (услуги), тыс. руб. расчетная | J7: Фактическая стоимость в год за работы (услуги), руб.
A8: 1 | B8: 2 | C8: 3 | E8: 4 | F8: 4 | G8: 5 | H8: 6 | I8: 7
A9: 1 | B9: Работы (услуги) по управлению многоквартирным домом | H9: =H195*0.1 -> 140.329782 | I9: 302.91 | J9: =ROUND(H9*1000,2) -> 140329.78 | BV9: ттт | BW9: =SUM('Ананьевский пер. 4 2 стр.1:Уланский пер. 21 стр.2'!I9) -> 39325.41
A10: 2 | B10: Работы по содержанию помещений, входящих в состав общего имущества в многоквартирном доме | H10: =H11+H12+H13+H14+H15+H16+H19+H20+H31+H35+H38+H39 -> 286.0369 | I10: =I11+I12+I13+I14+I15+I16+I20+I31+I35+I38+I39+I40+I41+I19 -> 286.0369 | J10: =J11+J12+J13+J14+J15+J16+J20+J31+J35+J38+J39+J40+J41+J19 -> 286036.9 | BW10: =SUM('Ананьевский пер. 4 2 стр.1:Уланский пер. 21 стр.2'!I10) -> 42843.46669
A11: 2.1 | B11: Влажное подметание лестничных площадок и маршей нижних 2 этажей | C11: 299 | D11: раз в день, кроме праздничных и воскресных дней | E11: М2 | F11: 143.73 | G11: 2.04 | H11: =ROUND((F11*G11*K11)/1000,5) -> 87.66955 | I11: =H11 -> 87.66955 | J11: =ROUND(F11*G11*K11,2) -> 87669.55 | K11: 299 | BW11: =SUM('Ананьевский пер. 4 2 стр.1:Уланский пер. 21 стр.2'!I11) -> 14915.68877
A12: 2.2 | B12: Влажное подметание лестничных площадок и маршей выше 2-го этажа | C12: 52 | D12: раз в неделю | E12: М2 | F12: =431.2-F11 -> 287.47 | G12: 1.78 | H12: =ROUND((F12*G12*C12)/1000,5) -> 26.60822 | I12: =H12 -> 26.60822 | J12: =ROUND(F12*G12*K12,2) -> 26608.22 | K12: 52 | BW12: =SUM('Ананьевский пер. 4 2 стр.1:Уланский пер. 21 стр.2'!I12) -> 6142.94307
A13: 2.3 | B13: Влажное подметание перед загрузочными клапанами мусоропроводов | C13: 299 | D13: раз в день, кроме праздничных и воскресных дней | E13: М2 | F13: 0 | G13: 3.04 | H13: =ROUND((F13*G13*K13)/1000,5) -> 0 | BW13: =SUM('Ананьевский пер. 4 2 стр.1:Уланский пер. 21 стр.2'!I13) -> 1705.30818
A14: 2.4 | B14: Уборка загрузочных клапанов мусоропровода | C14: 52 | D14: раз в неделю | E14: ШТ | F14: 0 | G14: 19.35 | H14: =ROUND((F14*G14*K14)/1000,5) -> 0 | BW14: =SUM('Ананьевский пер. 4 2 стр.1:Уланский пер. 21 стр.2'!I14) -> 1842.3522
A15: 2.5 | B15: Мытье пола кабины лифта | C15: 299 | D15: раз в день, кроме праздничных и воскресных дней | E15: М2 | F15: =ROUND(F152*2,2) -> 4 | G15: 3.3 | H15: =ROUND((F15*G15*K15)/1000,5) -> 3.9468 | I15: =H15 -> 3.9468 | J15: =ROUND(F15*G15*K15,2) -> 3946.8 | K15: 299 | BW15: =SUM('Ананьевский пер. 4 2 стр.1:Уланский пер. 21 стр.2'!I15) -> 730.158
A16: 2.6 | B16: Мытье лестничных площадок | C16: Х | D16: Х | E16: Х | F16: Х | G16: Х | H16: =H17+H18 -> 13.59141 | I16: 13.59141 | J16: =J17+J18 -> 13591.41 | BW16: =SUM('Ананьевский пер. 4 2 стр.1:Уланский пер. 21 стр.2'!I16) -> 3251.40431
A17: 2.6.1 | B17: Мытье лестничных площадок и маршей нижних 2-х этажей | C17: 12 | D17: раз в месяц | E17: М2 | F17: =F11 -> 143.73 | G17: 2.88 | H17: =ROUND((F17*G17*C17)/1000,5) -> 4.96731 | I17: 4.96731 | J17: =ROUND(F17*G17*K17,2) -> 4967.31 | K17: 12 | BW17: =SUM('Ананьевский пер. 4 2 стр.1:Уланский пер. 21 стр.2'!I17) -> 1237.75155
A18: 2.6.2 | B18: Мытье лестничных площадок и маршей выше 2-го этажа | C18: 12 | D18: раз в месяц | E18: М2 | F18: =F12 -> 287.47 | G18: 2.5 | H18: =ROUND((F18*G18*C18)/1000,5) -> 8.6241 | I18: 8.6241 | J18: =ROUND(F18*G18*K18,2) -> 8624.1 | K18: 12 | BW18: =SUM('Ананьевский пер. 4 2 стр.1:Уланский пер. 21 стр.2'!I18) -> 2054.1916
A19: 2.7 | B19: Мытье окон | C19: 1 | D19: раз в год | E19: М2 | F19: 151.2 | G19: 8.43 | H19: =ROUND((F19*G19*K19)/1000,5) -> 1.27462 | I19: 1.27462 | J19: =ROUND(F19*G19*K19,2) -> 1274.62 | K19: 1 | BW19: =SUM('Ананьевский пер. 4 2 стр.1:Уланский пер. 21 стр.2'!I19) -> 126.04426
A20: 2.8 | B20: Влажная протирка | C20: Х | D20: Х | E20: Х | F20: Х | G20: Х | H20: =H21+H22+H23+H24+H25+H26+H27+H28+H29+H30 -> 12.95353 | I20: 12.95353 | J20: =J21+J22+J23+J24+J25+J26+J27+J28+J29+J30 -> 12953.53 | BW20: =SUM('Ананьевский пер. 4 2 стр.1:Уланский пер. 21 стр.2'!I20) -> 2805.27898
A21: 2.8.1 | B21: Влажная протирка стен | C21: 1 | D21: раз в год | E21: М2 | F21: 3556,2 | G21: 2.81 | H21: =ROUND((F21*G21*K21)/1000,5) -> 9.99292 | I21: 9.99292 | J21: =ROUND(F21*G21*K21,2) -> 9992.92 | K21: 1 | BW21: =SUM('Ананьевский пер. 4 2 стр.1:Уланский пер. 21 стр.2'!I21) -> 2444.04583
A22: 2.8.2 | B22: Влажная протирка плафонов на лестничных клетках | C22: 1 | D22: раз в год | E22: ШТ | F22: 72 | G22: 1.75 | H22: 0.126 | I22: 0.126 | J22: 126 | K22: 1 | BW22: =SUM('Ананьевский пер. 4 2 стр.1:Уланский пер. 21 стр.2'!I22) -> 37.63127
A23: 2.8.3 | B23: Влажная протирка дверных полотен на лестничных клетках | C23: 1 | D23: раз в год | E23: М2 | F23: 241,2 | G23: 4.1 | H23: 0.98892 | I23: 0.98892 | J23: 988.92 | K23: 1 | BW23: =SUM('Ананьевский пер. 4 2 стр.1:Уланский пер. 21 стр.2'!I23) -> 85.21684
A24: 2.8.4 | B24: Влажная протирка подоконников | C24: 2 | D24: раз в год | E24: М2 | F24: 11,34 | G24: 4.08 | H24: 0.09253 | I24: 0.09253 | J24: 92.53 | K24: 2 | BW24: =SUM('Ананьевский пер. 4 2 стр.1:Уланский пер. 21 стр.2'!I24) -> 9.02499
A25: 2.8.5 | B25: Влажная протирка оконных решеток | C25: 1 | D25: раз в год | E25: М2 | F25: 31,5 | G25: 3.93 | H25: 0.1238 | I25: 0.1238 | J25: 123.8 | K25: 1 | BW25: =SUM('Ананьевский пер. 4 2 стр.1:Уланский пер. 21 стр.2'!I25) -> 11.16928
A26: 2.8.6 | B26: Влажная протирка чердачных лестниц | C26: 1 | D26: раз в год | E26: М2 | F26: 215,6 | G26: 2.64 | H26: 0.56918 | I26: 0.56918 | J26: 569.18 | K26: 1 | BW26: =SUM('Ананьевский пер. 4 2 стр.1:Уланский пер. 21 стр.2'!I26) -> 91.98778
A27: 2.8.7 | B27: Влажная протирка отопительных приборов | C27: 2 | D27: раз в год | E27: М2 | F27: 28,8 | G27: 5.07 | H27: 0.29203 | I27: 0.29203 | J27: 292.03 | K27: 2 | BW27: =SUM('Ананьевский пер. 4 2 стр.1:Уланский пер. 21 стр.2'!I27) -> 35.84514
A28: 2.8.8 | B28: Влажная протирка шкафов для электросчетчиков, слаботочных устройств | C28: 1 | D28: раз в год | E28: М2 | F28: 18 | G28: 2.52 | H28: 0.04536 | I28: 0.04536 | J28: 45.36 | K28: 1 | BW28: =SUM('Ананьевский пер. 4 2 стр.1:Уланский пер. 21 стр.2'!I28) -> 4.24783
A29: 2.8.9 | B29: Влажная протирка почтовых ящиков | C29: 1 | D29: раз в год | E29: М2 | F29: 12,6 | G29: 2.05 | H29: 0.02583 | I29: 0.02583 | J29: 25.83 | K29: 1 | BW29: =SUM('Ананьевский пер. 4 2 стр.1:Уланский пер. 21 стр.2'!I29) -> 1.99345
A30: 2.8.10 | B30: Влажная протирка стен, дверей кабины лифта | C30: 24 | D30: раз в месяц | E30: М2 | F30: =ROUND(F152*4,2) -> 8 | G30: 3.63 | H30: 0.69696 | I30: 0.69696 | J30: 696.96 | K30: 24 | BW30: =SUM('Ананьевский пер. 4 2 стр.1:Уланский пер. 21 стр.2'!I30) -> 141.85719
A31: 2.9 | B31: Очистка кровли | C31: Х | D31: Х | E31: Х | F31: Х | G31: Х | H31: =H32+H33+H34 -> 137.62122 | I31: =I32+I33+I34 -> 137.62122 | J31: =J32+J33+J34 -> 137621.22 | BW31: =SUM('Ананьевский пер. 4 2 стр.1:Уланский пер. 21 стр.2'!I31) -> 6964.99017
A32: 2.9.1 | B32: Очистка кровли и ее элементов (в том числе козырьков над подъездами) от мусора и листьев | C32: 2 | D32: раз в год | E32: М2 | F32: 1913 | G32: 2.01 | H32: =ROUND(F32*G32*K32/1000,5) -> 7.69026 | I32: =H32 -> 7.69026 | J32: =ROUND(H32*1000,2) -> 7690.26 | K32: 2 | M32: 1913 | BW32: =SUM('Ананьевский пер. 4 2 стр.1:Уланский пер. 21 стр.2'!I32) -> 795.36546
A33: 2.9.2 | B33: Очистка кровли от снега | C33: 3 | D33: Работа не выполняется | E33: КХ | F33: 1913 | G33: 7.67 | H33: =ROUND(G33*F33*K33/1000,5) -> 44.01813 | I33: =H33 -> 44.01813 | J33: =ROUND(H33*1000,2) -> 44018.13 | K33: 3 | BW33: =SUM('Ананьевский пер. 4 2 стр.1:Уланский пер. 21 стр.2'!I33) -> 4006.32774
A34: 2.9.3 | B34: Очистка кровли от снега и наледеобразований | C34: 3 | D34: Работа не выполняется | E34: КХ | F34: 1913 | G34: 14.97 | H34: =ROUND(G34*F34*K34/1000,5) -> 85.91283 | I34: =H34 -> 85.91283 | J34: =ROUND(H34*1000,2) -> 85912.83 | K34: 3 | BW34: =SUM('Ананьевский пер. 4 2 стр.1:Уланский пер. 21 стр.2'!I34) -> 2271.04437
A35: 2.10 | B35: Смена частей водосточных труб и прочистка внутреннего водостока | C35: Х | D35: Х | E35: Х | F35: Х | G35: Х | H35: =H36+H37 -> 0 | I35: =I36+I37 -> 0 | J35: =J36+J37 -> 0 | BW35: =SUM('Ананьевский пер. 4 2 стр.1:Уланский пер. 21 стр.2'!I35) -> 0
A36: 2.10.1 | B36: Смена частей водосточных труб | C36: 0 | D36: в течение суток после обнаружения | E36: ШТ | F36: 0 | G36: 0 | H36: 0 | I36: 0 | J36: 0 | BW36: =SUM('Ананьевский пер. 4 2 стр.1:Уланский пер. 21 стр.2'!I36) -> 0
A37: 2.10.2 | B37: Прочистка водоприемной воронки внутреннего водостока | C37: =IF(F37>0,2,0) -> 0 | D37: в течение суток после обнаружения | E37: ШТ | F37: 0 | G37: 0 | H37: =ROUND(G37*F37*C37/1000,5) -> 0 | M37: 638.8 | BW37: =SUM('Ананьевский пер. 4 2 стр.1:Уланский пер. 21 стр.2'!I37) -> 0
A38: 2.11 | B38: Очистка подвалов и чердаков от мусора | C38: 1 | D38: раз в год | E38: М2 | F38: =L38 -> 1437.3 | G38: 1.65 | H38: =ROUND((F38*G38*K38)/1000,5) -> 2.37155 | I38: =H38 -> 2.37155 | J38: =ROUND(F38*G38*K38,2) -> 2371.55 | K38: 1 | L38: =M37+M38 -> 1437.3 | M38: 798.5 | BW38: =SUM('Ананьевский пер. 4 2 стр.1:Уланский пер. 21 стр.2'!I38) -> 396.27316
A39: 2.12 | B39: Уборка мусороприемной камеры | C39: =IF(G39>0,299,0) -> 299 | D39: раз в день, кроме праздничных и воскресных дней | E39: М2 | F39: 0 | G39: 8.32 | H39: =ROUND((F39*G39*K39)/1000,5) -> 0 | BW39: =SUM('Ананьевский пер. 4 2 стр.1:Уланский пер. 21 стр.2'!I39) -> 4396.2355
A40: 2.13 | B40: Ремонт почтовых ящиков, установка, смена замка | C40: 0 | D40: В течении суток с момента получения заявки | E40: КХ | F40: 0 | G40: 0 | H40: =ROUND(G40*F40/1000,5) -> 0 | I40: =H40 -> 0 | J40: =ROUND(H40*1000,2) -> 0 | BW40: =SUM('Ананьевский пер. 4 2 стр.1:Уланский пер. 21 стр.2'!I40) -> 0
A41: 2.14 | B41: Иное (Работы по содержанию помещений, входящих в состав общего имущества в многоквартирном доме) | C41: Х | D41: Х | E41: Х | F41: Х | G41: Х | H41: 0 | BW41: =SUM('Ананьевский пер. 4 2 стр.1:Уланский пер. 21 стр.2'!I41) -> 0
A42: 3 | B42: Работы по обеспечению вывоза твердых бытовых отходов | H42: =H43+H44 -> 81.91772 | I42: =I43+I44 -> 0 | J42: =J43+J44 -> 0 | Q42: жители | R42: 253 | BW42: =SUM('Ананьевский пер. 4 2 стр.1:Уланский пер. 21 стр.2'!I42) -> 4906.95235
A43: 3.1 | B43: Удаление мусора из мусороприемных камер | C43: =IF(G43>0,365,0) -> 365 | D43: раз в день | E43: М3 | F43: 1.01 | G43: 222.21 | H43: =ROUND((F43*G43*C43)/1000,5) -> 81.91772 | N43: =ROUND(R42*1.45/365,3) -> 1.005 | O43: м3 мусора в день | Q43: место мусороприемной камеры | BW43: =SUM('Ананьевский пер. 4 2 стр.1:Уланский пер. 21 стр.2'!I43) -> 4906.95235
A44: 3.2 | B44: Иное (Работы по обеспечению вывоза твердых бытовых отходов) | C44: 0 | D44: 0 | E44: 0 | F44: 0 | G44: 0 | H44: 0 | J44: =ROUND(H44*1000,2) -> 0 | Q44: на 1 этаже | BW44: =SUM('Ананьевский пер. 4 2 стр.1:Уланский пер. 21 стр.2'!I44) -> 0
A45: 4 | B45: Работы по обеспечению вывоза крупногабаритного мусора | C45: 0 | D45: 0 | E45: 0 | F45: 0 | G45: 0 | H45: 0 | J45: =ROUND(H45*1000,2) -> 0 | Q45: в цокольном этаже | R45: =IF(R43=Q45,274.83,0) -> 0 | BW45: =SUM('Ананьевский пер. 4 2 стр.1:Уланский пер. 21 стр.2'!I45) -> 0
A46: 5 | B46: Работы по содержанию и ремонту конструктивных элементов (несущих и ненесущих конструкций) многоквартирных домов | H46: =H47+H53+H63+H68+H77+H85+H98+H103 -> 120.8114934 | I46: =I47+I53+I63+I68+I77+I85+I98+I103 -> 120.8114934 | J46: =J47+J53+J63+J68+J77+J85+J98+J103 -> 117187.15 | Q46: в подвале | R46: =IF(R43=Q46,341.86,0) -> 0 | BV46: ррр | BW46: =SUM('Ананьевский пер. 4 2 стр.1:Уланский пер. 21 стр.2'!I46) -> 15651.03886 | CQ46: ррр
A47: 5.1 | B47: Фундамент | H47: =H48+H49+H50+H51+H52 -> 6.04057 | I47: =I48+I49+I50+I51+I52 -> 0 | J47: =J48+J49+J50+J51+J52 -> 6040.57 | R47: =SUM(R45:R46) -> 0 | BW47: =SUM('Ананьевский пер. 4 2 стр.1:Уланский пер. 21 стр.2'!I47) -> 664.769737
A48: 5.1.1 | B48: Восстановление поврежденных участков фундаментов | C48: 0 | D48: 0 | E48: 0 | F48: 0 | G48: 0 | H48: 0 | BW48: =SUM('Ананьевский пер. 4 2 стр.1:Уланский пер. 21 стр.2'!I48) -> 0
A49: 5.1.2 | B49: Восстановление гидроизоляции и систем водоотвода фундаментов | C49: 1 | D49: 0 | E49: 0 | F49: 1 | G49: =G50*1000 -> 0 | H49: =ROUND(($I$108*0.03),5) -> 3.62434 | J49: =ROUND(H49*1000,2) -> 3624.34 | K49: 5 | BW49: =SUM('Ананьевский пер. 4 2 стр.1:Уланский пер. 21 стр.2'!I49) -> 0
A50: 5.1.3 | B50: Восстановление поврежденных участков вентиляционных продухов | C50: 0 | D50: 0 | E50: 0 | F50: 0 | G50: 0 | H50: =ROUND(($I$108*0.02),5) -> 2.41623 | J50: =ROUND(H50*1000,2) -> 2416.23 | BW50: =SUM('Ананьевский пер. 4 2 стр.1:Уланский пер. 21 стр.2'!I50) -> 0
A51: 5.1.4 | B51: Восстановление поврежденных участков входов в подвалы | C51: 0 | D51: 0 | E51: 0 | F51: 0 | G51: 0 | H51: 0 | J51: =ROUND(H51*1000,2) -> 0 | BW51: =SUM('Ананьевский пер. 4 2 стр.1:Уланский пер. 21 стр.2'!I51) -> 0
A52: 5.1.5 | B52: Иное (Фундамент) | C52: Х | D52: Х | E52: Х | F52: Х | G52: Х | H52: 0 | J52: =ROUND(H52*1000,2) -> 0 | BW52: =SUM('Ананьевский пер. 4 2 стр.1:Уланский пер. 21 стр.2'!I52) -> 0
A53: 5.2 | B53: Стены и фасад | H53: =H54+H55+H56+H57+H58+H59+H60+H61+H62 -> 8.4568 | I53: =I54+I55+I56+I57+I58+I59+I60+I61+I62 -> 0 | J53: =J54+J55+J56+J57+J58+J59+J60+J61+J62 -> 8456.8 | BW53: =SUM('Ананьевский пер. 4 2 стр.1:Уланский пер. 21 стр.2'!I53) -> 0
A54: 5.2.1 | B54: Герметизация стыков стен и фасадов | C54: 0 | D54: 0 | E54: 0 | F54: 0 | G54: 0 | H54: 0 | J54: =ROUND(H54*1000,2) -> 0 | BW54: =SUM('Ананьевский пер. 4 2 стр.1:Уланский пер. 21 стр.2'!I54) -> 0
A55: 5.2.2 | B55: Заделка и восстановление архитектурных элементов | C55: 0 | D55: 0 | E55: 0 | F55: 0 | G55: 0 | H55: 0 | J55: 0 | BW55: =SUM('Ананьевский пер. 4 2 стр.1:Уланский пер. 21 стр.2'!I55) -> 0
A56: 5.2.3 | B56: Ремонт штукатурки гладких фасадов | C56: 0 | D56: 0 | E56: 0 | F56: 0 | G56: 0 | H56: 0 | J56: 0 | BW56: =SUM('Ананьевский пер. 4 2 стр.1:Уланский пер. 21 стр.2'!I56) -> 0
A57: 5.2.4 | B57: Окраска, промывка фасадов | C57: 0 | D57: 0 | E57: 0 | F57: 0 | G57: 0 | H57: 0 | J57: 0 | BW57: =SUM('Ананьевский пер. 4 2 стр.1:Уланский пер. 21 стр.2'!I57) -> 0
A58: 5.2.5 | B58: Восстановление поврежденных участков цоколей | C58: 0 | D58: 0 | E58: 0 | F58: 0 | G58: 0 | H58: 0 | J58: 0 | BW58: =SUM('Ананьевский пер. 4 2 стр.1:Уланский пер. 21 стр.2'!I58) -> 0
A59: 5.2.6 | B59: Окраска, промывка цоколей | C59: 0 | D59: 0 | E59: 0 | F59: 0 | G59: 0 | H59: =ROUND(($I$108*0.07),5) -> 8.4568 | J59: 8456.8 | K59: 7 | BW59: =SUM('Ананьевский пер. 4 2 стр.1:Уланский пер. 21 стр.2'!I59) -> 0
A60: 5.2.7 | B60: Смена пластмассового короба домового знака или уличного указателя | C60: 0 | D60: 0 | E60: 0 | F60: 0 | G60: 0 | H60: 0 | J60: 0 | BW60: =SUM('Ананьевский пер. 4 2 стр.1:Уланский пер. 21 стр.2'!I60) -> 0
A61: 5.2.8 | B61: Восстановление гидроизоляции между цокольной частью здания и стенами | C61: 0 | D61: 0 | E61: 0 | F61: 0 | G61: 0 | H61: 0 | J61: 0 | BW61: =SUM('Ананьевский пер. 4 2 стр.1:Уланский пер. 21 стр.2'!I61) -> 0
A62: 5.2.9 | B62: Иное (Стены и фасад) | C62: Х | D62: Х | E62: Х | F62: Х | G62: Х | H62: 0 | BW62: =SUM('Ананьевский пер. 4 2 стр.1:Уланский пер. 21 стр.2'!I62) -> 0
A63: 5.3 | B63: Перекрытия | H63: =H64+H65+H66+H67 -> 0 | I63: =I64+I65+I66+I67 -> 0 | J63: =J64+J65+J66+J67 -> 0 | BW63: =SUM('Ананьевский пер. 4 2 стр.1:Уланский пер. 21 стр.2'!I63) -> 0
A64: 5.3.1 | B64: Частичная смена отдельных деревянных элементов | C64: 0 | D64: 0 | E64: 0 | F64: 0 | G64: 0 | H64: 0 | J64: =ROUND(H64*1000,2) -> 0 | BW64: =SUM('Ананьевский пер. 4 2 стр.1:Уланский пер. 21 стр.2'!I64) -> 0
A65: 5.3.2 | B65: Заделка швов и трещин | C65: 0 | D65: 0 | E65: 0 | F65: 0 | G65: 0 | H65: 0 | J65: =ROUND(H65*1000,2) -> 0 | BW65: =SUM('Ананьевский пер. 4 2 стр.1:Уланский пер. 21 стр.2'!I65) -> 0
A66: 5.3.3 | B66: Укрепление и окраска | C66: 0 | D66: 0 | E66: 0 | F66: 0 | G66: 0 | H66: 0 | J66: =ROUND(H66*1000,2) -> 0 | BW66: =SUM('Ананьевский пер. 4 2 стр.1:Уланский пер. 21 стр.2'!I66) -> 0
A67: 5.3.4 | B67: Иное (Перекрытия) | C67: Х | D67: Х | E67: Х | F67: Х | G67: Х | H67: 0 | BW67: =SUM('Ананьевский пер. 4 2 стр.1:Уланский пер. 21 стр.2'!I67) -> 0
A68: 5.4 | B68: Крыши | H68: =H69+H70+H71+H72+H75+H76 -> 10.87303 | I68: =I69+I70+I71+I72+I75+I76 -> 0 | J68: =J69+J70+J71+J72+J73+J74+J75+J76 -> 10873.03 | BW68: =SUM('Ананьевский пер. 4 2 стр.1:Уланский пер. 21 стр.2'!I68) -> 0
A69: 5.4.1 | B69: Усиление элементов деревянной стропильной системы, | C69: 0 | D69: 0 | E69: 0 | F69: 0 | G69: 0 | H69: 0 | J69: =ROUND(H69*1000,2) -> 0 | BW69: =SUM('Ананьевский пер. 4 2 стр.1:Уланский пер. 21 стр.2'!I69) -> 0
A70: 5.4.2 | B70: Устранение неисправностей и ремонт стальных, асбестоцементных и других кровельных покрытий | C70: 0 | D70: 0 | E70: 0 | F70: 0 | G70: 0 | H70: 0 | J70: =ROUND(H70*1000,2) -> 0 | BW70: =SUM('Ананьевский пер. 4 2 стр.1:Уланский пер. 21 стр.2'!I70) -> 0
A71: 5.4.3 | B71: Разборка и ремонт кровли из рулонных материалов | C71: 0 | D71: 0 | E71: 0 | F71: 0 | G71: 0 | H71: 0 | J71: =ROUND(H71*1000,2) -> 0 | BW71: =SUM('Ананьевский пер. 4 2 стр.1:Уланский пер. 21 стр.2'!I71) -> 0
A72: 5.4.4 | B72: Ремонт конструкций и элементов крыши | C72: 0 | D72: 0 | E72: 0 | F72: 0 | G72: 0 | H72: 0 | I72: =I73+I74 -> 0 | J72: =J73+J74 -> 0 | BW72: =SUM('Ананьевский пер. 4 2 стр.1:Уланский пер. 21 стр.2'!I72) -> 0
A73: 5.4.4.1 | B73: Ремонт частей водосточных труб | C73: 0 | D73: 0 | E73: 0 | F73: 0 | G73: 0 | H73: 0 | J73: =ROUND(H73*1000,2) -> 0 | BW73: =SUM('Ананьевский пер. 4 2 стр.1:Уланский пер. 21 стр.2'!I73) -> 0
A74: 5.4.4.2 | B74: Ремонт металлической парапетной решетки | C74: 0 | D74: 0 | E74: 0 | F74: 0 | G74: 0 | H74: 0 | J74: =ROUND(H74*1000,2) -> 0 | BW74: =SUM('Ананьевский пер. 4 2 стр.1:Уланский пер. 21 стр.2'!I74) -> 0
A75: 5.4.5 | B75: Окраска конструкций и элементов крыши | C75: 0 | D75: 0 | E75: 0 | F75: 0 | G75: 0 | H75: 0 | J75: =ROUND(H75*1000,2) -> 0 | BW75: =SUM('Ананьевский пер. 4 2 стр.1:Уланский пер. 21 стр.2'!I75) -> 0
A76: 5.4.6 | B76: Иное (Крыши) | C76: Х | D76: Х | E76: Х | F76: Х | G76: Х | H76: =ROUND(($I$108*0.09),5) -> 10.87303 | J76: =ROUND(H76*1000,2) -> 10873.03 | K76: 9 | BW76: =SUM('Ананьевский пер. 4 2 стр.1:Уланский пер. 21 стр.2'!I76) -> 0
A77: 5.5 | B77: Оконные и дверные заполнения на лестничных клетках и во вспомогательных помещениях общего пользования, входные двери | H77: =H78+H79+H80+H81+H82+H83+H84 -> 16.9136 | I77: =I78+I79+I80+I81+I82+I83+I84 -> 0 | J77: =J78+J79+J80+J81+J82+J83+J84 -> 13289.26 | BW77: =SUM('Ананьевский пер. 4 2 стр.1:Уланский пер. 21 стр.2'!I77) -> 0
A78: 5.5.1 | B78: Ремонт дверей в помещениях общего пользования | C78: 0 | D78: 0 | E78: 0 | F78: 0 | G78: 0 | H78: =ROUND(($I$108*0.07),5) -> 8.4568 | J78: =ROUND(H78*1000,2) -> 8456.8 | K78: 7 | BW78: =SUM('Ананьевский пер. 4 2 стр.1:Уланский пер. 21 стр.2'!I78) -> 0
A79: 5.5.2 | B79: Замена дверей в помещениях общего пользования | C79: 0 | D79: 0 | E79: 0 | F79: 0 | G79: 0 | H79: 0 | J79: 0 | BW79: =SUM('Ананьевский пер. 4 2 стр.1:Уланский пер. 21 стр.2'!I79) -> 0
A80: 5.5.3 | B80: Ремонт или замена входных дверей в подъезды | C80: 0 | D80: 0 | E80: 0 | F80: 0 | G80: 0 | H80: 0 | J80: 0 | BW80: =SUM('Ананьевский пер. 4 2 стр.1:Уланский пер. 21 стр.2'!I80) -> 0
A81: 5.5.4 | B81: Ремонт окон в помещениях общего пользования | C81: 0 | D81: 0 | E81: 0 | F81: 0 | G81: 0 | H81: =ROUND(($I$108*0.04),5) -> 4.83246 | J81: 4832.46 | K81: 4 | BW81: =SUM('Ананьевский пер. 4 2 стр.1:Уланский пер. 21 стр.2'!I81) -> 0
A82: 5.5.5 | B82: Замена окон в помещениях общего пользования | C82: 0 | D82: 0 | E82: 0 | F82: 0 | G82: 0 | H82: 0 | J82: 0 | BW82: =SUM('Ананьевский пер. 4 2 стр.1:Уланский пер. 21 стр.2'!I82) -> 0
A83: 5.5.6 | B83: Установка и текущий ремонт доводчиков | C83: 0 | D83: 0 | E83: 0 | F83: 0 | G83: 0 | H83: 0 | J83: 0 | BW83: =SUM('Ананьевский пер. 4 2 стр.1:Уланский пер. 21 стр.2'!I83) -> 0
A84: 5.5.7 | B84: Иное (Оконные и дверные заполнения на лестничных клетках и во вспомогательных помещениях общего пользования, входные двери) | C84: Х | D84: Х | E84: Х | F84: Х | G84: Х | H84: =ROUND(($I$108*0.03),5) -> 3.62434 | K84: 3 | BW84: =SUM('Ананьевский пер. 4 2 стр.1:Уланский пер. 21 стр.2'!I84) -> 0
A85: 5.6 | B85: Лестницы, пандусы, крыльца, козырьки над входами в подъезды, подвалы и над балконами верхних этажей | H85: =H86+H87+H88+H89+H90+H91+H92+H93+H94+H95+H96+H97 -> 41.07591 | I85: =I86+I87+I88+I89+I90+I91+I92+I93+I94+I95+I96+I97 -> 0 | J85: =J86+J87+J88+J89+J90+J91+J92+J93+J94+J95+J96+J97 -> 41075.91 | BW85: =SUM('Ананьевский пер. 4 2 стр.1:Уланский пер. 21 стр.2'!I85) -> 0
A86: 5.6.1 | B86: Восстановление лестницы | C86: 0 | D86: 0 | E86: 0 | F86: 0 | G86: 0 | H86: 0 | J86: =ROUND(H86*1000,2) -> 0 | BW86: =SUM('Ананьевский пер. 4 2 стр.1:Уланский пер. 21 стр.2'!I86) -> 0
A87: 5.6.2 | B87: Замена лестницы | C87: 0 | D87: 0 | E87: 0 | F87: 0 | G87: 0 | H87: 0 | J87: =ROUND(I87*1000,2) -> 0 | BW87: =SUM('Ананьевский пер. 4 2 стр.1:Уланский пер. 21 стр.2'!I87) -> 0
A88: 5.6.3 | B88: Восстановление пандуса | C88: 0 | D88: 0 | E88: 0 | F88: 0 | G88: 0 | H88: 0 | J88: =ROUND(H88*1000,2) -> 0 | BW88: =SUM('Ананьевский пер. 4 2 стр.1:Уланский пер. 21 стр.2'!I88) -> 0
A89: 5.6.4 | B89: Замена пандуса | C89: 0 | D89: 0 | E89: 0 | F89: 0 | G89: 0 | H89: 0 | J89: 0 | BW89: =SUM('Ананьевский пер. 4 2 стр.1:Уланский пер. 21 стр.2'!I89) -> 0
A90: 5.6.5 | B90: Восстановление крыльца | C90: 0 | D90: 0 | E90: 0 | F90: 0 | G90: 0 | H90: =ROUND(($I$108*0.12),5) -> 14.49738 | J90: 14497.38 | K90: 12 | BW90: =SUM('Ананьевский пер. 4 2 стр.1:Уланский пер. 21 стр.2'!I90) -> 0
A91: 5.6.6 | B91: Замена крыльца | C91: 0 | D91: 0 | E91: 0 | F91: 0 | G91: 0 | H91: 0 | J91: 0 | BW91: =SUM('Ананьевский пер. 4 2 стр.1:Уланский пер. 21 стр.2'!I91) -> 0
A92: 5.6.7 | B92: Восстановление козырьков над входами в подъезды, ремонт кровельного покрытия козырьков, ложных балконов | C92: 0 | D92: 0 | E92: 0 | F92: 0 | G92: 0 | H92: 0 | J92: 0 | BW92: =SUM('Ананьевский пер. 4 2 стр.1:Уланский пер. 21 стр.2'!I92) -> 0
A93: 5.6.8 | B93: Замена козырьков над входами в подъезды | C93: 0 | D93: 0 | E93: 0 | F93: 0 | G93: 0 | H93: 0 | J93: 0 | BW93: =SUM('Ананьевский пер. 4 2 стр.1:Уланский пер. 21 стр.2'!I93) -> 0
A94: 5.6.9 | B94: Восстановление конструкций над балконами верхних этажей | C94: 0 | D94: 0 | E94: 0 | F94: 0 | G94: 0 | H94: 0 | J94: 0 | BW94: =SUM('Ананьевский пер. 4 2 стр.1:Уланский пер. 21 стр.2'!I94) -> 0
A95: 5.6.10 | B95: Замена конструкций над балконами верхних этажей | C95: 0 | D95: 0 | E95: 0 | F95: 0 | G95: 0 | H95: 0 | J95: 0 | BW95: =SUM('Ананьевский пер. 4 2 стр.1:Уланский пер. 21 стр.2'!I95) -> 0
A96: 5.6.11 | B96: Ремонт полов (на лестницах, чердаках, в холлах и подвалах) | C96: 1 | D96: 0 | E96: 0 | F96: 1 | G96: 0 | H96: =ROUND(($I$108*0.16),5) -> 19.32984 | J96: 19329.84 | K96: 16 | BW96: =SUM('Ананьевский пер. 4 2 стр.1:Уланский пер. 21 стр.2'!I96) -> 0
A97: 5.6.12 | B97: Иное (Лестницы, пандусы, крыльца, козырьки над входами в подъезды, подвалы и над балконами верхних этажей) | C97: 0 | D97: 0 | E97: 0 | F97: 0 | G97: 0 | H97: =ROUND(($I$108*0.06),5) -> 7.24869 | J97: 7248.69 | K97: 6 | BW97: =SUM('Ананьевский пер. 4 2 стр.1:Уланский пер. 21 стр.2'!I97) -> 0
A98: 5.7 | B98: Внутренняя отделка в подъездах, технических помещениях, и других помещениях общего пользования | H98: =H99+H100+H101+H102 -> 4.83246 | I98: =I99+I100+I101+I102 -> 0 | J98: =J99+J100+J101+J102 -> 4832.46 | BW98: =SUM('Ананьевский пер. 4 2 стр.1:Уланский пер. 21 стр.2'!I98) -> 0
A99: 5.7.1 | B99: Восстановление отделки стен | C99: 0 | D99: 0 | E99: 0 | F99: 0 | G99: 0 | H99: =ROUND(($I$108*0.04),5) -> 4.83246 | I99: 0 | J99: =ROUND(H99*1000,2) -> 4832.46 | K99: 4 | BV99: ррр | BW99: =SUM('Ананьевский пер. 4 2 стр.1:Уланский пер. 21 стр.2'!I99) -> 0
A100: 5.7.2 | B100: Восстановление отделки потолков | C100: 0 | D100: 0 | E100: 0 | F100: 0 | G100: 0 | H100: 0 | J100: =ROUND(H100*1000,2) -> 0 | BW100: =SUM('Ананьевский пер. 4 2 стр.1:Уланский пер. 21 стр.2'!I100) -> 0
A101: 5.7.3 | B101: Ремонт лестничных клеток | C101: 0 | D101: 0 | E101: 0 | F101: 0 | G101: 0 | H101: 0 | J101: =ROUND(H101*1000,2) -> 0 | BW101: =SUM('Ананьевский пер. 4 2 стр.1:Уланский пер. 21 стр.2'!I101) -> 0
A102: 5.7.4 | B102: Ремонт технических и вспомогательных помещений | C102: 0 | D102: 0 | E102: 0 | F102: 0 | G102: 0 | H102: 0 | J102: =ROUND(H102*1000,2) -> 0 | BW102: =SUM('Ананьевский пер. 4 2 стр.1:Уланский пер. 21 стр.2'!I102) -> 0
A103: 5.8 | B103: Ремонт чердаков, подвалов | H103: =H104+H105+H106+H107+H108 -> 32.6191234 | I103: =I104+I105+I106+I107+I108 -> 120.8114934 | J103: =J104+J105+J106+J107+J108 -> 32619.12 | BW103: =SUM('Ананьевский пер. 4 2 стр.1:Уланский пер. 21 стр.2'!I103) -> 15651.03886
A104: 5.8.1 | B104: Утепление чердачных перекрытий | C104: 0 | D104: 0 | E104: 0 | F104: 0 | G104: 0 | H104: 0 | J104: =ROUND(H104*1000,2) -> 0 | BW104: =SUM('Ананьевский пер. 4 2 стр.1:Уланский пер. 21 стр.2'!I104) -> 664.769737
A105: 5.8.2 | B105: Утепление трубопроводов в чердачных помещениях | C105: 0 | D105: 0 | E105: 0 | F105: 0 | G105: 0 | H105: 0 | J105: =ROUND(H105*1000,2) -> 0 | BW105: =SUM('Ананьевский пер. 4 2 стр.1:Уланский пер. 21 стр.2'!I105) -> 0
A106: 5.8.3 | B106: Утепление трубопроводов в подвальных помещениях | C106: 0 | D106: 0 | E106: 0 | F106: 0 | G106: 0 | H106: =ROUND(($I$108*0.065),5) -> 7.85275 | J106: =ROUND(H106*1000,2) -> 7852.75 | K106: 6.5 | BW106: =SUM('Ананьевский пер. 4 2 стр.1:Уланский пер. 21 стр.2'!I106) -> 0
A107: 5.8.4 | B107: Изготовление новых или ремонт существующих ходовых досок и переходных мостиков на чердаках, в подвалах | C107: 0 | D107: 0 | E107: 0 | F107: 0 | G107: 0 | H107: 0 | J107: =ROUND(H107*1000,2) -> 0 | BW107: =SUM('Ананьевский пер. 4 2 стр.1:Уланский пер. 21 стр.2'!I107) -> 0
A108: 5.8.5 | B108: Иное (Ремонт чердаков, подвалов) | C108: Х | D108: Х | E108: Х | F108: Х | G108: Х | H108: =I108-H47-H53-H63-H68-H77-H85-H98-H106 -> 24.7663734 | I108: =J197-I138-H181 -> 120.8114934 | J108: =ROUND(H108*1000,2) -> 24766.37 | BW108: =SUM('Ананьевский пер. 4 2 стр.1:Уланский пер. 21 стр.2'!I108) -> 16172.23364
A109: 6 | B109: Работы по содержанию и ремонту оборудования и систем инженерно-технического обеспечения, входящих в состав общего имущества в многоквартирном доме | H109: =H110+H111+H112+H113+H114+H115+H116+H117+H118+H119+H120+H121+H122+H123+H124+H125+H126+H127+H128+H129+H130+H131+H132+H133+H134+H135+H136+H137+H138 -> 399.3861646 | I109: =I110+I111+I112+I113+I114+I115+I116+I117+I118+I119+I120+I121+I122+I123+I124+I125+I126+I127+I128+I129+I130+I131+I132+I133+I134+I135+I136+I137+I138 -> 399.3871646 | J109: =J110+J111+J112+J113+J114+J115+J116+J117+J118+J119+J120+J121+J122+J123+J124+J125+J126+J127+J128+J129+J130+J131+J132+J133+J134+J135+J136+J137+J138 -> 373648.06 | BV109: ддд | BW109: =SUM('Ананьевский пер. 4 2 стр.1:Уланский пер. 21 стр.2'!I109) -> 54125.52518 | CQ109: ддд
A110: 6.1 | B110: Консервация (расконсервация) поливочной системы | C110: 1 | D110: В ходе подготовки к эксплуатации дома в осенне-зимний период | E110: КХ | F110: 1 | G110: =H110*1000 -> 18384.36 | H110: =ROUND(($I$138*0.05),5) -> 18.38436 | J110: =ROUND(H110*1000,2) -> 18384.36 | BW110: =SUM('Ананьевский пер. 4 2 стр.1:Уланский пер. 21 стр.2'!I110) -> 400.168233
A111: 6.2 | B111: Ремонт, регулировка, промывка и опрессовка систем центрального отопления, утепление бойлеров | C111: 1 | D111: В ходе подготовки к эксплуатации дома в осенне-зимний период | E111: КХ | F111: 1 | G111: =H111*1000 -> 91921.79 | H111: =ROUND(($I$138*0.25),5) -> 91.92179 | J111: 91921.79 | BW111: =SUM('Ананьевский пер. 4 2 стр.1:Уланский пер. 21 стр.2'!I111) -> 0
A112: 6.3 | B112: Утепление вентиляционных и дымовых каналов | C112: 0 | D112: В ходе подготовки к эксплуатации дома в осенне-зимний период | E112: КХ | F112: 0 | G112: 0 | H112: 0 | J112: 0 | BW112: =SUM('Ананьевский пер. 4 2 стр.1:Уланский пер. 21 стр.2'!I112) -> 0
A113: 6.4 | B113: Прочистка вентиляционных и дымовых каналов | C113: 0 | D113: В ходе подготовки к эксплуатации дома в осенне-зимний период | E113: КХ | F113: 0 | G113: 0 | H113: 0 | J113: 0 | BW113: =SUM('Ананьевский пер. 4 2 стр.1:Уланский пер. 21 стр.2'!I113) -> 0
A114: 6.5 | B114: Ремонт и утепление наружных водоразборных кранов | C114: 0 | D114: В ходе подготовки к эксплуатации дома в осенне-зимний период | E114: КХ | F114: 0 | G114: 0 | H114: 0 | J114: 0 | BW114: =SUM('Ананьевский пер. 4 2 стр.1:Уланский пер. 21 стр.2'!I114) -> 0
A115: 6.6 | B115: Проведение технических осмотров систем водопровода и канализации, центрального отопления и горячего водоснабжения, электротехнических устройств, вентиляционных каналов | C115: 0 | D115: по мере необходимости | E115: КХ | F115: 0 | G115: 0 | H115: 0 | J115: 0 | BW115: =SUM('Ананьевский пер. 4 2 стр.1:Уланский пер. 21 стр.2'!I115) -> 0
A116: 6.7 | B116: Устранение неисправностей в системах водопровода и канализации, центрального отопления и горячего водоснабжения, электротехнических устройств, вентиляционных и дымовых каналов | C116: 1 | D116: В ходе подготовки к эксплуатации дома в осенне-зимний период | E116: КХ | F116: 1 | G116: =H116*1000 -> 44122.46 | H116: =ROUND(($I$138*0.12),5) -> 44.12246 | J116: 44122.46 | BW116: =SUM('Ананьевский пер. 4 2 стр.1:Уланский пер. 21 стр.2'!I116) -> 0
A117: 6.8 | B117: Проверка исправности канализационных вытяжек | C117: 0 | D117: Устранение по мере обнаружения дефектов | E117: КХ | F117: 0 | G117: 0 | H117: 0 | J117: 0 | BW117: =SUM('Ананьевский пер. 4 2 стр.1:Уланский пер. 21 стр.2'!I117) -> 0
A118: 6.9 | B118: Устранение засора внутреннего канализационного трубопровода | C118: 0 | D118: раз в год | E118: КХ | F118: 0 | G118: 0 | H118: 0 | J118: 0 | BW118: =SUM('Ананьевский пер. 4 2 стр.1:Уланский пер. 21 стр.2'!I118) -> 0
A119: 6.10 | B119: Регулировка и наладка систем автоматики расширительных баков | C119: =IF(F119>0,1,0) -> 0 | D119: раз в месяц | E119: КХ | F119: 0 | G119: 0 | H119: 0 | I119: 0 | J119: 0 | BW119: =SUM('Ананьевский пер. 4 2 стр.1:Уланский пер. 21 стр.2'!I119) -> 158.8
A120: 6.11 | B120: Проверка заземления оболочки электрокабеля, оборудования (насосы, щитовые вентиляторы и др.) | C120: =IF(H120,1,0) -> 0 | D120: раз в год | E120: КХ | F120: =C120 -> 0 | G120: =H120*1000 -> 0 | H120: 0 | I120: 0 | J120: 0 | BW120: =SUM('Ананьевский пер. 4 2 стр.1:Уланский пер. 21 стр.2'!I120) -> 909.8
A121: 6.12 | B121: Замеры сопротивления изоляции проводов, трубопроводов и восстановление цепей заземления | C121: 1 | D121: раз в год | E121: КХ | F121: 1 | G121: =H121*1000 -> 31699 | H121: 31.699 | I121: 31.7 | J121: 31699 | BW121: =SUM('Ананьевский пер. 4 2 стр.1:Уланский пер. 21 стр.2'!I121) -> 5792.8
A122: 6.13 | B122: Поверка общедомовых приборов учета горячего и холодного водоснабжения, отопления, электроснабжения | C122: 0 | D122: В ходе подготовки к эксплуатации дома в осенне-зимний период | E122: КХ | F122: 0 | G122: 0 | H122: 0 | J122: 0 | BW122: =SUM('Ананьевский пер. 4 2 стр.1:Уланский пер. 21 стр.2'!I122) -> 54.09
A123: 6.14 | B123: Ремонт общедомовых приборов учета горячего и холодного водоснабжения, отопления, электроснабжения | C123: 0 | D123: В ходе подготовки к эксплуатации дома в осенне-зимний период | E123: КХ | F123: 0 | G123: 0 | H123: 0 | J123: 0 | BW123: =SUM('Ананьевский пер. 4 2 стр.1:Уланский пер. 21 стр.2'!I123) -> 0
A124: 6.15 | B124: Обслуживание ламп-сигналов | C124: 0 | D124: Работа не выполняется | F124: 0 | G124: 0 | H124: 0 | J124: 0 | BW124: =SUM('Ананьевский пер. 4 2 стр.1:Уланский пер. 21 стр.2'!I124) -> 0
A125: 6.16 | B125: Замена и восстановление отдельных элементов системы отопления с выполнением наладочных регулировочных работ, ликвидацией непрогревов и неисправностей в квартирах | C125: 1 | D125: В ходе подготовки к эксплуатации дома в осенне-зимний период | E125: КХ | F125: 1 | G125: =H125*1000 -> 55153.07 | H125: =ROUND(($I$138*0.15),5) -> 55.15307 | J125: 55153.07 | BW125: =SUM('Ананьевский пер. 4 2 стр.1:Уланский пер. 21 стр.2'!I125) -> 0
A126: 6.17 | B126: Замена и восстановление отдельных элементов системы холодного водоснабжения, при необходимости отключение и включение стояков | C126: 1 | D126: В ходе подготовки к эксплуатации дома в осенне-зимний период | E126: КХ | F126: 1 | G126: =H126*1000 -> 40445.59 | H126: =ROUND(($I$138*0.11),5) -> 40.44559 | J126: 40445.59 | BW126: =SUM('Ананьевский пер. 4 2 стр.1:Уланский пер. 21 стр.2'!I126) -> 0
A127: 6.18 | B127: Замена и восстановление отдельных элементов системы горячего водоснабжения, при необходимости отключение и включение стояков | C127: 0 | D127: В ходе подготовки к эксплуатации дома в осенне-зимний период | E127: КХ | F127: 0 | G127: 0 | H127: 0 | J127: 0 | BW127: =SUM('Ананьевский пер. 4 2 стр.1:Уланский пер. 21 стр.2'!I127) -> 0
A128: 6.19 | B128: Замена и восстановление отдельных элементов системы канализации, в том числе ликвидация засоров, за исключением внутриквартирного сантехоборудования | C128: 1 | D128: В ходе подготовки к эксплуатации дома в осенне-зимний период | E128: КХ | F128: 1 | G128: =H128*1000 -> 25738.1 | H128: =ROUND(($I$138*0.07),5) -> 25.7381 | J128: 25738.1 | BW128: =SUM('Ананьевский пер. 4 2 стр.1:Уланский пер. 21 стр.2'!I128) -> 0
A129: 6.20 | B129: Замена и восстановление отдельных элементов внутридомового электрооборудования (за исключением внутриквартирных устройств и приборов) | C129: 1 | D129: В ходе подготовки к эксплуатации дома в осенне-зимний период | E129: КХ | F129: 1 | G129: =H129*1000 -> 66183.69 | H129: =ROUND(($I$138*0.18),5) -> 66.18369 | J129: 66183.69 | BW129: =SUM('Ананьевский пер. 4 2 стр.1:Уланский пер. 21 стр.2'!I129) -> 0
A130: 6.21 | B130: Гидропневматическая очистка системы отопления | C130: 0 | D130: Работа не выполняется | F130: 0 | G130: 0 | H130: 0 | I130: 0 | J130: 0 | BW130: =SUM('Ананьевский пер. 4 2 стр.1:Уланский пер. 21 стр.2'!I130) -> 0
A131: 6.22 | B131: Обслуживание и ремонт АУУТЭ | C131: 0 | D131: раз в месяц | E131: КХ | F131: 0 | G131: 0 | H131: 0 | J131: 0 | BW131: =SUM('Ананьевский пер. 4 2 стр.1:Уланский пер. 21 стр.2'!I131) -> 0
A132: 6.23 | B132: Обслуживание и ремонт АСКУЭ | C132: 0 | D132: раз в месяц | E132: КХ | F132: 0 | G132: 0 | H132: 0 | J132: 0 | BW132: =SUM('Ананьевский пер. 4 2 стр.1:Уланский пер. 21 стр.2'!I132) -> 0
A133: 6.24 | B133: Обслуживание и ремонт насосных пунктов | C133: 0 | D133: раз в месяц | E133: КХ | F133: 0 | G133: 0 | H133: 0 | J133: 0 | BW133: =SUM('Ананьевский пер. 4 2 стр.1:Уланский пер. 21 стр.2'!I133) -> 0
A134: 6.25 | B134: Обслуживание и ремонт тепловых пунктов | C134: 0 | D134: Работа не выполняется | F134: 0 | G134: 0 | H134: 0 | I134: 0 | J134: 0 | BW134: =SUM('Ананьевский пер. 4 2 стр.1:Уланский пер. 21 стр.2'!I134) -> 0
A135: 6.26 | B135: Обслуживание и ремонт крышных газовых котельных | C135: 0 | D135: Работа не выполняется | F135: 0 | G135: 0 | H135: 0 | I135: 0 | J135: 0 | BW135: =SUM('Ананьевский пер. 4 2 стр.1:Уланский пер. 21 стр.2'!I135) -> 0
A136: 6.27 | B136: Ремонт электрооборудования (эл. щитков, замена АВР (аварийное включение резерва) и др. работы) | C136: 0 | D136: по мере необходимости | E136: КХ | F136: 0 | G136: 0 | H136: 0 | J136: 0 | BW136: =SUM('Ананьевский пер. 4 2 стр.1:Уланский пер. 21 стр.2'!I136) -> 0
A137: 6.28 | B137: Техническое обслуживание светильников дежурного освещения | C137: 0 | D137: по мере необходимости | E137: КХ | F137: 0 | G137: 0 | H137: 0 | J137: 0 | BW137: =SUM('Ананьевский пер. 4 2 стр.1:Уланский пер. 21 стр.2'!I137) -> 0
A138: 6.29 | B138: Иное (Работы по содержанию и ремонту оборудования и систем инженерно-технического обеспечения, входящих в состав общего имущества в многоквартирном доме) | C138: Х | D138: Х | E138: Х | F138: Х | G138: Х | H138: =I138-H110-H111-H125-H126-H127-H128-H129-H116 -> 25.7381046 | I138: =J197*0.7 -> 367.6871646 | J138: =ROUND(L19,2) -> 0 | BW138: =SUM('Ананьевский пер. 4 2 стр.1:Уланский пер. 21 стр.2'!I138) -> 47131.62022
A139: 7 | B139: Работы по содержанию и ремонту мусоропроводов в многоквартирном доме | H139: 0 | I139: =I140+I141+I142+I143+I144+I145+I146+I147+I148+I149+I150 -> 0 | J139: =J140+J141+J142+J143+J144+J145+J146+J147+J148+J149+J150 -> 0 | BV139: ммм | BW139: =SUM('Ананьевский пер. 4 2 стр.1:Уланский пер. 21 стр.2'!I139) -> 1580.000193 | CQ139: mmm
A140: 7.1 | B140: Восстановление работоспособности вентиляционных и промывочных устройств, мусороприемных клапанов и шиберных устройств | C140: 0 | D140: В0ходе0подготовки0к0эксплуатации0дома0в0осенне-зимний0период | E140: КХ | F140: 0 | G140: 0 | H140: 0 | BW140: =SUM('Ананьевский пер. 4 2 стр.1:Уланский пер. 21 стр.2'!I140) -> 0
A141: 7.2 | B141: Профилактический осмотр мусоропроводов | C141: 0 | D141: по0мере0необходимости0 | E141: КХ | F141: 0 | G141: 0 | H141: 0 | J141: =ROUND(H141*1000,2) -> 0 | BW141: =SUM('Ананьевский пер. 4 2 стр.1:Уланский пер. 21 стр.2'!I141) -> 0
A142: 7.3 | B142: Видеодиагностика внутренней поверхности асбестоцементных стволов мусоропровода | C142: =IF(F142>0,1,0) -> 0 | D142: раз0в0год | E142: КХ | F142: =IF(H142>0,1,0) -> 0 | G142: =IF(F142>0,J142/C142/F142,0) -> 0 | H142: 0 | BW142: =SUM('Ананьевский пер. 4 2 стр.1:Уланский пер. 21 стр.2'!I142) -> 753.56
A143: 7.4 | B143: Уборка загрузочных клапанов мусоропроводов | C143: =IF(H143>0,52,0) -> 0 | D143: раз0в0неделю | E143: ШТ | F143: 0 | G143: 0 | H143: 0 | BW143: =SUM('Ананьевский пер. 4 2 стр.1:Уланский пер. 21 стр.2'!I143) -> 0
A144: 7.5 | B144: Мойка сменных мусоросборников | C144: =IF(H144>0,52,0) -> 0 | D144: раз0в0неделю | E144: ШТ | F144: 0 | G144: 0 | H144: 0
A145: 7.6 | B145: Мойка нижней части ствола и шибера мусоропровода | C145: =IF(H145>0,12,0) -> 0 | D145: раз0в0месяц | E145: ШТ | F145: 0 | G145: 0 | H145: 0
A146: 7.7 | B146: Очистка и дезинфекция всех элементов ствола мусоропровода | C146: =IF(F146>0,1,0) -> 0 | D146: раз0в0год | E146: КХ | F146: =IF(H146>0,1,0) -> 0 | G146: =IF(F146>0,J146/C146/F146,0) -> 0 | H146: =J146 -> 0
A147: 7.8 | B147: Дезинфекция мусоросборников | C147: =IF(H147>0,12,0) -> 0 | D147: раз0в0месяц | E147: ШТ | F147: 0 | G147: 0 | H147: 0
A148: 7.9 | B148: Устранение засора | C148: =IF(H148>0,1,0) -> 0 | D148: по0мере0необходимости0 | E148: ШТ | F148: 0 | G148: 0 | H148: 0
A149: 7.10 | B149: Мелкий ремонт неисправностей мусоропровода | C149: 0 | D149: по0мере0необходимости0 | E149: М | F149: 0 | G149: 0 | H149: 0 | BW149: =SUM('Ананьевский пер. 4 2 стр.1:Уланский пер. 21 стр.2'!I149) -> 0
A150: 7.11 | B150: Иное (Работы по содержанию и ремонту мусоропроводов в многоквартирном доме) | C150: Х | D150: Х | E150: Х | F150: Х | G150: Х | H150: 0 | BW150: =SUM('Ананьевский пер. 4 2 стр.1:Уланский пер. 21 стр.2'!I150) -> 0
A151: 8 | B151: Работы по содержанию и ремонту лифта (лифтов) в многоквартирном доме | H151: 63.88704 | I151: =I152+I153+I154 -> 63.89 | J151: =J152+J153+J154 -> 63887 | BW151: =SUM('Ананьевский пер. 4 2 стр.1:Уланский пер. 21 стр.2'!I151) -> 16116.33
A152: 8.1 | B152: Обслуживание лифтов и лифтового оборудования | C152: =IF(F152>0,12,0) -> 12 | D152: Круглосуточно | E152: шт | F152: 2 | G152: =IF(F152>0,J152/C152/F152,0) -> 2661.96 | H152: =ROUND((C152*F152*G152/1000),5) -> 63.88704 | I152: 63.89 | J152: =ROUND(H152*1000,2) -> 63887 | BW152: =SUM('Ананьевский пер. 4 2 стр.1:Уланский пер. 21 стр.2'!I152) -> 16188.59
A153: 8.2 | B153: Организация системы диспетчерского контроля и обеспечение диспетчерской связи с кабиной лифта | C153: 0 | D153: Работа не выполняется | E153: КХ | F153: 0 | G153: 0 | H153: 0 | I153: 0 | J153: 0 | BW153: =SUM('Ананьевский пер. 4 2 стр.1:Уланский пер. 21 стр.2'!I153) -> 72.26
A154: 8.3 | B154: Иное (Работы по содержанию и ремонту лифта (лифтов) в многоквартирном доме) | C154: Х | D154: Х | E154: Х | F154: Х | G154: Х | H154: 0 | BW154: =SUM('Ананьевский пер. 4 2 стр.1:Уланский пер. 21 стр.2'!I154) -> 0
A155: 9 | B155: Работы по обеспечению требований пожарной безопасности | H155: 0 | I155: =I156+I157+I158+I159 -> 0 | J155: =J156+J157+J158+J159 -> 0 | BW155: =SUM('Ананьевский пер. 4 2 стр.1:Уланский пер. 21 стр.2'!I155) -> 3930.33
A156: 9.1 | B156: Осмотр пожарной сигнализации и средств тушения в домах | C156: 0 | D156: раз в год | E156: КХ | F156: 0 | G156: 0 | H156: 0 | J156: =ROUND(H156*1000,2) -> 0 | BW156: =SUM('Ананьевский пер. 4 2 стр.1:Уланский пер. 21 стр.2'!I156) -> 0
A157: 9.2 | B157: Обслуживание систем дымоудаления и противопожарной безопасности | C157: =IF(F157>0,12,0) -> 0 | D157: Круглосуточно | E157: шт | F157: =IF(J157>0,F152,0) -> 0 | G157: =IF(F157>0,J157/C157/F157,0) -> 0 | H157: =ROUND((C157*F157*G157/1000),5) -> 0 | I157: 0 | J157: =ROUND(H157*1000,2) -> 0 | BW157: =SUM('Ананьевский пер. 4 2 стр.1:Уланский пер. 21 стр.2'!I157) -> 3930.33
A158: 9.3 | B158: Замена и восстановление работоспособности элементов пожаротушения (трубопроводов, включая ввод и стояки пожарного водопровода) | C158: 0 | D158: в течение суток после обнаружения | E158: КХ | F158: 0 | G158: 0 | H158: 0 | J158: =ROUND(H158*1000,2) -> 0 | BW158: =SUM('Ананьевский пер. 4 2 стр.1:Уланский пер. 21 стр.2'!I158) -> 0
A159: 9.4 | B159: Иное (Работы по обеспечению требований пожарной безопасности) | C159: Х | D159: Х | E159: Х | F159: Х | G159: Х | H159: 0 | BW159: =SUM('Ананьевский пер. 4 2 стр.1:Уланский пер. 21 стр.2'!I159) -> 0
A160: 10 | B160: Работы по содержанию и ремонту систем вентиляции | H160: =H161+H162+H163+H164 -> 0 | I160: =I161+I162+I163+I164 -> 0 | J160: =J161+J162+J163+J164 -> 0 | BW160: =SUM('Ананьевский пер. 4 2 стр.1:Уланский пер. 21 стр.2'!I160) -> 0
A161: 10.1 | B161: Проверка наличия тяги в дымоходах, вентиляционных каналах | C161: 0 | F161: 0 | G161: 0 | H161: 0 | J161: =ROUND(H161*1000,2) -> 0 | BW161: =SUM('Ананьевский пер. 4 2 стр.1:Уланский пер. 21 стр.2'!I161) -> 0
A162: 10.2 | B162: Регулировка и наладка систем вентиляции | C162: 0 | F162: 0 | G162: 0 | H162: 0 | J162: =ROUND(H162*1000,2) -> 0 | BW162: =SUM('Ананьевский пер. 4 2 стр.1:Уланский пер. 21 стр.2'!I162) -> 0
A163: 10.3 | B163: Замена и восстановление работоспособности отдельных общедомовых элементов | C163: 0 | F163: 0 | G163: 0 | H163: 0 | I163: 0 | J163: =ROUND(H163*1000,2) -> 0 | BW163: =SUM('Ананьевский пер. 4 2 стр.1:Уланский пер. 21 стр.2'!I163) -> 0
A164: 10.4 | B164: Иное (Работы по содержанию и ремонту систем вентиляции) | C164: Х | D164: Х | E164: Х | F164: Х | G164: Х | H164: 0 | BW164: =SUM('Ананьевский пер. 4 2 стр.1:Уланский пер. 21 стр.2'!I164) -> 0
A165: 11 | B165: Работы по содержанию и ремонту систем внутридомового газового оборудования | H165: =H166+H167+H168 -> 49.156 | I165: =I166+I167+I168 -> 49.16 | J165: =J166+J167+J168 -> 49156 | BW165: =SUM('Ананьевский пер. 4 2 стр.1:Уланский пер. 21 стр.2'!I165) -> 1541.63
A166: 11.1 | B166: Проверка состояния системы внутридомового газового оборудования и ее отдельных элементов | C166: =IF(H166>0,1,0) -> 1 | D166: раз в год | E166: шт | F166: =IF(H166>0,1,0) -> 1 | G166: =J166 -> 49156 | H166: 49.156 | I166: 49.16 | J166: =ROUND(H166*1000,2) -> 49156 | BW166: =SUM('Ананьевский пер. 4 2 стр.1:Уланский пер. 21 стр.2'!I166) -> 1556.5
A167: 11.2 | B167: Замена и восстановление работоспособности отдельных элементов системы внутридомового газового оборудования | C167: 0 | D167: по мере необходимости | E167: шт | F167: 0 | G167: 0 | H167: 0 | J167: =ROUND(H167*1000,2) -> 0 | BW167: =SUM('Ананьевский пер. 4 2 стр.1:Уланский пер. 21 стр.2'!I167) -> 14.87
A168: 11.3 | B168: Иное (Работы по содержанию и ремонту систем внутридомового газового оборудования) | C168: Х | D168: Х | E168: Х | F168: Х | G168: Х | H168: 0 | BW168: =SUM('Ананьевский пер. 4 2 стр.1:Уланский пер. 21 стр.2'!I168) -> 0
A169: 12 | B169: Обеспечение устранения аварий на внутридомовых инженерных системах в многоквартирном доме | H169: =H170+H171+H172 -> 84.983 | I169: =I170+I171+I172 -> 84.98 | J169: =J170+J171+J172 -> 84983 | BW169: =SUM('Ананьевский пер. 4 2 стр.1:Уланский пер. 21 стр.2'!I169) -> 12361.65
A170: 12.1 | B170: Устранение аварии | C170: 1 | D170: Незамедлительное реагирование с момента получения заявки | E170: КХ | F170: 1 | G170: =J170 -> 84983 | H170: 84.983 | I170: 84.98 | J170: =ROUND(H170*1000,2) -> 84983 | BW170: =SUM('Ананьевский пер. 4 2 стр.1:Уланский пер. 21 стр.2'!I170) -> 11243.4
A171: 12.2 | B171: Выполнение заявок населения | C171: =IF(H171>0,1,0) -> 0 | D171: Незамедлительное реагирование с момента получения заявки | E171: КХ | F171: =IF(H171>0,1,0) -> 0 | G171: =J171 -> 0 | H171: 0 | I171: 0 | J171: =ROUND(H171*1000,2) -> 0 | BW171: =SUM('Ананьевский пер. 4 2 стр.1:Уланский пер. 21 стр.2'!I171) -> 1327.09
A172: 12.3 | B172: Иное (Обеспечение устранения аварий на внутридомовых инженерных системах в многоквартирном доме) | C172: Х | D172: Х | E172: Х | F172: Х | G172: Х | H172: 0 | BW172: =SUM('Ананьевский пер. 4 2 стр.1:Уланский пер. 21 стр.2'!I172) -> 0
A173: 13 | B173: Расход электроэнергии, потребленной на дежурное освещение мест общего пользования и работу лифтов (общедомовые нужды) | H173: 74.992 | I173: 74.99 | J173: =ROUND(H173*1000,2) -> 74992 | BW173: =SUM('Ананьевский пер. 4 2 стр.1:Уланский пер. 21 стр.2'!I173) -> 23722.49
A174: 14 | B174: Расход воды на общедомовые нужды | H174: 65.029 | I174: 65.03 | J174: =ROUND(H174*1000,2) -> 65029 | BW174: =SUM('Ананьевский пер. 4 2 стр.1:Уланский пер. 21 стр.2'!I174) -> 3919.22
A175: 15 | B175: Проведение дератизации и дезинсекции помещений, входящих в состав общего имущества в многоквартирном доме | H175: =H176+H177 -> 0 | I175: =I176+I177 -> 0 | J175: =J176+J177 -> 0 | BW175: =SUM('Ананьевский пер. 4 2 стр.1:Уланский пер. 21 стр.2'!I175) -> 751.99
A176: 15.1 | B176: Дератизация | C176: 0 | D176: раз в год | E176: КХ | F176: 0 | G176: 0 | H176: 0 | I176: 0 | J176: =ROUND(H176*1000,2) -> 0 | BW176: =SUM('Ананьевский пер. 4 2 стр.1:Уланский пер. 21 стр.2'!I176) -> 0.01
A177: 15.2 | B177: Дезинсекция | C177: =IF(H177>0,1,0) -> 0 | D177: Незамедлительное реагирование с момента получения заявки | E177: КХ | F177: =IF(H177>0,1,0) -> 0 | G177: =J177 -> 0 | H177: 0 | J177: =ROUND(H177*1000,2) -> 0 | BW177: =SUM('Ананьевский пер. 4 2 стр.1:Уланский пер. 21 стр.2'!I177) -> 708.94
A178: 16 | B178: Прочие работы и услуги по содержанию и ремонту общего имущества в многоквартирном доме | H178: =H179+H180+H181 -> 36.76872 | I178: =I179+I180+I181 -> 110.81 | J178: =J179+J180+J181 -> 36768.72 | BW178: =SUM('Ананьевский пер. 4 2 стр.1:Уланский пер. 21 стр.2'!I178) -> 13853.9
A179: 16.1 | B179: Техническая инвентаризация | C179: 0 | D179: раз в год | E179: КХ | F179: 0 | G179: 0 | H179: 0 | I179: 0 | J179: =ROUND(H179*1000,2) -> 0 | BW179: =SUM('Ананьевский пер. 4 2 стр.1:Уланский пер. 21 стр.2'!I179) -> 136.07
A180: 16.2 | B180: Техническое обслуживание систем дистанционного снятия показаний индивидуальных приборов учета (водопотребления и электроэнергии) | C180: 0 | D180: Работа не выполняется | F180: 0 | G180: 0 | H180: 0 | I180: 0 | J180: =ROUND(H180*1000,2) -> 0 | BW180: =SUM('Ананьевский пер. 4 2 стр.1:Уланский пер. 21 стр.2'!I180) -> 0
A181: 16.3 | B181: Иное (Прочие работы и услуги по содержанию и ремонту общего имущества в многоквартирном доме) | C181: Х | D181: Х | E181: Х | F181: Х | G181: Х | H181: =ROUND((J197*0.07),5) -> 36.76872 | I181: 110.81 | J181: =ROUND(H181*1000,2) -> 36768.72 | BW181: =SUM('Ананьевский пер. 4 2 стр.1:Уланский пер. 21 стр.2'!I181) -> 13853.89
A182: 17 | B182: Работы по содержанию земельного участка с элементами озеленения и благоустройства, иными объектами, предназначенными для обслуживания и эксплуатации многоквартирного дома | H182: 0 | BW182: =SUM('Ананьевский пер. 4 2 стр.1:Уланский пер. 21 стр.2'!I182) -> 136.07
A183: 17.1 | B183: Подметание земельного участка в летний период | C183: 0 | D183: 0 | E183: 0 | F183: 0 | G183: 0 | H183: 0 | I183: 0 | J183: 0 | K183: 0 | L183: 0 | M183: 0 | N183: 0 | O183: 0 | P183: 0 | Q183: 0 | R183: 0 | S183: 0 | T183: 0 | U183: 0 | V183: 0 | W183: 0 | X183: 0 | Y183: 0 | Z183: 0 | AA183: 0 | AB183: 0 | AC183: 0 | AD183: 0 | AE183: 0 | AF183: 0 | AG183: 0 | AH183: 0 | AI183: 0 | AJ183: 0 | AK183: 0 | AL183: 0 | AM183: 0 | AN183: 0 | AO183: 0 | AP183: 0 | AQ183: 0 | AR183: 0 | AS183: 0 | AT183: 0 | AU183: 0 | AV183: 0 | AW183: 0 | AX183: 0 | AY183: 0 | AZ183: 0 | BA183: 0 | BB183: 0 | BC183: 0 | BD183: 0 | BE183: 0 | BF183: 0 | BG183: 0 | BH183: 0 | BI183: 0 | BJ183: 0 | BK183: 0 | BL183: 0 | BM183: 0 | BN183: 0 | BO183: 0 | BP183: 0 | BQ183: 0 | BR183: 0 | BS183: 0 | BT183: 0 | BU183: 0 | BW183: =SUM('Ананьевский пер. 4 2 стр.1:Уланский пер. 21 стр.2'!I183) -> 0
A184: 17.2 | B184: Полив тротуаров | C184: 0 | D184: 0 | E184: 0 | F184: 0 | G184: 0 | H184: 0 | BW184: =SUM('Ананьевский пер. 4 2 стр.1:Уланский пер. 21 стр.2'!I184) -> 0
A185: 17.3 | B185: Уборка мусора с газона, очистка урн | C185: 0 | D185: 0 | E185: 0 | F185: 0 | G185: 0 | H185: 0 | BW185: =SUM('Ананьевский пер. 4 2 стр.1:Уланский пер. 21 стр.2'!I185) -> 0
A186: 17.4 | B186: Уборка мусора на контейнерных площадках | C186: 0 | D186: 0 | E186: 0 | F186: 0 | G186: 0 | H186: 0 | BW186: =SUM('Ананьевский пер. 4 2 стр.1:Уланский пер. 21 стр.2'!I186) -> 0
A187: 17.5 | B187: Полив газонов | C187: 0 | D187: 0 | E187: 0 | F187: 0 | G187: 0 | H187: 0 | BW187: =SUM('Ананьевский пер. 4 2 стр.1:Уланский пер. 21 стр.2'!I187) -> 0
A188: 17.6 | B188: Стрижка газонов | C188: 0 | D188: 0 | E188: 0 | F188: 0 | G188: 0 | H188: 0 | BW188: =SUM('Ананьевский пер. 4 2 стр.1:Уланский пер. 21 стр.2'!I188) -> 0
A189: 17.7 | B189: Подрезка деревьев и кустов | C189: 0 | D189: 0 | E189: 0 | F189: 0 | G189: 0 | H189: 0 | BW189: =SUM('Ананьевский пер. 4 2 стр.1:Уланский пер. 21 стр.2'!I189) -> 0
A190: 17.8 | B190: Очистка и ремонт детских и спортивных площадок, элементов благоустройства | C190: 0 | D190: 0 | E190: 0 | F190: 0 | G190: 0 | H190: 0 | BW190: =SUM('Ананьевский пер. 4 2 стр.1:Уланский пер. 21 стр.2'!I190) -> 0
A191: 17.9 | B191: Сдвижка и подметание снега | C191: 0 | D191: 0 | E191: 0 | F191: 0 | G191: 0 | H191: 0 | BW191: =SUM('Ананьевский пер. 4 2 стр.1:Уланский пер. 21 стр.2'!I191) -> 0
A192: 17.10 | B192: Ликвидация скользкости | C192: 0 | D192: 0 | E192: 0 | F192: 0 | G192: 0 | H192: 0 | BW192: =SUM('Ананьевский пер. 4 2 стр.1:Уланский пер. 21 стр.2'!I192) -> 0
A193: 17.11 | B193: Иное (Работы по содержанию земельного участка с элементами озеленения и благоустройства, иными объектами, предназначенными для обслуживания и эксплуатации многоквартирного дома) | C193: Х | D193: Х | E193: Х | F193: Х | G193: Х | H193: 0 | BW193: =SUM('Ананьевский пер. 4 2 стр.1:Уланский пер. 21 стр.2'!I193) -> 0
B194: ИТОГО РАСХОДОВ | H194: =H9+H10+H42+H45+H46+H109+H151+H155+H160+H165+H169+H173+H174+H175+H178+H182+H139 -> 1403.29782 | I194: =I10+I9+I42+I46+I109+I139+I151+I155+I160+I165+I169+I173+I174+I175+I178+I45 -> 1558.005558 | J194: =J10+J9+J42+J46+J109+J139+J151+J155+J160+J165+J169+J173+J174+J175+J178+J45 -> 1333029.57
B195: Всего ПНР | H195: 1403.29782 | I195: =J195/1000 -> 2272.4118 | J195: 2272411.8
I196: =I194 -> 1558.005558 | J196: 0
G197: разница | H197: =H195-H194 -> 0 | I197: =I195-I196 -> 714.406242 | J197: 525.267378
H198: =H9+H10+H42+H45+H46+H109+H139+H151+H155+H160+H165+H169+H173+H174+H175+H178+H182 -> 1403.29782
H201: =H195-H194 -> 0 | I201: =I199-I209 -> 0
A206: Директор ГБУ «Жилищник Красносельского района» | H206: Г.Б.Бобкова

Sheet Ананьевский пер. 4 2 стр.2
A1: Фактические затраты по проведению работ (оказанию услуг) на 2017 год
A2: по содержанию и ремонту общего имущества многоквартирного дома
A3: и предоставлению коммунальных услуг по адресу:
A4: Ананьевский пер. 4 2 стр.2
A7: № п/п | B7: Наименование работ (услуг)* | C7: Фактическая периодичность работ (услуг) | E7: Ед.измер. работ (услуг) | F7: Фактическое количество /объем | G7: Фактическая стоимость за единицу работ (услуг), руб. | H7: Фактическая стоимость в год за работы (услуги), тыс. руб. для портала | I7: Фактическая стоимость в год за работы (услуги), тыс. руб. расчетная | J7: Фактическая стоимость в год за работы (услуги), руб. | L7: =H111 -> 82.55862
A8: 1 | B8: 2 | C8: 3 | E8: 4 | F8: 4 | G8: 5 | H8: 6 | I8: 7
A9: 1 | B9: Работы (услуги) по управлению многоквартирным домом | H9: =H195*0.1 -> 86.63637 | I9: 174.49 | J9: =ROUND(H9*1000,2) -> 86636.37 | BV9: ттт
A10: 2 | B10: Работы по содержанию помещений, входящих в состав общего имущества в многоквартирном доме | H10: =H11+H12+H13+H14+H15+H16+H19+H20+H31+H35+H38+H39 -> 134.66878 | I10: =I11+I12+I13+I14+I15+I16+I20+I31+I35+I38+I39+I40+I41+I19 -> 134.66878 | J10: =J11+J12+J13+J14+J15+J16+J20+J31+J35+J38+J39+J40+J41+J19 -> 113533.95
A11: 2.1 | B11: Влажное подметание лестничных площадок и маршей нижних 2 этажей | C11: 299 | D11: раз в день, кроме праздничных и воскресных дней | E11: М2 | F11: 101.6 | G11: 1.67 | H11: =ROUND((F11*G11*K11)/1000,5) -> 50.73193 | I11: =H11 -> 50.73193 | J11: =ROUND(F11*G11*K11,2) -> 50731.93 | K11: 299
A12: 2.2 | B12: Влажное подметание лестничных площадок и маршей выше 2-го этажа | C12: 104 | D12: раз в неделю | E12: М2 | F12: =254-F11 -> 152.4 | G12: 1.27 | H12: =ROUND((F12*G12*C12)/1000,5) -> 20.12899 | I12: =H12 -> 20.12899 | J12: =ROUND(F12*G12*K12,2) -> 10064.5 | K12: 52
A13: 2.3 | B13: Влажное подметание перед загрузочными клапанами мусоропроводов | C13: 0 | D13: раз в день, кроме праздничных и воскресных дней | E13: М2 | F13: 0 | G13: 0 | H13: =ROUND((F13*G13*K13)/1000,5) -> 0
A14: 2.4 | B14: Уборка загрузочных клапанов мусоропровода | C14: 0 | D14: раз в неделю | E14: ШТ | F14: 0 | G14: 0 | H14: =ROUND((F14*G14*K14)/1000,5) -> 0
A15: 2.5 | B15: Мытье пола кабины лифта | C15: 0 | D15: раз в день, кроме праздничных и воскресных дней | E15: М2 | F15: 0 | G15: 0 | H15: =ROUND((F15*G15*K15)/1000,5) -> 0
A16: 2.6 | B16: Мытье лестничных площадок | C16: Х | D16: 0 | E16: 0 | F16: Х | G16: Х | H16: =H17+H18 -> 22.14067 | I16: =H16 -> 22.14067 | J16: =J17+J18 -> 11070.33
A17: 2.6.1 | B17: Мытье лестничных площадок и маршей нижних 2-х этажей | C17: 24 | D17: раз в месяц | E17: М2 | F17: =F11 -> 101.6 | G17: 4.07 | H17: =ROUND((F17*G17*C17)/1000,5) -> 9.92429 | I17: 9.92429 | J17: =ROUND(F17*G17*K17,2) -> 4962.14 | K17: 12
A18: 2.6.2 | B18: Мытье лестничных площадок и маршей выше 2-го этажа | C18: 24 | D18: раз в месяц | E18: М2 | F18: =F12 -> 152.4 | G18: 3.34 | H18: =ROUND((F18*G18*C18)/1000,5) -> 12.21638 | I18: 12.21638 | J18: =ROUND(F18*G18*K18,2) -> 6108.19 | K18: 12
A19: 2.7 | B19: Мытье окон | C19: 1 | D19: раз в год | E19: М2 | F19: 84 | G19: 8.43 | H19: =ROUND((F19*G19*K19)/1000,5) -> 0.70812 | I19: 0.70812 | J19: =ROUND(F19*G19*K19,2) -> 708.12 | K19: 1
A20: 2.8 | B20: Влажная протирка | C20: Х | D20: 0 | E20: 0 | F20: Х | G20: Х | H20: =H21+H22+H23+H24+H25+H26+H27+H28+H29+H30 -> 12.1192 | I20: 12.1192 | J20: =J21+J22+J23+J24+J25+J26+J27+J28+J29+J30 -> 12119.2
A21: 2.8.1 | B21: Влажная протирка стен | C21: 1 | D21: раз в год | E21: М2 | F21: 3833.67 | G21: 2.81 | H21: =ROUND((F21*G21*K21)/1000,5) -> 10.77261 | I21: 10.77261 | J21: =ROUND(F21*G21*K21,2) -> 10772.61 | K21: 1
A22: 2.8.2 | B22: Влажная протирка плафонов на лестничных клетках | C22: 1 | D22: раз в год | E22: ШТ | F22: 40 | G22: 1.75 | H22: 0.07 | I22: 0.07 | J22: 70 | K22: 1
A23: 2.8.3 | B23: Влажная протирка дверных полотен на лестничных клетках | C23: 1 | D23: раз в год | E23: М2 | F23: 134 | G23: 4.1 | H23: 0.5494 | I23: 0.5494 | J23: 549.4 | K23: 1
A24: 2.8.4 | B24: Влажная протирка подоконников | C24: 2 | D24: раз в год | E24: М2 | F24: 6,3 | G24: 4.08 | H24: 0.05141 | I24: 0.05141 | J24: 51.41 | K24: 2
A25: 2.8.5 | B25: Влажная протирка оконных решеток | C25: 1 | D25: раз в год | E25: М2 | F25: 17,5 | G25: 3.93 | H25: 0.06878 | I25: 0.06878 | J25: 68.78 | K25: 1
A26: 2.8.6 | B26: Влажная протирка чердачных лестниц | C26: 1 | D26: раз в год | E26: М2 | F26: 152,4 | G26: 2.64 | H26: 0.40234 | I26: 0.40234 | J26: 402.34 | K26: 1
A27: 2.8.7 | B27: Влажная протирка отопительных приборов | C27: 2 | D27: раз в год | E27: М2 | F27: 16 | G27: 5.07 | H27: 0.16224 | I27: 0.16224 | J27: 162.24 | K27: 2
A28: 2.8.8 | B28: Влажная протирка шкафов для электросчетчиков, слаботочных устройств | C28: 1 | D28: раз в год | E28: М2 | F28: 10 | G28: 2.52 | H28: 0.0252 | I28: 0.0252 | J28: 25.2 | K28: 1
A29: 2.8.9 | B29: Влажная протирка почтовых ящиков | C29: 1 | D29: раз в год | E29: М2 | F29: 8,4 | G29: 2.05 | H29: 0.01722 | I29: 0.01722 | J29: 17.22 | K29: 1
A30: 2.8.10 | B30: Влажная протирка стен, дверей кабины лифта | C30: 0 | D30: раз в месяц | E30: М2 | F30: 0 | G30: 0 | H30: 0
A31: 2.9 | B31: Очистка кровли | C31: Х | D31: 0 | E31: 0 | F31: Х | G31: Х | H31: =H32+H33+H34 -> 26.57049 | I31: =I32+I33+I34 -> 26.57049 | J31: =J32+J33+J34 -> 26570.49
A32: 2.9.1 | B32: Очистка кровли и ее элементов (в том числе козырьков над подъездами) от мусора и листьев | C32: 2 | D32: раз в год | E32: М2 | F32: 983 | G32: 2.01 | H32: =ROUND(F32*G32*K32/1000,5) -> 3.95166 | I32: =H32 -> 3.95166 | J32: =ROUND(H32*1000,2) -> 3951.66 | K32: 2 | M32: 983
A33: 2.9.2 | B33: Очистка кровли от снега | C33: 3 | D33: Работа не выполняется | E33: КХ | F33: 983 | G33: 7.67 | H33: =ROUND(G33*F33*K33/1000,5) -> 22.61883 | I33: =H33 -> 22.61883 | J33: =ROUND(H33*1000,2) -> 22618.83 | K33: 3
A34: 2.9.3 | B34: Очистка кровли от снега и наледеобразований | C34: 0 | D34: Работа не выполняется | E34: КХ | F34: 0 | G34: 0 | H34: =ROUND(G34*F34*K34/1000,5) -> 0 | I34: =H34 -> 0 | J34: =ROUND(H34*1000,2) -> 0 | K34: 3
A35: 2.10 | B35: Смена частей водосточных труб и прочистка внутреннего водостока | C35: Х | D35: 0 | E35: 0 | F35: Х | G35: Х | H35: =H36+H37 -> 0 | I35: =I36+I37 -> 0 | J35: =J36+J37 -> 0
A36: 2.10.1 | B36: Смена частей водосточных труб | C36: 0 | D36: в течение суток после обнаружения | E36: ШТ | F36: 0 | G36: 0 | H36: 0 | I36: 0 | J36: 0
A37: 2.10.2 | B37: Прочистка водоприемной воронки внутреннего водостока | C37: =IF(F37>0,2,0) -> 0 | D37: в течение суток после обнаружения | E37: ШТ | F37: 0 | G37: 0 | H37: =ROUND(G37*F37*C37/1000,5) -> 0 | M37: 611.28
A38: 2.11 | B38: Очистка подвалов и чердаков от мусора | C38: 1 | D38: раз в год | E38: М2 | F38: =L38 -> 1375.38 | G38: 1.65 | H38: =ROUND((F38*G38*K38)/1000,5) -> 2.26938 | I38: =H38 -> 2.26938 | J38: =ROUND(F38*G38*K38,2) -> 2269.38 | K38: 1 | L38: =M37+M38 -> 1375.38 | M38: 764.1
A39: 2.12 | B39: Уборка мусороприемной камеры | C39: 0 | D39: раз в день, кроме праздничных и воскресных дней | E39: М2 | F39: 0 | G39: 0 | H39: =ROUND((F39*G39*K39)/1000,5) -> 0
A40: 2.13 | B40: Ремонт почтовых ящиков, установка, смена замка | C40: 0 | D40: В течении суток с момента получения заявки | E40: КХ | F40: 0 | G40: 0 | H40: =ROUND(G40*F40/1000,5) -> 0 | I40: =H40 -> 0 | J40: =ROUND(H40*1000,2) -> 0
A41: 2.14 | B41: Иное (Работы по содержанию помещений, входящих в состав общего имущества в многоквартирном доме) | C41: Х | D41: 0 | E41: 0 | F41: Х | G41: Х | H41: 0
A42: 3 | B42: Работы по обеспечению вывоза твердых бытовых отходов | H42: =H43+H44 -> 0 | I42: =I43+I44 -> 0 | J42: =J43+J44 -> 0 | Q42: жители | R42: 147
A43: 3.1 | B43: Удаление мусора из мусороприемных камер | C43: 0 | D43: раз в день | E43: М3 | F43: 0 | G43: 0 | H43: =ROUND((F43*G43*K43)/1000,5) -> 0 | N43: =ROUND(R42*1.45/365,3) -> 0.584 | O43: м3 мусора в день | Q43: место мусороприемной камеры
A44: 3.2 | B44: Иное (Работы по обеспечению вывоза твердых бытовых отходов) | C44: 0 | D44: 0 | E44: 0 | F44: 0 | G44: 0 | H44: 0 | J44: =ROUND(H44*1000,2) -> 0
A45: 4 | B45: Работы по обеспечению вывоза крупногабаритного мусора | C45: 0 | D45: 0 | E45: 0 | F45: 0 | G45: 0 | H45: 0 | J45: =ROUND(H45*1000,2) -> 0 | Q45: в цокольном этаже | R45: =IF(R43=Q45,274.83,0) -> 0
A46: 5 | B46: Работы по содержанию и ремонту конструктивных элементов (несущих и ненесущих конструкций) многоквартирных домов | H46: =H47+H53+H63+H68+H77+H85+H98+H103 -> 108.505615 | I46: =I47+I53+I63+I68+I77+I85+I98+I103 -> 108.505615 | J46: =J47+J53+J63+J68+J77+J85+J98+J103 -> 105250.45 | Q46: в подвале | R46: =IF(R43=Q46,341.86,0) -> 0 | BV46: ррр | CQ46: ррр
A47: 5.1 | B47: Фундамент | H47: =H48+H49+H50+H51+H52 -> 5.42528 | I47: =I48+I49+I50+I51+I52 -> 0 | J47: =J48+J49+J50+J51+J52 -> 5425.28 | R47: =SUM(R45:R46) -> 0
A48: 5.1.1 | B48: Восстановление поврежденных участков фундаментов | C48: 0 | D48: 0 | E48: 0 | F48: 0 | G48: 0 | H48: 0
A49: 5.1.2 | B49: Восстановление гидроизоляции и систем водоотвода фундаментов | C49: 0 | D49: 0 | E49: 0 | F49: 0 | G49: 0 | H49: =ROUND(($I$108*0.03),5) -> 3.25517 | J49: =ROUND(H49*1000,2) -> 3255.17 | K49: 5
A50: 5.1.3 | B50: Восстановление поврежденных участков вентиляционных продухов | C50: 0 | D50: 0 | E50: 0 | F50: 0 | G50: 0 | H50: =ROUND(($I$108*0.02),5) -> 2.17011 | J50: =ROUND(H50*1000,2) -> 2170.11
A51: 5.1.4 | B51: Восстановление поврежденных участков входов в подвалы | C51: 0 | D51: 0 | E51: 0 | F51: 0 | G51: 0 | H51: 0 | J51: =ROUND(H51*1000,2) -> 0
A52: 5.1.5 | B52: Иное (Фундамент) | C52: Х | D52: 0 | E52: 0 | F52: Х | G52: Х | H52: 0 | J52: =ROUND(H52*1000,2) -> 0
A53: 5.2 | B53: Стены и фасад | H53: =H54+H55+H56+H57+H58+H59+H60+H61+H62 -> 7.59539 | I53: =I54+I55+I56+I57+I58+I59+I60+I61+I62 -> 0 | J53: =J54+J55+J56+J57+J58+J59+J60+J61+J62 -> 7595.39
A54: 5.2.1 | B54: Герметизация стыков стен и фасадов | C54: 0 | D54: 0 | E54: 0 | F54: 0 | G54: 0 | H54: 0 | J54: =ROUND(H54*1000,2) -> 0
A55: 5.2.2 | B55: Заделка и восстановление архитектурных элементов | C55: 0 | D55: 0 | E55: 0 | F55: 0 | G55: 0 | H55: 0 | J55: 0
A56: 5.2.3 | B56: Ремонт штукатурки гладких фасадов | C56: 0 | D56: 0 | E56: 0 | F56: 0 | G56: 0 | H56: 0 | J56: 0
A57: 5.2.4 | B57: Окраска, промывка фасадов | C57: 0 | D57: 0 | E57: 0 | F57: 0 | G57: 0 | H57: 0 | J57: 0
A58: 5.2.5 | B58: Восстановление поврежденных участков цоколей | C58: 0 | D58: 0 | E58: 0 | F58: 0 | G58: 0 | H58: 0 | J58: 0
A59: 5.2.6 | B59: Окраска, промывка цоколей | C59: 0 | D59: 0 | E59: 0 | F59: 0 | G59: 0 | H59: =ROUND(($I$108*0.07),5) -> 7.59539 | J59: 7595.39 | K59: 7
A60: 5.2.7 | B60: Смена пластмассового короба домового знака или уличного указателя | C60: 0 | D60: 0 | E60: 0 | F60: 0 | G60: 0 | H60: 0 | J60: 0
A61: 5.2.8 | B61: Восстановление гидроизоляции между цокольной частью здания и стенами | C61: 0 | D61: 0 | E61: 0 | F61: 0 | G61: 0 | H61: 0 | J61: 0
A62: 5.2.9 | B62: Иное (Стены и фасад) | C62: Х | D62: 0 | E62: 0 | F62: Х | G62: Х | H62: 0
A63: 5.3 | B63: Перекрытия | H63: =H64+H65+H66+H67 -> 0 | I63: =I64+I65+I66+I67 -> 0 | J63: =J64+J65+J66+J67 -> 0
A64: 5.3.1 | B64: Частичная смена отдельных деревянных элементов | C64: 0 | D64: 0 | E64: 0 | F64: 0 | G64: 0 | H64: 0 | J64: =ROUND(H64*1000,2) -> 0
A65: 5.3.2 | B65: Заделка швов и трещин | C65: 0 | D65: 0 | E65: 0 | F65: 0 | G65: 0 | H65: 0 | J65: =ROUND(H65*1000,2) -> 0
A66: 5.3.3 | B66: Укрепление и окраска | C66: 0 | D66: 0 | E66: 0 | F66: 0 | G66: 0 | H66: 0 | J66: =ROUND(H66*1000,2) -> 0
A67: 5.3.4 | B67: Иное (Перекрытия) | C67: Х | D67: 0 | E67: 0 | F67: Х | G67: Х | H67: 0
A68: 5.4 | B68: Крыши | H68: =H69+H70+H71+H72+H75+H76 -> 9.76551 | I68: =I69+I70+I71+I72+I75+I76 -> 0 | J68: =J69+J70+J71+J72+J73+J74+J75+J76 -> 9765.51
A69: 5.4.1 | B69: Усиление элементов деревянной стропильной системы, | C69: 0 | D69: 0 | E69: 0 | F69: 0 | G69: 0 | H69: 0 | J69: =ROUND(H69*1000,2) -> 0
A70: 5.4.2 | B70: Устранение неисправностей и ремонт стальных, асбестоцементных и других кровельных покрытий | C70: 0 | D70: 0 | E70: 0 | F70: 0 | G70: 0 | H70: 0 | J70: =ROUND(H70*1000,2) -> 0
A71: 5.4.3 | B71: Разборка и ремонт кровли из рулонных материалов | C71: 0 | D71: 0 | E71: 0 | F71: 0 | G71: 0 | H71: 0 | J71: =ROUND(H71*1000,2) -> 0
A72: 5.4.4 | B72: Ремонт конструкций и элементов крыши | C72: 0 | D72: 0 | E72: 0 | F72: 0 | G72: 0 | H72: 0 | I72: =I73+I74 -> 0 | J72: =J73+J74 -> 0
A73: 5.4.4.1 | B73: Ремонт частей водосточных труб | C73: 0 | D73: 0 | E73: 0 | F73: 0 | G73: 0 | H73: 0 | J73: =ROUND(H73*1000,2) -> 0
A74: 5.4.4.2 | B74: Ремонт металлической парапетной решетки | C74: 0 | D74: 0 | E74: 0 | F74: 0 | G74: 0 | H74: 0 | J74: =ROUND(H74*1000,2) -> 0
A75: 5.4.5 | B75: Окраска конструкций и элементов крыши | C75: 0 | D75: 0 | E75: 0 | F75: 0 | G75: 0 | H75: 0 | J75: =ROUND(H75*1000,2) -> 0
A76: 5.4.6 | B76: Иное (Крыши) | C76: Х | D76: 0 | E76: 0 | F76: Х | G76: Х | H76: =ROUND(($I$108*0.09),5) -> 9.76551 | J76: =ROUND(H76*1000,2) -> 9765.51 | K76: 9
A77: 5.5 | B77: Оконные и дверные заполнения на лестничных клетках и во вспомогательных помещениях общего пользования, входные двери | H77: =H78+H79+H80+H81+H82+H83+H84 -> 15.19078 | I77: =I78+I79+I80+I81+I82+I83+I84 -> 0 | J77: =J78+J79+J80+J81+J82+J83+J84 -> 11935.61
A78: 5.5.1 | B78: Ремонт дверей в помещениях общего пользования | C78: 0 | D78: 0 | E78: 0 | F78: 0 | G78: 0 | H78: =ROUND(($I$108*0.07),5) -> 7.59539 | J78: =ROUND(H78*1000,2) -> 7595.39 | K78: 7
A79: 5.5.2 | B79: Замена дверей в помещениях общего пользования | C79: 0 | D79: 0 | E79: 0 | F79: 0 | G79: 0 | H79: 0 | J79: 0
A80: 5.5.3 | B80: Ремонт или замена входных дверей в подъезды | C80: 0 | D80: 0 | E80: 0 | F80: 0 | G80: 0 | H80: 0 | J80: 0
A81: 5.5.4 | B81: Ремонт окон в помещениях общего пользования | C81: 0 | D81: 0 | E81: 0 | F81: 0 | G81: 0 | H81: =ROUND(($I$108*0.04),5) -> 4.34022 | J81: 4340.22 | K81: 4
A82: 5.5.5 | B82: Замена окон в помещениях общего пользования | C82: 0 | D82: 0 | E82: 0 | F82: 0 | G82: 0 | H82: 0 | J82: 0
A83: 5.5.6 | B83: Установка и текущий ремонт доводчиков | C83: 0 | D83: 0 | E83: 0 | F83: 0 | G83: 0 | H83: 0 | J83: 0
A84: 5.5.7 | B84: Иное (Оконные и дверные заполнения на лестничных клетках и во вспомогательных помещениях общего пользования, входные двери) | C84: Х | D84: 0 | E84: 0 | F84: Х | G84: Х | H84: =ROUND(($I$108*0.03),5) -> 3.25517 | K84: 3
A85: 5.6 | B85: Лестницы, пандусы, крыльца, козырьки над входами в подъезды, подвалы и над балконами верхних этажей | H85: =H86+H87+H88+H89+H90+H91+H92+H93+H94+H95+H96+H97 -> 36.89191 | I85: =I86+I87+I88+I89+I90+I91+I92+I93+I94+I95+I96+I97 -> 0 | J85: =J86+J87+J88+J89+J90+J91+J92+J93+J94+J95+J96+J97 -> 36891.91
A86: 5.6.1 | B86: Восстановление лестницы | C86: 0 | D86: 0 | E86: 0 | F86: 0 | G86: 0 | H86: 0 | J86: =ROUND(H86*1000,2) -> 0
A87: 5.6.2 | B87: Замена лестницы | C87: 0 | D87: 0 | E87: 0 | F87: 0 | G87: 0 | H87: 0 | J87: =ROUND(I87*1000,2) -> 0
A88: 5.6.3 | B88: Восстановление пандуса | C88: 0 | D88: 0 | E88: 0 | F88: 0 | G88: 0 | H88: 0 | J88: =ROUND(H88*1000,2) -> 0
A89: 5.6.4 | B89: Замена пандуса | C89: 0 | D89: 0 | E89: 0 | F89: 0 | G89: 0 | H89: 0 | J89: 0
A90: 5.6.5 | B90: Восстановление крыльца | C90: 0 | D90: 0 | E90: 0 | F90: 0 | G90: 0 | H90: =ROUND(($I$108*0.12),5) -> 13.02067 | J90: 13020.67 | K90: 12
A91: 5.6.6 | B91: Замена крыльца | C91: 0 | D91: 0 | E91: 0 | F91: 0 | G91: 0 | H91: 0 | J91: 0
A92: 5.6.7 | B92: Восстановление козырьков над входами в подъезды, ремонт кровельного покрытия козырьков, ложных балконов | C92: 0 | D92: 0 | E92: 0 | F92: 0 | G92: 0 | H92: 0 | J92: 0
A93: 5.6.8 | B93: Замена козырьков над входами в подъезды | C93: 0 | D93: 0 | E93: 0 | F93: 0 | G93: 0 | H93: 0 | J93: 0
A94: 5.6.9 | B94: Восстановление конструкций над балконами верхних этажей | C94: 0 | D94: 0 | E94: 0 | F94: 0 | G94: 0 | H94: 0 | J94: 0
A95: 5.6.10 | B95: Замена конструкций над балконами верхних этажей | C95: 0 | D95: 0 | E95: 0 | F95: 0 | G95: 0 | H95: 0 | J95: 0
A96: 5.6.11 | B96: Ремонт полов (на лестницах, чердаках, в холлах и подвалах) | C96: 0 | D96: 0 | E96: 0 | F96: 0 | G96: 0 | H96: =ROUND(($I$108*0.16),5) -> 17.3609 | J96: 17360.9 | K96: 16
A97: 5.6.12 | B97: Иное (Лестницы, пандусы, крыльца, козырьки над входами в подъезды, подвалы и над балконами верхних этажей) | C97: 0 | D97: 0 | E97: 0 | F97: 0 | G97: 0 | H97: =ROUND(($I$108*0.06),5) -> 6.51034 | J97: 6510.34 | K97: 6
A98: 5.7 | B98: Внутренняя отделка в подъездах, технических помещениях, и других помещениях общего пользования | H98: =H99+H100+H101+H102 -> 4.34022 | I98: =I99+I100+I101+I102 -> 0 | J98: =J99+J100+J101+J102 -> 4340.22
A99: 5.7.1 | B99: Восстановление отделки стен | C99: 0 | D99: 0 | E99: 0 | F99: 0 | G99: 0 | H99: =ROUND(($I$108*0.04),5) -> 4.34022 | I99: 0 | J99: =ROUND(H99*1000,2) -> 4340.22 | K99: 4 | BV99: ррр
A100: 5.7.2 | B100: Восстановление отделки потолков | C100: 0 | D100: 0 | E100: 0 | F100: 0 | G100: 0 | H100: 0 | J100: =ROUND(H100*1000,2) -> 0
A101: 5.7.3 | B101: Ремонт лестничных клеток | C101: 0 | D101: 0 | E101: 0 | F101: 0 | G101: 0 | H101: 0 | J101: =ROUND(H101*1000,2) -> 0
A102: 5.7.4 | B102: Ремонт технических и вспомогательных помещений | C102: 0 | D102: 0 | E102: 0 | F102: 0 | G102: 0 | H102: 0 | J102: =ROUND(H102*1000,2) -> 0
A103: 5.8 | B103: Ремонт чердаков, подвалов | H103: =H104+H105+H106+H107+H108 -> 29.296525 | I103: =I104+I105+I106+I107+I108 -> 108.505615 | J103: =J104+J105+J106+J107+J108 -> 29296.53
A104: 5.8.1 | B104: Утепление чердачных перекрытий | C104: 0 | D104: 0 | E104: 0 | F104: 0 | G104: 0 | H104: 0 | J104: =ROUND(H104*1000,2) -> 0
A105: 5.8.2 | B105: Утепление трубопроводов в чердачных помещениях | C105: 0 | D105: 0 | E105: 0 | F105: 0 | G105: 0 | H105: 0 | J105: =ROUND(H105*1000,2) -> 0
A106: 5.8.3 | B106: Утепление трубопроводов в подвальных помещениях | C106: 0 | D106: 0 | E106: 0 | F106: 0 | G106: 0 | H106: =ROUND(($I$108*0.065),5) -> 7.05286 | J106: =ROUND(H106*1000,2) -> 7052.86 | K106: 6.5
A107: 5.8.4 | B107: Изготовление новых или ремонт существующих ходовых досок и переходных мостиков на чердаках, в подвалах | C107: 0 | D107: 0 | E107: 0 | F107: 0 | G107: 0 | H107: 0 | J107: =ROUND(H107*1000,2) -> 0
A108: 5.8.5 | B108: Иное (Ремонт чердаков, подвалов) | C108: Х | D108: 0 | E108: 0 | F108: Х | G108: Х | H108: =I108-H47-H53-H63-H68-H77-H85-H98-H106 -> 22.243665 | I108: =J197-I138-H181 -> 108.505615 | J108: =ROUND(H108*1000,2) -> 22243.67
A109: 6 | B109: Работы по содержанию и ремонту оборудования и систем инженерно-технического обеспечения, входящих в состав общего имущества в многоквартирном доме | H109: =H110+H111+H112+H113+H114+H115+H116+H117+H118+H119+H120+H121+H122+H123+H124+H125+H126+H127+H128+H129+H130+H131+H132+H133+H134+H135+H136+H137+H138 -> 345.386485 | I109: =I110+I111+I112+I113+I114+I115+I116+I117+I118+I119+I120+I121+I122+I123+I124+I125+I126+I127+I128+I129+I130+I131+I132+I133+I134+I135+I136+I137+I138 -> 345.384485 | J109: =J110+J111+J112+J113+J114+J115+J116+J117+J118+J119+J120+J121+J122+J123+J124+J125+J126+J127+J128+J129+J130+J131+J132+J133+J134+J135+J136+J137+J138 -> 322270.06 | BV109: ддд | CQ109: ддд
A110: 6.1 | B110: Консервация (расконсервация) поливочной системы | C110: 1 | D110: В ходе подготовки к эксплуатации дома в осенне-зимний период | E110: КХ | F110: 1 | G110: =H110*1000 -> 16511.72 | H110: =ROUND(($I$138*0.05),5) -> 16.51172 | J110: =ROUND(H110*1000,2) -> 16511.72
A111: 6.2 | B111: Ремонт, регулировка, промывка и опрессовка систем центрального отопления, утепление бойлеров | C111: 1 | D111: В ходе подготовки к эксплуатации дома в осенне-зимний период | E111: КХ | F111: 1 | G111: =H111*1000 -> 82558.62 | H111: =ROUND(($I$138*0.25),5) -> 82.55862 | J111: 82558.62
A112: 6.3 | B112: Утепление вентиляционных и дымовых каналов | C112: 0 | D112: В ходе подготовки к эксплуатации дома в осенне-зимний период | E112: КХ | F112: 0 | G112: 0 | H112: 0 | J112: 0
A113: 6.4 | B113: Прочистка вентиляционных и дымовых каналов | C113: 0 | D113: В ходе подготовки к эксплуатации дома в осенне-зимний период | E113: КХ | F113: 0 | G113: 0 | H113: 0 | J113: 0
A114: 6.5 | B114: Ремонт и утепление наружных водоразборных кранов | C114: 0 | D114: В ходе подготовки к эксплуатации дома в осенне-зимний период | E114: КХ | F114: 0 | G114: 0 | H114: 0 | J114: 0
A115: 6.6 | B115: Проведение технических осмотров систем водопровода и канализации, центрального отопления и горячего водоснабжения, электротехнических устройств, вентиляционных каналов | C115: 0 | D115: по мере необходимости | E115: КХ | F115: 0 | G115: 0 | H115: 0 | J115: 0
A116: 6.7 | B116: Устранение неисправностей в системах водопровода и канализации, центрального отопления и горячего водоснабжения, электротехнических устройств, вентиляционных и дымовых каналов | C116: 1 | D116: В ходе подготовки к эксплуатации дома в осенне-зимний период | E116: КХ | F116: 1 | G116: =H116*1000 -> 39628.14 | H116: =ROUND(($I$138*0.12),5) -> 39.62814 | J116: 39628.14
A117: 6.8 | B117: Проверка исправности канализационных вытяжек | C117: 0 | D117: Устранение по мере обнаружения дефектов | E117: КХ | F117: 0 | G117: 0 | H117: 0 | J117: 0
A118: 6.9 | B118: Устранение засора внутреннего канализационного трубопровода | C118: 0 | D118: раз в год | E118: КХ | F118: 0 | G118: 0 | H118: 0 | J118: 0
A119: 6.10 | B119: Регулировка и наладка систем автоматики расширительных баков | C119: =IF(F119>0,1,0) -> 0 | D119: раз в месяц | E119: КХ | F119: 0 | G119: 0 | H119: 0 | I119: 0 | J119: 0
A120: 6.11 | B120: Проверка заземления оболочки электрокабеля, оборудования (насосы, щитовые вентиляторы и др.) | C120: =IF(H120,1,0) -> 0 | D120: раз в год | E120: КХ | F120: =C120 -> 0 | G120: =H120*1000 -> 0 | H120: 0 | I120: 0 | J120: 0
A121: 6.12 | B121: Замеры сопротивления изоляции проводов, трубопроводов и восстановление цепей заземления | C121: 1 | D121: раз в год | E121: КХ | F121: 1 | G121: =H121*1000 -> 15152 | H121: 15.152 | I121: 15.15 | J121: 15152
A122: 6.13 | B122: Поверка общедомовых приборов учета горячего и холодного водоснабжения, отопления, электроснабжения | C122: 0 | D122: В ходе подготовки к эксплуатации дома в осенне-зимний период | E122: КХ | F122: 0 | G122: 0 | H122: 0 | J122: 0
A123: 6.14 | B123: Ремонт общедомовых приборов учета горячего и холодного водоснабжения, отопления, электроснабжения | C123: 0 | D123: В ходе подготовки к эксплуатации дома в осенне-зимний период | E123: КХ | F123: 0 | G123: 0 | H123: 0 | J123: 0
A124: 6.15 | B124: Обслуживание ламп-сигналов | C124: 0 | D124: Работа не выполняется | F124: 0 | G124: 0 | H124: 0 | J124: 0
A125: 6.16 | B125: Замена и восстановление отдельных элементов системы отопления с выполнением наладочных регулировочных работ, ликвидацией непрогревов и неисправностей в квартирах | C125: 1 | D125: В ходе подготовки к эксплуатации дома в осенне-зимний период | E125: КХ | F125: 1 | G125: =H125*1000 -> 49535.17 | H125: =ROUND(($I$138*0.15),5) -> 49.53517 | J125: 49535.17
A126: 6.17 | B126: Замена и восстановление отдельных элементов системы холодного водоснабжения, при необходимости отключение и включение стояков | C126: 1 | D126: В ходе подготовки к эксплуатации дома в осенне-зимний период | E126: КХ | F126: 1 | G126: =H126*1000 -> 36325.79 | H126: =ROUND(($I$138*0.11),5) -> 36.32579 | J126: 36325.79
A127: 6.18 | B127: Замена и восстановление отдельных элементов системы горячего водоснабжения, при необходимости отключение и включение стояков | C127: 0 | D127: В ходе подготовки к эксплуатации дома в осенне-зимний период | E127: КХ | F127: 0 | G127: 0 | H127: 0 | J127: 0
A128: 6.19 | B128: Замена и восстановление отдельных элементов системы канализации, в том числе ликвидация засоров, за исключением внутриквартирного сантехоборудования | C128: 1 | D128: В ходе подготовки к эксплуатации дома в осенне-зимний период | E128: КХ | F128: 1 | G128: =H128*1000 -> 23116.41 | H128: =ROUND(($I$138*0.07),5) -> 23.11641 | J128: 23116.41
A129: 6.20 | B129: Замена и восстановление отдельных элементов внутридомового электрооборудования (за исключением внутриквартирных устройств и приборов) | C129: 1 | D129: В ходе подготовки к эксплуатации дома в осенне-зимний период | E129: КХ | F129: 1 | G129: =H129*1000 -> 59442.21 | H129: =ROUND(($I$138*0.18),5) -> 59.44221 | J129: 59442.21
A130: 6.21 | B130: Гидропневматическая очистка системы отопления | C130: 0 | D130: Работа не выполняется | F130: 0 | G130: 0 | H130: 0 | I130: 0 | J130: 0
A131: 6.22 | B131: Обслуживание и ремонт АУУТЭ | C131: 0 | D131: раз в месяц | E131: КХ | F131: 0 | G131: 0 | H131: 0 | J131: 0
A132: 6.23 | B132: Обслуживание и ремонт АСКУЭ | C132: 0 | D132: раз в месяц | E132: КХ | F132: 0 | G132: 0 | H132: 0 | J132: 0
A133: 6.24 | B133: Обслуживание и ремонт насосных пунктов | C133: 0 | D133: раз в месяц | E133: КХ | F133: 0 | G133: 0 | H133: 0 | J133: 0
A134: 6.25 | B134: Обслуживание и ремонт тепловых пунктов | C134: 0 | D134: Работа не выполняется | F134: 0 | G134: 0 | H134: 0 | I134: 0 | J134: 0
A135: 6.26 | B135: Обслуживание и ремонт крышных газовых котельных | C135: 0 | D135: Работа не выполняется | F135: 0 | G135: 0 | H135: 0 | I135: 0 | J135: 0
A136: 6.27 | B136: Ремонт электрооборудования (эл. щитков, замена АВР (аварийное включение резерва) и др. работы) | C136: 0 | D136: по мере необходимости | E136: КХ | F136: 0 | G136: 0 | H136: 0 | J136: 0
A137: 6.28 | B137: Техническое обслуживание светильников дежурного освещения | C137: 0 | D137: по мере необходимости | E137: КХ | F137: 0 | G137: 0 | H137: 0 | J137: 0
A138: 6.29 | B138: Иное (Работы по содержанию и ремонту оборудования и систем инженерно-технического обеспечения, входящих в состав общего имущества в многоквартирном доме) | C138: Х | D138: 0 | E138: 0 | F138: Х | G138: Х | H138: =I138-H110-H111-H125-H126-H127-H128-H129-H116 -> 23.116425 | I138: =J197*0.7 -> 330.234485 | J138: =ROUND(L19,2) -> 0 | K138: =H201 -> 0 | L138: 655.51342
A139: 7 | B139: Работы по содержанию и ремонту мусоропроводов в многоквартирном доме | H139: 0 | I139: =I140+I141+I142+I143+I144+I145+I146+I147+I148+I149+I150 -> 0 | J139: =J140+J141+J142+J143+J144+J145+J146+J147+J148+J149+J150 -> 0 | BV139: ммм | CQ139: mmm
A140: 7.1 | B140: Восстановление работоспособности вентиляционных и промывочных устройств, мусороприемных клапанов и шиберных устройств | C140: 0 | D140: В ходе подготовки к эксплуатации дома в осенне-зимний период | E140: КХ | F140: 0 | G140: 0 | H140: 0
A141: 7.2 | B141: Профилактический осмотр мусоропроводов | C141: 0 | D141: В ходе подготовки к эксплуатации дома в осенне-зимний период | E141: КХ | F141: 0 | G141: 0 | H141: 0 | J141: =ROUND(H141*1000,2) -> 0
A142: 7.3 | B142: Видеодиагностика внутренней поверхности асбестоцементных стволов мусоропровода | C142: 0 | D142: В ходе подготовки к эксплуатации дома в осенне-зимний период | E142: КХ | F142: 0 | G142: 0 | H142: 0
A143: 7.4 | B143: Уборка загрузочных клапанов мусоропроводов | C143: 0 | D143: В ходе подготовки к эксплуатации дома в осенне-зимний период | E143: КХ | F143: 0 | G143: 0 | H143: 0
A144: 7.5 | B144: Мойка сменных мусоросборников | C144: 0 | D144: В ходе подготовки к эксплуатации дома в осенне-зимний период | E144: КХ | F144: 0 | G144: 0 | H144: 0
A145: 7.6 | B145: Мойка нижней части ствола и шибера мусоропровода | C145: 0 | D145: В ходе подготовки к эксплуатации дома в осенне-зимний период | E145: КХ | F145: 0 | G145: 0 | H145: 0
A146: 7.7 | B146: Очистка и дезинфекция всех элементов ствола мусоропровода | C146: 0 | D146: В ходе подготовки к эксплуатации дома в осенне-зимний период | E146: КХ | F146: 0 | G146: 0 | H146: 0
A147: 7.8 | B147: Дезинфекция мусоросборников | C147: 0 | D147: В ходе подготовки к эксплуатации дома в осенне-зимний период | E147: КХ | F147: 0 | G147: 0 | H147: 0
A148: 7.9 | B148: Устранение засора | C148: 0 | D148: В ходе подготовки к эксплуатации дома в осенне-зимний период | E148: КХ | F148: 0 | G148: 0 | H148: 0
A149: 7.10 | B149: Мелкий ремонт неисправностей мусоропровода | C149: 0 | D149: В ходе подготовки к эксплуатации дома в осенне-зимний период | E149: КХ | F149: 0 | G149: 0 | H149: 0
A150: 7.11 | B150: Иное (Работы по содержанию и ремонту мусоропроводов в многоквартирном доме) | C150: Х | D150: 0 | E150: 0 | F150: Х | G150: Х | H150: 0
A151: 8 | B151: Работы по содержанию и ремонту лифта (лифтов) в многоквартирном доме | H151: 0 | I151: =I152+I153+I154 -> 0 | J151: =J152+J153+J154 -> 0
A152: 8.1 | B152: Обслуживание лифтов и лифтового оборудования | C152: 0 | D152: Круглосуточно | E152: шт | F152: 0 | G152: 0 | H152: =ROUND((C152*F152*G152/1000),5) -> 0
A153: 8.2 | B153: Организация системы диспетчерского контроля и обеспечение диспетчерской связи с кабиной лифта | C153: 0 | D153: Работа не выполняется | E153: КХ | F153: 0 | G153: 0 | H153: 0
A154: 8.3 | B154: Иное (Работы по содержанию и ремонту лифта (лифтов) в многоквартирном доме) | C154: Х | D154: 0 | E154: 0 | F154: Х | G154: Х | H154: 0
A155: 9 | B155: Работы по обеспечению требований пожарной безопасности | H155: 0 | I155: =I156+I157+I158+I159 -> 0 | J155: =J156+J157+J158+J159 -> 0
A156: 9.1 | B156: Осмотр пожарной сигнализации и средств тушения в домах | C156: 0 | D156: раз в год | E156: КХ | F156: 0 | G156: 0 | H156: 0 | J156: =ROUND(H156*1000,2) -> 0
A157: 9.2 | B157: Обслуживание систем дымоудаления и противопожарной безопасности | C157: =IF(F157>0,12,0) -> 0 | D157: Круглосуточно | E157: шт | F157: =IF(J157>0,F152,0) -> 0 | G157: =IF(F157>0,J157/C157/F157,0) -> 0 | H157: =ROUND((C157*F157*G157/1000),5) -> 0 | I157: 0 | J157: =ROUND(H157*1000,2) -> 0
A158: 9.3 | B158: Замена и восстановление работоспособности элементов пожаротушения (трубопроводов, включая ввод и стояки пожарного водопровода) | C158: 0 | D158: в течение суток после обнаружения | E158: КХ | F158: 0 | G158: 0 | H158: 0 | J158: =ROUND(H158*1000,2) -> 0
A159: 9.4 | B159: Иное (Работы по обеспечению требований пожарной безопасности) | C159: Х | D159: 0 | E159: 0 | F159: Х | G159: Х | H159: 0
A160: 10 | B160: Работы по содержанию и ремонту систем вентиляции | H160: =H161+H162+H163+H164 -> 0 | I160: =I161+I162+I163+I164 -> 0 | J160: =J161+J162+J163+J164 -> 0
A161: 10.1 | B161: Проверка наличия тяги в дымоходах, вентиляционных каналах | C161: 0 | F161: 0 | G161: 0 | H161: 0 | J161: =ROUND(H161*1000,2) -> 0
A162: 10.2 | B162: Регулировка и наладка систем вентиляции | C162: 0 | F162: 0 | G162: 0 | H162: 0 | J162: =ROUND(H162*1000,2) -> 0
A163: 10.3 | B163: Замена и восстановление работоспособности отдельных общедомовых элементов | C163: 0 | F163: 0 | G163: 0 | H163: 0 | I163: 0 | J163: =ROUND(H163*1000,2) -> 0
A164: 10.4 | B164: Иное (Работы по содержанию и ремонту систем вентиляции) | C164: Х | D164: 0 | E164: 0 | F164: Х | G164: Х | H164: 0
A165: 11 | B165: Работы по содержанию и ремонту систем внутридомового газового оборудования | H165: =H166+H167+H168 -> 32.059 | I165: =I166+I167+I168 -> 32.06 | J165: =J166+J167+J168 -> 32059
A166: 11.1 | B166: Проверка состояния системы внутридомового газового оборудования и ее отдельных элементов | C166: =IF(H166>0,1,0) -> 1 | D166: раз в год | E166: шт | F166: =IF(H166>0,1,0) -> 1 | G166: =J166 -> 32059 | H166: 32.059 | I166: 32.06 | J166: =ROUND(H166*1000,2) -> 32059
A167: 11.2 | B167: Замена и восстановление работоспособности отдельных элементов системы внутридомового газового оборудования | C167: 0 | D167: по мере необходимости | E167: шт | F167: 0 | G167: 0 | H167: 0 | J167: =ROUND(H167*1000,2) -> 0
A168: 11.3 | B168: Иное (Работы по содержанию и ремонту систем внутридомового газового оборудования) | C168: Х | D168: 0 | E168: 0 | F168: Х | G168: Х | H168: 0
A169: 12 | B169: Обеспечение устранения аварий на внутридомовых инженерных системах в многоквартирном доме | H169: =H170+H171+H172 -> 48.952 | I169: =I170+I171+I172 -> 48.95 | J169: =J170+J171+J172 -> 48952
A170: 12.1 | B170: Устранение аварии | C170: 1 | D170: Незамедлительное реагирование с момента получения заявки | E170: КХ | F170: 1 | G170: =J170 -> 48952 | H170: 48.952 | I170: 48.95 | J170: =ROUND(H170*1000,2) -> 48952
A171: 12.2 | B171: Выполнение заявок населения | C171: =IF(H171>0,1,0) -> 0 | D171: Незамедлительное реагирование с момента получения заявки | E171: КХ | F171: =IF(H171>0,1,0) -> 0 | G171: =J171 -> 0 | H171: 0 | I171: 0 | J171: =ROUND(H171*1000,2) -> 0
A172: 12.3 | B172: Иное (Обеспечение устранения аварий на внутридомовых инженерных системах в многоквартирном доме) | C172: Х | D172: 0 | E172: 0 | F172: Х | G172: Х | H172: 0
A173: 13 | B173: Расход электроэнергии, потребленной на дежурное освещение мест общего пользования и работу лифтов (общедомовые нужды) | H173: 43.029 | I173: 43.03 | J173: =ROUND(H173*1000,2) -> 43029
A174: 14 | B174: Расход воды на общедомовые нужды | H174: 34.103 | I174: 34.1 | J174: =ROUND(H174*1000,2) -> 34103
A175: 15 | B175: Проведение дератизации и дезинсекции помещений, входящих в состав общего имущества в многоквартирном доме | H175: =H176+H177 -> 0 | I175: =I176+I177 -> 0.01 | J175: =J176+J177 -> 0
A176: 15.1 | B176: Дератизация | C176: 0 | D176: раз в год | E176: КХ | F176: 0 | G176: 0 | H176: 0 | I176: 0 | J176: =ROUND(H176*1000,2) -> 0
A177: 15.2 | B177: Дезинсекция | C177: =IF(H177>0,1,0) -> 0 | D177: Незамедлительное реагирование с момента получения заявки | E177: КХ | F177: =IF(H177>0,1,0) -> 0 | G177: =J177 -> 0 | H177: 0 | I177: 0.01 | J177: =ROUND(H177*1000,2) -> 0
A178: 16 | B178: Прочие работы и услуги по содержанию и ремонту общего имущества в многоквартирном доме | H178: =H179+H180+H181 -> 33.02345 | I178: =I179+I180+I181 -> 63.65 | J178: =J179+J180+J181 -> 33023.45
A179: 16.1 | B179: Техническая инвентаризация | C179: 0 | D179: раз в год | E179: КХ | F179: 0 | G179: 0 | H179: 0 | I179: 0 | J179: =ROUND(H179*1000,2) -> 0
A180: 16.2 | B180: Техническое обслуживание систем дистанционного снятия показаний индивидуальных приборов учета (водопотребления и электроэнергии) | C180: 0 | D180: Работа не выполняется | F180: 0 | G180: 0 | H180: 0 | I180: 0 | J180: =ROUND(H180*1000,2) -> 0
A181: 16.3 | B181: Иное (Прочие работы и услуги по содержанию и ремонту общего имущества в многоквартирном доме) | C181: Х | D181: 0 | E181: 0 | F181: Х | G181: Х | H181: =ROUND((J197*0.07),5) -> 33.02345 | I181: 63.65 | J181: =ROUND(H181*1000,2) -> 33023.45
A182: 17 | B182: Работы по содержанию земельного участка с элементами озеленения и благоустройства, иными объектами, предназначенными для обслуживания и эксплуатации многоквартирного дома | H182: 0
A183: 17.1 | B183: Подметание земельного участка в летний период | C183: 0 | D183: Работа не выполняется | F183: 0 | G183: 0 | H183: 0
A184: 17.2 | B184: Полив тротуаров | C184: 0 | D184: Работа не выполняется | F184: 0 | G184: 0 | H184: 0
A185: 17.3 | B185: Уборка мусора с газона, очистка урн | C185: 0 | D185: Работа не выполняется | F185: 0 | G185: 0 | H185: 0
A186: 17.4 | B186: Уборка мусора на контейнерных площадках | C186: 0 | D186: Работа не выполняется | F186: 0 | G186: 0 | H186: 0
A187: 17.5 | B187: Полив газонов | C187: 0 | D187: Работа не выполняется | F187: 0 | G187: 0 | H187: 0
A188: 17.6 | B188: Стрижка газонов | C188: 0 | D188: Работа не выполняется | F188: 0 | G188: 0 | H188: 0
A189: 17.7 | B189: Подрезка деревьев и кустов | C189: 0 | D189: Работа не выполняется | F189: 0 | G189: 0 | H189: 0
A190: 17.8 | B190: Очистка и ремонт детских и спортивных площадок, элементов благоустройства | C190: 0 | D190: Работа не выполняется | F190: 0 | G190: 0 | H190: 0
A191: 17.9 | B191: Сдвижка и подметание снега | C191: 0 | D191: Работа не выполняется | F191: 0 | G191: 0 | H191: 0
A192: 17.10 | B192: Ликвидация скользкости | C192: 0 | D192: Работа не выполняется | F192: 0 | G192: 0 | H192: 0
A193: 17.11 | B193: Иное (Работы по содержанию земельного участка с элементами озеленения и благоустройства, иными объектами, предназначенными для обслуживания и эксплуатации многоквартирного дома) | C193: Х | D193: 0 | E193: 0 | F193: Х | G193: Х | H193: 0
B194: ИТОГО РАСХОДОВ | H194: =H9+H10+H42+H45+H46+H109+H151+H155+H160+H165+H169+H173+H174+H175+H178+H182+H139 -> 866.3637 | I194: =I10+I9+I42+I46+I109+I139+I151+I155+I160+I165+I169+I173+I174+I175+I178+I45 -> 984.84888 | J194: =J10+J9+J42+J46+J109+J139+J151+J155+J160+J165+J169+J173+J174+J175+J178+J45 -> 479743.15
B195: Всего ПНР | H195: 866.3637 | I195: =J195/1000 -> 1135.25657 | J195: 1135256.57
I196: =I194 -> 984.84888 | J196: 0
G197: разница | H197: =H195-H194 -> 0 | I197: =I195-I196 -> 150.40769 | J197: 471.76355
H198: =H195-H194 -> 0
J199: =H195-H194 -> 0
H201: =H195-H194 -> 0 | I201: =I199-I209 -> 0
A206: Директор ГБУ «Жилищник Красносельского района» | H206: Г.Б.Бобкова

Sheet Ананьевский пер. 5 стр.4
A1: Фактические затраты по проведению работ (оказанию услуг) на 2017 год
A2: по содержанию и ремонту общего имущества многоквартирного дома
A3: и предоставлению коммунальных услуг по адресу:
A4: Ананьевский пер. 5 стр.4
A7: № п/п | B7: Наименование работ (услуг)* | C7: Фактическая периодичность работ (услуг) | E7: Ед.измер. работ (услуг) | F7: Фактическое количество /объем | G7: Фактическая стоимость за единицу работ (услуг), руб. | H7: Фактическая стоимость в год за работы (услуги), тыс. руб. для портала | I7: Фактическая стоимость в год за работы (услуги), тыс. руб. расчетная | J7: Фактическая стоимость в год за работы (услуги), руб. | L7: =H111 -> 29.52528
A8: 1 | B8: 2 | C8: 3 | E8: 4 | F8: 4 | G8: 5 | H8: 6 | I8: 7
A9: 1 | B9: Работы (услуги) по управлению многоквартирным домом | H9: 89.1 | I9: 89.1 | J9: =ROUND(H9*1000,2) -> 89100 | BV9: ттт
A10: 2 | B10: Работы по содержанию помещений, входящих в состав общего имущества в многоквартирном доме | H10: =H11+H12+H13+H14+H15+H16+H19+H20+H31+H35+H38+H39 -> 136.46779 | I10: =I11+I12+I13+I14+I15+I16+I20+I31+I35+I38+I39+I40+I41+I19 -> 136.46779 | J10: =J11+J12+J13+J14+J15+J16+J20+J31+J35+J38+J39+J40+J41+J19 -> 122133.99
A11: 2.1 | B11: Влажное подметание лестничных площадок и маршей нижних 2 этажей | C11: 299 | D11: раз в день, кроме праздничных и воскресных дней | E11: М2 | F11: 92.5 | G11: 1.67 | H11: =ROUND((F11*G11*K11)/1000,5) -> 46.18803 | I11: =H11 -> 46.18803 | J11: =ROUND(F11*G11*K11,2) -> 46188.03 | K11: 299
A12: 2.2 | B12: Влажное подметание лестничных площадок и маршей выше 2-го этажа | C12: 104 | D12: раз в неделю | E12: М2 | F12: 92.5 | G12: 1.27 | H12: =ROUND((F12*G12*C12)/1000,5) -> 12.2174 | I12: =H12 -> 12.2174 | J12: =ROUND(F12*G12*K12,2) -> 6108.7 | K12: 52
A13: 2.3 | B13: Влажное подметание перед загрузочными клапанами мусоропроводов | C13: 0 | D13: раз в день, кроме праздничных и воскресных дней | E13: М2 | F13: 0 | G13: 0 | H13: =ROUND((F13*G13*K13)/1000,5) -> 0
A14: 2.4 | B14: Уборка загрузочных клапанов мусоропровода | C14: 0 | D14: раз в неделю | E14: ШТ | F14: 0 | G14: 0 | H14: =ROUND((F14*G14*K14)/1000,5) -> 0
A15: 2.5 | B15: Мытье пола кабины лифта | C15: 0 | D15: раз в день, кроме праздничных и воскресных дней | E15: М2 | F15: 0 | G15: 0 | H15: =ROUND((F15*G15*K15)/1000,5) -> 0
A16: 2.6 | B16: Мытье лестничных площадок | C16: Х | D16: 0 | E16: 0 | F16: Х | G16: Х | H16: =H17+H18 -> 16.4502 | I16: =H16 -> 16.4502 | J16: =J17+J18 -> 8225.1
A17: 2.6.1 | B17: Мытье лестничных площадок и маршей нижних 2-х этажей | C17: 24 | D17: раз в месяц | E17: М2 | F17: =F11 -> 92.5 | G17: 4.07 | H17: =ROUND((F17*G17*C17)/1000,5) -> 9.0354 | I17: 9.0354 | J17: =ROUND(F17*G17*K17,2) -> 4517.7 | K17: 12
A18: 2.6.2 | B18: Мытье лестничных площадок и маршей выше 2-го этажа | C18: 24 | D18: раз в месяц | E18: М2 | F18: =F12 -> 92.5 | G18: 3.34 | H18: =ROUND((F18*G18*C18)/1000,5) -> 7.4148 | I18: 7.4148 | J18: =ROUND(F18*G18*K18,2) -> 3707.4 | K18: 12
A19: 2.7 | B19: Мытье окон | C19: 1 | D19: раз в год | E19: М2 | F19: 33.6 | G19: 8.43 | H19: =ROUND((F19*G19*K19)/1000,5) -> 0.28325 | I19: 0.28325 | J19: =ROUND(F19*G19*K19,2) -> 283.25 | K19: 1
A20: 2.8 | B20: Влажная протирка | C20: Х | D20: 0 | E20: 0 | F20: Х | G20: Х | H20: =H21+H22+H23+H24+H25+H26+H27+H28+H29+H30 -> 4.86479 | I20: 4.86479 | J20: =J21+J22+J23+J24+J25+J26+J27+J28+J29+J30 -> 4864.79
A21: 2.8.1 | B21: Влажная протирка стен | C21: 1 | D21: раз в год | E21: М2 | F21: 1487 | G21: 2.81 | H21: =ROUND((F21*G21*K21)/1000,5) -> 4.17847 | I21: 4.17847 | J21: =ROUND(F21*G21*K21,2) -> 4178.47 | K21: 1
A22: 2.8.2 | B22: Влажная протирка плафонов на лестничных клетках | C22: 1 | D22: раз в год | E22: ШТ | F22: 16 | G22: 1.75 | H22: 0.028 | I22: 0.028 | J22: 28 | K22: 1
A23: 2.8.3 | B23: Влажная протирка дверных полотен на лестничных клетках | C23: 1 | D23: раз в год | E23: М2 | F23: 53,6 | G23: 4.1 | H23: 0.21976 | I23: 0.21976 | J23: 219.76 | K23: 1
A24: 2.8.4 | B24: Влажная протирка подоконников | C24: 2 | D24: раз в год | E24: М2 | F24: 2,52 | G24: 4.08 | H24: 0.02056 | I24: 0.02056 | J24: 20.56 | K24: 2
A25: 2.8.5 | B25: Влажная протирка оконных решеток | C25: 1 | D25: раз в год | E25: М2 | F25: 7 | G25: 3.93 | H25: 0.02751 | I25: 0.02751 | J25: 27.51 | K25: 1
A26: 2.8.6 | B26: Влажная протирка чердачных лестниц | C26: 1 | D26: раз в год | E26: М2 | F26: 116,25 | G26: 2.64 | H26: 0.3069 | I26: 0.3069 | J26: 306.9 | K26: 1
A27: 2.8.7 | B27: Влажная протирка отопительных приборов | C27: 2 | D27: раз в год | E27: М2 | F27: 6,4 | G27: 5.07 | H27: 0.0649 | I27: 0.0649 | J27: 64.9 | K27: 2
A28: 2.8.8 | B28: Влажная протирка шкафов для электросчетчиков, слаботочных устройств | C28: 1 | D28: раз в год | E28: М2 | F28: 4 | G28: 2.52 | H28: 0.01008 | I28: 0.01008 | J28: 10.08 | K28: 1
A29: 2.8.9 | B29: Влажная протирка почтовых ящиков | C29: 1 | D29: раз в год | E29: М2 | F29: 4,2 | G29: 2.05 | H29: 0.00861 | I29: 0.00861 | J29: 8.61 | K29: 1
A30: 2.8.10 | B30: Влажная протирка стен, дверей кабины лифта | C30: 0 | D30: раз в месяц | E30: М2 | F30: 0 | G30: 0 | H30: 0
A31: 2.9 | B31: Очистка кровли | C31: Х | D31: 0 | E31: 0 | F31: Х | G31: Х | H31: =H32+H33+H34 -> 55.32186 | I31: =I32+I33+I34 -> 55.32186 | J31: =J32+J33+J34 -> 55321.86
A32: 2.9.1 | B32: Очистка кровли и ее элементов (в том числе козырьков над подъездами) от мусора и листьев | C32: 2 | D32: раз в год | E32: М2 | F32: 769 | G32: 2.01 | H32: =ROUND(F32*G32*K32/1000,5) -> 3.09138 | I32: =H32 -> 3.09138 | J32: =ROUND(H32*1000,2) -> 3091.38 | K32: 2 | M32: 769
A33: 2.9.2 | B33: Очистка кровли от снега | C33: 3 | D33: Работа не выполняется | E33: КХ | F33: 769 | G33: 7.67 | H33: =ROUND(G33*F33*K33/1000,5) -> 17.69469 | I33: =H33 -> 17.69469 | J33: =ROUND(H33*1000,2) -> 17694.69 | K33: 3
A34: 2.9.3 | B34: Очистка кровли от снега и наледеобразований | C34: 3 | D34: Работа не выполняется | E34: КХ | F34: 769 | G34: 14.97 | H34: =ROUND(G34*F34*K34/1000,5) -> 34.53579 | I34: =H34 -> 34.53579 | J34: =ROUND(H34*1000,2) -> 34535.79 | K34: 3
A35: 2.10 | B35: Смена частей водосточных труб и прочистка внутреннего водостока | C35: Х | D35: 0 | E35: 0 | F35: Х | G35: Х | H35: =H36+H37 -> 0 | I35: =I36+I37 -> 0 | J35: =J36+J37 -> 0
A36: 2.10.1 | B36: Смена частей водосточных труб | C36: 0 | D36: в течение суток после обнаружения | E36: ШТ | F36: 0 | G36: 0 | H36: 0 | I36: 0 | J36: 0
A37: 2.10.2 | B37: Прочистка водоприемной воронки внутреннего водостока | C37: =IF(F37>0,2,0) -> 0 | D37: в течение суток после обнаружения | E37: ШТ | F37: 0 | G37: 0 | H37: =ROUND(G37*F37*C37/1000,5) -> 0 | M37: 307.68
A38: 2.11 | B38: Очистка подвалов и чердаков от мусора | C38: 1 | D38: раз в год | E38: М2 | F38: =L38 -> 692.28 | G38: 1.65 | H38: =ROUND((F38*G38*K38)/1000,5) -> 1.14226 | I38: =H38 -> 1.14226 | J38: =ROUND(F38*G38*K38,2) -> 1142.26 | K38: 1 | L38: =M37+M38 -> 692.28 | M38: 384.6
A39: 2.12 | B39: Уборка мусороприемной камеры | C39: 0 | D39: раз в день, кроме праздничных и воскресных дней | E39: М2 | F39: 0 | G39: 0 | H39: =ROUND((F39*G39*K39)/1000,5) -> 0
A40: 2.13 | B40: Ремонт почтовых ящиков, установка, смена замка | C40: 0 | D40: В течении суток с момента получения заявки | E40: КХ | F40: 0 | G40: 0 | H40: =ROUND(G40*F40/1000,5) -> 0 | I40: =H40 -> 0 | J40: =ROUND(H40*1000,2) -> 0
A41: 2.14 | B41: Иное (Работы по содержанию помещений, входящих в состав общего имущества в многоквартирном доме) | C41: Х | D41: 0 | E41: 0 | F41: Х | G41: Х | H41: 0
A42: 3 | B42: Работы по обеспечению вывоза твердых бытовых отходов | H42: =H43+H44 -> 0 | I42: =I43+I44 -> 0 | J42: =J43+J44 -> 0 | Q42: жители | R42: 67
A43: 3.1 | B43: Удаление мусора из мусороприемных камер | C43: 0 | D43: раз в день | E43: М3 | F43: 0 | G43: 0 | H43: =ROUND((F43*G43*K43)/1000,5) -> 0 | N43: =ROUND(R42*1.45/365,3) -> 0.266 | O43: м3 мусора в день | Q43: место мусороприемной камеры
A44: 3.2 | B44: Иное (Работы по обеспечению вывоза твердых бытовых отходов) | C44: 0 | D44: 0 | E44: 0 | F44: 0 | G44: 0 | H44: 0 | J44: =ROUND(H44*1000,2) -> 0
A45: 4 | B45: Работы по обеспечению вывоза крупногабаритного мусора | C45: 0 | D45: 0 | E45: 0 | F45: 0 | G45: 0 | H45: 0 | J45: =ROUND(H45*1000,2) -> 0 | Q45: в цокольном этаже | R45: =IF(R43=Q45,274.83,0) -> 0
A46: 5 | B46: Работы по содержанию и ремонту конструктивных элементов (несущих и ненесущих конструкций) многоквартирных домов | H46: =H47+H53+H63+H68+H77+H85+H98+H103 -> 38.804657 | I46: =I47+I53+I63+I68+I77+I85+I98+I103 -> 38.804657 | J46: =J47+J53+J63+J68+J77+J85+J98+J103 -> 37640.52 | Q46: в подвале | R46: =IF(R43=Q46,341.86,0) -> 0 | BV46: ррр | CQ46: ррр
A47: 5.1 | B47: Фундамент | H47: =H48+H49+H50+H51+H52 -> 1.94023 | I47: =I48+I49+I50+I51+I52 -> 0 | J47: =J48+J49+J50+J51+J52 -> 1940.23 | R47: =SUM(R45:R46) -> 0
A48: 5.1.1 | B48: Восстановление поврежденных участков фундаментов | C48: 0 | D48: 0 | E48: 0 | F48: 0 | G48: 0 | H48: 0
A49: 5.1.2 | B49: Восстановление гидроизоляции и систем водоотвода фундаментов | C49: 0 | D49: 0 | E49: 0 | F49: 0 | G49: 0 | H49: =ROUND(($I$108*0.03),5) -> 1.16414 | J49: =ROUND(H49*1000,2) -> 1164.14 | K49: 5
A50: 5.1.3 | B50: Восстановление поврежденных участков вентиляционных продухов | C50: 0 | D50: 0 | E50: 0 | F50: 0 | G50: 0 | H50: =ROUND(($I$108*0.02),5) -> 0.77609 | J50: =ROUND(H50*1000,2) -> 776.09
A51: 5.1.4 | B51: Восстановление поврежденных участков входов в подвалы | C51: 0 | D51: 0 | E51: 0 | F51: 0 | G51: 0 | H51: 0 | J51: =ROUND(H51*1000,2) -> 0
A52: 5.1.5 | B52: Иное (Фундамент) | C52: Х | D52: 0 | E52: 0 | F52: Х | G52: Х | H52: 0 | J52: =ROUND(H52*1000,2) -> 0
A53: 5.2 | B53: Стены и фасад | H53: =H54+H55+H56+H57+H58+H59+H60+H61+H62 -> 2.71633 | I53: =I54+I55+I56+I57+I58+I59+I60+I61+I62 -> 0 | J53: =J54+J55+J56+J57+J58+J59+J60+J61+J62 -> 2716.33
A54: 5.2.1 | B54: Герметизация стыков стен и фасадов | C54: 0 | D54: 0 | E54: 0 | F54: 0 | G54: 0 | H54: 0 | J54: =ROUND(H54*1000,2) -> 0
A55: 5.2.2 | B55: Заделка и восстановление архитектурных элементов | C55: 0 | D55: 0 | E55: 0 | F55: 0 | G55: 0 | H55: 0 | J55: 0
A56: 5.2.3 | B56: Ремонт штукатурки гладких фасадов | C56: 0 | D56: 0 | E56: 0 | F56: 0 | G56: 0 | H56: 0 | J56: 0
A57: 5.2.4 | B57: Окраска, промывка фасадов | C57: 0 | D57: 0 | E57: 0 | F57: 0 | G57: 0 | H57: 0 | J57: 0
A58: 5.2.5 | B58: Восстановление поврежденных участков цоколей | C58: 0 | D58: 0 | E58: 0 | F58: 0 | G58: 0 | H58: 0 | J58: 0
A59: 5.2.6 | B59: Окраска, промывка цоколей | C59: 0 | D59: 0 | E59: 0 | F59: 0 | G59: 0 | H59: =ROUND(($I$108*0.07),5) -> 2.71633 | J59: 2716.33 | K59: 7
A60: 5.2.7 | B60: Смена пластмассового короба домового знака или уличного указателя | C60: 0 | D60: 0 | E60: 0 | F60: 0 | G60: 0 | H60: 0 | J60: 0
A61: 5.2.8 | B61: Восстановление гидроизоляции между цокольной частью здания и стенами | C61: 0 | D61: 0 | E61: 0 | F61: 0 | G61: 0 | H61: 0 | J61: 0
A62: 5.2.9 | B62: Иное (Стены и фасад) | C62: Х | D62: 0 | E62: 0 | F62: Х | G62: Х | H62: 0
A63: 5.3 | B63: Перекрытия | H63: =H64+H65+H66+H67 -> 0 | I63: =I64+I65+I66+I67 -> 0 | J63: =J64+J65+J66+J67 -> 0
A64: 5.3.1 | B64: Частичная смена отдельных деревянных элементов | C64: 0 | D64: 0 | E64: 0 | F64: 0 | G64: 0 | H64: 0 | J64: =ROUND(H64*1000,2) -> 0
A65: 5.3.2 | B65: Заделка швов и трещин | C65: 0 | D65: 0 | E65: 0 | F65: 0 | G65: 0 | H65: 0 | J65: =ROUND(H65*1000,2) -> 0
A66: 5.3.3 | B66: Укрепление и окраска | C66: 0 | D66: 0 | E66: 0 | F66: 0 | G66: 0 | H66: 0 | J66: =ROUND(H66*1000,2) -> 0
A67: 5.3.4 | B67: Иное (Перекрытия) | C67: Х | D67: 0 | E67: 0 | F67: Х | G67: Х | H67: 0
A68: 5.4 | B68: Крыши | H68: =H69+H70+H71+H72+H75+H76 -> 3.49242 | I68: =I69+I70+I71+I72+I75+I76 -> 0 | J68: =J69+J70+J71+J72+J73+J74+J75+J76 -> 3492.42
A69: 5.4.1 | B69: Усиление элементов деревянной стропильной системы, | C69: 0 | D69: 0 | E69: 0 | F69: 0 | G69: 0 | H69: 0 | J69: =ROUND(H69*1000,2) -> 0
A70: 5.4.2 | B70: Устранение неисправностей и ремонт стальных, асбестоцементных и других кровельных покрытий | C70: 0 | D70: 0 | E70: 0 | F70: 0 | G70: 0 | H70: 0 | J70: =ROUND(H70*1000,2) -> 0
A71: 5.4.3 | B71: Разборка и ремонт кровли из рулонных материалов | C71: 0 | D71: 0 | E71: 0 | F71: 0 | G71: 0 | H71: 0 | J71: =ROUND(H71*1000,2) -> 0
A72: 5.4.4 | B72: Ремонт конструкций и элементов крыши | C72: 0 | D72: 0 | E72: 0 | F72: 0 | G72: 0 | H72: 0 | I72: =I73+I74 -> 0 | J72: =J73+J74 -> 0
A73: 5.4.4.1 | B73: Ремонт частей водосточных труб | C73: 0 | D73: 0 | E73: 0 | F73: 0 | G73: 0 | H73: 0 | J73: =ROUND(H73*1000,2) -> 0
A74: 5.4.4.2 | B74: Ремонт металлической парапетной решетки | C74: 0 | D74: 0 | E74: 0 | F74: 0 | G74: 0 | H74: 0 | J74: =ROUND(H74*1000,2) -> 0
A75: 5.4.5 | B75: Окраска конструкций и элементов крыши | C75: 0 | D75: 0 | E75: 0 | F75: 0 | G75: 0 | H75: 0 | J75: =ROUND(H75*1000,2) -> 0
A76: 5.4.6 | B76: Иное (Крыши) | C76: Х | D76: 0 | E76: 0 | F76: Х | G76: Х | H76: =ROUND(($I$108*0.09),5) -> 3.49242 | J76: =ROUND(H76*1000,2) -> 3492.42 | K76: 9
A77: 5.5 | B77: Оконные и дверные заполнения на лестничных клетках и во вспомогательных помещениях общего пользования, входные двери | H77: =H78+H79+H80+H81+H82+H83+H84 -> 5.43266 | I77: =I78+I79+I80+I81+I82+I83+I84 -> 0 | J77: =J78+J79+J80+J81+J82+J83+J84 -> 4268.52
A78: 5.5.1 | B78: Ремонт дверей в помещениях общего пользования | C78: 0 | D78: 0 | E78: 0 | F78: 0 | G78: 0 | H78: =ROUND(($I$108*0.07),5) -> 2.71633 | J78: =ROUND(H78*1000,2) -> 2716.33 | K78: 7
A79: 5.5.2 | B79: Замена дверей в помещениях общего пользования | C79: 0 | D79: 0 | E79: 0 | F79: 0 | G79: 0 | H79: 0 | J79: 0
A80: 5.5.3 | B80: Ремонт или замена входных дверей в подъезды | C80: 0 | D80: 0 | E80: 0 | F80: 0 | G80: 0 | H80: 0 | J80: 0
A81: 5.5.4 | B81: Ремонт окон в помещениях общего пользования | C81: 0 | D81: 0 | E81: 0 | F81: 0 | G81: 0 | H81: =ROUND(($I$108*0.04),5) -> 1.55219 | J81: 1552.19 | K81: 4
A82: 5.5.5 | B82: Замена окон в помещениях общего пользования | C82: 0 | D82: 0 | E82: 0 | F82: 0 | G82: 0 | H82: 0 | J82: 0
A83: 5.5.6 | B83: Установка и текущий ремонт доводчиков | C83: 0 | D83: 0 | E83: 0 | F83: 0 | G83: 0 | H83: 0 | J83: 0
A84: 5.5.7 | B84: Иное (Оконные и дверные заполнения на лестничных клетках и во вспомогательных помещениях общего пользования, входные двери) | C84: Х | D84: 0 | E84: 0 | F84: Х | G84: Х | H84: =ROUND(($I$108*0.03),5) -> 1.16414 | K84: 3
A85: 5.6 | B85: Лестницы, пандусы, крыльца, козырьки над входами в подъезды, подвалы и над балконами верхних этажей | H85: =H86+H87+H88+H89+H90+H91+H92+H93+H94+H95+H96+H97 -> 13.19359 | I85: =I86+I87+I88+I89+I90+I91+I92+I93+I94+I95+I96+I97 -> 0 | J85: =J86+J87+J88+J89+J90+J91+J92+J93+J94+J95+J96+J97 -> 13193.59
A86: 5.6.1 | B86: Восстановление лестницы | C86: 0 | D86: 0 | E86: 0 | F86: 0 | G86: 0 | H86: 0 | J86: =ROUND(H86*1000,2) -> 0
A87: 5.6.2 | B87: Замена лестницы | C87: 0 | D87: 0 | E87: 0 | F87: 0 | G87: 0 | H87: 0 | J87: =ROUND(I87*1000,2) -> 0
A88: 5.6.3 | B88: Восстановление пандуса | C88: 0 | D88: 0 | E88: 0 | F88: 0 | G88: 0 | H88: 0 | J88: =ROUND(H88*1000,2) -> 0
A89: 5.6.4 | B89: Замена пандуса | C89: 0 | D89: 0 | E89: 0 | F89: 0 | G89: 0 | H89: 0 | J89: 0
A90: 5.6.5 | B90: Восстановление крыльца | C90: 0 | D90: 0 | E90: 0 | F90: 0 | G90: 0 | H90: =ROUND(($I$108*0.12),5) -> 4.65656 | J90: 4656.56 | K90: 12
A91: 5.6.6 | B91: Замена крыльца | C91: 0 | D91: 0 | E91: 0 | F91: 0 | G91: 0 | H91: 0 | J91: 0
A92: 5.6.7 | B92: Восстановление козырьков над входами в подъезды, ремонт кровельного покрытия козырьков, ложных балконов | C92: 0 | D92: 0 | E92: 0 | F92: 0 | G92: 0 | H92: 0 | J92: 0
A93: 5.6.8 | B93: Замена козырьков над входами в подъезды | C93: 0 | D93: 0 | E93: 0 | F93: 0 | G93: 0 | H93: 0 | J93: 0
A94: 5.6.9 | B94: Восстановление конструкций над балконами верхних этажей | C94: 0 | D94: 0 | E94: 0 | F94: 0 | G94: 0 | H94: 0 | J94: 0
A95: 5.6.10 | B95: Замена конструкций над балконами верхних этажей | C95: 0 | D95: 0 | E95: 0 | F95: 0 | G95: 0 | H95: 0 | J95: 0
A96: 5.6.11 | B96: Ремонт полов (на лестницах, чердаках, в холлах и подвалах) | C96: 0 | D96: 0 | E96: 0 | F96: 0 | G96: 0 | H96: =ROUND(($I$108*0.16),5) -> 6.20875 | J96: 6208.75 | K96: 16
A97: 5.6.12 | B97: Иное (Лестницы, пандусы, крыльца, козырьки над входами в подъезды, подвалы и над балконами верхних этажей) | C97: 0 | D97: 0 | E97: 0 | F97: 0 | G97: 0 | H97: =ROUND(($I$108*0.06),5) -> 2.32828 | J97: 2328.28 | K97: 6
A98: 5.7 | B98: Внутренняя отделка в подъездах, технических помещениях, и других помещениях общего пользования | H98: =H99+H100+H101+H102 -> 1.55219 | I98: =I99+I100+I101+I102 -> 0 | J98: =J99+J100+J101+J102 -> 1552.19
A99: 5.7.1 | B99: Восстановление отделки стен | C99: 0 | D99: 0 | E99: 0 | F99: 0 | G99: 0 | H99: =ROUND(($I$108*0.04),5) -> 1.55219 | I99: 0 | J99: =ROUND(H99*1000,2) -> 1552.19 | K99: 4 | BV99: ррр
A100: 5.7.2 | B100: Восстановление отделки потолков | C100: 0 | D100: 0 | E100: 0 | F100: 0 | G100: 0 | H100: 0 | J100: =ROUND(H100*1000,2) -> 0
A101: 5.7.3 | B101: Ремонт лестничных клеток | C101: 0 | D101: 0 | E101: 0 | F101: 0 | G101: 0 | H101: 0 | J101: =ROUND(H101*1000,2) -> 0
A102: 5.7.4 | B102: Ремонт технических и вспомогательных помещений | C102: 0 | D102: 0 | E102: 0 | F102: 0 | G102: 0 | H102: 0 | J102: =ROUND(H102*1000,2) -> 0
A103: 5.8 | B103: Ремонт чердаков, подвалов | H103: =H104+H105+H106+H107+H108 -> 10.477237 | I103: =I104+I105+I106+I107+I108 -> 38.804657 | J103: =J104+J105+J106+J107+J108 -> 10477.24
A104: 5.8.1 | B104: Утепление чердачных перекрытий | C104: 0 | D104: 0 | E104: 0 | F104: 0 | G104: 0 | H104: 0 | J104: =ROUND(H104*1000,2) -> 0
A105: 5.8.2 | B105: Утепление трубопроводов в чердачных помещениях | C105: 0 | D105: 0 | E105: 0 | F105: 0 | G105: 0 | H105: 0 | J105: =ROUND(H105*1000,2) -> 0
A106: 5.8.3 | B106: Утепление трубопроводов в подвальных помещениях | C106: 0 | D106: 0 | E106: 0 | F106: 0 | G106: 0 | H106: =ROUND(($I$108*0.065),5) -> 2.5223 | J106: =ROUND(H106*1000,2) -> 2522.3 | K106: 6.5
A107: 5.8.4 | B107: Изготовление новых или ремонт существующих ходовых досок и переходных мостиков на чердаках, в подвалах | C107: 0 | D107: 0 | E107: 0 | F107: 0 | G107: 0 | H107: 0 | J107: =ROUND(H107*1000,2) -> 0
A108: 5.8.5 | B108: Иное (Ремонт чердаков, подвалов) | C108: Х | D108: 0 | E108: 0 | F108: Х | G108: Х | H108: =I108-H47-H53-H63-H68-H77-H85-H98-H106 -> 7.954937 | I108: =J197-I138-H181 -> 38.804657 | J108: =ROUND(H108*1000,2) -> 7954.94
A109: 6 | B109: Работы по содержанию и ремонту оборудования и систем инженерно-технического обеспечения, входящих в состав общего имущества в многоквартирном доме | H109: =H110+H111+H112+H113+H114+H115+H116+H117+H118+H119+H120+H121+H122+H123+H124+H125+H126+H127+H128+H129+H130+H131+H132+H133+H134+H135+H136+H137+H138 -> 139.116123 | I109: =I110+I111+I112+I113+I114+I115+I116+I117+I118+I119+I120+I121+I122+I123+I124+I125+I126+I127+I128+I129+I130+I131+I132+I133+I134+I135+I136+I137+I138 -> 139.121123 | J109: =J110+J111+J112+J113+J114+J115+J116+J117+J118+J119+J120+J121+J122+J123+J124+J125+J126+J127+J128+J129+J130+J131+J132+J133+J134+J135+J136+J137+J138 -> 130849.04 | BV109: ддд | CQ109: ддд
A110: 6.1 | B110: Консервация (расконсервация) поливочной системы | C110: 1 | D110: В ходе подготовки к эксплуатации дома в осенне-зимний период | E110: КХ | F110: 1 | G110: =H110*1000 -> 5905.06 | H110: =ROUND(($I$138*0.05),5) -> 5.90506 | J110: =ROUND(H110*1000,2) -> 5905.06
A111: 6.2 | B111: Ремонт, регулировка, промывка и опрессовка систем центрального отопления, утепление бойлеров | C111: 1 | D111: В ходе подготовки к эксплуатации дома в осенне-зимний период | E111: КХ | F111: 1 | G111: =H111*1000 -> 29525.28 | H111: =ROUND(($I$138*0.25),5) -> 29.52528 | J111: 29525.28
A112: 6.3 | B112: Утепление вентиляционных и дымовых каналов | C112: 0 | D112: В ходе подготовки к эксплуатации дома в осенне-зимний период | E112: КХ | F112: 0 | G112: 0 | H112: 0 | J112: 0
A113: 6.4 | B113: Прочистка вентиляционных и дымовых каналов | C113: 0 | D113: В ходе подготовки к эксплуатации дома в осенне-зимний период | E113: КХ | F113: 0 | G113: 0 | H113: 0 | J113: 0
A114: 6.5 | B114: Ремонт и утепление наружных водоразборных кранов | C114: 0 | D114: В ходе подготовки к эксплуатации дома в осенне-зимний период | E114: КХ | F114: 0 | G114: 0 | H114: 0 | J114: 0
A115: 6.6 | B115: Проведение технических осмотров систем водопровода и канализации, центрального отопления и горячего водоснабжения, электротехнических устройств, вентиляционных каналов | C115: 0 | D115: по мере необходимости | E115: КХ | F115: 0 | G115: 0 | H115: 0 | J115: 0
A116: 6.7 | B116: Устранение неисправностей в системах водопровода и канализации, центрального отопления и горячего водоснабжения, электротехнических устройств, вентиляционных и дымовых каналов | C116: 1 | D116: В ходе подготовки к эксплуатации дома в осенне-зимний период | E116: КХ | F116: 1 | G116: =H116*1000 -> 14172.13 | H116: =ROUND(($I$138*0.12),5) -> 14.17213 | J116: 14172.13
A117: 6.8 | B117: Проверка исправности канализационных вытяжек | C117: 0 | D117: Устранение по мере обнаружения дефектов | E117: КХ | F117: 0 | G117: 0 | H117: 0 | J117: 0
A118: 6.9 | B118: Устранение засора внутреннего канализационного трубопровода | C118: 0 | D118: раз в год | E118: КХ | F118: 0 | G118: 0 | H118: 0 | J118: 0
A119: 6.10 | B119: Регулировка и наладка систем автоматики расширительных баков | C119: =IF(F119>0,1,0) -> 0 | D119: раз в месяц | E119: КХ | F119: 0 | G119: 0 | H119: 0 | I119: 0 | J119: 0
A120: 6.11 | B120: Проверка заземления оболочки электрокабеля, оборудования (насосы, щитовые вентиляторы и др.) | C120: =IF(H120,1,0) -> 0 | D120: раз в год | E120: КХ | F120: =C120 -> 0 | G120: =H120*1000 -> 0 | H120: 0 | I120: 0 | J120: 0
A121: 6.12 | B121: Замеры сопротивления изоляции проводов, трубопроводов и восстановление цепей заземления | C121: 1 | D121: раз в год | E121: КХ | F121: 1 | G121: =H121*1000 -> 21015 | H121: 21.015 | I121: 21.02 | J121: 21015
A122: 6.13 | B122: Поверка общедомовых приборов учета горячего и холодного водоснабжения, отопления, электроснабжения | C122: 0 | D122: В ходе подготовки к эксплуатации дома в осенне-зимний период | E122: КХ | F122: 0 | G122: 0 | H122: 0 | J122: 0
A123: 6.14 | B123: Ремонт общедомовых приборов учета горячего и холодного водоснабжения, отопления, электроснабжения | C123: 0 | D123: В ходе подготовки к эксплуатации дома в осенне-зимний период | E123: КХ | F123: 0 | G123: 0 | H123: 0 | J123: 0
A124: 6.15 | B124: Обслуживание ламп-сигналов | C124: 0 | D124: Работа не выполняется | F124: 0 | G124: 0 | H124: 0 | J124: 0
A125: 6.16 | B125: Замена и восстановление отдельных элементов системы отопления с выполнением наладочных регулировочных работ, ликвидацией непрогревов и неисправностей в квартирах | C125: 1 | D125: В ходе подготовки к эксплуатации дома в осенне-зимний период | E125: КХ | F125: 1 | G125: =H125*1000 -> 17715.17 | H125: =ROUND(($I$138*0.15),5) -> 17.71517 | J125: 17715.17
A126: 6.17 | B126: Замена и восстановление отдельных элементов системы холодного водоснабжения, при необходимости отключение и включение стояков | C126: 1 | D126: В ходе подготовки к эксплуатации дома в осенне-зимний период | E126: КХ | F126: 1 | G126: =H126*1000 -> 12991.12 | H126: =ROUND(($I$138*0.11),5) -> 12.99112 | J126: 12991.12
A127: 6.18 | B127: Замена и восстановление отдельных элементов системы горячего водоснабжения, при необходимости отключение и включение стояков | C127: 0 | D127: В ходе подготовки к эксплуатации дома в осенне-зимний период | E127: КХ | F127: 0 | G127: 0 | H127: 0 | J127: 0
A128: 6.19 | B128: Замена и восстановление отдельных элементов системы канализации, в том числе ликвидация засоров, за исключением внутриквартирного сантехоборудования | C128: 1 | D128: В ходе подготовки к эксплуатации дома в осенне-зимний период | E128: КХ | F128: 1 | G128: =H128*1000 -> 8267.08 | H128: =ROUND(($I$138*0.07),5) -> 8.26708 | J128: 8267.08
A129: 6.20 | B129: Замена и восстановление отдельных элементов внутридомового электрооборудования (за исключением внутриквартирных устройств и приборов) | C129: 1 | D129: В ходе подготовки к эксплуатации дома в осенне-зимний период | E129: КХ | F129: 1 | G129: =H129*1000 -> 21258.2 | H129: =ROUND(($I$138*0.18),5) -> 21.2582 | J129: 21258.2
A130: 6.21 | B130: Гидропневматическая очистка системы отопления | C130: 0 | D130: Работа не выполняется | F130: 0 | G130: 0 | H130: 0 | I130: 0 | J130: 0
A131: 6.22 | B131: Обслуживание и ремонт АУУТЭ | C131: 0 | D131: раз в месяц | E131: КХ | F131: 0 | G131: 0 | H131: 0 | J131: 0
A132: 6.23 | B132: Обслуживание и ремонт АСКУЭ | C132: 0 | D132: раз в месяц | E132: КХ | F132: 0 | G132: 0 | H132: 0 | J132: 0
A133: 6.24 | B133: Обслуживание и ремонт насосных пунктов | C133: 0 | D133: раз в месяц | E133: КХ | F133: 0 | G133: 0 | H133: 0 | J133: 0
A134: 6.25 | B134: Обслуживание и ремонт тепловых пунктов | C134: 0 | D134: Работа не выполняется | F134: 0 | G134: 0 | H134: 0 | I134: 0 | J134: 0
A135: 6.26 | B135: Обслуживание и ремонт крышных газовых котельных | C135: 0 | D135: Работа не выполняется | F135: 0 | G135: 0 | H135: 0 | I135: 0 | J135: 0
A136: 6.27 | B136: Ремонт электрооборудования (эл. щитков, замена АВР (аварийное включение резерва) и др. работы) | C136: 0 | D136: по мере необходимости | E136: КХ | F136: 0 | G136: 0 | H136: 0 | J136: 0
A137: 6.28 | B137: Техническое обслуживание светильников дежурного освещения | C137: 0 | D137: по мере необходимости | E137: КХ | F137: 0 | G137: 0 | H137: 0 | J137: 0
A138: 6.29 | B138: Иное (Работы по содержанию и ремонту оборудования и систем инженерно-технического обеспечения, входящих в состав общего имущества в многоквартирном доме) | C138: Х | D138: 0 | E138: 0 | F138: Х | G138: Х | H138: =I138-H110-H111-H125-H126-H127-H128-H129-H116 -> 8.267083 | I138: =J197*0.7 -> 118.101123 | J138: =ROUND(L19,2) -> 0
A139: 7 | B139: Работы по содержанию и ремонту мусоропроводов в многоквартирном доме | H139: 0 | I139: =I140+I141+I142+I143+I144+I145+I146+I147+I148+I149+I150 -> 0 | J139: =J140+J141+J142+J143+J144+J145+J146+J147+J148+J149+J150 -> 0 | BV139: ммм | CQ139: mmm
A140: 7.1 | B140: Восстановление работоспособности вентиляционных и промывочных устройств, мусороприемных клапанов и шиберных устройств | C140: 0 | D140: В ходе подготовки к эксплуатации дома в осенне-зимний период | E140: КХ | F140: 0 | G140: 0 | H140: 0
A141: 7.2 | B141: Профилактический осмотр мусоропроводов | C141: 0 | D141: В ходе подготовки к эксплуатации дома в осенне-зимний период | E141: КХ | F141: 0 | G141: 0 | H141: 0 | J141: =ROUND(H141*1000,2) -> 0
A142: 7.3 | B142: Видеодиагностика внутренней поверхности асбестоцементных стволов мусоропровода | C142: 0 | D142: В ходе подготовки к эксплуатации дома в осенне-зимний период | E142: КХ | F142: 0 | G142: 0 | H142: 0
A143: 7.4 | B143: Уборка загрузочных клапанов мусоропроводов | C143: 0 | D143: В ходе подготовки к эксплуатации дома в осенне-зимний период | E143: КХ | F143: 0 | G143: 0 | H143: 0
A144: 7.5 | B144: Мойка сменных мусоросборников | C144: 0 | D144: В ходе подготовки к эксплуатации дома в осенне-зимний период | E144: КХ | F144: 0 | G144: 0 | H144: 0
A145: 7.6 | B145: Мойка нижней части ствола и шибера мусоропровода | C145: 0 | D145: В ходе подготовки к эксплуатации дома в осенне-зимний период | E145: КХ | F145: 0 | G145: 0 | H145: 0
A146: 7.7 | B146: Очистка и дезинфекция всех элементов ствола мусоропровода | C146: 0 | D146: В ходе подготовки к эксплуатации дома в осенне-зимний период | E146: КХ | F146: 0 | G146: 0 | H146: 0
A147: 7.8 | B147: Дезинфекция мусоросборников | C147: 0 | D147: В ходе подготовки к эксплуатации дома в осенне-зимний период | E147: КХ | F147: 0 | G147: 0 | H147: 0
A148: 7.9 | B148: Устранение засора | C148: 0 | D148: В ходе подготовки к эксплуатации дома в осенне-зимний период | E148: КХ | F148: 0 | G148: 0 | H148: 0
A149: 7.10 | B149: Мелкий ремонт неисправностей мусоропровода | C149: 0 | D149: В ходе подготовки к эксплуатации дома в осенне-зимний период | E149: КХ | F149: 0 | G149: 0 | H149: 0
A150: 7.11 | B150: Иное (Работы по содержанию и ремонту мусоропроводов в многоквартирном доме) | C150: Х | D150: 0 | E150: 0 | F150: Х | G150: Х | H150: 0
A151: 8 | B151: Работы по содержанию и ремонту лифта (лифтов) в многоквартирном доме | H151: 0 | I151: =I152+I153+I154 -> 0 | J151: =J152+J153+J154 -> 0
A152: 8.1 | B152: Обслуживание лифтов и лифтового оборудования | C152: 0 | D152: Круглосуточно | E152: шт | F152: 0 | G152: 0 | H152: =ROUND((C152*F152*G152/1000),5) -> 0
A153: 8.2 | B153: Организация системы диспетчерского контроля и обеспечение диспетчерской связи с кабиной лифта | C153: 0 | D153: Работа не выполняется | E153: КХ | F153: 0 | G153: 0 | H153: 0
A154: 8.3 | B154: Иное (Работы по содержанию и ремонту лифта (лифтов) в многоквартирном доме) | C154: Х | D154: 0 | E154: 0 | F154: Х | G154: Х | H154: 0
A155: 9 | B155: Работы по обеспечению требований пожарной безопасности | H155: 0 | I155: =I156+I157+I158+I159 -> 0 | J155: =J156+J157+J158+J159 -> 0
A156: 9.1 | B156: Осмотр пожарной сигнализации и средств тушения в домах | C156: 0 | D156: раз в год | E156: КХ | F156: 0 | G156: 0 | H156: 0 | J156: =ROUND(H156*1000,2) -> 0
A157: 9.2 | B157: Обслуживание систем дымоудаления и противопожарной безопасности | C157: =IF(F157>0,12,0) -> 0 | D157: Круглосуточно | E157: шт | F157: =IF(J157>0,F152,0) -> 0 | G157: =IF(F157>0,J157/C157/F157,0) -> 0 | H157: =ROUND((C157*F157*G157/1000),5) -> 0 | I157: 0 | J157: =ROUND(H157*1000,2) -> 0
A158: 9.3 | B158: Замена и восстановление работоспособности элементов пожаротушения (трубопроводов, включая ввод и стояки пожарного водопровода) | C158: 0 | D158: в течение суток после обнаружения | E158: КХ | F158: 0 | G158: 0 | H158: 0 | J158: =ROUND(H158*1000,2) -> 0
A159: 9.4 | B159: Иное (Работы по обеспечению требований пожарной безопасности) | C159: Х | D159: 0 | E159: 0 | F159: Х | G159: Х | H159: 0
A160: 10 | B160: Работы по содержанию и ремонту систем вентиляции | H160: =H161+H162+H163+H164 -> 0 | I160: =I161+I162+I163+I164 -> 0 | J160: =J161+J162+J163+J164 -> 0
A161: 10.1 | B161: Проверка наличия тяги в дымоходах, вентиляционных каналах | C161: 0 | F161: 0 | G161: 0 | H161: 0 | J161: =ROUND(H161*1000,2) -> 0
A162: 10.2 | B162: Регулировка и наладка систем вентиляции | C162: 0 | F162: 0 | G162: 0 | H162: 0 | J162: =ROUND(H162*1000,2) -> 0
A163: 10.3 | B163: Замена и восстановление работоспособности отдельных общедомовых элементов | C163: 0 | F163: 0 | G163: 0 | H163: 0 | I163: 0 | J163: =ROUND(H163*1000,2) -> 0
A164: 10.4 | B164: Иное (Работы по содержанию и ремонту систем вентиляции) | C164: Х | D164: 0 | E164: 0 | F164: Х | G164: Х | H164: 0
A165: 11 | B165: Работы по содержанию и ремонту систем внутридомового газового оборудования | H165: =H166+H167+H168 -> 11.794 | I165: =I166+I167+I168 -> 11.79 | J165: =J166+J167+J168 -> 11794
A166: 11.1 | B166: Проверка состояния системы внутридомового газового оборудования и ее отдельных элементов | C166: =IF(H166>0,1,0) -> 1 | D166: раз в год | E166: шт | F166: =IF(H166>0,1,0) -> 1 | G166: =J166 -> 11794 | H166: 11.794 | I166: 11.79 | J166: =ROUND(H166*1000,2) -> 11794
A167: 11.2 | B167: Замена и восстановление работоспособности отдельных элементов системы внутридомового газового оборудования | C167: 0 | D167: по мере необходимости | E167: шт | F167: 0 | G167: 0 | H167: 0 | J167: =ROUND(H167*1000,2) -> 0
A168: 11.3 | B168: Иное (Работы по содержанию и ремонту систем внутридомового газового оборудования) | C168: Х | D168: 0 | E168: 0 | F168: Х | G168: Х | H168: 0
A169: 12 | B169: Обеспечение устранения аварий на внутридомовых инженерных системах в многоквартирном доме | H169: =H170+H171+H172 -> 24.997 | I169: =I170+I171+I172 -> 25 | J169: =J170+J171+J172 -> 24997
A170: 12.1 | B170: Устранение аварии | C170: 1 | D170: Незамедлительное реагирование с момента получения заявки | E170: КХ | F170: 1 | G170: =J170 -> 24997 | H170: 24.997 | I170: 25 | J170: =ROUND(H170*1000,2) -> 24997
A171: 12.2 | B171: Выполнение заявок населения | C171: =IF(H171>0,1,0) -> 0 | D171: Незамедлительное реагирование с момента получения заявки | E171: КХ | F171: =IF(H171>0,1,0) -> 0 | G171: =J171 -> 0 | H171: 0 | I171: 0 | J171: =ROUND(H171*1000,2) -> 0
A172: 12.3 | B172: Иное (Обеспечение устранения аварий на внутридомовых инженерных системах в многоквартирном доме) | C172: Х | D172: 0 | E172: 0 | F172: Х | G172: Х | H172: 0
A173: 13 | B173: Расход электроэнергии, потребленной на дежурное освещение мест общего пользования и работу лифтов (общедомовые нужды) | H173: 11.933 | I173: 11.93 | J173: =ROUND(H173*1000,2) -> 11933
A174: 14 | B174: Расход воды на общедомовые нужды | H174: 5.77 | I174: 5.77 | J174: =ROUND(H174*1000,2) -> 5770
A175: 15 | B175: Проведение дератизации и дезинсекции помещений, входящих в состав общего имущества в многоквартирном доме | H175: =H176+H177 -> 0 | I175: =I176+I177 -> 0.01 | J175: =J176+J177 -> 0
A176: 15.1 | B176: Дератизация | C176: 0 | D176: раз в год | E176: КХ | F176: 0 | G176: 0 | H176: 0 | I176: 0 | J176: =ROUND(H176*1000,2) -> 0
A177: 15.2 | B177: Дезинсекция | C177: =IF(H177>0,1,0) -> 0 | D177: Незамедлительное реагирование с момента получения заявки | E177: КХ | F177: =IF(H177>0,1,0) -> 0 | G177: =J177 -> 0 | H177: 0 | I177: 0.01 | J177: =ROUND(H177*1000,2) -> 0
A178: 16 | B178: Прочие работы и услуги по содержанию и ремонту общего имущества в многоквартирном доме | H178: =H179+H180+H181 -> 11.81011 | I178: =I179+I180+I181 -> 32.5 | J178: =J179+J180+J181 -> 11810.11
A179: 16.1 | B179: Техническая инвентаризация | C179: 0 | D179: раз в год | E179: КХ | F179: 0 | G179: 0 | H179: 0 | I179: 0 | J179: =ROUND(H179*1000,2) -> 0
A180: 16.2 | B180: Техническое обслуживание систем дистанционного снятия показаний индивидуальных приборов учета (водопотребления и электроэнергии) | C180: 0 | D180: Работа не выполняется | F180: 0 | G180: 0 | H180: 0 | I180: 0 | J180: =ROUND(H180*1000,2) -> 0
A181: 16.3 | B181: Иное (Прочие работы и услуги по содержанию и ремонту общего имущества в многоквартирном доме) | C181: Х | D181: 0 | E181: 0 | F181: Х | G181: Х | H181: =ROUND((J197*0.07),5) -> 11.81011 | I181: 32.5 | J181: =ROUND(H181*1000,2) -> 11810.11
A182: 17 | B182: Работы по содержанию земельного участка с элементами озеленения и благоустройства, иными объектами, предназначенными для обслуживания и эксплуатации многоквартирного дома | H182: 0
A183: 17.1 | B183: Подметание земельного участка в летний период | C183: 0 | D183: Работа не выполняется | F183: 0 | G183: 0 | H183: 0
A184: 17.2 | B184: Полив тротуаров | C184: 0 | D184: Работа не выполняется | F184: 0 | G184: 0 | H184: 0
A185: 17.3 | B185: Уборка мусора с газона, очистка урн | C185: 0 | D185: Работа не выполняется | F185: 0 | G185: 0 | H185: 0
A186: 17.4 | B186: Уборка мусора на контейнерных площадках | C186: 0 | D186: Работа не выполняется | F186: 0 | G186: 0 | H186: 0
A187: 17.5 | B187: Полив газонов | C187: 0 | D187: Работа не выполняется | F187: 0 | G187: 0 | H187: 0
A188: 17.6 | B188: Стрижка газонов | C188: 0 | D188: Работа не выполняется | F188: 0 | G188: 0 | H188: 0
A189: 17.7 | B189: Подрезка деревьев и кустов | C189: 0 | D189: Работа не выполняется | F189: 0 | G189: 0 | H189: 0
A190: 17.8 | B190: Очистка и ремонт детских и спортивных площадок, элементов благоустройства | C190: 0 | D190: Работа не выполняется | F190: 0 | G190: 0 | H190: 0
A191: 17.9 | B191: Сдвижка и подметание снега | C191: 0 | D191: Работа не выполняется | F191: 0 | G191: 0 | H191: 0
A192: 17.10 | B192: Ликвидация скользкости | C192: 0 | D192: Работа не выполняется | F192: 0 | G192: 0 | H192: 0
A193: 17.11 | B193: Иное (Работы по содержанию земельного участка с элементами озеленения и благоустройства, иными объектами, предназначенными для обслуживания и эксплуатации многоквартирного дома) | C193: Х | D193: 0 | E193: 0 | F193: Х | G193: Х | H193: 0
B194: ИТОГО РАСХОДОВ | H194: =H9+H10+H42+H45+H46+H109+H151+H155+H160+H165+H169+H173+H174+H175+H178+H182+H139 -> 469.79268 | I194: =I10+I9+I42+I46+I109+I139+I151+I155+I160+I165+I169+I173+I174+I175+I178+I45 -> 490.49357 | J194: =J10+J9+J42+J46+J109+J139+J151+J155+J160+J165+J169+J173+J174+J175+J178+J45 -> 249466.59
B195: Всего ПНР | H195: 469.79268 | I195: =J195/1000 -> 579.71532 | J195: 579715.32
I196: =I194 -> 490.49357 | J196: 0
G197: разница | H197: =H195-H194 -> 0 | I197: =I195-I196 -> 89.22175 | J197: 168.71589
H198: =H9+H10+H42+H45+H46+H109+H139+H151+H155+H160+H165+H169+H173+H174+H175+H178+H182 -> 469.79268
H201: =H195-H194 -> 0 | I201: =I199-I209 -> 0
A206: Директор ГБУ «Жилищник Красносельского района» | H206: Г.Б.Бобкова

Sheet Ананьевский пер. 5 стр.6
A1: Фактические затраты по проведению работ (оказанию услуг) на 2017 год
A2: по содержанию и ремонту общего имущества многоквартирного дома
A3: и предоставлению коммунальных услуг по адресу:
A4: Ананьевский пер. 5 стр.6
A7: № п/п | B7: Наименование работ (услуг)* | C7: Фактическая периодичность работ (услуг) | E7: Ед.измер. работ (услуг) | F7: Фактическое количество /объем | G7: Фактическая стоимость за единицу работ (услуг), руб. | H7: Фактическая стоимость в год за работы (услуги), тыс. руб. для портала | I7: Фактическая стоимость в год за работы (услуги), тыс. руб. расчетная | J7: Фактическая стоимость в год за работы (услуги), руб. | L7: =H111 -> 62.25639
A8: 1 | B8: 2 | C8: 3 | E8: 4 | F8: 4 | G8: 5 | H8: 6 | I8: 7
A9: 1 | B9: Работы (услуги) по управлению многоквартирным домом | H9: 146.68 | I9: 146.68 | J9: =ROUND(H9*1000,2) -> 146680 | BV9: ттт
A10: 2 | B10: Работы по содержанию помещений, входящих в состав общего имущества в многоквартирном доме | H10: =H11+H12+H13+H14+H15+H16+H19+H20+H31+H35+H38+H39 -> 219.23167 | I10: =I11+I12+I13+I14+I15+I16+I20+I31+I35+I38+I39+I40+I41+I19 -> 219.23167 | J10: =J11+J12+J13+J14+J15+J16+J20+J31+J35+J38+J39+J40+J41+J19 -> 198265.58
A11: 2.1 | B11: Влажное подметание лестничных площадок и маршей нижних 2 этажей | C11: 299 | D11: раз в день, кроме праздничных и воскресных дней | E11: М2 | F11: 135.3 | G11: 1.67 | H11: =ROUND((F11*G11*K11)/1000,5) -> 67.55935 | I11: =H11 -> 67.55935 | J11: =ROUND(F11*G11*K11,2) -> 67559.35 | K11: 299
A12: 2.2 | B12: Влажное подметание лестничных площадок и маршей выше 2-го этажа | C12: 104 | D12: раз в неделю | E12: М2 | F12: 135.3 | G12: 1.27 | H12: =ROUND((F12*G12*C12)/1000,5) -> 17.87042 | I12: =H12 -> 17.87042 | J12: =ROUND(F12*G12*K12,2) -> 8935.21 | K12: 52
A13: 2.3 | B13: Влажное подметание перед загрузочными клапанами мусоропроводов | C13: 0 | D13: раз в день, кроме праздничных и воскресных дней | E13: М2 | F13: 0 | G13: 0 | H13: =ROUND((F13*G13*K13)/1000,5) -> 0
A14: 2.4 | B14: Уборка загрузочных клапанов мусоропровода | C14: 0 | D14: раз в неделю | E14: ШТ | F14: 0 | G14: 0 | H14: =ROUND((F14*G14*K14)/1000,5) -> 0
A15: 2.5 | B15: Мытье пола кабины лифта | C15: 0 | D15: раз в день, кроме праздничных и воскресных дней | E15: М2 | F15: 0 | G15: 0 | H15: =ROUND((F15*G15*K15)/1000,5) -> 0
A16: 2.6 | B16: Мытье лестничных площадок | C16: Х | D16: 0 | E16: 0 | F16: Х | G16: Х | H16: =H17+H18 -> 24.06175 | I16: =H16 -> 24.06175 | J16: =J17+J18 -> 12030.87
A17: 2.6.1 | B17: Мытье лестничных площадок и маршей нижних 2-х этажей | C17: 24 | D17: раз в месяц | E17: М2 | F17: =F11 -> 135.3 | G17: 4.07 | H17: =ROUND((F17*G17*C17)/1000,5) -> 13.2161 | I17: 13.2161 | J17: =ROUND(F17*G17*K17,2) -> 6608.05 | K17: 12
A18: 2.6.2 | B18: Мытье лестничных площадок и маршей выше 2-го этажа | C18: 24 | D18: раз в месяц | E18: М2 | F18: =F12 -> 135.3 | G18: 3.34 | H18: =ROUND((F18*G18*C18)/1000,5) -> 10.84565 | I18: 10.84565 | J18: =ROUND(F18*G18*K18,2) -> 5422.82 | K18: 12
A19: 2.7 | B19: Мытье окон | C19: 1 | D19: раз в год | E19: М2 | F19: 67.2 | G19: 8.43 | H19: =ROUND((F19*G19*K19)/1000,5) -> 0.5665 | I19: 0.5665 | J19: =ROUND(F19*G19*K19,2) -> 566.5 | K19: 1
A20: 2.8 | B20: Влажная протирка | C20: Х | D20: 0 | E20: 0 | F20: Х | G20: Х | H20: =H21+H22+H23+H24+H25+H26+H27+H28+H29+H30 -> 6.80768 | I20: 6.80768 | J20: =J21+J22+J23+J24+J25+J26+J27+J28+J29+J30 -> 6807.68
A21: 2.8.1 | B21: Влажная протирка стен | C21: 1 | D21: раз в год | E21: М2 | F21: 2052 | G21: 2.81 | H21: =ROUND((F21*G21*K21)/1000,5) -> 5.76612 | I21: 5.76612 | J21: =ROUND(F21*G21*K21,2) -> 5766.12 | K21: 1
A22: 2.8.2 | B22: Влажная протирка плафонов на лестничных клетках | C22: 1 | D22: раз в год | E22: ШТ | F22: 32 | G22: 1.75 | H22: 0.056 | I22: 0.056 | J22: 56 | K22: 1
A23: 2.8.3 | B23: Влажная протирка дверных полотен на лестничных клетках | C23: 1 | D23: раз в год | E23: М2 | F23: 107,2 | G23: 4.1 | H23: 0.43952 | I23: 0.43952 | J23: 439.52 | K23: 1
A24: 2.8.4 | B24: Влажная протирка подоконников | C24: 2 | D24: раз в год | E24: М2 | F24: 5,04 | G24: 4.08 | H24: 0.04113 | I24: 0.04113 | J24: 41.13 | K24: 2
A25: 2.8.5 | B25: Влажная протирка оконных решеток | C25: 1 | D25: раз в год | E25: М2 | F25: 14 | G25: 3.93 | H25: 0.05502 | I25: 0.05502 | J25: 55.02 | K25: 1
A26: 2.8.6 | B26: Влажная протирка чердачных лестниц | C26: 1 | D26: раз в год | E26: М2 | F26: 138,75 | G26: 2.64 | H26: 0.3663 | I26: 0.3663 | J26: 366.3 | K26: 1
A27: 2.8.7 | B27: Влажная протирка отопительных приборов | C27: 2 | D27: раз в год | E27: М2 | F27: 6,4 | G27: 5.07 | H27: 0.0649 | I27: 0.0649 | J27: 64.9 | K27: 2
A28: 2.8.8 | B28: Влажная протирка шкафов для электросчетчиков, слаботочных устройств | C28: 1 | D28: раз в год | E28: М2 | F28: 4 | G28: 2.52 | H28: 0.01008 | I28: 0.01008 | J28: 10.08 | K28: 1
A29: 2.8.9 | B29: Влажная протирка почтовых ящиков | C29: 1 | D29: раз в год | E29: М2 | F29: 4,2 | G29: 2.05 | H29: 0.00861 | I29: 0.00861 | J29: 8.61 | K29: 1
A30: 2.8.10 | B30: Влажная протирка стен, дверей кабины лифта | C30: 0 | D30: раз в месяц | E30: М2 | F30: 0 | G30: 0 | H30: 0
A31: 2.9 | B31: Очистка кровли | C31: Х | D31: 0 | E31: 0 | F31: Х | G31: Х | H31: =H32+H33+H34 -> 100.21242 | I31: =I32+I33+I34 -> 100.21242 | J31: =J32+J33+J34 -> 100212.42
A32: 2.9.1 | B32: Очистка кровли и ее элементов (в том числе козырьков над подъездами) от мусора и листьев | C32: 2 | D32: раз в год | E32: М2 | F32: 1393 | G32: 2.01 | H32: =ROUND(F32*G32*K32/1000,5) -> 5.59986 | I32: =H32 -> 5.59986 | J32: =ROUND(H32*1000,2) -> 5599.86 | K32: 2 | M32: 1393
A33: 2.9.2 | B33: Очистка кровли от снега | C33: 3 | D33: Работа не выполняется | E33: КХ | F33: 1393 | G33: 7.67 | H33: =ROUND(G33*F33*K33/1000,5) -> 32.05293 | I33: =H33 -> 32.05293 | J33: =ROUND(H33*1000,2) -> 32052.93 | K33: 3
A34: 2.9.3 | B34: Очистка кровли от снега и наледеобразований | C34: 3 | D34: Работа не выполняется | E34: КХ | F34: 1393 | G34: 14.97 | H34: =ROUND(G34*F34*K34/1000,5) -> 62.55963 | I34: =H34 -> 62.55963 | J34: =ROUND(H34*1000,2) -> 62559.63 | K34: 3
A35: 2.10 | B35: Смена частей водосточных труб и прочистка внутреннего водостока | C35: Х | D35: 0 | E35: 0 | F35: Х | G35: Х | H35: =H36+H37 -> 0 | I35: =I36+I37 -> 0 | J35: =J36+J37 -> 0
A36: 2.10.1 | B36: Смена частей водосточных труб | C36: 0 | D36: в течение суток после обнаружения | E36: ШТ | F36: 0 | G36: 0 | H36: 0 | I36: 0 | J36: 0
A37: 2.10.2 | B37: Прочистка водоприемной воронки внутреннего водостока | C37: =IF(F37>0,2,0) -> 0 | D37: в течение суток после обнаружения | E37: ШТ | F37: 0 | G37: 0 | H37: =ROUND(G37*F37*C37/1000,5) -> 0 | M37: 580.08
A38: 2.11 | B38: Очистка подвалов и чердаков от мусора | C38: 1 | D38: раз в год | E38: М2 | F38: =L38 -> 1305.18 | G38: 1.65 | H38: =ROUND((F38*G38*K38)/1000,5) -> 2.15355 | I38: =H38 -> 2.15355 | J38: =ROUND(F38*G38*K38,2) -> 2153.55 | K38: 1 | L38: =M37+M38 -> 1305.18 | M38: 725.1
A39: 2.12 | B39: Уборка мусороприемной камеры | C39: 0 | D39: раз в день, кроме праздничных и воскресных дней | E39: М2 | F39: 0 | G39: 0 | H39: =ROUND((F39*G39*K39)/1000,5) -> 0
A40: 2.13 | B40: Ремонт почтовых ящиков, установка, смена замка | C40: 0 | D40: В течении суток с момента получения заявки | E40: КХ | F40: 0 | G40: 0 | H40: =ROUND(G40*F40/1000,5) -> 0 | I40: =H40 -> 0 | J40: =ROUND(H40*1000,2) -> 0
A41: 2.14 | B41: Иное (Работы по содержанию помещений, входящих в состав общего имущества в многоквартирном доме) | C41: Х | D41: 0 | E41: 0 | F41: Х | G41: Х | H41: 0
A42: 3 | B42: Работы по обеспечению вывоза твердых бытовых отходов | H42: =H43+H44 -> 0 | I42: =I43+I44 -> 0 | J42: =J43+J44 -> 0 | Q42: жители | R42: 105
A43: 3.1 | B43: Удаление мусора из мусороприемных камер | C43: 0 | D43: раз в день | E43: М3 | F43: 0 | G43: 0 | H43: =ROUND((F43*G43*K43)/1000,5) -> 0 | N43: =ROUND(R42*1.45/365,3) -> 0.417 | O43: м3 мусора в день | Q43: место мусороприемной камеры
A44: 3.2 | B44: Иное (Работы по обеспечению вывоза твердых бытовых отходов) | C44: 0 | D44: 0 | E44: 0 | F44: 0 | G44: 0 | H44: 0 | J44: =ROUND(H44*1000,2) -> 0
A45: 4 | B45: Работы по обеспечению вывоза крупногабаритного мусора | C45: 0 | D45: 0 | E45: 0 | F45: 0 | G45: 0 | H45: 0 | J45: =ROUND(H45*1000,2) -> 0 | Q45: в цокольном этаже | R45: =IF(R43=Q45,274.83,0) -> 0
A46: 5 | B46: Работы по содержанию и ремонту конструктивных элементов (несущих и ненесущих конструкций) многоквартирных домов | H46: =H47+H53+H63+H68+H77+H85+H98+H103 -> 81.822677 | I46: =I47+I53+I63+I68+I77+I85+I98+I103 -> 81.822677 | J46: =J47+J53+J63+J68+J77+J85+J98+J103 -> 79368 | Q46: в подвале | R46: =IF(R43=Q46,341.86,0) -> 0 | BV46: ррр | CQ46: ррр
A47: 5.1 | B47: Фундамент | H47: =H48+H49+H50+H51+H52 -> 4.09113 | I47: =I48+I49+I50+I51+I52 -> 0 | J47: =J48+J49+J50+J51+J52 -> 4091.13 | R47: =SUM(R45:R46) -> 0
A48: 5.1.1 | B48: Восстановление поврежденных участков фундаментов | C48: 0 | D48: 0 | E48: 0 | F48: 0 | G48: 0 | H48: 0
A49: 5.1.2 | B49: Восстановление гидроизоляции и систем водоотвода фундаментов | C49: 0 | D49: 0 | E49: 0 | F49: 0 | G49: 0 | H49: =ROUND(($I$108*0.03),5) -> 2.45468 | J49: =ROUND(H49*1000,2) -> 2454.68 | K49: 5
A50: 5.1.3 | B50: Восстановление поврежденных участков вентиляционных продухов | C50: 0 | D50: 0 | E50: 0 | F50: 0 | G50: 0 | H50: =ROUND(($I$108*0.02),5) -> 1.63645 | J50: =ROUND(H50*1000,2) -> 1636.45
A51: 5.1.4 | B51: Восстановление поврежденных участков входов в подвалы | C51: 0 | D51: 0 | E51: 0 | F51: 0 | G51: 0 | H51: 0 | J51: =ROUND(H51*1000,2) -> 0
A52: 5.1.5 | B52: Иное (Фундамент) | C52: Х | D52: 0 | E52: 0 | F52: Х | G52: Х | H52: 0 | J52: =ROUND(H52*1000,2) -> 0
A53: 5.2 | B53: Стены и фасад | H53: =H54+H55+H56+H57+H58+H59+H60+H61+H62 -> 5.72759 | I53: =I54+I55+I56+I57+I58+I59+I60+I61+I62 -> 0 | J53: =J54+J55+J56+J57+J58+J59+J60+J61+J62 -> 5727.59
A54: 5.2.1 | B54: Герметизация стыков стен и фасадов | C54: 0 | D54: 0 | E54: 0 | F54: 0 | G54: 0 | H54: 0 | J54: =ROUND(H54*1000,2) -> 0
A55: 5.2.2 | B55: Заделка и восстановление архитектурных элементов | C55: 0 | D55: 0 | E55: 0 | F55: 0 | G55: 0 | H55: 0 | J55: 0
A56: 5.2.3 | B56: Ремонт штукатурки гладких фасадов | C56: 0 | D56: 0 | E56: 0 | F56: 0 | G56: 0 | H56: 0 | J56: 0
A57: 5.2.4 | B57: Окраска, промывка фасадов | C57: 0 | D57: 0 | E57: 0 | F57: 0 | G57: 0 | H57: 0 | J57: 0
A58: 5.2.5 | B58: Восстановление поврежденных участков цоколей | C58: 0 | D58: 0 | E58: 0 | F58: 0 | G58: 0 | H58: 0 | J58: 0
A59: 5.2.6 | B59: Окраска, промывка цоколей | C59: 0 | D59: 0 | E59: 0 | F59: 0 | G59: 0 | H59: =ROUND(($I$108*0.07),5) -> 5.72759 | J59: 5727.59 | K59: 7
A60: 5.2.7 | B60: Смена пластмассового короба домового знака или уличного указателя | C60: 0 | D60: 0 | E60: 0 | F60: 0 | G60: 0 | H60: 0 | J60: 0
A61: 5.2.8 | B61: Восстановление гидроизоляции между цокольной частью здания и стенами | C61: 0 | D61: 0 | E61: 0 | F61: 0 | G61: 0 | H61: 0 | J61: 0
A62: 5.2.9 | B62: Иное (Стены и фасад) | C62: Х | D62: 0 | E62: 0 | F62: Х | G62: Х | H62: 0
A63: 5.3 | B63: Перекрытия | H63: =H64+H65+H66+H67 -> 0 | I63: =I64+I65+I66+I67 -> 0 | J63: =J64+J65+J66+J67 -> 0
A64: 5.3.1 | B64: Частичная смена отдельных деревянных элементов | C64: 0 | D64: 0 | E64: 0 | F64: 0 | G64: 0 | H64: 0 | J64: =ROUND(H64*1000,2) -> 0
A65: 5.3.2 | B65: Заделка швов и трещин | C65: 0 | D65: 0 | E65: 0 | F65: 0 | G65: 0 | H65: 0 | J65: =ROUND(H65*1000,2) -> 0
A66: 5.3.3 | B66: Укрепление и окраска | C66: 0 | D66: 0 | E66: 0 | F66: 0 | G66: 0 | H66: 0 | J66: =ROUND(H66*1000,2) -> 0
A67: 5.3.4 | B67: Иное (Перекрытия) | C67: Х | D67: 0 | E67: 0 | F67: Х | G67: Х | H67: 0
A68: 5.4 | B68: Крыши | H68: =H69+H70+H71+H72+H75+H76 -> 7.36404 | I68: =I69+I70+I71+I72+I75+I76 -> 0 | J68: =J69+J70+J71+J72+J73+J74+J75+J76 -> 7364.04
A69: 5.4.1 | B69: Усиление элементов деревянной стропильной системы, | C69: 0 | D69: 0 | E69: 0 | F69: 0 | G69: 0 | H69: 0 | J69: =ROUND(H69*1000,2) -> 0
A70: 5.4.2 | B70: Устранение неисправностей и ремонт стальных, асбестоцементных и других кровельных покрытий | C70: 0 | D70: 0 | E70: 0 | F70: 0 | G70: 0 | H70: 0 | J70: =ROUND(H70*1000,2) -> 0
A71: 5.4.3 | B71: Разборка и ремонт кровли из рулонных материалов | C71: 0 | D71: 0 | E71: 0 | F71: 0 | G71: 0 | H71: 0 | J71: =ROUND(H71*1000,2) -> 0
A72: 5.4.4 | B72: Ремонт конструкций и элементов крыши | C72: 0 | D72: 0 | E72: 0 | F72: 0 | G72: 0 | H72: 0 | I72: =I73+I74 -> 0 | J72: =J73+J74 -> 0
A73: 5.4.4.1 | B73: Ремонт частей водосточных труб | C73: 0 | D73: 0 | E73: 0 | F73: 0 | G73: 0 | H73: 0 | J73: =ROUND(H73*1000,2) -> 0
A74: 5.4.4.2 | B74: Ремонт металлической парапетной решетки | C74: 0 | D74: 0 | E74: 0 | F74: 0 | G74: 0 | H74: 0 | J74: =ROUND(H74*1000,2) -> 0
A75: 5.4.5 | B75: Окраска конструкций и элементов крыши | C75: 0 | D75: 0 | E75: 0 | F75: 0 | G75: 0 | H75: 0 | J75: =ROUND(H75*1000,2) -> 0
A76: 5.4.6 | B76: Иное (Крыши) | C76: Х | D76: 0 | E76: 0 | F76: Х | G76: Х | H76: =ROUND(($I$108*0.09),5) -> 7.36404 | J76: =ROUND(H76*1000,2) -> 7364.04 | K76: 9
A77: 5.5 | B77: Оконные и дверные заполнения на лестничных клетках и во вспомогательных помещениях общего пользования, входные двери | H77: =H78+H79+H80+H81+H82+H83+H84 -> 11.45518 | I77: =I78+I79+I80+I81+I82+I83+I84 -> 0 | J77: =J78+J79+J80+J81+J82+J83+J84 -> 9000.5
A78: 5.5.1 | B78: Ремонт дверей в помещениях общего пользования | C78: 0 | D78: 0 | E78: 0 | F78: 0 | G78: 0 | H78: =ROUND(($I$108*0.07),5) -> 5.72759 | J78: =ROUND(H78*1000,2) -> 5727.59 | K78: 7
A79: 5.5.2 | B79: Замена дверей в помещениях общего пользования | C79: 0 | D79: 0 | E79: 0 | F79: 0 | G79: 0 | H79: 0 | J79: 0
A80: 5.5.3 | B80: Ремонт или замена входных дверей в подъезды | C80: 0 | D80: 0 | E80: 0 | F80: 0 | G80: 0 | H80: 0 | J80: 0
A81: 5.5.4 | B81: Ремонт окон в помещениях общего пользования | C81: 0 | D81: 0 | E81: 0 | F81: 0 | G81: 0 | H81: =ROUND(($I$108*0.04),5) -> 3.27291 | J81: 3272.91 | K81: 4
A82: 5.5.5 | B82: Замена окон в помещениях общего пользования | C82: 0 | D82: 0 | E82: 0 | F82: 0 | G82: 0 | H82: 0 | J82: 0
A83: 5.5.6 | B83: Установка и текущий ремонт доводчиков | C83: 0 | D83: 0 | E83: 0 | F83: 0 | G83: 0 | H83: 0 | J83: 0
A84: 5.5.7 | B84: Иное (Оконные и дверные заполнения на лестничных клетках и во вспомогательных помещениях общего пользования, входные двери) | C84: Х | D84: 0 | E84: 0 | F84: Х | G84: Х | H84: =ROUND(($I$108*0.03),5) -> 2.45468 | K84: 3
A85: 5.6 | B85: Лестницы, пандусы, крыльца, козырьки над входами в подъезды, подвалы и над балконами верхних этажей | H85: =H86+H87+H88+H89+H90+H91+H92+H93+H94+H95+H96+H97 -> 27.81971 | I85: =I86+I87+I88+I89+I90+I91+I92+I93+I94+I95+I96+I97 -> 0 | J85: =J86+J87+J88+J89+J90+J91+J92+J93+J94+J95+J96+J97 -> 27819.71
A86: 5.6.1 | B86: Восстановление лестницы | C86: 0 | D86: 0 | E86: 0 | F86: 0 | G86: 0 | H86: 0 | J86: =ROUND(H86*1000,2) -> 0
A87: 5.6.2 | B87: Замена лестницы | C87: 0 | D87: 0 | E87: 0 | F87: 0 | G87: 0 | H87: 0 | J87: =ROUND(I87*1000,2) -> 0
A88: 5.6.3 | B88: Восстановление пандуса | C88: 0 | D88: 0 | E88: 0 | F88: 0 | G88: 0 | H88: 0 | J88: =ROUND(H88*1000,2) -> 0
A89: 5.6.4 | B89: Замена пандуса | C89: 0 | D89: 0 | E89: 0 | F89: 0 | G89: 0 | H89: 0 | J89: 0
A90: 5.6.5 | B90: Восстановление крыльца | C90: 0 | D90: 0 | E90: 0 | F90: 0 | G90: 0 | H90: =ROUND(($I$108*0.12),5) -> 9.81872 | J90: 9818.72 | K90: 12
A91: 5.6.6 | B91: Замена крыльца | C91: 0 | D91: 0 | E91: 0 | F91: 0 | G91: 0 | H91: 0 | J91: 0
A92: 5.6.7 | B92: Восстановление козырьков над входами в подъезды, ремонт кровельного покрытия козырьков, ложных балконов | C92: 0 | D92: 0 | E92: 0 | F92: 0 | G92: 0 | H92: 0 | J92: 0
A93: 5.6.8 | B93: Замена козырьков над входами в подъезды | C93: 0 | D93: 0 | E93: 0 | F93: 0 | G93: 0 | H93: 0 | J93: 0
A94: 5.6.9 | B94: Восстановление конструкций над балконами верхних этажей | C94: 0 | D94: 0 | E94: 0 | F94: 0 | G94: 0 | H94: 0 | J94: 0
A95: 5.6.10 | B95: Замена конструкций над балконами верхних этажей | C95: 0 | D95: 0 | E95: 0 | F95: 0 | G95: 0 | H95: 0 | J95: 0
A96: 5.6.11 | B96: Ремонт полов (на лестницах, чердаках, в холлах и подвалах) | C96: 0 | D96: 0 | E96: 0 | F96: 0 | G96: 0 | H96: =ROUND(($I$108*0.16),5) -> 13.09163 | J96: 13091.63 | K96: 16
A97: 5.6.12 | B97: Иное (Лестницы, пандусы, крыльца, козырьки над входами в подъезды, подвалы и над балконами верхних этажей) | C97: 0 | D97: 0 | E97: 0 | F97: 0 | G97: 0 | H97: =ROUND(($I$108*0.06),5) -> 4.90936 | J97: 4909.36 | K97: 6
A98: 5.7 | B98: Внутренняя отделка в подъездах, технических помещениях, и других помещениях общего пользования | H98: =H99+H100+H101+H102 -> 3.27291 | I98: =I99+I100+I101+I102 -> 0 | J98: =J99+J100+J101+J102 -> 3272.91
A99: 5.7.1 | B99: Восстановление отделки стен | C99: 0 | D99: 0 | E99: 0 | F99: 0 | G99: 0 | H99: =ROUND(($I$108*0.04),5) -> 3.27291 | I99: 0 | J99: =ROUND(H99*1000,2) -> 3272.91 | K99: 4 | BV99: ррр
A100: 5.7.2 | B100: Восстановление отделки потолков | C100: 0 | D100: 0 | E100: 0 | F100: 0 | G100: 0 | H100: 0 | J100: =ROUND(H100*1000,2) -> 0
A101: 5.7.3 | B101: Ремонт лестничных клеток | C101: 0 | D101: 0 | E101: 0 | F101: 0 | G101: 0 | H101: 0 | J101: =ROUND(H101*1000,2) -> 0
A102: 5.7.4 | B102: Ремонт технических и вспомогательных помещений | C102: 0 | D102: 0 | E102: 0 | F102: 0 | G102: 0 | H102: 0 | J102: =ROUND(H102*1000,2) -> 0
A103: 5.8 | B103: Ремонт чердаков, подвалов | H103: =H104+H105+H106+H107+H108 -> 22.092117 | I103: =I104+I105+I106+I107+I108 -> 81.822677 | J103: =J104+J105+J106+J107+J108 -> 22092.12
A104: 5.8.1 | B104: Утепление чердачных перекрытий | C104: 0 | D104: 0 | E104: 0 | F104: 0 | G104: 0 | H104: 0 | J104: =ROUND(H104*1000,2) -> 0
A105: 5.8.2 | B105: Утепление трубопроводов в чердачных помещениях | C105: 0 | D105: 0 | E105: 0 | F105: 0 | G105: 0 | H105: 0 | J105: =ROUND(H105*1000,2) -> 0
A106: 5.8.3 | B106: Утепление трубопроводов в подвальных помещениях | C106: 0 | D106: 0 | E106: 0 | F106: 0 | G106: 0 | H106: =ROUND(($I$108*0.065),5) -> 5.31847 | J106: =ROUND(H106*1000,2) -> 5318.47 | K106: 6.5
A107: 5.8.4 | B107: Изготовление новых или ремонт существующих ходовых досок и переходных мостиков на чердаках, в подвалах | C107: 0 | D107: 0 | E107: 0 | F107: 0 | G107: 0 | H107: 0 | J107: =ROUND(H107*1000,2) -> 0
A108: 5.8.5 | B108: Иное (Ремонт чердаков, подвалов) | C108: Х | D108: 0 | E108: 0 | F108: Х | G108: Х | H108: =I108-H47-H53-H63-H68-H77-H85-H98-H106 -> 16.773647 | I108: =J197-I138-H181 -> 81.822677 | J108: =ROUND(H108*1000,2) -> 16773.65
A109: 6 | B109: Работы по содержанию и ремонту оборудования и систем инженерно-технического обеспечения, входящих в состав общего имущества в многоквартирном доме | H109: =H110+H111+H112+H113+H114+H115+H116+H117+H118+H119+H120+H121+H122+H123+H124+H125+H126+H127+H128+H129+H130+H131+H132+H133+H134+H135+H136+H137+H138 -> 291.056553 | I109: =I110+I111+I112+I113+I114+I115+I116+I117+I118+I119+I120+I121+I122+I123+I124+I125+I126+I127+I128+I129+I130+I131+I132+I133+I134+I135+I136+I137+I138 -> 291.055553 | J109: =J110+J111+J112+J113+J114+J115+J116+J117+J118+J119+J120+J121+J122+J123+J124+J125+J126+J127+J128+J129+J130+J131+J132+J133+J134+J135+J136+J137+J138 -> 273624.77 | BV109: ддд | CQ109: ддд
A110: 6.1 | B110: Консервация (расконсервация) поливочной системы | C110: 1 | D110: В ходе подготовки к эксплуатации дома в осенне-зимний период | E110: КХ | F110: 1 | G110: =H110*1000 -> 12451.28 | H110: =ROUND(($I$138*0.05),5) -> 12.45128 | J110: =ROUND(H110*1000,2) -> 12451.28
A111: 6.2 | B111: Ремонт, регулировка, промывка и опрессовка систем центрального отопления, утепление бойлеров | C111: 1 | D111: В ходе подготовки к эксплуатации дома в осенне-зимний период | E111: КХ | F111: 1 | G111: =H111*1000 -> 62256.39 | H111: =ROUND(($I$138*0.25),5) -> 62.25639 | J111: 62256.39
A112: 6.3 | B112: Утепление вентиляционных и дымовых каналов | C112: 0 | D112: В ходе подготовки к эксплуатации дома в осенне-зимний период | E112: КХ | F112: 0 | G112: 0 | H112: 0 | J112: 0
A113: 6.4 | B113: Прочистка вентиляционных и дымовых каналов | C113: 0 | D113: В ходе подготовки к эксплуатации дома в осенне-зимний период | E113: КХ | F113: 0 | G113: 0 | H113: 0 | J113: 0
A114: 6.5 | B114: Ремонт и утепление наружных водоразборных кранов | C114: 0 | D114: В ходе подготовки к эксплуатации дома в осенне-зимний период | E114: КХ | F114: 0 | G114: 0 | H114: 0 | J114: 0
A115: 6.6 | B115: Проведение технических осмотров систем водопровода и канализации, центрального отопления и горячего водоснабжения, электротехнических устройств, вентиляционных каналов | C115: 0 | D115: по мере необходимости | E115: КХ | F115: 0 | G115: 0 | H115: 0 | J115: 0
A116: 6.7 | B116: Устранение неисправностей в системах водопровода и канализации, центрального отопления и горячего водоснабжения, электротехнических устройств, вентиляционных и дымовых каналов | C116: 1 | D116: В ходе подготовки к эксплуатации дома в осенне-зимний период | E116: КХ | F116: 1 | G116: =H116*1000 -> 29883.07 | H116: =ROUND(($I$138*0.12),5) -> 29.88307 | J116: 29883.07
A117: 6.8 | B117: Проверка исправности канализационных вытяжек | C117: 0 | D117: Устранение по мере обнаружения дефектов | E117: КХ | F117: 0 | G117: 0 | H117: 0 | J117: 0
A118: 6.9 | B118: Устранение засора внутреннего канализационного трубопровода | C118: 0 | D118: раз в год | E118: КХ | F118: 0 | G118: 0 | H118: 0 | J118: 0
A119: 6.10 | B119: Регулировка и наладка систем автоматики расширительных баков | C119: =IF(F119>0,1,0) -> 0 | D119: раз в месяц | E119: КХ | F119: 0 | G119: 0 | H119: 0 | I119: 0 | J119: 0
A120: 6.11 | B120: Проверка заземления оболочки электрокабеля, оборудования (насосы, щитовые вентиляторы и др.) | C120: =IF(H120,1,0) -> 0 | D120: раз в год | E120: КХ | F120: =C120 -> 0 | G120: =H120*1000 -> 0 | H120: 0 | I120: 0 | J120: 0
A121: 6.12 | B121: Замеры сопротивления изоляции проводов, трубопроводов и восстановление цепей заземления | C121: 1 | D121: раз в год | E121: КХ | F121: 1 | G121: =H121*1000 -> 42031 | H121: 42.031 | I121: 42.03 | J121: 42031
A122: 6.13 | B122: Поверка общедомовых приборов учета горячего и холодного водоснабжения, отопления, электроснабжения | C122: 0 | D122: В ходе подготовки к эксплуатации дома в осенне-зимний период | E122: КХ | F122: 0 | G122: 0 | H122: 0 | J122: 0
A123: 6.14 | B123: Ремонт общедомовых приборов учета горячего и холодного водоснабжения, отопления, электроснабжения | C123: 0 | D123: В ходе подготовки к эксплуатации дома в осенне-зимний период | E123: КХ | F123: 0 | G123: 0 | H123: 0 | J123: 0
A124: 6.15 | B124: Обслуживание ламп-сигналов | C124: 0 | D124: Работа не выполняется | F124: 0 | G124: 0 | H124: 0 | J124: 0
A125: 6.16 | B125: Замена и восстановление отдельных элементов системы отопления с выполнением наладочных регулировочных работ, ликвидацией непрогревов и неисправностей в квартирах | C125: 1 | D125: В ходе подготовки к эксплуатации дома в осенне-зимний период | E125: КХ | F125: 1 | G125: =H125*1000 -> 37353.83 | H125: =ROUND(($I$138*0.15),5) -> 37.35383 | J125: 37353.83
A126: 6.17 | B126: Замена и восстановление отдельных элементов системы холодного водоснабжения, при необходимости отключение и включение стояков | C126: 1 | D126: В ходе подготовки к эксплуатации дома в осенне-зимний период | E126: КХ | F126: 1 | G126: =H126*1000 -> 27392.81 | H126: =ROUND(($I$138*0.11),5) -> 27.39281 | J126: 27392.81
A127: 6.18 | B127: Замена и восстановление отдельных элементов системы горячего водоснабжения, при необходимости отключение и включение стояков | C127: 0 | D127: В ходе подготовки к эксплуатации дома в осенне-зимний период | E127: КХ | F127: 0 | G127: 0 | H127: 0 | J127: 0
A128: 6.19 | B128: Замена и восстановление отдельных элементов системы канализации, в том числе ликвидация засоров, за исключением внутриквартирного сантехоборудования | C128: 1 | D128: В ходе подготовки к эксплуатации дома в осенне-зимний период | E128: КХ | F128: 1 | G128: =H128*1000 -> 17431.79 | H128: =ROUND(($I$138*0.07),5) -> 17.43179 | J128: 17431.79
A129: 6.20 | B129: Замена и восстановление отдельных элементов внутридомового электрооборудования (за исключением внутриквартирных устройств и приборов) | C129: 1 | D129: В ходе подготовки к эксплуатации дома в осенне-зимний период | E129: КХ | F129: 1 | G129: =H129*1000 -> 44824.6 | H129: =ROUND(($I$138*0.18),5) -> 44.8246 | J129: 44824.6
A130: 6.21 | B130: Гидропневматическая очистка системы отопления | C130: 0 | D130: Работа не выполняется | F130: 0 | G130: 0 | H130: 0 | I130: 0 | J130: 0
A131: 6.22 | B131: Обслуживание и ремонт АУУТЭ | C131: 0 | D131: раз в месяц | E131: КХ | F131: 0 | G131: 0 | H131: 0 | J131: 0
A132: 6.23 | B132: Обслуживание и ремонт АСКУЭ | C132: 0 | D132: раз в месяц | E132: КХ | F132: 0 | G132: 0 | H132: 0 | J132: 0
A133: 6.24 | B133: Обслуживание и ремонт насосных пунктов | C133: 0 | D133: раз в месяц | E133: КХ | F133: 0 | G133: 0 | H133: 0 | J133: 0
A134: 6.25 | B134: Обслуживание и ремонт тепловых пунктов | C134: 0 | D134: Работа не выполняется | F134: 0 | G134: 0 | H134: 0 | I134: 0 | J134: 0
A135: 6.26 | B135: Обслуживание и ремонт крышных газовых котельных | C135: 0 | D135: Работа не выполняется | F135: 0 | G135: 0 | H135: 0 | I135: 0 | J135: 0
A136: 6.27 | B136: Ремонт электрооборудования (эл. щитков, замена АВР (аварийное включение резерва) и др. работы) | C136: 0 | D136: по мере необходимости | E136: КХ | F136: 0 | G136: 0 | H136: 0 | J136: 0
A137: 6.28 | B137: Техническое обслуживание светильников дежурного освещения | C137: 0 | D137: по мере необходимости | E137: КХ | F137: 0 | G137: 0 | H137: 0 | J137: 0
A138: 6.29 | B138: Иное (Работы по содержанию и ремонту оборудования и систем инженерно-технического обеспечения, входящих в состав общего имущества в многоквартирном доме) | C138: Х | D138: 0 | E138: 0 | F138: Х | G138: Х | H138: =I138-H110-H111-H125-H126-H127-H128-H129-H116 -> 17.431783 | I138: =J197*0.7 -> 249.025553 | J138: =ROUND(L19,2) -> 0
A139: 7 | B139: Работы по содержанию и ремонту мусоропроводов в многоквартирном доме | H139: 0 | I139: =I140+I141+I142+I143+I144+I145+I146+I147+I148+I149+I150 -> 0 | J139: =J140+J141+J142+J143+J144+J145+J146+J147+J148+J149+J150 -> 0 | BV139: ммм | CQ139: mmm
A140: 7.1 | B140: Восстановление работоспособности вентиляционных и промывочных устройств, мусороприемных клапанов и шиберных устройств | C140: 0 | D140: В ходе подготовки к эксплуатации дома в осенне-зимний период | E140: КХ | F140: 0 | G140: 0 | H140: 0
A141: 7.2 | B141: Профилактический осмотр мусоропроводов | C141: 0 | D141: В ходе подготовки к эксплуатации дома в осенне-зимний период | E141: КХ | F141: 0 | G141: 0 | H141: 0 | J141: =ROUND(H141*1000,2) -> 0
A142: 7.3 | B142: Видеодиагностика внутренней поверхности асбестоцементных стволов мусоропровода | C142: 0 | D142: В ходе подготовки к эксплуатации дома в осенне-зимний период | E142: КХ | F142: 0 | G142: 0 | H142: 0
A143: 7.4 | B143: Уборка загрузочных клапанов мусоропроводов | C143: 0 | D143: В ходе подготовки к эксплуатации дома в осенне-зимний период | E143: КХ | F143: 0 | G143: 0 | H143: 0
A144: 7.5 | B144: Мойка сменных мусоросборников | C144: 0 | D144: В ходе подготовки к эксплуатации дома в осенне-зимний период | E144: КХ | F144: 0 | G144: 0 | H144: 0
A145: 7.6 | B145: Мойка нижней части ствола и шибера мусоропровода | C145: 0 | D145: В ходе подготовки к эксплуатации дома в осенне-зимний период | E145: КХ | F145: 0 | G145: 0 | H145: 0
A146: 7.7 | B146: Очистка и дезинфекция всех элементов ствола мусоропровода | C146: 0 | D146: В ходе подготовки к эксплуатации дома в осенне-зимний период | E146: КХ | F146: 0 | G146: 0 | H146: 0
A147: 7.8 | B147: Дезинфекция мусоросборников | C147: 0 | D147: В ходе подготовки к эксплуатации дома в осенне-зимний период | E147: КХ | F147: 0 | G147: 0 | H147: 0
A148: 7.9 | B148: Устранение засора | C148: 0 | D148: В ходе подготовки к эксплуатации дома в осенне-зимний период | E148: КХ | F148: 0 | G148: 0 | H148: 0
A149: 7.10 | B149: Мелкий ремонт неисправностей мусоропровода | C149: 0 | D149: В ходе подготовки к эксплуатации дома в осенне-зимний период | E149: КХ | F149: 0 | G149: 0 | H149: 0
A150: 7.11 | B150: Иное (Работы по содержанию и ремонту мусоропроводов в многоквартирном доме) | C150: Х | D150: 0 | E150: 0 | F150: Х | G150: Х | H150: 0
A151: 8 | B151: Работы по содержанию и ремонту лифта (лифтов) в многоквартирном доме | H151: 0 | I151: =I152+I153+I154 -> 0 | J151: =J152+J153+J154 -> 0
A152: 8.1 | B152: Обслуживание лифтов и лифтового оборудования | C152: 0 | D152: Круглосуточно | E152: шт | F152: 0 | G152: 0 | H152: =ROUND((C152*F152*G152/1000),5) -> 0
A153: 8.2 | B153: Организация системы диспетчерского контроля и обеспечение диспетчерской связи с кабиной лифта | C153: 0 | D153: Работа не выполняется | E153: КХ | F153: 0 | G153: 0 | H153: 0
A154: 8.3 | B154: Иное (Работы по содержанию и ремонту лифта (лифтов) в многоквартирном доме) | C154: Х | D154: 0 | E154: 0 | F154: Х | G154: Х | H154: 0
A155: 9 | B155: Работы по обеспечению требований пожарной безопасности | H155: 0 | I155: =I156+I157+I158+I159 -> 0 | J155: =J156+J157+J158+J159 -> 0
A156: 9.1 | B156: Осмотр пожарной сигнализации и средств тушения в домах | C156: 0 | D156: раз в год | E156: КХ | F156: 0 | G156: 0 | H156: 0 | J156: =ROUND(H156*1000,2) -> 0
A157: 9.2 | B157: Обслуживание систем дымоудаления и противопожарной безопасности | C157: =IF(F157>0,12,0) -> 0 | D157: Круглосуточно | E157: шт | F157: =IF(J157>0,F152,0) -> 0 | G157: =IF(F157>0,J157/C157/F157,0) -> 0 | H157: =ROUND((C157*F157*G157/1000),5) -> 0 | I157: 0 | J157: =ROUND(H157*1000,2) -> 0
A158: 9.3 | B158: Замена и восстановление работоспособности элементов пожаротушения (трубопроводов, включая ввод и стояки пожарного водопровода) | C158: 0 | D158: в течение суток после обнаружения | E158: КХ | F158: 0 | G158: 0 | H158: 0 | J158: =ROUND(H158*1000,2) -> 0
A159: 9.4 | B159: Иное (Работы по обеспечению требований пожарной безопасности) | C159: Х | D159: 0 | E159: 0 | F159: Х | G159: Х | H159: 0
A160: 10 | B160: Работы по содержанию и ремонту систем вентиляции | H160: =H161+H162+H163+H164 -> 0 | I160: =I161+I162+I163+I164 -> 0 | J160: =J161+J162+J163+J164 -> 0
A161: 10.1 | B161: Проверка наличия тяги в дымоходах, вентиляционных каналах | C161: 0 | F161: 0 | G161: 0 | H161: 0 | J161: =ROUND(H161*1000,2) -> 0
A162: 10.2 | B162: Регулировка и наладка систем вентиляции | C162: 0 | F162: 0 | G162: 0 | H162: 0 | J162: =ROUND(H162*1000,2) -> 0
A163: 10.3 | B163: Замена и восстановление работоспособности отдельных общедомовых элементов | C163: 0 | F163: 0 | G163: 0 | H163: 0 | I163: 0 | J163: =ROUND(H163*1000,2) -> 0
A164: 10.4 | B164: Иное (Работы по содержанию и ремонту систем вентиляции) | C164: Х | D164: 0 | E164: 0 | F164: Х | G164: Х | H164: 0
A165: 11 | B165: Работы по содержанию и ремонту систем внутридомового газового оборудования | H165: =H166+H167+H168 -> 22.35 | I165: =I166+I167+I168 -> 22.35 | J165: =J166+J167+J168 -> 22350
A166: 11.1 | B166: Проверка состояния системы внутридомового газового оборудования и ее отдельных элементов | C166: =IF(H166>0,1,0) -> 1 | D166: раз в год | E166: шт | F166: =IF(H166>0,1,0) -> 1 | G166: =J166 -> 22350 | H166: 22.35 | I166: 22.35 | J166: =ROUND(H166*1000,2) -> 22350
A167: 11.2 | B167: Замена и восстановление работоспособности отдельных элементов системы внутридомового газового оборудования | C167: 0 | D167: по мере необходимости | E167: шт | F167: 0 | G167: 0 | H167: 0 | J167: =ROUND(H167*1000,2) -> 0
A168: 11.3 | B168: Иное (Работы по содержанию и ремонту систем внутридомового газового оборудования) | C168: Х | D168: 0 | E168: 0 | F168: Х | G168: Х | H168: 0
A169: 12 | B169: Обеспечение устранения аварий на внутридомовых инженерных системах в многоквартирном доме | H169: =H170+H171+H172 -> 41.149 | I169: =I170+I171+I172 -> 41.15 | J169: =J170+J171+J172 -> 41149
A170: 12.1 | B170: Устранение аварии | C170: 1 | D170: Незамедлительное реагирование с момента получения заявки | E170: КХ | F170: 1 | G170: =J170 -> 41149 | H170: 41.149 | I170: 41.15 | J170: =ROUND(H170*1000,2) -> 41149
A171: 12.2 | B171: Выполнение заявок населения | C171: =IF(H171>0,1,0) -> 0 | D171: Незамедлительное реагирование с момента получения заявки | E171: КХ | F171: =IF(H171>0,1,0) -> 0 | G171: =J171 -> 0 | H171: 0 | I171: 0 | J171: =ROUND(H171*1000,2) -> 0
A172: 12.3 | B172: Иное (Обеспечение устранения аварий на внутридомовых инженерных системах в многоквартирном доме) | C172: Х | D172: 0 | E172: 0 | F172: Х | G172: Х | H172: 0
A173: 13 | B173: Расход электроэнергии, потребленной на дежурное освещение мест общего пользования и работу лифтов (общедомовые нужды) | H173: 2.19 | I173: 2.19 | J173: =ROUND(H173*1000,2) -> 2190
A174: 14 | B174: Расход воды на общедомовые нужды | H174: 19.041 | I174: 19.04 | J174: =ROUND(H174*1000,2) -> 19041
A175: 15 | B175: Проведение дератизации и дезинсекции помещений, входящих в состав общего имущества в многоквартирном доме | H175: =H176+H177 -> 0 | I175: =I176+I177 -> 3.64 | J175: =J176+J177 -> 0
A176: 15.1 | B176: Дератизация | C176: 0 | D176: раз в год | E176: КХ | F176: 0 | G176: 0 | H176: 0 | I176: 0 | J176: =ROUND(H176*1000,2) -> 0
A177: 15.2 | B177: Дезинсекция | C177: =IF(H177>0,1,0) -> 0 | D177: Незамедлительное реагирование с момента получения заявки | E177: КХ | F177: =IF(H177>0,1,0) -> 0 | G177: =J177 -> 0 | H177: 0 | I177: 3.64 | J177: =ROUND(H177*1000,2) -> 0
A178: 16 | B178: Прочие работы и услуги по содержанию и ремонту общего имущества в многоквартирном доме | H178: =H179+H180+H181 -> 24.90256 | I178: =I179+I180+I181 -> 53.5 | J178: =J179+J180+J181 -> 24902.56
A179: 16.1 | B179: Техническая инвентаризация | C179: 0 | D179: раз в год | E179: КХ | F179: 0 | G179: 0 | H179: 0 | I179: 0 | J179: =ROUND(H179*1000,2) -> 0
A180: 16.2 | B180: Техническое обслуживание систем дистанционного снятия показаний индивидуальных приборов учета (водопотребления и электроэнергии) | C180: 0 | D180: Работа не выполняется | F180: 0 | G180: 0 | H180: 0 | I180: 0 | J180: =ROUND(H180*1000,2) -> 0
A181: 16.3 | B181: Иное (Прочие работы и услуги по содержанию и ремонту общего имущества в многоквартирном доме) | C181: Х | D181: 0 | E181: 0 | F181: Х | G181: Х | H181: =ROUND((J197*0.07),5) -> 24.90256 | I181: 53.5 | J181: =ROUND(H181*1000,2) -> 24902.56
A182: 17 | B182: Работы по содержанию земельного участка с элементами озеленения и благоустройства, иными объектами, предназначенными для обслуживания и эксплуатации многоквартирного дома | H182: 0
A183: 17.1 | B183: Подметание земельного участка в летний период | C183: 0 | D183: Работа не выполняется | F183: 0 | G183: 0 | H183: 0
A184: 17.2 | B184: Полив тротуаров | C184: 0 | D184: Работа не выполняется | F184: 0 | G184: 0 | H184: 0
A185: 17.3 | B185: Уборка мусора с газона, очистка урн | C185: 0 | D185: Работа не выполняется | F185: 0 | G185: 0 | H185: 0
A186: 17.4 | B186: Уборка мусора на контейнерных площадках | C186: 0 | D186: Работа не выполняется | F186: 0 | G186: 0 | H186: 0
A187: 17.5 | B187: Полив газонов | C187: 0 | D187: Работа не выполняется | F187: 0 | G187: 0 | H187: 0
A188: 17.6 | B188: Стрижка газонов | C188: 0 | D188: Работа не выполняется | F188: 0 | G188: 0 | H188: 0
A189: 17.7 | B189: Подрезка деревьев и кустов | C189: 0 | D189: Работа не выполняется | F189: 0 | G189: 0 | H189: 0
A190: 17.8 | B190: Очистка и ремонт детских и спортивных площадок, элементов благоустройства | C190: 0 | D190: Работа не выполняется | F190: 0 | G190: 0 | H190: 0
A191: 17.9 | B191: Сдвижка и подметание снега | C191: 0 | D191: Работа не выполняется | F191: 0 | G191: 0 | H191: 0
A192: 17.10 | B192: Ликвидация скользкости | C192: 0 | D192: Работа не выполняется | F192: 0 | G192: 0 | H192: 0
A193: 17.11 | B193: Иное (Работы по содержанию земельного участка с элементами озеленения и благоустройства, иными объектами, предназначенными для обслуживания и эксплуатации многоквартирного дома) | C193: Х | D193: 0 | E193: 0 | F193: Х | G193: Х | H193: 0
B194: ИТОГО РАСХОДОВ | H194: =H9+H10+H42+H45+H46+H109+H151+H155+H160+H165+H169+H173+H174+H175+H178+H182+H139 -> 848.42346 | I194: =I10+I9+I42+I46+I109+I139+I151+I155+I160+I165+I169+I173+I174+I175+I178+I45 -> 880.6599 | J194: =J10+J9+J42+J46+J109+J139+J151+J155+J160+J165+J169+J173+J174+J175+J178+J45 -> 425573.48
B195: Всего ПНР | H195: 848.42346 | I195: =J195/1000 -> 954.2991 | J195: 954299.1
I196: =I194 -> 880.6599 | J196: 0
G197: разница | H197: =H195-H194 -> 0 | I197: =I195-I196 -> 73.6392 | J197: 355.75079
H198: =H9+H10+H42+H45+H46+H109+H139+H151+H155+H160+H165+H169+H173+H174+H175+H178+H182 -> 848.42346
H201: =H195-H194 -> 0 | I201: =I199-I209 -> 0
A206: Директор ГБУ «Жилищник Красносельского района» | H206: Г.Б.Бобкова

Sheet Ананьевский пер. 5 стр.7
A1: Фактические затраты по проведению работ (оказанию услуг) на 2017 год
A2: по содержанию и ремонту общего имущества многоквартирного дома
A3: и предоставлению коммунальных услуг по адресу:
A4: Ананьевский пер. 5 стр.7
A7: № п/п | B7: Наименование работ (услуг)* | C7: Фактическая периодичность работ (услуг) | E7: Ед.измер. работ (услуг) | F7: Фактическое количество /объем | G7: Фактическая стоимость за единицу работ (услуг), руб. | H7: Фактическая стоимость в год за работы (услуги), тыс. руб. для портала | I7: Фактическая стоимость в год за работы (услуги), тыс. руб. расчетная | J7: Фактическая стоимость в год за работы (услуги), руб. | L7: =H111 -> 31.28612
A8: 1 | B8: 2 | C8: 3 | E8: 4 | F8: 4 | G8: 5 | H8: 6 | I8: 7
A9: 1 | B9: Работы (услуги) по управлению многоквартирным домом | H9: 74.28 | I9: 74.28 | J9: =ROUND(H9*1000,2) -> 74280 | BV9: ттт
A10: 2 | B10: Работы по содержанию помещений, входящих в состав общего имущества в многоквартирном доме | H10: =H11+H12+H13+H14+H15+H16+H19+H20+H31+H35+H38+H39 -> 130.83815 | I10: =I11+I12+I13+I14+I15+I16+I20+I31+I35+I38+I39+I40+I41+I19 -> 130.83815 | J10: =J11+J12+J13+J14+J15+J16+J20+J31+J35+J38+J39+J40+J41+J19 -> 118828.75
A11: 2.1 | B11: Влажное подметание лестничных площадок и маршей нижних 2 этажей | C11: 299 | D11: раз в день, кроме праздничных и воскресных дней | E11: М2 | F11: 77.5 | G11: 1.67 | H11: =ROUND((F11*G11*K11)/1000,5) -> 38.69808 | I11: =H11 -> 38.69808 | J11: =ROUND(F11*G11*K11,2) -> 38698.08 | K11: 299
A12: 2.2 | B12: Влажное подметание лестничных площадок и маршей выше 2-го этажа | C12: 104 | D12: раз в неделю | E12: М2 | F12: 77.5 | G12: 1.27 | H12: =ROUND((F12*G12*C12)/1000,5) -> 10.2362 | I12: =H12 -> 10.2362 | J12: =ROUND(F12*G12*K12,2) -> 5118.1 | K12: 52
A13: 2.3 | B13: Влажное подметание перед загрузочными клапанами мусоропроводов | C13: 0 | D13: раз в день, кроме праздничных и воскресных дней | E13: М2 | F13: 0 | G13: 0 | H13: =ROUND((F13*G13*K13)/1000,5) -> 0
A14: 2.4 | B14: Уборка загрузочных клапанов мусоропровода | C14: 0 | D14: раз в неделю | E14: ШТ | F14: 0 | G14: 0 | H14: =ROUND((F14*G14*K14)/1000,5) -> 0
A15: 2.5 | B15: Мытье пола кабины лифта | C15: 0 | D15: раз в день, кроме праздничных и воскресных дней | E15: М2 | F15: 0 | G15: 0 | H15: =ROUND((F15*G15*K15)/1000,5) -> 0
A16: 2.6 | B16: Мытье лестничных площадок | C16: Х | D16: 0 | E16: 0 | F16: Х | G16: Х | H16: =H17+H18 -> 13.7826 | I16: =H16 -> 13.7826 | J16: =J17+J18 -> 6891.3
A17: 2.6.1 | B17: Мытье лестничных площадок и маршей нижних 2-х этажей | C17: 24 | D17: раз в месяц | E17: М2 | F17: =F11 -> 77.5 | G17: 4.07 | H17: =ROUND((F17*G17*C17)/1000,5) -> 7.5702 | I17: 7.5702 | J17: =ROUND(F17*G17*K17,2) -> 3785.1 | K17: 12
A18: 2.6.2 | B18: Мытье лестничных площадок и маршей выше 2-го этажа | C18: 24 | D18: раз в месяц | E18: М2 | F18: =F12 -> 77.5 | G18: 3.34 | H18: =ROUND((F18*G18*C18)/1000,5) -> 6.2124 | I18: 6.2124 | J18: =ROUND(F18*G18*K18,2) -> 3106.2 | K18: 12
A19: 2.7 | B19: Мытье окон | C19: 1 | D19: раз в год | E19: М2 | F19: 33.6 | G19: 8.43 | H19: =ROUND((F19*G19*K19)/1000,5) -> 0.28325 | I19: 0.28325 | J19: =ROUND(F19*G19*K19,2) -> 283.25 | K19: 1
A20: 2.8 | B20: Влажная протирка | C20: Х | D20: 0 | E20: 0 | F20: Х | G20: Х | H20: =H21+H22+H23+H24+H25+H26+H27+H28+H29+H30 -> 11.02892 | I20: 11.02892 | J20: =J21+J22+J23+J24+J25+J26+J27+J28+J29+J30 -> 11028.92
A21: 2.8.1 | B21: Влажная протирка стен | C21: 1 | D21: раз в год | E21: М2 | F21: 3604.67 | G21: 2.81 | H21: =ROUND((F21*G21*K21)/1000,5) -> 10.12912 | I21: 10.12912 | J21: =ROUND(F21*G21*K21,2) -> 10129.12 | K21: 1
A22: 2.8.2 | B22: Влажная протирка плафонов на лестничных клетках | C22: 1 | D22: раз в год | E22: ШТ | F22: 16 | G22: 1.75 | H22: 0.028 | I22: 0.028 | J22: 28 | K22: 1
A23: 2.8.3 | B23: Влажная протирка дверных полотен на лестничных клетках | C23: 1 | D23: раз в год | E23: М2 | F23: 53,6 | G23: 4.1 | H23: 0.21976 | I23: 0.21976 | J23: 219.76 | K23: 1
A24: 2.8.4 | B24: Влажная протирка подоконников | C24: 2 | D24: раз в год | E24: М2 | F24: 2,52 | G24: 4.08 | H24: 0.02056 | I24: 0.02056 | J24: 20.56 | K24: 2
A25: 2.8.5 | B25: Влажная протирка оконных решеток | C25: 1 | D25: раз в год | E25: М2 | F25: 7 | G25: 3.93 | H25: 0.02751 | I25: 0.02751 | J25: 27.51 | K25: 1
A26: 2.8.6 | B26: Влажная протирка чердачных лестниц | C26: 1 | D26: раз в год | E26: М2 | F26: 174.64 | G26: 2.64 | H26: 0.46105 | I26: 0.46105 | J26: 461.05 | K26: 1
A27: 2.8.7 | B27: Влажная протирка отопительных приборов | C27: 2 | D27: раз в год | E27: М2 | F27: 12,8 | G27: 5.07 | H27: 0.12979 | I27: 0.12979 | J27: 129.79 | K27: 2
A28: 2.8.8 | B28: Влажная протирка шкафов для электросчетчиков, слаботочных устройств | C28: 1 | D28: раз в год | E28: М2 | F28: 3,5 | G28: 2.52 | H28: 0.00882 | I28: 0.00882 | J28: 8.82 | K28: 1
A29: 2.8.9 | B29: Влажная протирка почтовых ящиков | C29: 1 | D29: раз в год | E29: М2 | F29: 2,1 | G29: 2.05 | H29: 0.00431 | I29: 0.00431 | J29: 4.31 | K29: 1
A30: 2.8.10 | B30: Влажная протирка стен, дверей кабины лифта | C30: 0 | D30: раз в месяц | E30: М2 | F30: 0 | G30: 0 | H30: 0
A31: 2.9 | B31: Очистка кровли | C31: Х | D31: 0 | E31: 0 | F31: Х | G31: Х | H31: =H32+H33+H34 -> 55.82544 | I31: =I32+I33+I34 -> 55.82544 | J31: =J32+J33+J34 -> 55825.44
A32: 2.9.1 | B32: Очистка кровли и ее элементов (в том числе козырьков над подъездами) от мусора и листьев | C32: 2 | D32: раз в год | E32: М2 | F32: 776 | G32: 2.01 | H32: =ROUND(F32*G32*K32/1000,5) -> 3.11952 | I32: =H32 -> 3.11952 | J32: =ROUND(H32*1000,2) -> 3119.52 | K32: 2 | M32: 776
A33: 2.9.2 | B33: Очистка кровли от снега | C33: 3 | D33: Работа не выполняется | E33: КХ | F33: 776 | G33: 7.67 | H33: =ROUND(G33*F33*K33/1000,5) -> 17.85576 | I33: =H33 -> 17.85576 | J33: =ROUND(H33*1000,2) -> 17855.76 | K33: 3
A34: 2.9.3 | B34: Очистка кровли от снега и наледеобразований | C34: 3 | D34: Работа не выполняется | E34: КХ | F34: 776 | G34: 14.97 | H34: =ROUND(G34*F34*K34/1000,5) -> 34.85016 | I34: =H34 -> 34.85016 | J34: =ROUND(H34*1000,2) -> 34850.16 | K34: 3
A35: 2.10 | B35: Смена частей водосточных труб и прочистка внутреннего водостока | C35: Х | D35: 0 | E35: 0 | F35: Х | G35: Х | H35: =H36+H37 -> 0 | I35: =I36+I37 -> 0 | J35: =J36+J37 -> 0
A36: 2.10.1 | B36: Смена частей водосточных труб | C36: 0 | D36: в течение суток после обнаружения | E36: ШТ | F36: 0 | G36: 0 | H36: 0 | I36: 0 | J36: 0
A37: 2.10.2 | B37: Прочистка водоприемной воронки внутреннего водостока | C37: =IF(F37>0,2,0) -> 0 | D37: в течение суток после обнаружения | E37: ШТ | F37: 0 | G37: 0 | H37: =ROUND(G37*F37*C37/1000,5) -> 0 | M37: 264.96
A38: 2.11 | B38: Очистка подвалов и чердаков от мусора | C38: 1 | D38: раз в год | E38: М2 | F38: =L38 -> 596.16 | G38: 1.65 | H38: =ROUND((F38*G38*K38)/1000,5) -> 0.98366 | I38: =H38 -> 0.98366 | J38: =ROUND(F38*G38*K38,2) -> 983.66 | K38: 1 | L38: =M37+M38 -> 596.16 | M38: 331.2
A39: 2.12 | B39: Уборка мусороприемной камеры | C39: 0 | D39: раз в день, кроме праздничных и воскресных дней | E39: М2 | F39: 0 | G39: 0 | H39: =ROUND((F39*G39*K39)/1000,5) -> 0
A40: 2.13 | B40: Ремонт почтовых ящиков, установка, смена замка | C40: 0 | D40: В течении суток с момента получения заявки | E40: КХ | F40: 0 | G40: 0 | H40: =ROUND(G40*F40/1000,5) -> 0 | I40: =H40 -> 0 | J40: =ROUND(H40*1000,2) -> 0
A41: 2.14 | B41: Иное (Работы по содержанию помещений, входящих в состав общего имущества в многоквартирном доме) | C41: Х | D41: 0 | E41: 0 | F41: Х | G41: Х | H41: 0
A42: 3 | B42: Работы по обеспечению вывоза твердых бытовых отходов | H42: =H43+H44 -> 0 | I42: =I43+I44 -> 0 | J42: =J43+J44 -> 0 | Q42: жители | R42: 66
A43: 3.1 | B43: Удаление мусора из мусороприемных камер | C43: 0 | D43: раз в день | E43: М3 | F43: 0 | G43: 0 | H43: =ROUND((F43*G43*K43)/1000,5) -> 0 | N43: =ROUND(R42*1.45/365,3) -> 0.262 | O43: м3 мусора в день | Q43: место мусороприемной камеры
A44: 3.2 | B44: Иное (Работы по обеспечению вывоза твердых бытовых отходов) | C44: 0 | D44: 0 | E44: 0 | F44: 0 | G44: 0 | H44: 0 | J44: =ROUND(H44*1000,2) -> 0
A45: 4 | B45: Работы по обеспечению вывоза крупногабаритного мусора | C45: 0 | D45: 0 | E45: 0 | F45: 0 | G45: 0 | H45: 0 | J45: =ROUND(H45*1000,2) -> 0 | Q45: в цокольном этаже | R45: =IF(R43=Q45,274.83,0) -> 0
A46: 5 | B46: Работы по содержанию и ремонту конструктивных элементов (несущих и ненесущих конструкций) многоквартирных домов | H46: =H47+H53+H63+H68+H77+H85+H98+H103 -> 41.118893 | I46: =I47+I53+I63+I68+I77+I85+I98+I103 -> 41.118893 | J46: =J47+J53+J63+J68+J77+J85+J98+J103 -> 39885.32 | Q46: в подвале | R46: =IF(R43=Q46,341.86,0) -> 0 | BV46: ррр | CQ46: ррр
A47: 5.1 | B47: Фундамент | H47: =H48+H49+H50+H51+H52 -> 2.05595 | I47: =I48+I49+I50+I51+I52 -> 0 | J47: =J48+J49+J50+J51+J52 -> 2055.95 | R47: =SUM(R45:R46) -> 0
A48: 5.1.1 | B48: Восстановление поврежденных участков фундаментов | C48: 0 | D48: 0 | E48: 0 | F48: 0 | G48: 0 | H48: 0
A49: 5.1.2 | B49: Восстановление гидроизоляции и систем водоотвода фундаментов | C49: 0 | D49: 0 | E49: 0 | F49: 0 | G49: 0 | H49: =ROUND(($I$108*0.03),5) -> 1.23357 | J49: =ROUND(H49*1000,2) -> 1233.57 | K49: 5
A50: 5.1.3 | B50: Восстановление поврежденных участков вентиляционных продухов | C50: 0 | D50: 0 | E50: 0 | F50: 0 | G50: 0 | H50: =ROUND(($I$108*0.02),5) -> 0.82238 | J50: =ROUND(H50*1000,2) -> 822.38
A51: 5.1.4 | B51: Восстановление поврежденных участков входов в подвалы | C51: 0 | D51: 0 | E51: 0 | F51: 0 | G51: 0 | H51: 0 | J51: =ROUND(H51*1000,2) -> 0
A52: 5.1.5 | B52: Иное (Фундамент) | C52: Х | D52: 0 | E52: 0 | F52: Х | G52: Х | H52: 0 | J52: =ROUND(H52*1000,2) -> 0
A53: 5.2 | B53: Стены и фасад | H53: =H54+H55+H56+H57+H58+H59+H60+H61+H62 -> 2.87832 | I53: =I54+I55+I56+I57+I58+I59+I60+I61+I62 -> 0 | J53: =J54+J55+J56+J57+J58+J59+J60+J61+J62 -> 2878.32
A54: 5.2.1 | B54: Герметизация стыков стен и фасадов | C54: 0 | D54: 0 | E54: 0 | F54: 0 | G54: 0 | H54: 0 | J54: =ROUND(H54*1000,2) -> 0
A55: 5.2.2 | B55: Заделка и восстановление архитектурных элементов | C55: 0 | D55: 0 | E55: 0 | F55: 0 | G55: 0 | H55: 0 | J55: 0
A56: 5.2.3 | B56: Ремонт штукатурки гладких фасадов | C56: 0 | D56: 0 | E56: 0 | F56: 0 | G56: 0 | H56: 0 | J56: 0
A57: 5.2.4 | B57: Окраска, промывка фасадов | C57: 0 | D57: 0 | E57: 0 | F57: 0 | G57: 0 | H57: 0 | J57: 0
A58: 5.2.5 | B58: Восстановление поврежденных участков цоколей | C58: 0 | D58: 0 | E58: 0 | F58: 0 | G58: 0 | H58: 0 | J58: 0
A59: 5.2.6 | B59: Окраска, промывка цоколей | C59: 0 | D59: 0 | E59: 0 | F59: 0 | G59: 0 | H59: =ROUND(($I$108*0.07),5) -> 2.87832 | J59: 2878.32 | K59: 7
A60: 5.2.7 | B60: Смена пластмассового короба домового знака или уличного указателя | C60: 0 | D60: 0 | E60: 0 | F60: 0 | G60: 0 | H60: 0 | J60: 0
A61: 5.2.8 | B61: Восстановление гидроизоляции между цокольной частью здания и стенами | C61: 0 | D61: 0 | E61: 0 | F61: 0 | G61: 0 | H61: 0 | J61: 0
A62: 5.2.9 | B62: Иное (Стены и фасад) | C62: Х | D62: 0 | E62: 0 | F62: Х | G62: Х | H62: 0
A63: 5.3 | B63: Перекрытия | H63: =H64+H65+H66+H67 -> 0 | I63: =I64+I65+I66+I67 -> 0 | J63: =J64+J65+J66+J67 -> 0
A64: 5.3.1 | B64: Частичная смена отдельных деревянных элементов | C64: 0 | D64: 0 | E64: 0 | F64: 0 | G64: 0 | H64: 0 | J64: =ROUND(H64*1000,2) -> 0
A65: 5.3.2 | B65: Заделка швов и трещин | C65: 0 | D65: 0 | E65: 0 | F65: 0 | G65: 0 | H65: 0 | J65: =ROUND(H65*1000,2) -> 0
A66: 5.3.3 | B66: Укрепление и окраска | C66: 0 | D66: 0 | E66: 0 | F66: 0 | G66: 0 | H66: 0 | J66: =ROUND(H66*1000,2) -> 0
A67: 5.3.4 | B67: Иное (Перекрытия) | C67: Х | D67: 0 | E67: 0 | F67: Х | G67: Х | H67: 0
A68: 5.4 | B68: Крыши | H68: =H69+H70+H71+H72+H75+H76 -> 3.7007 | I68: =I69+I70+I71+I72+I75+I76 -> 0 | J68: =J69+J70+J71+J72+J73+J74+J75+J76 -> 3700.7
A69: 5.4.1 | B69: Усиление элементов деревянной стропильной системы, | C69: 0 | D69: 0 | E69: 0 | F69: 0 | G69: 0 | H69: 0 | J69: =ROUND(H69*1000,2) -> 0
A70: 5.4.2 | B70: Устранение неисправностей и ремонт стальных, асбестоцементных и других кровельных покрытий | C70: 0 | D70: 0 | E70: 0 | F70: 0 | G70: 0 | H70: 0 | J70: =ROUND(H70*1000,2) -> 0
A71: 5.4.3 | B71: Разборка и ремонт кровли из рулонных материалов | C71: 0 | D71: 0 | E71: 0 | F71: 0 | G71: 0 | H71: 0 | J71: =ROUND(H71*1000,2) -> 0
A72: 5.4.4 | B72: Ремонт конструкций и элементов крыши | C72: 0 | D72: 0 | E72: 0 | F72: 0 | G72: 0 | H72: 0 | I72: =I73+I74 -> 0 | J72: =J73+J74 -> 0
A73: 5.4.4.1 | B73: Ремонт частей водосточных труб | C73: 0 | D73: 0 | E73: 0 | F73: 0 | G73: 0 | H73: 0 | J73: =ROUND(H73*1000,2) -> 0
A74: 5.4.4.2 | B74: Ремонт металлической парапетной решетки | C74: 0 | D74: 0 | E74: 0 | F74: 0 | G74: 0 | H74: 0 | J74: =ROUND(H74*1000,2) -> 0
A75: 5.4.5 | B75: Окраска конструкций и элементов крыши | C75: 0 | D75: 0 | E75: 0 | F75: 0 | G75: 0 | H75: 0 | J75: =ROUND(H75*1000,2) -> 0
A76: 5.4.6 | B76: Иное (Крыши) | C76: Х | D76: 0 | E76: 0 | F76: Х | G76: Х | H76: =ROUND(($I$108*0.09),5) -> 3.7007 | J76: =ROUND(H76*1000,2) -> 3700.7 | K76: 9
A77: 5.5 | B77: Оконные и дверные заполнения на лестничных клетках и во вспомогательных помещениях общего пользования, входные двери | H77: =H78+H79+H80+H81+H82+H83+H84 -> 5.75665 | I77: =I78+I79+I80+I81+I82+I83+I84 -> 0 | J77: =J78+J79+J80+J81+J82+J83+J84 -> 4523.08
A78: 5.5.1 | B78: Ремонт дверей в помещениях общего пользования | C78: 0 | D78: 0 | E78: 0 | F78: 0 | G78: 0 | H78: =ROUND(($I$108*0.07),5) -> 2.87832 | J78: =ROUND(H78*1000,2) -> 2878.32 | K78: 7
A79: 5.5.2 | B79: Замена дверей в помещениях общего пользования | C79: 0 | D79: 0 | E79: 0 | F79: 0 | G79: 0 | H79: 0 | J79: 0
A80: 5.5.3 | B80: Ремонт или замена входных дверей в подъезды | C80: 0 | D80: 0 | E80: 0 | F80: 0 | G80: 0 | H80: 0 | J80: 0
A81: 5.5.4 | B81: Ремонт окон в помещениях общего пользования | C81: 0 | D81: 0 | E81: 0 | F81: 0 | G81: 0 | H81: =ROUND(($I$108*0.04),5) -> 1.64476 | J81: 1644.76 | K81: 4
A82: 5.5.5 | B82: Замена окон в помещениях общего пользования | C82: 0 | D82: 0 | E82: 0 | F82: 0 | G82: 0 | H82: 0 | J82: 0
A83: 5.5.6 | B83: Установка и текущий ремонт доводчиков | C83: 0 | D83: 0 | E83: 0 | F83: 0 | G83: 0 | H83: 0 | J83: 0
A84: 5.5.7 | B84: Иное (Оконные и дверные заполнения на лестничных клетках и во вспомогательных помещениях общего пользования, входные двери) | C84: Х | D84: 0 | E84: 0 | F84: Х | G84: Х | H84: =ROUND(($I$108*0.03),5) -> 1.23357 | K84: 3
A85: 5.6 | B85: Лестницы, пандусы, крыльца, козырьки над входами в подъезды, подвалы и над балконами верхних этажей | H85: =H86+H87+H88+H89+H90+H91+H92+H93+H94+H95+H96+H97 -> 13.98042 | I85: =I86+I87+I88+I89+I90+I91+I92+I93+I94+I95+I96+I97 -> 0 | J85: =J86+J87+J88+J89+J90+J91+J92+J93+J94+J95+J96+J97 -> 13980.42
A86: 5.6.1 | B86: Восстановление лестницы | C86: 0 | D86: 0 | E86: 0 | F86: 0 | G86: 0 | H86: 0 | J86: =ROUND(H86*1000,2) -> 0
A87: 5.6.2 | B87: Замена лестницы | C87: 0 | D87: 0 | E87: 0 | F87: 0 | G87: 0 | H87: 0 | J87: =ROUND(I87*1000,2) -> 0
A88: 5.6.3 | B88: Восстановление пандуса | C88: 0 | D88: 0 | E88: 0 | F88: 0 | G88: 0 | H88: 0 | J88: =ROUND(H88*1000,2) -> 0
A89: 5.6.4 | B89: Замена пандуса | C89: 0 | D89: 0 | E89: 0 | F89: 0 | G89: 0 | H89: 0 | J89: 0
A90: 5.6.5 | B90: Восстановление крыльца | C90: 0 | D90: 0 | E90: 0 | F90: 0 | G90: 0 | H90: =ROUND(($I$108*0.12),5) -> 4.93427 | J90: 4934.27 | K90: 12
A91: 5.6.6 | B91: Замена крыльца | C91: 0 | D91: 0 | E91: 0 | F91: 0 | G91: 0 | H91: 0 | J91: 0
A92: 5.6.7 | B92: Восстановление козырьков над входами в подъезды, ремонт кровельного покрытия козырьков, ложных балконов | C92: 0 | D92: 0 | E92: 0 | F92: 0 | G92: 0 | H92: 0 | J92: 0
A93: 5.6.8 | B93: Замена козырьков над входами в подъезды | C93: 0 | D93: 0 | E93: 0 | F93: 0 | G93: 0 | H93: 0 | J93: 0
A94: 5.6.9 | B94: Восстановление конструкций над балконами верхних этажей | C94: 0 | D94: 0 | E94: 0 | F94: 0 | G94: 0 | H94: 0 | J94: 0
A95: 5.6.10 | B95: Замена конструкций над балконами верхних этажей | C95: 0 | D95: 0 | E95: 0 | F95: 0 | G95: 0 | H95: 0 | J95: 0
A96: 5.6.11 | B96: Ремонт полов (на лестницах, чердаках, в холлах и подвалах) | C96: 0 | D96: 0 | E96: 0 | F96: 0 | G96: 0 | H96: =ROUND(($I$108*0.16),5) -> 6.57902 | J96: 6579.02 | K96: 16
A97: 5.6.12 | B97: Иное (Лестницы, пандусы, крыльца, козырьки над входами в подъезды, подвалы и над балконами верхних этажей) | C97: 0 | D97: 0 | E97: 0 | F97: 0 | G97: 0 | H97: =ROUND(($I$108*0.06),5) -> 2.46713 | J97: 2467.13 | K97: 6
A98: 5.7 | B98: Внутренняя отделка в подъездах, технических помещениях, и других помещениях общего пользования | H98: =H99+H100+H101+H102 -> 1.64476 | I98: =I99+I100+I101+I102 -> 0 | J98: =J99+J100+J101+J102 -> 1644.76
A99: 5.7.1 | B99: Восстановление отделки стен | C99: 0 | D99: 0 | E99: 0 | F99: 0 | G99: 0 | H99: =ROUND(($I$108*0.04),5) -> 1.64476 | I99: 0 | J99: =ROUND(H99*1000,2) -> 1644.76 | K99: 4 | BV99: ррр
A100: 5.7.2 | B100: Восстановление отделки потолков | C100: 0 | D100: 0 | E100: 0 | F100: 0 | G100: 0 | H100: 0 | J100: =ROUND(H100*1000,2) -> 0
A101: 5.7.3 | B101: Ремонт лестничных клеток | C101: 0 | D101: 0 | E101: 0 | F101: 0 | G101: 0 | H101: 0 | J101: =ROUND(H101*1000,2) -> 0
A102: 5.7.4 | B102: Ремонт технических и вспомогательных помещений | C102: 0 | D102: 0 | E102: 0 | F102: 0 | G102: 0 | H102: 0 | J102: =ROUND(H102*1000,2) -> 0
A103: 5.8 | B103: Ремонт чердаков, подвалов | H103: =H104+H105+H106+H107+H108 -> 11.102093 | I103: =I104+I105+I106+I107+I108 -> 41.118893 | J103: =J104+J105+J106+J107+J108 -> 11102.09
A104: 5.8.1 | B104: Утепление чердачных перекрытий | C104: 0 | D104: 0 | E104: 0 | F104: 0 | G104: 0 | H104: 0 | J104: =ROUND(H104*1000,2) -> 0
A105: 5.8.2 | B105: Утепление трубопроводов в чердачных помещениях | C105: 0 | D105: 0 | E105: 0 | F105: 0 | G105: 0 | H105: 0 | J105: =ROUND(H105*1000,2) -> 0
A106: 5.8.3 | B106: Утепление трубопроводов в подвальных помещениях | C106: 0 | D106: 0 | E106: 0 | F106: 0 | G106: 0 | H106: =ROUND(($I$108*0.065),5) -> 2.67273 | J106: =ROUND(H106*1000,2) -> 2672.73 | K106: 6.5
A107: 5.8.4 | B107: Изготовление новых или ремонт существующих ходовых досок и переходных мостиков на чердаках, в подвалах | C107: 0 | D107: 0 | E107: 0 | F107: 0 | G107: 0 | H107: 0 | J107: =ROUND(H107*1000,2) -> 0
A108: 5.8.5 | B108: Иное (Ремонт чердаков, подвалов) | C108: Х | D108: 0 | E108: 0 | F108: Х | G108: Х | H108: =I108-H47-H53-H63-H68-H77-H85-H98-H106 -> 8.429363 | I108: =J197-I138-H181 -> 41.118893 | J108: =ROUND(H108*1000,2) -> 8429.36
A109: 6 | B109: Работы по содержанию и ремонту оборудования и систем инженерно-технического обеспечения, входящих в состав общего имущества в многоквартирном доме | H109: =H110+H111+H112+H113+H114+H115+H116+H117+H118+H119+H120+H121+H122+H123+H124+H125+H126+H127+H128+H129+H130+H131+H132+H133+H134+H135+H136+H137+H138 -> 146.159467 | I109: =I110+I111+I112+I113+I114+I115+I116+I117+I118+I119+I120+I121+I122+I123+I124+I125+I126+I127+I128+I129+I130+I131+I132+I133+I134+I135+I136+I137+I138 -> 146.164467 | J109: =J110+J111+J112+J113+J114+J115+J116+J117+J118+J119+J120+J121+J122+J123+J124+J125+J126+J127+J128+J129+J130+J131+J132+J133+J134+J135+J136+J137+J138 -> 137399.35 | BV109: ддд | CQ109: ддд
A110: 6.1 | B110: Консервация (расконсервация) поливочной системы | C110: 1 | D110: В ходе подготовки к эксплуатации дома в осенне-зимний период | E110: КХ | F110: 1 | G110: =H110*1000 -> 6257.22 | H110: =ROUND(($I$138*0.05),5) -> 6.25722 | J110: =ROUND(H110*1000,2) -> 6257.22
A111: 6.2 | B111: Ремонт, регулировка, промывка и опрессовка систем центрального отопления, утепление бойлеров | C111: 1 | D111: В ходе подготовки к эксплуатации дома в осенне-зимний период | E111: КХ | F111: 1 | G111: =H111*1000 -> 31286.12 | H111: =ROUND(($I$138*0.25),5) -> 31.28612 | J111: 31286.12
A112: 6.3 | B112: Утепление вентиляционных и дымовых каналов | C112: 0 | D112: В ходе подготовки к эксплуатации дома в осенне-зимний период | E112: КХ | F112: 0 | G112: 0 | H112: 0 | J112: 0
A113: 6.4 | B113: Прочистка вентиляционных и дымовых каналов | C113: 0 | D113: В ходе подготовки к эксплуатации дома в осенне-зимний период | E113: КХ | F113: 0 | G113: 0 | H113: 0 | J113: 0
A114: 6.5 | B114: Ремонт и утепление наружных водоразборных кранов | C114: 0 | D114: В ходе подготовки к эксплуатации дома в осенне-зимний период | E114: КХ | F114: 0 | G114: 0 | H114: 0 | J114: 0
A115: 6.6 | B115: Проведение технических осмотров систем водопровода и канализации, центрального отопления и горячего водоснабжения, электротехнических устройств, вентиляционных каналов | C115: 0 | D115: по мере необходимости | E115: КХ | F115: 0 | G115: 0 | H115: 0 | J115: 0
A116: 6.7 | B116: Устранение неисправностей в системах водопровода и канализации, центрального отопления и горячего водоснабжения, электротехнических устройств, вентиляционных и дымовых каналов | C116: 1 | D116: В ходе подготовки к эксплуатации дома в осенне-зимний период | E116: КХ | F116: 1 | G116: =H116*1000 -> 15017.34 | H116: =ROUND(($I$138*0.12),5) -> 15.01734 | J116: 15017.34
A117: 6.8 | B117: Проверка исправности канализационных вытяжек | C117: 0 | D117: Устранение по мере обнаружения дефектов | E117: КХ | F117: 0 | G117: 0 | H117: 0 | J117: 0
A118: 6.9 | B118: Устранение засора внутреннего канализационного трубопровода | C118: 0 | D118: раз в год | E118: КХ | F118: 0 | G118: 0 | H118: 0 | J118: 0
A119: 6.10 | B119: Регулировка и наладка систем автоматики расширительных баков | C119: =IF(F119>0,1,0) -> 0 | D119: раз в месяц | E119: КХ | F119: 0 | G119: 0 | H119: 0 | I119: 0 | J119: 0
A120: 6.11 | B120: Проверка заземления оболочки электрокабеля, оборудования (насосы, щитовые вентиляторы и др.) | C120: =IF(H120,1,0) -> 0 | D120: раз в год | E120: КХ | F120: =C120 -> 0 | G120: =H120*1000 -> 0 | H120: 0 | I120: 0 | J120: 0
A121: 6.12 | B121: Замеры сопротивления изоляции проводов, трубопроводов и восстановление цепей заземления | C121: 1 | D121: раз в год | E121: КХ | F121: 1 | G121: =H121*1000 -> 21015 | H121: 21.015 | I121: 21.02 | J121: 21015
A122: 6.13 | B122: Поверка общедомовых приборов учета горячего и холодного водоснабжения, отопления, электроснабжения | C122: 0 | D122: В ходе подготовки к эксплуатации дома в осенне-зимний период | E122: КХ | F122: 0 | G122: 0 | H122: 0 | J122: 0
A123: 6.14 | B123: Ремонт общедомовых приборов учета горячего и холодного водоснабжения, отопления, электроснабжения | C123: 0 | D123: В ходе подготовки к эксплуатации дома в осенне-зимний период | E123: КХ | F123: 0 | G123: 0 | H123: 0 | J123: 0
A124: 6.15 | B124: Обслуживание ламп-сигналов | C124: 0 | D124: Работа не выполняется | F124: 0 | G124: 0 | H124: 0 | J124: 0
A125: 6.16 | B125: Замена и восстановление отдельных элементов системы отопления с выполнением наладочных регулировочных работ, ликвидацией непрогревов и неисправностей в квартирах | C125: 1 | D125: В ходе подготовки к эксплуатации дома в осенне-зимний период | E125: КХ | F125: 1 | G125: =H125*1000 -> 18771.67 | H125: =ROUND(($I$138*0.15),5) -> 18.77167 | J125: 18771.67
A126: 6.17 | B126: Замена и восстановление отдельных элементов системы холодного водоснабжения, при необходимости отключение и включение стояков | C126: 1 | D126: В ходе подготовки к эксплуатации дома в осенне-зимний период | E126: КХ | F126: 1 | G126: =H126*1000 -> 13765.89 | H126: =ROUND(($I$138*0.11),5) -> 13.76589 | J126: 13765.89
A127: 6.18 | B127: Замена и восстановление отдельных элементов системы горячего водоснабжения, при необходимости отключение и включение стояков | C127: 0 | D127: В ходе подготовки к эксплуатации дома в осенне-зимний период | E127: КХ | F127: 0 | G127: 0 | H127: 0 | J127: 0
A128: 6.19 | B128: Замена и восстановление отдельных элементов системы канализации, в том числе ликвидация засоров, за исключением внутриквартирного сантехоборудования | C128: 1 | D128: В ходе подготовки к эксплуатации дома в осенне-зимний период | E128: КХ | F128: 1 | G128: =H128*1000 -> 8760.11 | H128: =ROUND(($I$138*0.07),5) -> 8.76011 | J128: 8760.11
A129: 6.20 | B129: Замена и восстановление отдельных элементов внутридомового электрооборудования (за исключением внутриквартирных устройств и приборов) | C129: 1 | D129: В ходе подготовки к эксплуатации дома в осенне-зимний период | E129: КХ | F129: 1 | G129: =H129*1000 -> 22526 | H129: =ROUND(($I$138*0.18),5) -> 22.526 | J129: 22526
A130: 6.21 | B130: Гидропневматическая очистка системы отопления | C130: 0 | D130: Работа не выполняется | F130: 0 | G130: 0 | H130: 0 | I130: 0 | J130: 0
A131: 6.22 | B131: Обслуживание и ремонт АУУТЭ | C131: 0 | D131: раз в месяц | E131: КХ | F131: 0 | G131: 0 | H131: 0 | J131: 0
A132: 6.23 | B132: Обслуживание и ремонт АСКУЭ | C132: 0 | D132: раз в месяц | E132: КХ | F132: 0 | G132: 0 | H132: 0 | J132: 0
A133: 6.24 | B133: Обслуживание и ремонт насосных пунктов | C133: 0 | D133: раз в месяц | E133: КХ | F133: 0 | G133: 0 | H133: 0 | J133: 0
A134: 6.25 | B134: Обслуживание и ремонт тепловых пунктов | C134: 0 | D134: Работа не выполняется | F134: 0 | G134: 0 | H134: 0 | I134: 0 | J134: 0
A135: 6.26 | B135: Обслуживание и ремонт крышных газовых котельных | C135: 0 | D135: Работа не выполняется | F135: 0 | G135: 0 | H135: 0 | I135: 0 | J135: 0
A136: 6.27 | B136: Ремонт электрооборудования (эл. щитков, замена АВР (аварийное включение резерва) и др. работы) | C136: 0 | D136: по мере необходимости | E136: КХ | F136: 0 | G136: 0 | H136: 0 | J136: 0
A137: 6.28 | B137: Техническое обслуживание светильников дежурного освещения | C137: 0 | D137: по мере необходимости | E137: КХ | F137: 0 | G137: 0 | H137: 0 | J137: 0
A138: 6.29 | B138: Иное (Работы по содержанию и ремонту оборудования и систем инженерно-технического обеспечения, входящих в состав общего имущества в многоквартирном доме) | C138: Х | D138: 0 | E138: 0 | F138: Х | G138: Х | H138: =I138-H110-H111-H125-H126-H127-H128-H129-H116 -> 8.760117 | I138: =J197*0.7 -> 125.144467 | J138: =ROUND(L19,2) -> 0
A139: 7 | B139: Работы по содержанию и ремонту мусоропроводов в многоквартирном доме | H139: 0 | I139: =I140+I141+I142+I143+I144+I145+I146+I147+I148+I149+I150 -> 0 | J139: =J140+J141+J142+J143+J144+J145+J146+J147+J148+J149+J150 -> 0 | BV139: ммм | CQ139: mmm
A140: 7.1 | B140: Восстановление работоспособности вентиляционных и промывочных устройств, мусороприемных клапанов и шиберных устройств | C140: 0 | D140: В ходе подготовки к эксплуатации дома в осенне-зимний период | E140: КХ | F140: 0 | G140: 0 | H140: 0
A141: 7.2 | B141: Профилактический осмотр мусоропроводов | C141: 0 | D141: В ходе подготовки к эксплуатации дома в осенне-зимний период | E141: КХ | F141: 0 | G141: 0 | H141: 0 | J141: =ROUND(H141*1000,2) -> 0
A142: 7.3 | B142: Видеодиагностика внутренней поверхности асбестоцементных стволов мусоропровода | C142: 0 | D142: В ходе подготовки к эксплуатации дома в осенне-зимний период | E142: КХ | F142: 0 | G142: 0 | H142: 0
A143: 7.4 | B143: Уборка загрузочных клапанов мусоропроводов | C143: 0 | D143: В ходе подготовки к эксплуатации дома в осенне-зимний период | E143: КХ | F143: 0 | G143: 0 | H143: 0
A144: 7.5 | B144: Мойка сменных мусоросборников | C144: 0 | D144: В ходе подготовки к эксплуатации дома в осенне-зимний период | E144: КХ | F144: 0 | G144: 0 | H144: 0
A145: 7.6 | B145: Мойка нижней части ствола и шибера мусоропровода | C145: 0 | D145: В ходе подготовки к эксплуатации дома в осенне-зимний период | E145: КХ | F145: 0 | G145: 0 | H145: 0
A146: 7.7 | B146: Очистка и дезинфекция всех элементов ствола мусоропровода | C146: 0 | D146: В ходе подготовки к эксплуатации дома в осенне-зимний период | E146: КХ | F146: 0 | G146: 0 | H146: 0
A147: 7.8 | B147: Дезинфекция мусоросборников | C147: 0 | D147: В ходе подготовки к эксплуатации дома в осенне-зимний период | E147: КХ | F147: 0 | G147: 0 | H147: 0
A148: 7.9 | B148: Устранение засора | C148: 0 | D148: В ходе подготовки к эксплуатации дома в осенне-зимний период | E148: КХ | F148: 0 | G148: 0 | H148: 0
A149: 7.10 | B149: Мелкий ремонт неисправностей мусоропровода | C149: 0 | D149: В ходе подготовки к эксплуатации дома в осенне-зимний период | E149: КХ | F149: 0 | G149: 0 | H149: 0
A150: 7.11 | B150: Иное (Работы по содержанию и ремонту мусоропроводов в многоквартирном доме) | C150: Х | D150: 0 | E150: 0 | F150: Х | G150: Х | H150: 0
A151: 8 | B151: Работы по содержанию и ремонту лифта (лифтов) в многоквартирном доме | H151: 0 | I151: =I152+I153+I154 -> 0 | J151: =J152+J153+J154 -> 0
A152: 8.1 | B152: Обслуживание лифтов и лифтового оборудования | C152: 0 | D152: Круглосуточно | E152: шт | F152: 0 | G152: 0 | H152: =ROUND((C152*F152*G152/1000),5) -> 0
A153: 8.2 | B153: Организация системы диспетчерского контроля и обеспечение диспетчерской связи с кабиной лифта | C153: 0 | D153: Работа не выполняется | E153: КХ | F153: 0 | G153: 0 | H153: 0
A154: 8.3 | B154: Иное (Работы по содержанию и ремонту лифта (лифтов) в многоквартирном доме) | C154: Х | D154: 0 | E154: 0 | F154: Х | G154: Х | H154: 0
A155: 9 | B155: Работы по обеспечению требований пожарной безопасности | H155: 0 | I155: =I156+I157+I158+I159 -> 0 | J155: =J156+J157+J158+J159 -> 0
A156: 9.1 | B156: Осмотр пожарной сигнализации и средств тушения в домах | C156: 0 | D156: раз в год | E156: КХ | F156: 0 | G156: 0 | H156: 0 | J156: =ROUND(H156*1000,2) -> 0
A157: 9.2 | B157: Обслуживание систем дымоудаления и противопожарной безопасности | C157: =IF(F157>0,12,0) -> 0 | D157: Круглосуточно | E157: шт | F157: =IF(J157>0,F152,0) -> 0 | G157: =IF(F157>0,J157/C157/F157,0) -> 0 | H157: =ROUND((C157*F157*G157/1000),5) -> 0 | I157: 0 | J157: =ROUND(H157*1000,2) -> 0
A158: 9.3 | B158: Замена и восстановление работоспособности элементов пожаротушения (трубопроводов, включая ввод и стояки пожарного водопровода) | C158: 0 | D158: в течение суток после обнаружения | E158: КХ | F158: 0 | G158: 0 | H158: 0 | J158: =ROUND(H158*1000,2) -> 0
A159: 9.4 | B159: Иное (Работы по обеспечению требований пожарной безопасности) | C159: Х | D159: 0 | E159: 0 | F159: Х | G159: Х | H159: 0
A160: 10 | B160: Работы по содержанию и ремонту систем вентиляции | H160: =H161+H162+H163+H164 -> 0 | I160: =I161+I162+I163+I164 -> 0 | J160: =J161+J162+J163+J164 -> 0
A161: 10.1 | B161: Проверка наличия тяги в дымоходах, вентиляционных каналах | C161: 0 | F161: 0 | G161: 0 | H161: 0 | J161: =ROUND(H161*1000,2) -> 0
A162: 10.2 | B162: Регулировка и наладка систем вентиляции | C162: 0 | F162: 0 | G162: 0 | H162: 0 | J162: =ROUND(H162*1000,2) -> 0
A163: 10.3 | B163: Замена и восстановление работоспособности отдельных общедомовых элементов | C163: 0 | F163: 0 | G163: 0 | H163: 0 | I163: 0 | J163: =ROUND(H163*1000,2) -> 0
A164: 10.4 | B164: Иное (Работы по содержанию и ремонту систем вентиляции) | C164: Х | D164: 0 | E164: 0 | F164: Х | G164: Х | H164: 0
A165: 11 | B165: Работы по содержанию и ремонту систем внутридомового газового оборудования | H165: =H166+H167+H168 -> 8.6 | I165: =I166+I167+I168 -> 8.6 | J165: =J166+J167+J168 -> 8600
A166: 11.1 | B166: Проверка состояния системы внутридомового газового оборудования и ее отдельных элементов | C166: =IF(H166>0,1,0) -> 1 | D166: раз в год | E166: шт | F166: =IF(H166>0,1,0) -> 1 | G166: =J166 -> 8600 | H166: 8.6 | I166: 8.6 | J166: =ROUND(H166*1000,2) -> 8600
A167: 11.2 | B167: Замена и восстановление работоспособности отдельных элементов системы внутридомового газового оборудования | C167: 0 | D167: по мере необходимости | E167: шт | F167: 0 | G167: 0 | H167: 0 | J167: =ROUND(H167*1000,2) -> 0
A168: 11.3 | B168: Иное (Работы по содержанию и ремонту систем внутридомового газового оборудования) | C168: Х | D168: 0 | E168: 0 | F168: Х | G168: Х | H168: 0
A169: 12 | B169: Обеспечение устранения аварий на внутридомовых инженерных системах в многоквартирном доме | H169: =H170+H171+H172 -> 20.838 | I169: =I170+I171+I172 -> 20.84 | J169: =J170+J171+J172 -> 20838
A170: 12.1 | B170: Устранение аварии | C170: 1 | D170: Незамедлительное реагирование с момента получения заявки | E170: КХ | F170: 1 | G170: =J170 -> 20838 | H170: 20.838 | I170: 20.84 | J170: =ROUND(H170*1000,2) -> 20838
A171: 12.2 | B171: Выполнение заявок населения | C171: =IF(H171>0,1,0) -> 0 | D171: Незамедлительное реагирование с момента получения заявки | E171: КХ | F171: =IF(H171>0,1,0) -> 0 | G171: =J171 -> 0 | H171: 0 | I171: 0 | J171: =ROUND(H171*1000,2) -> 0
A172: 12.3 | B172: Иное (Обеспечение устранения аварий на внутридомовых инженерных системах в многоквартирном доме) | C172: Х | D172: 0 | E172: 0 | F172: Х | G172: Х | H172: 0
A173: 13 | B173: Расход электроэнергии, потребленной на дежурное освещение мест общего пользования и работу лифтов (общедомовые нужды) | H173: 17.501 | I173: 17.5 | J173: =ROUND(H173*1000,2) -> 17501
A174: 14 | B174: Расход воды на общедомовые нужды | H174: 5.513 | I174: 5.51 | J174: =ROUND(H174*1000,2) -> 5513
A175: 15 | B175: Проведение дератизации и дезинсекции помещений, входящих в состав общего имущества в многоквартирном доме | H175: =H176+H177 -> 0 | I175: =I176+I177 -> 0.01 | J175: =J176+J177 -> 0
A176: 15.1 | B176: Дератизация | C176: 0 | D176: раз в год | E176: КХ | F176: 0 | G176: 0 | H176: 0 | I176: 0 | J176: =ROUND(H176*1000,2) -> 0
A177: 15.2 | B177: Дезинсекция | C177: =IF(H177>0,1,0) -> 0 | D177: Незамедлительное реагирование с момента получения заявки | E177: КХ | F177: =IF(H177>0,1,0) -> 0 | G177: =J177 -> 0 | H177: 0 | I177: 0.01 | J177: =ROUND(H177*1000,2) -> 0
A178: 16 | B178: Прочие работы и услуги по содержанию и ремонту общего имущества в многоквартирном доме | H178: =H179+H180+H181 -> 12.51445 | I178: =I179+I180+I181 -> 27.09 | J178: =J179+J180+J181 -> 12514.45
A179: 16.1 | B179: Техническая инвентаризация | C179: 0 | D179: раз в год | E179: КХ | F179: 0 | G179: 0 | H179: 0 | I179: 0 | J179: =ROUND(H179*1000,2) -> 0
A180: 16.2 | B180: Техническое обслуживание систем дистанционного снятия показаний индивидуальных приборов учета (водопотребления и электроэнергии) | C180: 0 | D180: Работа не выполняется | F180: 0 | G180: 0 | H180: 0 | I180: 0 | J180: =ROUND(H180*1000,2) -> 0
A181: 16.3 | B181: Иное (Прочие работы и услуги по содержанию и ремонту общего имущества в многоквартирном доме) | C181: Х | D181: 0 | E181: 0 | F181: Х | G181: Х | H181: =ROUND((J197*0.07),5) -> 12.51445 | I181: 27.09 | J181: =ROUND(H181*1000,2) -> 12514.45
A182: 17 | B182: Работы по содержанию земельного участка с элементами озеленения и благоустройства, иными объектами, предназначенными для обслуживания и эксплуатации многоквартирного дома | H182: 0
A183: 17.1 | B183: Подметание земельного участка в летний период | C183: 0 | D183: Работа не выполняется | F183: 0 | G183: 0 | H183: 0
A184: 17.2 | B184: Полив тротуаров | C184: 0 | D184: Работа не выполняется | F184: 0 | G184: 0 | H184: 0
A185: 17.3 | B185: Уборка мусора с газона, очистка урн | C185: 0 | D185: Работа не выполняется | F185: 0 | G185: 0 | H185: 0
A186: 17.4 | B186: Уборка мусора на контейнерных площадках | C186: 0 | D186: Работа не выполняется | F186: 0 | G186: 0 | H186: 0
A187: 17.5 | B187: Полив газонов | C187: 0 | D187: Работа не выполняется | F187: 0 | G187: 0 | H187: 0
A188: 17.6 | B188: Стрижка газонов | C188: 0 | D188: Работа не выполняется | F188: 0 | G188: 0 | H188: 0
A189: 17.7 | B189: Подрезка деревьев и кустов | C189: 0 | D189: Работа не выполняется | F189: 0 | G189: 0 | H189: 0
A190: 17.8 | B190: Очистка и ремонт детских и спортивных площадок, элементов благоустройства | C190: 0 | D190: Работа не выполняется | F190: 0 | G190: 0 | H190: 0
A191: 17.9 | B191: Сдвижка и подметание снега | C191: 0 | D191: Работа не выполняется | F191: 0 | G191: 0 | H191: 0
A192: 17.10 | B192: Ликвидация скользкости | C192: 0 | D192: Работа не выполняется | F192: 0 | G192: 0 | H192: 0
A193: 17.11 | B193: Иное (Работы по содержанию земельного участка с элементами озеленения и благоустройства, иными объектами, предназначенными для обслуживания и эксплуатации многоквартирного дома) | C193: Х | D193: 0 | E193: 0 | F193: Х | G193: Х | H193: 0
B194: ИТОГО РАСХОДОВ | H194: =H9+H10+H42+H45+H46+H109+H151+H155+H160+H165+H169+H173+H174+H175+H178+H182+H139 -> 457.36296 | I194: =I10+I9+I42+I46+I109+I139+I151+I155+I160+I165+I169+I173+I174+I175+I178+I45 -> 471.95151 | J194: =J10+J9+J42+J46+J109+J139+J151+J155+J160+J165+J169+J173+J174+J175+J178+J45 -> 227494.74
B195: Всего ПНР | H195: 457.36296 | I195: =J195/1000 -> 483.25133 | J195: 483251.33
I196: =I194 -> 471.95151 | J196: 0
G197: разница | H197: =H195-H194 -> 0 | I197: =I195-I196 -> 11.29982 | J197: 178.77781
H198: =H9+H10+H42+H45+H46+H109+H139+H151+H155+H160+H165+H169+H173+H174+H175+H178+H182 -> 457.36296
H201: =H195-H194 -> 0 | I201: =I199-I209 -> 0
A206: Директор ГБУ «Жилищник Красносельского района» | H206: Г.Б.Бобкова

Sheet Ананьевский пер. 5 стр.9
A1: Фактические затраты по проведению работ (оказанию услуг) на 2017 год
A2: по содержанию и ремонту общего имущества многоквартирного дома
A3: и предоставлению коммунальных услуг по адресу:
A4: Ананьевский пер. 5 стр.9
A7: № п/п | B7: Наименование работ (услуг)* | C7: Фактическая периодичность работ (услуг) | E7: Ед.измер. работ (услуг) | F7: Фактическое количество /объем | G7: Фактическая стоимость за единицу работ (услуг), руб. | H7: Фактическая стоимость в год за работы (услуги), тыс. руб. для портала | I7: Фактическая стоимость в год за работы (услуги), тыс. руб. расчетная | J7: Фактическая стоимость в год за работы (услуги), руб. | L7: =H111 -> 30.38745
A8: 1 | B8: 2 | C8: 3 | E8: 4 | F8: 4 | G8: 5 | H8: 6 | I8: 7
A9: 1 | B9: Работы (услуги) по управлению многоквартирным домом | H9: 74.34 | I9: 74.34 | J9: =ROUND(H9*1000,2) -> 74340 | BV9: ттт
A10: 2 | B10: Работы по содержанию помещений, входящих в состав общего имущества в многоквартирном доме | H10: =H11+H12+H13+H14+H15+H16+H19+H20+H31+H35+H38+H39 -> 104.94593 | I10: =I11+I12+I13+I14+I15+I16+I20+I31+I35+I38+I39+I40+I41+I19 -> 104.94593 | J10: =J11+J12+J13+J14+J15+J16+J20+J31+J35+J38+J39+J40+J41+J19 -> 92859.05
A11: 2.1 | B11: Влажное подметание лестничных площадок и маршей нижних 2 этажей | C11: 299 | D11: раз в день, кроме праздничных и воскресных дней | E11: М2 | F11: 78 | G11: 1.67 | H11: =ROUND((F11*G11*K11)/1000,5) -> 38.94774 | I11: =H11 -> 38.94774 | J11: =ROUND(F11*G11*K11,2) -> 38947.74 | K11: 299
A12: 2.2 | B12: Влажное подметание лестничных площадок и маршей выше 2-го этажа | C12: 104 | D12: раз в неделю | E12: М2 | F12: 78 | G12: 1.27 | H12: =ROUND((F12*G12*C12)/1000,5) -> 10.30224 | I12: =H12 -> 10.30224 | J12: =ROUND(F12*G12*K12,2) -> 5151.12 | K12: 52
A13: 2.3 | B13: Влажное подметание перед загрузочными клапанами мусоропроводов | C13: 0 | D13: раз в день, кроме праздничных и воскресных дней | E13: М2 | F13: 0 | G13: 0 | H13: =ROUND((F13*G13*K13)/1000,5) -> 0
A14: 2.4 | B14: Уборка загрузочных клапанов мусоропровода | C14: 0 | D14: раз в неделю | E14: ШТ | F14: 0 | G14: 0 | H14: =ROUND((F14*G14*K14)/1000,5) -> 0
A15: 2.5 | B15: Мытье пола кабины лифта | C15: 0 | D15: раз в день, кроме праздничных и воскресных дней | E15: М2 | F15: 0 | G15: 0 | H15: =ROUND((F15*G15*K15)/1000,5) -> 0
A16: 2.6 | B16: Мытье лестничных площадок | C16: Х | D16: 0 | E16: 0 | F16: Х | G16: Х | H16: =H17+H18 -> 13.87152 | I16: =H16 -> 13.87152 | J16: =J17+J18 -> 6935.76
A17: 2.6.1 | B17: Мытье лестничных площадок и маршей нижних 2-х этажей | C17: 24 | D17: раз в месяц | E17: М2 | F17: =F11 -> 78 | G17: 4.07 | H17: =ROUND((F17*G17*C17)/1000,5) -> 7.61904 | I17: 7.61904 | J17: =ROUND(F17*G17*K17,2) -> 3809.52 | K17: 12
A18: 2.6.2 | B18: Мытье лестничных площадок и маршей выше 2-го этажа | C18: 24 | D18: раз в месяц | E18: М2 | F18: =F12 -> 78 | G18: 3.34 | H18: =ROUND((F18*G18*C18)/1000,5) -> 6.25248 | I18: 6.25248 | J18: =ROUND(F18*G18*K18,2) -> 3126.24 | K18: 12
A19: 2.7 | B19: Мытье окон | C19: 1 | D19: раз в год | E19: М2 | F19: 33.6 | G19: 8.43 | H19: =ROUND((F19*G19*K19)/1000,5) -> 0.28325 | I19: 0.28325 | J19: =ROUND(F19*G19*K19,2) -> 283.25 | K19: 1
A20: 2.8 | B20: Влажная протирка | C20: Х | D20: 0 | E20: 0 | F20: Х | G20: Х | H20: =H21+H22+H23+H24+H25+H26+H27+H28+H29+H30 -> 5.69216 | I20: 5.69216 | J20: =J21+J22+J23+J24+J25+J26+J27+J28+J29+J30 -> 5692.16
A21: 2.8.1 | B21: Влажная протирка стен | C21: 1 | D21: раз в год | E21: М2 | F21: 1693.33 | G21: 2.81 | H21: =ROUND((F21*G21*K21)/1000,5) -> 4.75826 | I21: 4.75826 | J21: =ROUND(F21*G21*K21,2) -> 4758.26 | K21: 1
A22: 2.8.2 | B22: Влажная протирка плафонов на лестничных клетках | C22: 1 | D22: раз в год | E22: ШТ | F22: 16 | G22: 1.75 | H22: 0.028 | I22: 0.028 | J22: 28 | K22: 1
A23: 2.8.3 | B23: Влажная протирка дверных полотен на лестничных клетках | C23: 1 | D23: раз в год | E23: М2 | F23: 53,6 | G23: 4.1 | H23: 0.21976 | I23: 0.21976 | J23: 219.76 | K23: 1
A24: 2.8.4 | B24: Влажная протирка подоконников | C24: 2 | D24: раз в год | E24: М2 | F24: 2,52 | G24: 4.08 | H24: 0.02056 | I24: 0.02056 | J24: 20.56 | K24: 2
A25: 2.8.5 | B25: Влажная протирка оконных решеток | C25: 1 | D25: раз в год | E25: М2 | F25: 7 | G25: 3.93 | H25: 0.02751 | I25: 0.02751 | J25: 27.51 | K25: 1
A26: 2.8.6 | B26: Влажная протирка чердачных лестниц | C26: 1 | D26: раз в год | E26: М2 | F26: 202,95 | G26: 2.64 | H26: 0.53579 | I26: 0.53579 | J26: 535.79 | K26: 1
A27: 2.8.7 | B27: Влажная протирка отопительных приборов | C27: 2 | D27: раз в год | E27: М2 | F27: 6,4 | G27: 5.07 | H27: 0.0649 | I27: 0.0649 | J27: 64.9 | K27: 2
A28: 2.8.8 | B28: Влажная протирка шкафов для электросчетчиков, слаботочных устройств | C28: 1 | D28: раз в год | E28: М2 | F28: 8 | G28: 2.52 | H28: 0.02016 | I28: 0.02016 | J28: 20.16 | K28: 1
A29: 2.8.9 | B29: Влажная протирка почтовых ящиков | C29: 1 | D29: раз в год | E29: М2 | F29: 8,4 | G29: 2.05 | H29: 0.01722 | I29: 0.01722 | J29: 17.22 | K29: 1
A30: 2.8.10 | B30: Влажная протирка стен, дверей кабины лифта | C30: 0 | D30: раз в месяц | E30: М2 | F30: 0 | G30: 0 | H30: 0
A31: 2.9 | B31: Очистка кровли | C31: Х | D31: 0 | E31: 0 | F31: Х | G31: Х | H31: =H32+H33+H34 -> 34.8909 | I31: =I32+I33+I34 -> 34.8909 | J31: =J32+J33+J34 -> 34890.9
A32: 2.9.1 | B32: Очистка кровли и ее элементов (в том числе козырьков над подъездами) от мусора и листьев | C32: 2 | D32: раз в год | E32: М2 | F32: 485 | G32: 2.01 | H32: =ROUND(F32*G32*K32/1000,5) -> 1.9497 | I32: =H32 -> 1.9497 | J32: =ROUND(H32*1000,2) -> 1949.7 | K32: 2 | M32: 485
A33: 2.9.2 | B33: Очистка кровли от снега | C33: 3 | D33: Работа не выполняется | E33: КХ | F33: 485 | G33: 7.67 | H33: =ROUND(G33*F33*K33/1000,5) -> 11.15985 | I33: =H33 -> 11.15985 | J33: =ROUND(H33*1000,2) -> 11159.85 | K33: 3
A34: 2.9.3 | B34: Очистка кровли от снега и наледеобразований | C34: 3 | D34: Работа не выполняется | E34: КХ | F34: 485 | G34: 14.97 | H34: =ROUND(G34*F34*K34/1000,5) -> 21.78135 | I34: =H34 -> 21.78135 | J34: =ROUND(H34*1000,2) -> 21781.35 | K34: 3
A35: 2.10 | B35: Смена частей водосточных труб и прочистка внутреннего водостока | C35: Х | D35: 0 | E35: 0 | F35: Х | G35: Х | H35: =H36+H37 -> 0 | I35: =I36+I37 -> 0 | J35: =J36+J37 -> 0
A36: 2.10.1 | B36: Смена частей водосточных труб | C36: 0 | D36: в течение суток после обнаружения | E36: ШТ | F36: 0 | G36: 0 | H36: 0 | I36: 0 | J36: 0
A37: 2.10.2 | B37: Прочистка водоприемной воронки внутреннего водостока | C37: =IF(F37>0,2,0) -> 0 | D37: в течение суток после обнаружения | E37: ШТ | F37: 0 | G37: 0 | H37: =ROUND(G37*F37*C37/1000,5) -> 0 | M37: 258.08
A38: 2.11 | B38: Очистка подвалов и чердаков от мусора | C38: 1 | D38: раз в год | E38: М2 | F38: =L38 -> 580.68 | G38: 1.65 | H38: =ROUND((F38*G38*K38)/1000,5) -> 0.95812 | I38: =H38 -> 0.95812 | J38: =ROUND(F38*G38*K38,2) -> 958.12 | K38: 1 | L38: =M37+M38 -> 580.68 | M38: 322.6
A39: 2.12 | B39: Уборка мусороприемной камеры | C39: 0 | D39: раз в день, кроме праздничных и воскресных дней | E39: М2 | F39: 0 | G39: 0 | H39: =ROUND((F39*G39*K39)/1000,5) -> 0
A40: 2.13 | B40: Ремонт почтовых ящиков, установка, смена замка | C40: 0 | D40: В течении суток с момента получения заявки | E40: КХ | F40: 0 | G40: 0 | H40: =ROUND(G40*F40/1000,5) -> 0 | I40: =H40 -> 0 | J40: =ROUND(H40*1000,2) -> 0
A41: 2.14 | B41: Иное (Работы по содержанию помещений, входящих в состав общего имущества в многоквартирном доме) | C41: Х | D41: 0 | E41: 0 | F41: Х | G41: Х | H41: 0
A42: 3 | B42: Работы по обеспечению вывоза твердых бытовых отходов | H42: =H43+H44 -> 0 | I42: =I43+I44 -> 0 | J42: =J43+J44 -> 0 | Q42: жители | R42: 72
A43: 3.1 | B43: Удаление мусора из мусороприемных камер | C43: 0 | D43: раз в день | E43: М3 | F43: 0 | G43: 0 | H43: =ROUND((F43*G43*K43)/1000,5) -> 0 | N43: =ROUND(R42*1.45/365,3) -> 0.286 | O43: м3 мусора в день | Q43: место мусороприемной камеры
A44: 3.2 | B44: Иное (Работы по обеспечению вывоза твердых бытовых отходов) | C44: 0 | D44: 0 | E44: 0 | F44: 0 | G44: 0 | H44: 0 | J44: =ROUND(H44*1000,2) -> 0
A45: 4 | B45: Работы по обеспечению вывоза крупногабаритного мусора | C45: 0 | D45: 0 | E45: 0 | F45: 0 | G45: 0 | H45: 0 | J45: =ROUND(H45*1000,2) -> 0 | Q45: в цокольном этаже | R45: =IF(R43=Q45,274.83,0) -> 0
A46: 5 | B46: Работы по содержанию и ремонту конструктивных элементов (несущих и ненесущих конструкций) многоквартирных домов | H46: =H47+H53+H63+H68+H77+H85+H98+H103 -> 39.937797 | I46: =I47+I53+I63+I68+I77+I85+I98+I103 -> 39.937797 | J46: =J47+J53+J63+J68+J77+J85+J98+J103 -> 38739.67 | Q46: в подвале | R46: =IF(R43=Q46,341.86,0) -> 0 | BV46: ррр | CQ46: ррр
A47: 5.1 | B47: Фундамент | H47: =H48+H49+H50+H51+H52 -> 1.99689 | I47: =I48+I49+I50+I51+I52 -> 0 | J47: =J48+J49+J50+J51+J52 -> 1996.89 | R47: =SUM(R45:R46) -> 0
A48: 5.1.1 | B48: Восстановление поврежденных участков фундаментов | C48: 0 | D48: 0 | E48: 0 | F48: 0 | G48: 0 | H48: 0
A49: 5.1.2 | B49: Восстановление гидроизоляции и систем водоотвода фундаментов | C49: 0 | D49: 0 | E49: 0 | F49: 0 | G49: 0 | H49: =ROUND(($I$108*0.03),5) -> 1.19813 | J49: =ROUND(H49*1000,2) -> 1198.13 | K49: 5
A50: 5.1.3 | B50: Восстановление поврежденных участков вентиляционных продухов | C50: 0 | D50: 0 | E50: 0 | F50: 0 | G50: 0 | H50: =ROUND(($I$108*0.02),5) -> 0.79876 | J50: =ROUND(H50*1000,2) -> 798.76
A51: 5.1.4 | B51: Восстановление поврежденных участков входов в подвалы | C51: 0 | D51: 0 | E51: 0 | F51: 0 | G51: 0 | H51: 0 | J51: =ROUND(H51*1000,2) -> 0
A52: 5.1.5 | B52: Иное (Фундамент) | C52: Х | D52: 0 | E52: 0 | F52: Х | G52: Х | H52: 0 | J52: =ROUND(H52*1000,2) -> 0
A53: 5.2 | B53: Стены и фасад | H53: =H54+H55+H56+H57+H58+H59+H60+H61+H62 -> 2.79565 | I53: =I54+I55+I56+I57+I58+I59+I60+I61+I62 -> 0 | J53: =J54+J55+J56+J57+J58+J59+J60+J61+J62 -> 2795.65
A54: 5.2.1 | B54: Герметизация стыков стен и фасадов | C54: 0 | D54: 0 | E54: 0 | F54: 0 | G54: 0 | H54: 0 | J54: =ROUND(H54*1000,2) -> 0
A55: 5.2.2 | B55: Заделка и восстановление архитектурных элементов | C55: 0 | D55: 0 | E55: 0 | F55: 0 | G55: 0 | H55: 0 | J55: 0
A56: 5.2.3 | B56: Ремонт штукатурки гладких фасадов | C56: 0 | D56: 0 | E56: 0 | F56: 0 | G56: 0 | H56: 0 | J56: 0
A57: 5.2.4 | B57: Окраска, промывка фасадов | C57: 0 | D57: 0 | E57: 0 | F57: 0 | G57: 0 | H57: 0 | J57: 0
A58: 5.2.5 | B58: Восстановление поврежденных участков цоколей | C58: 0 | D58: 0 | E58: 0 | F58: 0 | G58: 0 | H58: 0 | J58: 0
A59: 5.2.6 | B59: Окраска, промывка цоколей | C59: 0 | D59: 0 | E59: 0 | F59: 0 | G59: 0 | H59: =ROUND(($I$108*0.07),5) -> 2.79565 | J59: 2795.65 | K59: 7
A60: 5.2.7 | B60: Смена пластмассового короба домового знака или уличного указателя | C60: 0 | D60: 0 | E60: 0 | F60: 0 | G60: 0 | H60: 0 | J60: 0
A61: 5.2.8 | B61: Восстановление гидроизоляции между цокольной частью здания и стенами | C61: 0 | D61: 0 | E61: 0 | F61: 0 | G61: 0 | H61: 0 | J61: 0
A62: 5.2.9 | B62: Иное (Стены и фасад) | C62: Х | D62: 0 | E62: 0 | F62: Х | G62: Х | H62: 0
A63: 5.3 | B63: Перекрытия | H63: =H64+H65+H66+H67 -> 0 | I63: =I64+I65+I66+I67 -> 0 | J63: =J64+J65+J66+J67 -> 0
A64: 5.3.1 | B64: Частичная смена отдельных деревянных элементов | C64: 0 | D64: 0 | E64: 0 | F64: 0 | G64: 0 | H64: 0 | J64: =ROUND(H64*1000,2) -> 0
A65: 5.3.2 | B65: Заделка швов и трещин | C65: 0 | D65: 0 | E65: 0 | F65: 0 | G65: 0 | H65: 0 | J65: =ROUND(H65*1000,2) -> 0
A66: 5.3.3 | B66: Укрепление и окраска | C66: 0 | D66: 0 | E66: 0 | F66: 0 | G66: 0 | H66: 0 | J66: =ROUND(H66*1000,2) -> 0
A67: 5.3.4 | B67: Иное (Перекрытия) | C67: Х | D67: 0 | E67: 0 | F67: Х | G67: Х | H67: 0
A68: 5.4 | B68: Крыши | H68: =H69+H70+H71+H72+H75+H76 -> 3.5944 | I68: =I69+I70+I71+I72+I75+I76 -> 0 | J68: =J69+J70+J71+J72+J73+J74+J75+J76 -> 3594.4
A69: 5.4.1 | B69: Усиление элементов деревянной стропильной системы, | C69: 0 | D69: 0 | E69: 0 | F69: 0 | G69: 0 | H69: 0 | J69: =ROUND(H69*1000,2) -> 0
A70: 5.4.2 | B70: Устранение неисправностей и ремонт стальных, асбестоцементных и других кровельных покрытий | C70: 0 | D70: 0 | E70: 0 | F70: 0 | G70: 0 | H70: 0 | J70: =ROUND(H70*1000,2) -> 0
A71: 5.4.3 | B71: Разборка и ремонт кровли из рулонных материалов | C71: 0 | D71: 0 | E71: 0 | F71: 0 | G71: 0 | H71: 0 | J71: =ROUND(H71*1000,2) -> 0
A72: 5.4.4 | B72: Ремонт конструкций и элементов крыши | C72: 0 | D72: 0 | E72: 0 | F72: 0 | G72: 0 | H72: 0 | I72: =I73+I74 -> 0 | J72: =J73+J74 -> 0
A73: 5.4.4.1 | B73: Ремонт частей водосточных труб | C73: 0 | D73: 0 | E73: 0 | F73: 0 | G73: 0 | H73: 0 | J73: =ROUND(H73*1000,2) -> 0
A74: 5.4.4.2 | B74: Ремонт металлической парапетной решетки | C74: 0 | D74: 0 | E74: 0 | F74: 0 | G74: 0 | H74: 0 | J74: =ROUND(H74*1000,2) -> 0
A75: 5.4.5 | B75: Окраска конструкций и элементов крыши | C75: 0 | D75: 0 | E75: 0 | F75: 0 | G75: 0 | H75: 0 | J75: =ROUND(H75*1000,2) -> 0
A76: 5.4.6 | B76: Иное (Крыши) | C76: Х | D76: 0 | E76: 0 | F76: Х | G76: Х | H76: =ROUND(($I$108*0.09),5) -> 3.5944 | J76: =ROUND(H76*1000,2) -> 3594.4 | K76: 9
A77: 5.5 | B77: Оконные и дверные заполнения на лестничных клетках и во вспомогательных помещениях общего пользования, входные двери | H77: =H78+H79+H80+H81+H82+H83+H84 -> 5.59129 | I77: =I78+I79+I80+I81+I82+I83+I84 -> 0 | J77: =J78+J79+J80+J81+J82+J83+J84 -> 4393.16
A78: 5.5.1 | B78: Ремонт дверей в помещениях общего пользования | C78: 0 | D78: 0 | E78: 0 | F78: 0 | G78: 0 | H78: =ROUND(($I$108*0.07),5) -> 2.79565 | J78: =ROUND(H78*1000,2) -> 2795.65 | K78: 7
A79: 5.5.2 | B79: Замена дверей в помещениях общего пользования | C79: 0 | D79: 0 | E79: 0 | F79: 0 | G79: 0 | H79: 0 | J79: 0
A80: 5.5.3 | B80: Ремонт или замена входных дверей в подъезды | C80: 0 | D80: 0 | E80: 0 | F80: 0 | G80: 0 | H80: 0 | J80: 0
A81: 5.5.4 | B81: Ремонт окон в помещениях общего пользования | C81: 0 | D81: 0 | E81: 0 | F81: 0 | G81: 0 | H81: =ROUND(($I$108*0.04),5) -> 1.59751 | J81: 1597.51 | K81: 4
A82: 5.5.5 | B82: Замена окон в помещениях общего пользования | C82: 0 | D82: 0 | E82: 0 | F82: 0 | G82: 0 | H82: 0 | J82: 0
A83: 5.5.6 | B83: Установка и текущий ремонт доводчиков | C83: 0 | D83: 0 | E83: 0 | F83: 0 | G83: 0 | H83: 0 | J83: 0
A84: 5.5.7 | B84: Иное (Оконные и дверные заполнения на лестничных клетках и во вспомогательных помещениях общего пользования, входные двери) | C84: Х | D84: 0 | E84: 0 | F84: Х | G84: Х | H84: =ROUND(($I$108*0.03),5) -> 1.19813 | K84: 3
A85: 5.6 | B85: Лестницы, пандусы, крыльца, козырьки над входами в подъезды, подвалы и над балконами верхних этажей | H85: =H86+H87+H88+H89+H90+H91+H92+H93+H94+H95+H96+H97 -> 13.57886 | I85: =I86+I87+I88+I89+I90+I91+I92+I93+I94+I95+I96+I97 -> 0 | J85: =J86+J87+J88+J89+J90+J91+J92+J93+J94+J95+J96+J97 -> 13578.86
A86: 5.6.1 | B86: Восстановление лестницы | C86: 0 | D86: 0 | E86: 0 | F86: 0 | G86: 0 | H86: 0 | J86: =ROUND(H86*1000,2) -> 0
A87: 5.6.2 | B87: Замена лестницы | C87: 0 | D87: 0 | E87: 0 | F87: 0 | G87: 0 | H87: 0 | J87: =ROUND(I87*1000,2) -> 0
A88: 5.6.3 | B88: Восстановление пандуса | C88: 0 | D88: 0 | E88: 0 | F88: 0 | G88: 0 | H88: 0 | J88: =ROUND(H88*1000,2) -> 0
A89: 5.6.4 | B89: Замена пандуса | C89: 0 | D89: 0 | E89: 0 | F89: 0 | G89: 0 | H89: 0 | J89: 0
A90: 5.6.5 | B90: Восстановление крыльца | C90: 0 | D90: 0 | E90: 0 | F90: 0 | G90: 0 | H90: =ROUND(($I$108*0.12),5) -> 4.79254 | J90: 4792.54 | K90: 12
A91: 5.6.6 | B91: Замена крыльца | C91: 0 | D91: 0 | E91: 0 | F91: 0 | G91: 0 | H91: 0 | J91: 0
A92: 5.6.7 | B92: Восстановление козырьков над входами в подъезды, ремонт кровельного покрытия козырьков, ложных балконов | C92: 0 | D92: 0 | E92: 0 | F92: 0 | G92: 0 | H92: 0 | J92: 0
A93: 5.6.8 | B93: Замена козырьков над входами в подъезды | C93: 0 | D93: 0 | E93: 0 | F93: 0 | G93: 0 | H93: 0 | J93: 0
A94: 5.6.9 | B94: Восстановление конструкций над балконами верхних этажей | C94: 0 | D94: 0 | E94: 0 | F94: 0 | G94: 0 | H94: 0 | J94: 0
A95: 5.6.10 | B95: Замена конструкций над балконами верхних этажей | C95: 0 | D95: 0 | E95: 0 | F95: 0 | G95: 0 | H95: 0 | J95: 0
A96: 5.6.11 | B96: Ремонт полов (на лестницах, чердаках, в холлах и подвалах) | C96: 0 | D96: 0 | E96: 0 | F96: 0 | G96: 0 | H96: =ROUND(($I$108*0.16),5) -> 6.39005 | J96: 6390.05 | K96: 16
A97: 5.6.12 | B97: Иное (Лестницы, пандусы, крыльца, козырьки над входами в подъезды, подвалы и над балконами верхних этажей) | C97: 0 | D97: 0 | E97: 0 | F97: 0 | G97: 0 | H97: =ROUND(($I$108*0.06),5) -> 2.39627 | J97: 2396.27 | K97: 6
A98: 5.7 | B98: Внутренняя отделка в подъездах, технических помещениях, и других помещениях общего пользования | H98: =H99+H100+H101+H102 -> 1.59751 | I98: =I99+I100+I101+I102 -> 0 | J98: =J99+J100+J101+J102 -> 1597.51
A99: 5.7.1 | B99: Восстановление отделки стен | C99: 0 | D99: 0 | E99: 0 | F99: 0 | G99: 0 | H99: =ROUND(($I$108*0.04),5) -> 1.59751 | I99: 0 | J99: =ROUND(H99*1000,2) -> 1597.51 | K99: 4 | BV99: ррр
A100: 5.7.2 | B100: Восстановление отделки потолков | C100: 0 | D100: 0 | E100: 0 | F100: 0 | G100: 0 | H100: 0 | J100: =ROUND(H100*1000,2) -> 0
A101: 5.7.3 | B101: Ремонт лестничных клеток | C101: 0 | D101: 0 | E101: 0 | F101: 0 | G101: 0 | H101: 0 | J101: =ROUND(H101*1000,2) -> 0
A102: 5.7.4 | B102: Ремонт технических и вспомогательных помещений | C102: 0 | D102: 0 | E102: 0 | F102: 0 | G102: 0 | H102: 0 | J102: =ROUND(H102*1000,2) -> 0
A103: 5.8 | B103: Ремонт чердаков, подвалов | H103: =H104+H105+H106+H107+H108 -> 10.783197 | I103: =I104+I105+I106+I107+I108 -> 39.937797 | J103: =J104+J105+J106+J107+J108 -> 10783.2
A104: 5.8.1 | B104: Утепление чердачных перекрытий | C104: 0 | D104: 0 | E104: 0 | F104: 0 | G104: 0 | H104: 0 | J104: =ROUND(H104*1000,2) -> 0
A105: 5.8.2 | B105: Утепление трубопроводов в чердачных помещениях | C105: 0 | D105: 0 | E105: 0 | F105: 0 | G105: 0 | H105: 0 | J105: =ROUND(H105*1000,2) -> 0
A106: 5.8.3 | B106: Утепление трубопроводов в подвальных помещениях | C106: 0 | D106: 0 | E106: 0 | F106: 0 | G106: 0 | H106: =ROUND(($I$108*0.065),5) -> 2.59596 | J106: =ROUND(H106*1000,2) -> 2595.96 | K106: 6.5
A107: 5.8.4 | B107: Изготовление новых или ремонт существующих ходовых досок и переходных мостиков на чердаках, в подвалах | C107: 0 | D107: 0 | E107: 0 | F107: 0 | G107: 0 | H107: 0 | J107: =ROUND(H107*1000,2) -> 0
A108: 5.8.5 | B108: Иное (Ремонт чердаков, подвалов) | C108: Х | D108: 0 | E108: 0 | F108: Х | G108: Х | H108: =I108-H47-H53-H63-H68-H77-H85-H98-H106 -> 8.187237 | I108: =J197-I138-H181 -> 39.937797 | J108: =ROUND(H108*1000,2) -> 8187.24
A109: 6 | B109: Работы по содержанию и ремонту оборудования и систем инженерно-технического обеспечения, входящих в состав общего имущества в многоквартирном доме | H109: =H110+H111+H112+H113+H114+H115+H116+H117+H118+H119+H120+H121+H122+H123+H124+H125+H126+H127+H128+H129+H130+H131+H132+H133+H134+H135+H136+H137+H138 -> 142.564813 | I109: =I110+I111+I112+I113+I114+I115+I116+I117+I118+I119+I120+I121+I122+I123+I124+I125+I126+I127+I128+I129+I130+I131+I132+I133+I134+I135+I136+I137+I138 -> 142.569813 | J109: =J110+J111+J112+J113+J114+J115+J116+J117+J118+J119+J120+J121+J122+J123+J124+J125+J126+J127+J128+J129+J130+J131+J132+J133+J134+J135+J136+J137+J138 -> 134056.33 | BV109: ддд | CQ109: ддд
A110: 6.1 | B110: Консервация (расконсервация) поливочной системы | C110: 1 | D110: В ходе подготовки к эксплуатации дома в осенне-зимний период | E110: КХ | F110: 1 | G110: =H110*1000 -> 6077.49 | H110: =ROUND(($I$138*0.05),5) -> 6.07749 | J110: =ROUND(H110*1000,2) -> 6077.49
A111: 6.2 | B111: Ремонт, регулировка, промывка и опрессовка систем центрального отопления, утепление бойлеров | C111: 1 | D111: В ходе подготовки к эксплуатации дома в осенне-зимний период | E111: КХ | F111: 1 | G111: =H111*1000 -> 30387.45 | H111: =ROUND(($I$138*0.25),5) -> 30.38745 | J111: 30387.45
A112: 6.3 | B112: Утепление вентиляционных и дымовых каналов | C112: 0 | D112: В ходе подготовки к эксплуатации дома в осенне-зимний период | E112: КХ | F112: 0 | G112: 0 | H112: 0 | J112: 0
A113: 6.4 | B113: Прочистка вентиляционных и дымовых каналов | C113: 0 | D113: В ходе подготовки к эксплуатации дома в осенне-зимний период | E113: КХ | F113: 0 | G113: 0 | H113: 0 | J113: 0
A114: 6.5 | B114: Ремонт и утепление наружных водоразборных кранов | C114: 0 | D114: В ходе подготовки к эксплуатации дома в осенне-зимний период | E114: КХ | F114: 0 | G114: 0 | H114: 0 | J114: 0
A115: 6.6 | B115: Проведение технических осмотров систем водопровода и канализации, центрального отопления и горячего водоснабжения, электротехнических устройств, вентиляционных каналов | C115: 0 | D115: по мере необходимости | E115: КХ | F115: 0 | G115: 0 | H115: 0 | J115: 0
A116: 6.7 | B116: Устранение неисправностей в системах водопровода и канализации, центрального отопления и горячего водоснабжения, электротехнических устройств, вентиляционных и дымовых каналов | C116: 1 | D116: В ходе подготовки к эксплуатации дома в осенне-зимний период | E116: КХ | F116: 1 | G116: =H116*1000 -> 14585.98 | H116: =ROUND(($I$138*0.12),5) -> 14.58598 | J116: 14585.98
A117: 6.8 | B117: Проверка исправности канализационных вытяжек | C117: 0 | D117: Устранение по мере обнаружения дефектов | E117: КХ | F117: 0 | G117: 0 | H117: 0 | J117: 0
A118: 6.9 | B118: Устранение засора внутреннего канализационного трубопровода | C118: 0 | D118: раз в год | E118: КХ | F118: 0 | G118: 0 | H118: 0 | J118: 0
A119: 6.10 | B119: Регулировка и наладка систем автоматики расширительных баков | C119: =IF(F119>0,1,0) -> 0 | D119: раз в месяц | E119: КХ | F119: 0 | G119: 0 | H119: 0 | I119: 0 | J119: 0
A120: 6.11 | B120: Проверка заземления оболочки электрокабеля, оборудования (насосы, щитовые вентиляторы и др.) | C120: =IF(H120,1,0) -> 0 | D120: раз в год | E120: КХ | F120: =C120 -> 0 | G120: =H120*1000 -> 0 | H120: 0 | I120: 0 | J120: 0
A121: 6.12 | B121: Замеры сопротивления изоляции проводов, трубопроводов и восстановление цепей заземления | C121: 1 | D121: раз в год | E121: КХ | F121: 1 | G121: =H121*1000 -> 21015 | H121: 21.015 | I121: 21.02 | J121: 21015
A122: 6.13 | B122: Поверка общедомовых приборов учета горячего и холодного водоснабжения, отопления, электроснабжения | C122: 0 | D122: В ходе подготовки к эксплуатации дома в осенне-зимний период | E122: КХ | F122: 0 | G122: 0 | H122: 0 | J122: 0
A123: 6.14 | B123: Ремонт общедомовых приборов учета горячего и холодного водоснабжения, отопления, электроснабжения | C123: 0 | D123: В ходе подготовки к эксплуатации дома в осенне-зимний период | E123: КХ | F123: 0 | G123: 0 | H123: 0 | J123: 0
A124: 6.15 | B124: Обслуживание ламп-сигналов | C124: 0 | D124: Работа не выполняется | F124: 0 | G124: 0 | H124: 0 | J124: 0
A125: 6.16 | B125: Замена и восстановление отдельных элементов системы отопления с выполнением наладочных регулировочных работ, ликвидацией непрогревов и неисправностей в квартирах | C125: 1 | D125: В ходе подготовки к эксплуатации дома в осенне-зимний период | E125: КХ | F125: 1 | G125: =H125*1000 -> 18232.47 | H125: =ROUND(($I$138*0.15),5) -> 18.23247 | J125: 18232.47
A126: 6.17 | B126: Замена и восстановление отдельных элементов системы холодного водоснабжения, при необходимости отключение и включение стояков | C126: 1 | D126: В ходе подготовки к эксплуатации дома в осенне-зимний период | E126: КХ | F126: 1 | G126: =H126*1000 -> 13370.48 | H126: =ROUND(($I$138*0.11),5) -> 13.37048 | J126: 13370.48
A127: 6.18 | B127: Замена и восстановление отдельных элементов системы горячего водоснабжения, при необходимости отключение и включение стояков | C127: 0 | D127: В ходе подготовки к эксплуатации дома в осенне-зимний период | E127: КХ | F127: 0 | G127: 0 | H127: 0 | J127: 0
A128: 6.19 | B128: Замена и восстановление отдельных элементов системы канализации, в том числе ликвидация засоров, за исключением внутриквартирного сантехоборудования | C128: 1 | D128: В ходе подготовки к эксплуатации дома в осенне-зимний период | E128: КХ | F128: 1 | G128: =H128*1000 -> 8508.49 | H128: =ROUND(($I$138*0.07),5) -> 8.50849 | J128: 8508.49
A129: 6.20 | B129: Замена и восстановление отдельных элементов внутридомового электрооборудования (за исключением внутриквартирных устройств и приборов) | C129: 1 | D129: В ходе подготовки к эксплуатации дома в осенне-зимний период | E129: КХ | F129: 1 | G129: =H129*1000 -> 21878.97 | H129: =ROUND(($I$138*0.18),5) -> 21.87897 | J129: 21878.97
A130: 6.21 | B130: Гидропневматическая очистка системы отопления | C130: 0 | D130: Работа не выполняется | F130: 0 | G130: 0 | H130: 0 | I130: 0 | J130: 0
A131: 6.22 | B131: Обслуживание и ремонт АУУТЭ | C131: 0 | D131: раз в месяц | E131: КХ | F131: 0 | G131: 0 | H131: 0 | J131: 0
A132: 6.23 | B132: Обслуживание и ремонт АСКУЭ | C132: 0 | D132: раз в месяц | E132: КХ | F132: 0 | G132: 0 | H132: 0 | J132: 0
A133: 6.24 | B133: Обслуживание и ремонт насосных пунктов | C133: 0 | D133: раз в месяц | E133: КХ | F133: 0 | G133: 0 | H133: 0 | J133: 0
A134: 6.25 | B134: Обслуживание и ремонт тепловых пунктов | C134: 0 | D134: Работа не выполняется | F134: 0 | G134: 0 | H134: 0 | I134: 0 | J134: 0
A135: 6.26 | B135: Обслуживание и ремонт крышных газовых котельных | C135: 0 | D135: Работа не выполняется | F135: 0 | G135: 0 | H135: 0 | I135: 0 | J135: 0
A136: 6.27 | B136: Ремонт электрооборудования (эл. щитков, замена АВР (аварийное включение резерва) и др. работы) | C136: 0 | D136: по мере необходимости | E136: КХ | F136: 0 | G136: 0 | H136: 0 | J136: 0
A137: 6.28 | B137: Техническое обслуживание светильников дежурного освещения | C137: 0 | D137: по мере необходимости | E137: КХ | F137: 0 | G137: 0 | H137: 0 | J137: 0
A138: 6.29 | B138: Иное (Работы по содержанию и ремонту оборудования и систем инженерно-технического обеспечения, входящих в состав общего имущества в многоквартирном доме) | C138: Х | D138: 0 | E138: 0 | F138: Х | G138: Х | H138: =I138-H110-H111-H125-H126-H127-H128-H129-H116 -> 8.508483 | I138: =J197*0.7 -> 121.549813 | J138: =ROUND(L19,2) -> 0
A139: 7 | B139: Работы по содержанию и ремонту мусоропроводов в многоквартирном доме | H139: 0 | I139: =I140+I141+I142+I143+I144+I145+I146+I147+I148+I149+I150 -> 0 | J139: =J140+J141+J142+J143+J144+J145+J146+J147+J148+J149+J150 -> 0 | BV139: ммм | CQ139: mmm
A140: 7.1 | B140: Восстановление работоспособности вентиляционных и промывочных устройств, мусороприемных клапанов и шиберных устройств | C140: 0 | D140: В ходе подготовки к эксплуатации дома в осенне-зимний период | E140: КХ | F140: 0 | G140: 0 | H140: 0
A141: 7.2 | B141: Профилактический осмотр мусоропроводов | C141: 0 | D141: В ходе подготовки к эксплуатации дома в осенне-зимний период | E141: КХ | F141: 0 | G141: 0 | H141: 0 | J141: =ROUND(H141*1000,2) -> 0
A142: 7.3 | B142: Видеодиагностика внутренней поверхности асбестоцементных стволов мусоропровода | C142: 0 | D142: В ходе подготовки к эксплуатации дома в осенне-зимний период | E142: КХ | F142: 0 | G142: 0 | H142: 0
A143: 7.4 | B143: Уборка загрузочных клапанов мусоропроводов | C143: 0 | D143: В ходе подготовки к эксплуатации дома в осенне-зимний период | E143: КХ | F143: 0 | G143: 0 | H143: 0
A144: 7.5 | B144: Мойка сменных мусоросборников | C144: 0 | D144: В ходе подготовки к эксплуатации дома в осенне-зимний период | E144: КХ | F144: 0 | G144: 0 | H144: 0
A145: 7.6 | B145: Мойка нижней части ствола и шибера мусоропровода | C145: 0 | D145: В ходе подготовки к эксплуатации дома в осенне-зимний период | E145: КХ | F145: 0 | G145: 0 | H145: 0
A146: 7.7 | B146: Очистка и дезинфекция всех элементов ствола мусоропровода | C146: 0 | D146: В ходе подготовки к эксплуатации дома в осенне-зимний период | E146: КХ | F146: 0 | G146: 0 | H146: 0
A147: 7.8 | B147: Дезинфекция мусоросборников | C147: 0 | D147: В ходе подготовки к эксплуатации дома в осенне-зимний период | E147: КХ | F147: 0 | G147: 0 | H147: 0
A148: 7.9 | B148: Устранение засора | C148: 0 | D148: В ходе подготовки к эксплуатации дома в осенне-зимний период | E148: КХ | F148: 0 | G148: 0 | H148: 0
A149: 7.10 | B149: Мелкий ремонт неисправностей мусоропровода | C149: 0 | D149: В ходе подготовки к эксплуатации дома в осенне-зимний период | E149: КХ | F149: 0 | G149: 0 | H149: 0
A150: 7.11 | B150: Иное (Работы по содержанию и ремонту мусоропроводов в многоквартирном доме) | C150: Х | D150: 0 | E150: 0 | F150: Х | G150: Х | H150: 0
A151: 8 | B151: Работы по содержанию и ремонту лифта (лифтов) в многоквартирном доме | H151: 0 | I151: =I152+I153+I154 -> 0 | J151: =J152+J153+J154 -> 0
A152: 8.1 | B152: Обслуживание лифтов и лифтового оборудования | C152: 0 | D152: Круглосуточно | E152: шт | F152: 0 | G152: 0 | H152: =ROUND((C152*F152*G152/1000),5) -> 0
A153: 8.2 | B153: Организация системы диспетчерского контроля и обеспечение диспетчерской связи с кабиной лифта | C153: 0 | D153: Работа не выполняется | E153: КХ | F153: 0 | G153: 0 | H153: 0
A154: 8.3 | B154: Иное (Работы по содержанию и ремонту лифта (лифтов) в многоквартирном доме) | C154: Х | D154: 0 | E154: 0 | F154: Х | G154: Х | H154: 0
A155: 9 | B155: Работы по обеспечению требований пожарной безопасности | H155: 0 | I155: =I156+I157+I158+I159 -> 0 | J155: =J156+J157+J158+J159 -> 0
A156: 9.1 | B156: Осмотр пожарной сигнализации и средств тушения в домах | C156: 0 | D156: раз в год | E156: КХ | F156: 0 | G156: 0 | H156: 0 | J156: =ROUND(H156*1000,2) -> 0
A157: 9.2 | B157: Обслуживание систем дымоудаления и противопожарной безопасности | C157: =IF(F157>0,12,0) -> 0 | D157: Круглосуточно | E157: шт | F157: =IF(J157>0,F152,0) -> 0 | G157: =IF(F157>0,J157/C157/F157,0) -> 0 | H157: =ROUND((C157*F157*G157/1000),5) -> 0 | I157: 0 | J157: =ROUND(H157*1000,2) -> 0
A158: 9.3 | B158: Замена и восстановление работоспособности элементов пожаротушения (трубопроводов, включая ввод и стояки пожарного водопровода) | C158: 0 | D158: в течение суток после обнаружения | E158: КХ | F158: 0 | G158: 0 | H158: 0 | J158: =ROUND(H158*1000,2) -> 0
A159: 9.4 | B159: Иное (Работы по обеспечению требований пожарной безопасности) | C159: Х | D159: 0 | E159: 0 | F159: Х | G159: Х | H159: 0
A160: 10 | B160: Работы по содержанию и ремонту систем вентиляции | H160: =H161+H162+H163+H164 -> 0 | I160: =I161+I162+I163+I164 -> 0 | J160: =J161+J162+J163+J164 -> 0
A161: 10.1 | B161: Проверка наличия тяги в дымоходах, вентиляционных каналах | C161: 0 | F161: 0 | G161: 0 | H161: 0 | J161: =ROUND(H161*1000,2) -> 0
A162: 10.2 | B162: Регулировка и наладка систем вентиляции | C162: 0 | F162: 0 | G162: 0 | H162: 0 | J162: =ROUND(H162*1000,2) -> 0
A163: 10.3 | B163: Замена и восстановление работоспособности отдельных общедомовых элементов | C163: 0 | F163: 0 | G163: 0 | H163: 0 | I163: 0 | J163: =ROUND(H163*1000,2) -> 0
A164: 10.4 | B164: Иное (Работы по содержанию и ремонту систем вентиляции) | C164: Х | D164: 0 | E164: 0 | F164: Х | G164: Х | H164: 0
A165: 11 | B165: Работы по содержанию и ремонту систем внутридомового газового оборудования | H165: =H166+H167+H168 -> 11.291 | I165: =I166+I167+I168 -> 11.29 | J165: =J166+J167+J168 -> 11291
A166: 11.1 | B166: Проверка состояния системы внутридомового газового оборудования и ее отдельных элементов | C166: =IF(H166>0,1,0) -> 1 | D166: раз в год | E166: шт | F166: =IF(H166>0,1,0) -> 1 | G166: =J166 -> 11291 | H166: 11.291 | I166: 11.29 | J166: =ROUND(H166*1000,2) -> 11291
A167: 11.2 | B167: Замена и восстановление работоспособности отдельных элементов системы внутридомового газового оборудования | C167: 0 | D167: по мере необходимости | E167: шт | F167: 0 | G167: 0 | H167: 0 | J167: =ROUND(H167*1000,2) -> 0
A168: 11.3 | B168: Иное (Работы по содержанию и ремонту систем внутридомового газового оборудования) | C168: Х | D168: 0 | E168: 0 | F168: Х | G168: Х | H168: 0
A169: 12 | B169: Обеспечение устранения аварий на внутридомовых инженерных системах в многоквартирном доме | H169: =H170+H171+H172 -> 20.855 | I169: =I170+I171+I172 -> 20.86 | J169: =J170+J171+J172 -> 20855
A170: 12.1 | B170: Устранение аварии | C170: 1 | D170: Незамедлительное реагирование с момента получения заявки | E170: КХ | F170: 1 | G170: =J170 -> 20855 | H170: 20.855 | I170: 20.86 | J170: =ROUND(H170*1000,2) -> 20855
A171: 12.2 | B171: Выполнение заявок населения | C171: =IF(H171>0,1,0) -> 0 | D171: Незамедлительное реагирование с момента получения заявки | E171: КХ | F171: =IF(H171>0,1,0) -> 0 | G171: =J171 -> 0 | H171: 0 | I171: 0 | J171: =ROUND(H171*1000,2) -> 0
A172: 12.3 | B172: Иное (Обеспечение устранения аварий на внутридомовых инженерных системах в многоквартирном доме) | C172: Х | D172: 0 | E172: 0 | F172: Х | G172: Х | H172: 0
A173: 13 | B173: Расход электроэнергии, потребленной на дежурное освещение мест общего пользования и работу лифтов (общедомовые нужды) | H173: 15.225 | I173: 15.23 | J173: =ROUND(H173*1000,2) -> 15225
A174: 14 | B174: Расход воды на общедомовые нужды | H174: 9.551 | I174: 9.55 | J174: =ROUND(H174*1000,2) -> 9551
A175: 15 | B175: Проведение дератизации и дезинсекции помещений, входящих в состав общего имущества в многоквартирном доме | H175: =H176+H177 -> 0 | I175: =I176+I177 -> 0.01 | J175: =J176+J177 -> 0
A176: 15.1 | B176: Дератизация | C176: 0 | D176: раз в год | E176: КХ | F176: 0 | G176: 0 | H176: 0 | I176: 0 | J176: =ROUND(H176*1000,2) -> 0
A177: 15.2 | B177: Дезинсекция | C177: =IF(H177>0,1,0) -> 0 | D177: Незамедлительное реагирование с момента получения заявки | E177: КХ | F177: =IF(H177>0,1,0) -> 0 | G177: =J177 -> 0 | H177: 0 | I177: 0.01 | J177: =ROUND(H177*1000,2) -> 0
A178: 16 | B178: Прочие работы и услуги по содержанию и ремонту общего имущества в многоквартирном доме | H178: =H179+H180+H181 -> 12.15498 | I178: =I179+I180+I181 -> 27.12 | J178: =J179+J180+J181 -> 12154.98
A179: 16.1 | B179: Техническая инвентаризация | C179: 0 | D179: раз в год | E179: КХ | F179: 0 | G179: 0 | H179: 0 | I179: 0 | J179: =ROUND(H179*1000,2) -> 0
A180: 16.2 | B180: Техническое обслуживание систем дистанционного снятия показаний индивидуальных приборов учета (водопотребления и электроэнергии) | C180: 0 | D180: Работа не выполняется | F180: 0 | G180: 0 | H180: 0 | I180: 0 | J180: =ROUND(H180*1000,2) -> 0
A181: 16.3 | B181: Иное (Прочие работы и услуги по содержанию и ремонту общего имущества в многоквартирном доме) | C181: Х | D181: 0 | E181: 0 | F181: Х | G181: Х | H181: =ROUND((J197*0.07),5) -> 12.15498 | I181: 27.12 | J181: =ROUND(H181*1000,2) -> 12154.98
A182: 17 | B182: Работы по содержанию земельного участка с элементами озеленения и благоустройства, иными объектами, предназначенными для обслуживания и эксплуатации многоквартирного дома | H182: 0
A183: 17.1 | B183: Подметание земельного участка в летний период | C183: 0 | D183: Работа не выполняется | F183: 0 | G183: 0 | H183: 0
A184: 17.2 | B184: Полив тротуаров | C184: 0 | D184: Работа не выполняется | F184: 0 | G184: 0 | H184: 0
A185: 17.3 | B185: Уборка мусора с газона, очистка урн | C185: 0 | D185: Работа не выполняется | F185: 0 | G185: 0 | H185: 0
A186: 17.4 | B186: Уборка мусора на контейнерных площадках | C186: 0 | D186: Работа не выполняется | F186: 0 | G186: 0 | H186: 0
A187: 17.5 | B187: Полив газонов | C187: 0 | D187: Работа не выполняется | F187: 0 | G187: 0 | H187: 0
A188: 17.6 | B188: Стрижка газонов | C188: 0 | D188: Работа не выполняется | F188: 0 | G188: 0 | H188: 0
A189: 17.7 | B189: Подрезка деревьев и кустов | C189: 0 | D189: Работа не выполняется | F189: 0 | G189: 0 | H189: 0
A190: 17.8 | B190: Очистка и ремонт детских и спортивных площадок, элементов благоустройства | C190: 0 | D190: Работа не выполняется | F190: 0 | G190: 0 | H190: 0
A191: 17.9 | B191: Сдвижка и подметание снега | C191: 0 | D191: Работа не выполняется | F191: 0 | G191: 0 | H191: 0
A192: 17.10 | B192: Ликвидация скользкости | C192: 0 | D192: Работа не выполняется | F192: 0 | G192: 0 | H192: 0
A193: 17.11 | B193: Иное (Работы по содержанию земельного участка с элементами озеленения и благоустройства, иными объектами, предназначенными для обслуживания и эксплуатации многоквартирного дома) | C193: Х | D193: 0 | E193: 0 | F193: Х | G193: Х | H193: 0
B194: ИТОГО РАСХОДОВ | H194: =H9+H10+H42+H45+H46+H109+H151+H155+H160+H165+H169+H173+H174+H175+H178+H182+H139 -> 430.86552 | I194: =I10+I9+I42+I46+I109+I139+I151+I155+I160+I165+I169+I173+I174+I175+I178+I45 -> 445.85354 | J194: =J10+J9+J42+J46+J109+J139+J151+J155+J160+J165+J169+J173+J174+J175+J178+J45 -> 212824.48
B195: Всего ПНР | H195: 430.86552 | I195: =J195/1000 -> 483.65034 | J195: 483650.34
I196: =I194 -> 445.85354 | J196: 0
G197: разница | H197: =H195-H194 -> 0 | I197: =I195-I196 -> 37.7968 | J197: 173.64259
H198: =H9+H10+H42+H45+H46+H109+H139+H151+H155+H160+H165+H169+H173+H174+H175+H178+H182 -> 430.86552
H201: =H195-H194 -> 0 | I201: =I199-I209 -> 0
A206: Директор ГБУ «Жилищник Красносельского района» | H206: Г.Б.Бобкова

Sheet Ананьевский пер. 5 стр.12
A1: Фактические затраты по проведению работ (оказанию услуг) на 2017 год
A2: по содержанию и ремонту общего имущества многоквартирного дома
A3: и предоставлению коммунальных услуг по адресу:
A4: Ананьевский пер. 5 стр.12
A7: № п/п | B7: Наименование работ (услуг)* | C7: Фактическая периодичность работ (услуг) | E7: Ед.измер. работ (услуг) | F7: Фактическое количество /объем | G7: Фактическая стоимость за единицу работ (услуг), руб. | H7: Фактическая стоимость в год за работы (услуги), тыс. руб. для портала | I7: Фактическая стоимость в год за работы (услуги), тыс. руб. расчетная | J7: Фактическая стоимость в год за работы (услуги), руб. | L7: =H111 -> 12.33228
A8: 1 | B8: 2 | C8: 3 | E8: 4 | F8: 4 | G8: 5 | H8: 6 | I8: 7
A9: 1 | B9: Работы (услуги) по управлению многоквартирным домом | H9: 74.72 | I9: 74.72 | J9: =ROUND(H9*1000,2) -> 74720 | BV9: ттт
A10: 2 | B10: Работы по содержанию помещений, входящих в состав общего имущества в многоквартирном доме | H10: =H11+H12+H13+H14+H15+H16+H19+H20+H31+H35+H38+H39 -> 125.15134 | I10: =I11+I12+I13+I14+I15+I16+I20+I31+I35+I38+I39+I40+I41+I19 -> 125.15134 | J10: =J11+J12+J13+J14+J15+J16+J20+J31+J35+J38+J39+J40+J41+J19 -> 113141.94
A11: 2.1 | B11: Влажное подметание лестничных площадок и маршей нижних 2 этажей | C11: 299 | D11: раз в день, кроме праздничных и воскресных дней | E11: М2 | F11: 77.5 | G11: 1.67 | H11: =ROUND((F11*G11*K11)/1000,5) -> 38.69808 | I11: =H11 -> 38.69808 | J11: =ROUND(F11*G11*K11,2) -> 38698.08 | K11: 299
A12: 2.2 | B12: Влажное подметание лестничных площадок и маршей выше 2-го этажа | C12: 104 | D12: раз в неделю | E12: М2 | F12: 77.5 | G12: 1.27 | H12: =ROUND((F12*G12*C12)/1000,5) -> 10.2362 | I12: =H12 -> 10.2362 | J12: =ROUND(F12*G12*K12,2) -> 5118.1 | K12: 52
A13: 2.3 | B13: Влажное подметание перед загрузочными клапанами мусоропроводов | C13: 0 | D13: раз в день, кроме праздничных и воскресных дней | E13: М2 | F13: 0 | G13: 0 | H13: =ROUND((F13*G13*K13)/1000,5) -> 0
A14: 2.4 | B14: Уборка загрузочных клапанов мусоропровода | C14: 0 | D14: раз в неделю | E14: ШТ | F14: 0 | G14: 0 | H14: =ROUND((F14*G14*K14)/1000,5) -> 0
A15: 2.5 | B15: Мытье пола кабины лифта | C15: 0 | D15: раз в день, кроме праздничных и воскресных дней | E15: М2 | F15: 0 | G15: 0 | H15: =ROUND((F15*G15*K15)/1000,5) -> 0
A16: 2.6 | B16: Мытье лестничных площадок | C16: Х | D16: 0 | E16: 0 | F16: Х | G16: Х | H16: =H17+H18 -> 13.7826 | I16: =H16 -> 13.7826 | J16: =J17+J18 -> 6891.3
A17: 2.6.1 | B17: Мытье лестничных площадок и маршей нижних 2-х этажей | C17: 24 | D17: раз в месяц | E17: М2 | F17: =F11 -> 77.5 | G17: 4.07 | H17: =ROUND((F17*G17*C17)/1000,5) -> 7.5702 | I17: 7.5702 | J17: =ROUND(F17*G17*K17,2) -> 3785.1 | K17: 12
A18: 2.6.2 | B18: Мытье лестничных площадок и маршей выше 2-го этажа | C18: 24 | D18: раз в месяц | E18: М2 | F18: =F12 -> 77.5 | G18: 3.34 | H18: =ROUND((F18*G18*C18)/1000,5) -> 6.2124 | I18: 6.2124 | J18: =ROUND(F18*G18*K18,2) -> 3106.2 | K18: 12
A19: 2.7 | B19: Мытье окон | C19: 1 | D19: раз в год | E19: М2 | F19: 33.6 | G19: 8.43 | H19: =ROUND((F19*G19*K19)/1000,5) -> 0.28325 | I19: 0.28325 | J19: =ROUND(F19*G19*K19,2) -> 283.25 | K19: 1
A20: 2.8 | B20: Влажная протирка | C20: Х | D20: 0 | E20: 0 | F20: Х | G20: Х | H20: =H21+H22+H23+H24+H25+H26+H27+H28+H29+H30 -> 5.55793 | I20: 5.55793 | J20: =J21+J22+J23+J24+J25+J26+J27+J28+J29+J30 -> 5557.93
A21: 2.8.1 | B21: Влажная протирка стен | C21: 1 | D21: раз в год | E21: М2 | F21: 1733.67 | G21: 2.81 | H21: =ROUND((F21*G21*K21)/1000,5) -> 4.87161 | I21: 4.87161 | J21: =ROUND(F21*G21*K21,2) -> 4871.61 | K21: 1
A22: 2.8.2 | B22: Влажная протирка плафонов на лестничных клетках | C22: 1 | D22: раз в год | E22: ШТ | F22: 16 | G22: 1.75 | H22: 0.028 | I22: 0.028 | J22: 28 | K22: 1
A23: 2.8.3 | B23: Влажная протирка дверных полотен на лестничных клетках | C23: 1 | D23: раз в год | E23: М2 | F23: 53,6 | G23: 4.1 | H23: 0.21976 | I23: 0.21976 | J23: 219.76 | K23: 1
A24: 2.8.4 | B24: Влажная протирка подоконников | C24: 2 | D24: раз в год | E24: М2 | F24: 2,52 | G24: 4.08 | H24: 0.02056 | I24: 0.02056 | J24: 20.56 | K24: 2
A25: 2.8.5 | B25: Влажная протирка оконных решеток | C25: 1 | D25: раз в год | E25: М2 | F25: 7 | G25: 3.93 | H25: 0.02751 | I25: 0.02751 | J25: 27.51 | K25: 1
A26: 2.8.6 | B26: Влажная протирка чердачных лестниц | C26: 1 | D26: раз в год | E26: М2 | F26: 116,25 | G26: 2.64 | H26: 0.3069 | I26: 0.3069 | J26: 306.9 | K26: 1
A27: 2.8.7 | B27: Влажная протирка отопительных приборов | C27: 2 | D27: раз в год | E27: М2 | F27: 6,4 | G27: 5.07 | H27: 0.0649 | I27: 0.0649 | J27: 64.9 | K27: 2
A28: 2.8.8 | B28: Влажная протирка шкафов для электросчетчиков, слаботочных устройств | C28: 1 | D28: раз в год | E28: М2 | F28: 4 | G28: 2.52 | H28: 0.01008 | I28: 0.01008 | J28: 10.08 | K28: 1
A29: 2.8.9 | B29: Влажная протирка почтовых ящиков | C29: 1 | D29: раз в год | E29: М2 | F29: 4,2 | G29: 2.05 | H29: 0.00861 | I29: 0.00861 | J29: 8.61 | K29: 1
A30: 2.8.10 | B30: Влажная протирка стен, дверей кабины лифта | C30: 0 | D30: раз в месяц | E30: М2 | F30: 0 | G30: 0 | H30: 0
A31: 2.9 | B31: Очистка кровли | C31: Х | D31: 0 | E31: 0 | F31: Х | G31: Х | H31: =H32+H33+H34 -> 55.60962 | I31: =I32+I33+I34 -> 55.60962 | J31: =J32+J33+J34 -> 55609.62
A32: 2.9.1 | B32: Очистка кровли и ее элементов (в том числе козырьков над подъездами) от мусора и листьев | C32: 2 | D32: раз в год | E32: М2 | F32: 773 | G32: 2.01 | H32: =ROUND(F32*G32*K32/1000,5) -> 3.10746 | I32: =H32 -> 3.10746 | J32: =ROUND(H32*1000,2) -> 3107.46 | K32: 2 | M32: 773
A33: 2.9.2 | B33: Очистка кровли от снега | C33: 3 | D33: Работа не выполняется | E33: КХ | F33: 773 | G33: 7.67 | H33: =ROUND(G33*F33*K33/1000,5) -> 17.78673 | I33: =H33 -> 17.78673 | J33: =ROUND(H33*1000,2) -> 17786.73 | K33: 3
A34: 2.9.3 | B34: Очистка кровли от снега и наледеобразований | C34: 3 | D34: Работа не выполняется | E34: КХ | F34: 773 | G34: 14.97 | H34: =ROUND(G34*F34*K34/1000,5) -> 34.71543 | I34: =H34 -> 34.71543 | J34: =ROUND(H34*1000,2) -> 34715.43 | K34: 3
A35: 2.10 | B35: Смена частей водосточных труб и прочистка внутреннего водостока | C35: Х | D35: 0 | E35: 0 | F35: Х | G35: Х | H35: =H36+H37 -> 0 | I35: =I36+I37 -> 0 | J35: =J36+J37 -> 0
A36: 2.10.1 | B36: Смена частей водосточных труб | C36: 0 | D36: в течение суток после обнаружения | E36: ШТ | F36: 0 | G36: 0 | H36: 0 | I36: 0 | J36: 0
A37: 2.10.2 | B37: Прочистка водоприемной воронки внутреннего водостока | C37: =IF(F37>0,2,0) -> 0 | D37: в течение суток после обнаружения | E37: ШТ | F37: 0 | G37: 0 | H37: =ROUND(G37*F37*C37/1000,5) -> 0 | M37: 264.96
A38: 2.11 | B38: Очистка подвалов и чердаков от мусора | C38: 1 | D38: раз в год | E38: М2 | F38: =L38 -> 596.16 | G38: 1.65 | H38: =ROUND((F38*G38*K38)/1000,5) -> 0.98366 | I38: =H38 -> 0.98366 | J38: =ROUND(F38*G38*K38,2) -> 983.66 | K38: 1 | L38: =M37+M38 -> 596.16 | M38: 331.2
A39: 2.12 | B39: Уборка мусороприемной камеры | C39: 0 | D39: раз в день, кроме праздничных и воскресных дней | E39: М2 | F39: 0 | G39: 0 | H39: =ROUND((F39*G39*K39)/1000,5) -> 0
A40: 2.13 | B40: Ремонт почтовых ящиков, установка, смена замка | C40: 0 | D40: В течении суток с момента получения заявки | E40: КХ | F40: 0 | G40: 0 | H40: =ROUND(G40*F40/1000,5) -> 0 | I40: =H40 -> 0 | J40: =ROUND(H40*1000,2) -> 0
A41: 2.14 | B41: Иное (Работы по содержанию помещений, входящих в состав общего имущества в многоквартирном доме) | C41: Х | D41: 0 | E41: 0 | F41: Х | G41: Х | H41: 0
A42: 3 | B42: Работы по обеспечению вывоза твердых бытовых отходов | H42: =H43+H44 -> 0 | I42: =I43+I44 -> 0 | J42: =J43+J44 -> 0 | Q42: жители | R42: 50
A43: 3.1 | B43: Удаление мусора из мусороприемных камер | C43: 0 | D43: раз в день | E43: М3 | F43: 0 | G43: 0 | H43: =ROUND((F43*G43*K43)/1000,5) -> 0 | N43: =ROUND(R42*1.45/365,3) -> 0.199 | O43: м3 мусора в день | Q43: место мусороприемной камеры
A44: 3.2 | B44: Иное (Работы по обеспечению вывоза твердых бытовых отходов) | C44: 0 | D44: 0 | E44: 0 | F44: 0 | G44: 0 | H44: 0 | J44: =ROUND(H44*1000,2) -> 0
A45: 4 | B45: Работы по обеспечению вывоза крупногабаритного мусора | C45: 0 | D45: 0 | E45: 0 | F45: 0 | G45: 0 | H45: 0 | J45: =ROUND(H45*1000,2) -> 0 | Q45: в цокольном этаже | R45: =IF(R43=Q45,274.83,0) -> 0
A46: 5 | B46: Работы по содержанию и ремонту конструктивных элементов (несущих и ненесущих конструкций) многоквартирных домов | H46: =H47+H53+H63+H68+H77+H85+H98+H103 -> 16.208138 | I46: =I47+I53+I63+I68+I77+I85+I98+I103 -> 16.208138 | J46: =J47+J53+J63+J68+J77+J85+J98+J103 -> 15721.9 | Q46: в подвале | R46: =IF(R43=Q46,341.86,0) -> 0 | BV46: ррр | CQ46: ррр
A47: 5.1 | B47: Фундамент | H47: =H48+H49+H50+H51+H52 -> 0.8104 | I47: =I48+I49+I50+I51+I52 -> 0 | J47: =J48+J49+J50+J51+J52 -> 810.4 | R47: =SUM(R45:R46) -> 0
A48: 5.1.1 | B48: Восстановление поврежденных участков фундаментов | C48: 0 | D48: 0 | E48: 0 | F48: 0 | G48: 0 | H48: 0
A49: 5.1.2 | B49: Восстановление гидроизоляции и систем водоотвода фундаментов | C49: 0 | D49: 0 | E49: 0 | F49: 0 | G49: 0 | H49: =ROUND(($I$108*0.03),5) -> 0.48624 | J49: =ROUND(H49*1000,2) -> 486.24 | K49: 5
A50: 5.1.3 | B50: Восстановление поврежденных участков вентиляционных продухов | C50: 0 | D50: 0 | E50: 0 | F50: 0 | G50: 0 | H50: =ROUND(($I$108*0.02),5) -> 0.32416 | J50: =ROUND(H50*1000,2) -> 324.16
A51: 5.1.4 | B51: Восстановление поврежденных участков входов в подвалы | C51: 0 | D51: 0 | E51: 0 | F51: 0 | G51: 0 | H51: 0 | J51: =ROUND(H51*1000,2) -> 0
A52: 5.1.5 | B52: Иное (Фундамент) | C52: Х | D52: 0 | E52: 0 | F52: Х | G52: Х | H52: 0 | J52: =ROUND(H52*1000,2) -> 0
A53: 5.2 | B53: Стены и фасад | H53: =H54+H55+H56+H57+H58+H59+H60+H61+H62 -> 1.13457 | I53: =I54+I55+I56+I57+I58+I59+I60+I61+I62 -> 0 | J53: =J54+J55+J56+J57+J58+J59+J60+J61+J62 -> 1134.57
A54: 5.2.1 | B54: Герметизация стыков стен и фасадов | C54: 0 | D54: 0 | E54: 0 | F54: 0 | G54: 0 | H54: 0 | J54: =ROUND(H54*1000,2) -> 0
A55: 5.2.2 | B55: Заделка и восстановление архитектурных элементов | C55: 0 | D55: 0 | E55: 0 | F55: 0 | G55: 0 | H55: 0 | J55: 0
A56: 5.2.3 | B56: Ремонт штукатурки гладких фасадов | C56: 0 | D56: 0 | E56: 0 | F56: 0 | G56: 0 | H56: 0 | J56: 0
A57: 5.2.4 | B57: Окраска, промывка фасадов | C57: 0 | D57: 0 | E57: 0 | F57: 0 | G57: 0 | H57: 0 | J57: 0
A58: 5.2.5 | B58: Восстановление поврежденных участков цоколей | C58: 0 | D58: 0 | E58: 0 | F58: 0 | G58: 0 | H58: 0 | J58: 0
A59: 5.2.6 | B59: Окраска, промывка цоколей | C59: 0 | D59: 0 | E59: 0 | F59: 0 | G59: 0 | H59: =ROUND(($I$108*0.07),5) -> 1.13457 | J59: 1134.57 | K59: 7
A60: 5.2.7 | B60: Смена пластмассового короба домового знака или уличного указателя | C60: 0 | D60: 0 | E60: 0 | F60: 0 | G60: 0 | H60: 0 | J60: 0
A61: 5.2.8 | B61: Восстановление гидроизоляции между цокольной частью здания и стенами | C61: 0 | D61: 0 | E61: 0 | F61: 0 | G61: 0 | H61: 0 | J61: 0
A62: 5.2.9 | B62: Иное (Стены и фасад) | C62: Х | D62: 0 | E62: 0 | F62: Х | G62: Х | H62: 0
A63: 5.3 | B63: Перекрытия | H63: =H64+H65+H66+H67 -> 0 | I63: =I64+I65+I66+I67 -> 0 | J63: =J64+J65+J66+J67 -> 0
A64: 5.3.1 | B64: Частичная смена отдельных деревянных элементов | C64: 0 | D64: 0 | E64: 0 | F64: 0 | G64: 0 | H64: 0 | J64: =ROUND(H64*1000,2) -> 0
A65: 5.3.2 | B65: Заделка швов и трещин | C65: 0 | D65: 0 | E65: 0 | F65: 0 | G65: 0 | H65: 0 | J65: =ROUND(H65*1000,2) -> 0
A66: 5.3.3 | B66: Укрепление и окраска | C66: 0 | D66: 0 | E66: 0 | F66: 0 | G66: 0 | H66: 0 | J66: =ROUND(H66*1000,2) -> 0
A67: 5.3.4 | B67: Иное (Перекрытия) | C67: Х | D67: 0 | E67: 0 | F67: Х | G67: Х | H67: 0
A68: 5.4 | B68: Крыши | H68: =H69+H70+H71+H72+H75+H76 -> 1.45873 | I68: =I69+I70+I71+I72+I75+I76 -> 0 | J68: =J69+J70+J71+J72+J73+J74+J75+J76 -> 1458.73
A69: 5.4.1 | B69: Усиление элементов деревянной стропильной системы, | C69: 0 | D69: 0 | E69: 0 | F69: 0 | G69: 0 | H69: 0 | J69: =ROUND(H69*1000,2) -> 0
A70: 5.4.2 | B70: Устранение неисправностей и ремонт стальных, асбестоцементных и других кровельных покрытий | C70: 0 | D70: 0 | E70: 0 | F70: 0 | G70: 0 | H70: 0 | J70: =ROUND(H70*1000,2) -> 0
A71: 5.4.3 | B71: Разборка и ремонт кровли из рулонных материалов | C71: 0 | D71: 0 | E71: 0 | F71: 0 | G71: 0 | H71: 0 | J71: =ROUND(H71*1000,2) -> 0
A72: 5.4.4 | B72: Ремонт конструкций и элементов крыши | C72: 0 | D72: 0 | E72: 0 | F72: 0 | G72: 0 | H72: 0 | I72: =I73+I74 -> 0 | J72: =J73+J74 -> 0
A73: 5.4.4.1 | B73: Ремонт частей водосточных труб | C73: 0 | D73: 0 | E73: 0 | F73: 0 | G73: 0 | H73: 0 | J73: =ROUND(H73*1000,2) -> 0
A74: 5.4.4.2 | B74: Ремонт металлической парапетной решетки | C74: 0 | D74: 0 | E74: 0 | F74: 0 | G74: 0 | H74: 0 | J74: =ROUND(H74*1000,2) -> 0
A75: 5.4.5 | B75: Окраска конструкций и элементов крыши | C75: 0 | D75: 0 | E75: 0 | F75: 0 | G75: 0 | H75: 0 | J75: =ROUND(H75*1000,2) -> 0
A76: 5.4.6 | B76: Иное (Крыши) | C76: Х | D76: 0 | E76: 0 | F76: Х | G76: Х | H76: =ROUND(($I$108*0.09),5) -> 1.45873 | J76: =ROUND(H76*1000,2) -> 1458.73 | K76: 9
A77: 5.5 | B77: Оконные и дверные заполнения на лестничных клетках и во вспомогательных помещениях общего пользования, входные двери | H77: =H78+H79+H80+H81+H82+H83+H84 -> 2.26914 | I77: =I78+I79+I80+I81+I82+I83+I84 -> 0 | J77: =J78+J79+J80+J81+J82+J83+J84 -> 1782.9
A78: 5.5.1 | B78: Ремонт дверей в помещениях общего пользования | C78: 0 | D78: 0 | E78: 0 | F78: 0 | G78: 0 | H78: =ROUND(($I$108*0.07),5) -> 1.13457 | J78: =ROUND(H78*1000,2) -> 1134.57 | K78: 7
A79: 5.5.2 | B79: Замена дверей в помещениях общего пользования | C79: 0 | D79: 0 | E79: 0 | F79: 0 | G79: 0 | H79: 0 | J79: 0
A80: 5.5.3 | B80: Ремонт или замена входных дверей в подъезды | C80: 0 | D80: 0 | E80: 0 | F80: 0 | G80: 0 | H80: 0 | J80: 0
A81: 5.5.4 | B81: Ремонт окон в помещениях общего пользования | C81: 0 | D81: 0 | E81: 0 | F81: 0 | G81: 0 | H81: =ROUND(($I$108*0.04),5) -> 0.64833 | J81: 648.33 | K81: 4
A82: 5.5.5 | B82: Замена окон в помещениях общего пользования | C82: 0 | D82: 0 | E82: 0 | F82: 0 | G82: 0 | H82: 0 | J82: 0
A83: 5.5.6 | B83: Установка и текущий ремонт доводчиков | C83: 0 | D83: 0 | E83: 0 | F83: 0 | G83: 0 | H83: 0 | J83: 0
A84: 5.5.7 | B84: Иное (Оконные и дверные заполнения на лестничных клетках и во вспомогательных помещениях общего пользования, входные двери) | C84: Х | D84: 0 | E84: 0 | F84: Х | G84: Х | H84: =ROUND(($I$108*0.03),5) -> 0.48624 | K84: 3
A85: 5.6 | B85: Лестницы, пандусы, крыльца, козырьки над входами в подъезды, подвалы и над балконами верхних этажей | H85: =H86+H87+H88+H89+H90+H91+H92+H93+H94+H95+H96+H97 -> 5.51077 | I85: =I86+I87+I88+I89+I90+I91+I92+I93+I94+I95+I96+I97 -> 0 | J85: =J86+J87+J88+J89+J90+J91+J92+J93+J94+J95+J96+J97 -> 5510.77
A86: 5.6.1 | B86: Восстановление лестницы | C86: 0 | D86: 0 | E86: 0 | F86: 0 | G86: 0 | H86: 0 | J86: =ROUND(H86*1000,2) -> 0
A87: 5.6.2 | B87: Замена лестницы | C87: 0 | D87: 0 | E87: 0 | F87: 0 | G87: 0 | H87: 0 | J87: =ROUND(I87*1000,2) -> 0
A88: 5.6.3 | B88: Восстановление пандуса | C88: 0 | D88: 0 | E88: 0 | F88: 0 | G88: 0 | H88: 0 | J88: =ROUND(H88*1000,2) -> 0
A89: 5.6.4 | B89: Замена пандуса | C89: 0 | D89: 0 | E89: 0 | F89: 0 | G89: 0 | H89: 0 | J89: 0
A90: 5.6.5 | B90: Восстановление крыльца | C90: 0 | D90: 0 | E90: 0 | F90: 0 | G90: 0 | H90: =ROUND(($I$108*0.12),5) -> 1.94498 | J90: 1944.98 | K90: 12
A91: 5.6.6 | B91: Замена крыльца | C91: 0 | D91: 0 | E91: 0 | F91: 0 | G91: 0 | H91: 0 | J91: 0
A92: 5.6.7 | B92: Восстановление козырьков над входами в подъезды, ремонт кровельного покрытия козырьков, ложных балконов | C92: 0 | D92: 0 | E92: 0 | F92: 0 | G92: 0 | H92: 0 | J92: 0
A93: 5.6.8 | B93: Замена козырьков над входами в подъезды | C93: 0 | D93: 0 | E93: 0 | F93: 0 | G93: 0 | H93: 0 | J93: 0
A94: 5.6.9 | B94: Восстановление конструкций над балконами верхних этажей | C94: 0 | D94: 0 | E94: 0 | F94: 0 | G94: 0 | H94: 0 | J94: 0
A95: 5.6.10 | B95: Замена конструкций над балконами верхних этажей | C95: 0 | D95: 0 | E95: 0 | F95: 0 | G95: 0 | H95: 0 | J95: 0
A96: 5.6.11 | B96: Ремонт полов (на лестницах, чердаках, в холлах и подвалах) | C96: 0 | D96: 0 | E96: 0 | F96: 0 | G96: 0 | H96: =ROUND(($I$108*0.16),5) -> 2.5933 | J96: 2593.3 | K96: 16
A97: 5.6.12 | B97: Иное (Лестницы, пандусы, крыльца, козырьки над входами в подъезды, подвалы и над балконами верхних этажей) | C97: 0 | D97: 0 | E97: 0 | F97: 0 | G97: 0 | H97: =ROUND(($I$108*0.06),5) -> 0.97249 | J97: 972.49 | K97: 6
A98: 5.7 | B98: Внутренняя отделка в подъездах, технических помещениях, и других помещениях общего пользования | H98: =H99+H100+H101+H102 -> 0.64833 | I98: =I99+I100+I101+I102 -> 0 | J98: =J99+J100+J101+J102 -> 648.33
A99: 5.7.1 | B99: Восстановление отделки стен | C99: 0 | D99: 0 | E99: 0 | F99: 0 | G99: 0 | H99: =ROUND(($I$108*0.04),5) -> 0.64833 | I99: 0 | J99: =ROUND(H99*1000,2) -> 648.33 | K99: 4 | BV99: ррр
A100: 5.7.2 | B100: Восстановление отделки потолков | C100: 0 | D100: 0 | E100: 0 | F100: 0 | G100: 0 | H100: 0 | J100: =ROUND(H100*1000,2) -> 0
A101: 5.7.3 | B101: Ремонт лестничных клеток | C101: 0 | D101: 0 | E101: 0 | F101: 0 | G101: 0 | H101: 0 | J101: =ROUND(H101*1000,2) -> 0
A102: 5.7.4 | B102: Ремонт технических и вспомогательных помещений | C102: 0 | D102: 0 | E102: 0 | F102: 0 | G102: 0 | H102: 0 | J102: =ROUND(H102*1000,2) -> 0
A103: 5.8 | B103: Ремонт чердаков, подвалов | H103: =H104+H105+H106+H107+H108 -> 4.376198 | I103: =I104+I105+I106+I107+I108 -> 16.208138 | J103: =J104+J105+J106+J107+J108 -> 4376.2
A104: 5.8.1 | B104: Утепление чердачных перекрытий | C104: 0 | D104: 0 | E104: 0 | F104: 0 | G104: 0 | H104: 0 | J104: =ROUND(H104*1000,2) -> 0
A105: 5.8.2 | B105: Утепление трубопроводов в чердачных помещениях | C105: 0 | D105: 0 | E105: 0 | F105: 0 | G105: 0 | H105: 0 | J105: =ROUND(H105*1000,2) -> 0
A106: 5.8.3 | B106: Утепление трубопроводов в подвальных помещениях | C106: 0 | D106: 0 | E106: 0 | F106: 0 | G106: 0 | H106: =ROUND(($I$108*0.065),5) -> 1.05353 | J106: =ROUND(H106*1000,2) -> 1053.53 | K106: 6.5
A107: 5.8.4 | B107: Изготовление новых или ремонт существующих ходовых досок и переходных мостиков на чердаках, в подвалах | C107: 0 | D107: 0 | E107: 0 | F107: 0 | G107: 0 | H107: 0 | J107: =ROUND(H107*1000,2) -> 0
A108: 5.8.5 | B108: Иное (Ремонт чердаков, подвалов) | C108: Х | D108: 0 | E108: 0 | F108: Х | G108: Х | H108: =I108-H47-H53-H63-H68-H77-H85-H98-H106 -> 3.322668 | I108: =J197-I138-H181 -> 16.208138 | J108: =ROUND(H108*1000,2) -> 3322.67
A109: 6 | B109: Работы по содержанию и ремонту оборудования и систем инженерно-технического обеспечения, входящих в состав общего имущества в многоквартирном доме | H109: =H110+H111+H112+H113+H114+H115+H116+H117+H118+H119+H120+H121+H122+H123+H124+H125+H126+H127+H128+H129+H130+H131+H132+H133+H134+H135+H136+H137+H138 -> 70.344112 | I109: =I110+I111+I112+I113+I114+I115+I116+I117+I118+I119+I120+I121+I122+I123+I124+I125+I126+I127+I128+I129+I130+I131+I132+I133+I134+I135+I136+I137+I138 -> 70.349112 | J109: =J110+J111+J112+J113+J114+J115+J116+J117+J118+J119+J120+J121+J122+J123+J124+J125+J126+J127+J128+J129+J130+J131+J132+J133+J134+J135+J136+J137+J138 -> 66891.08 | BV109: ддд | CQ109: ддд
A110: 6.1 | B110: Консервация (расконсервация) поливочной системы | C110: 1 | D110: В ходе подготовки к эксплуатации дома в осенне-зимний период | E110: КХ | F110: 1 | G110: =H110*1000 -> 2466.46 | H110: =ROUND(($I$138*0.05),5) -> 2.46646 | J110: =ROUND(H110*1000,2) -> 2466.46
A111: 6.2 | B111: Ремонт, регулировка, промывка и опрессовка систем центрального отопления, утепление бойлеров | C111: 1 | D111: В ходе подготовки к эксплуатации дома в осенне-зимний период | E111: КХ | F111: 1 | G111: =H111*1000 -> 12332.28 | H111: =ROUND(($I$138*0.25),5) -> 12.33228 | J111: 12332.28
A112: 6.3 | B112: Утепление вентиляционных и дымовых каналов | C112: 0 | D112: В ходе подготовки к эксплуатации дома в осенне-зимний период | E112: КХ | F112: 0 | G112: 0 | H112: 0 | J112: 0
A113: 6.4 | B113: Прочистка вентиляционных и дымовых каналов | C113: 0 | D113: В ходе подготовки к эксплуатации дома в осенне-зимний период | E113: КХ | F113: 0 | G113: 0 | H113: 0 | J113: 0
A114: 6.5 | B114: Ремонт и утепление наружных водоразборных кранов | C114: 0 | D114: В ходе подготовки к эксплуатации дома в осенне-зимний период | E114: КХ | F114: 0 | G114: 0 | H114: 0 | J114: 0
A115: 6.6 | B115: Проведение технических осмотров систем водопровода и канализации, центрального отопления и горячего водоснабжения, электротехнических устройств, вентиляционных каналов | C115: 0 | D115: по мере необходимости | E115: КХ | F115: 0 | G115: 0 | H115: 0 | J115: 0
A116: 6.7 | B116: Устранение неисправностей в системах водопровода и канализации, центрального отопления и горячего водоснабжения, электротехнических устройств, вентиляционных и дымовых каналов | C116: 1 | D116: В ходе подготовки к эксплуатации дома в осенне-зимний период | E116: КХ | F116: 1 | G116: =H116*1000 -> 5919.49 | H116: =ROUND(($I$138*0.12),5) -> 5.91949 | J116: 5919.49
A117: 6.8 | B117: Проверка исправности канализационных вытяжек | C117: 0 | D117: Устранение по мере обнаружения дефектов | E117: КХ | F117: 0 | G117: 0 | H117: 0 | J117: 0
A118: 6.9 | B118: Устранение засора внутреннего канализационного трубопровода | C118: 0 | D118: раз в год | E118: КХ | F118: 0 | G118: 0 | H118: 0 | J118: 0
A119: 6.10 | B119: Регулировка и наладка систем автоматики расширительных баков | C119: =IF(F119>0,1,0) -> 0 | D119: раз в месяц | E119: КХ | F119: 0 | G119: 0 | H119: 0 | I119: 0 | J119: 0
A120: 6.11 | B120: Проверка заземления оболочки электрокабеля, оборудования (насосы, щитовые вентиляторы и др.) | C120: =IF(H120,1,0) -> 0 | D120: раз в год | E120: КХ | F120: =C120 -> 0 | G120: =H120*1000 -> 0 | H120: 0 | I120: 0 | J120: 0
A121: 6.12 | B121: Замеры сопротивления изоляции проводов, трубопроводов и восстановление цепей заземления | C121: 1 | D121: раз в год | E121: КХ | F121: 1 | G121: =H121*1000 -> 21015 | H121: 21.015 | I121: 21.02 | J121: 21015
A122: 6.13 | B122: Поверка общедомовых приборов учета горячего и холодного водоснабжения, отопления, электроснабжения | C122: 0 | D122: В ходе подготовки к эксплуатации дома в осенне-зимний период | E122: КХ | F122: 0 | G122: 0 | H122: 0 | J122: 0
A123: 6.14 | B123: Ремонт общедомовых приборов учета горячего и холодного водоснабжения, отопления, электроснабжения | C123: 0 | D123: В ходе подготовки к эксплуатации дома в осенне-зимний период | E123: КХ | F123: 0 | G123: 0 | H123: 0 | J123: 0
A124: 6.15 | B124: Обслуживание ламп-сигналов | C124: 0 | D124: Работа не выполняется | F124: 0 | G124: 0 | H124: 0 | J124: 0
A125: 6.16 | B125: Замена и восстановление отдельных элементов системы отопления с выполнением наладочных регулировочных работ, ликвидацией непрогревов и неисправностей в квартирах | C125: 1 | D125: В ходе подготовки к эксплуатации дома в осенне-зимний период | E125: КХ | F125: 1 | G125: =H125*1000 -> 7399.37 | H125: =ROUND(($I$138*0.15),5) -> 7.39937 | J125: 7399.37
A126: 6.17 | B126: Замена и восстановление отдельных элементов системы холодного водоснабжения, при необходимости отключение и включение стояков | C126: 1 | D126: В ходе подготовки к эксплуатации дома в осенне-зимний период | E126: КХ | F126: 1 | G126: =H126*1000 -> 5426.2 | H126: =ROUND(($I$138*0.11),5) -> 5.4262 | J126: 5426.2
A127: 6.18 | B127: Замена и восстановление отдельных элементов системы горячего водоснабжения, при необходимости отключение и включение стояков | C127: 0 | D127: В ходе подготовки к эксплуатации дома в осенне-зимний период | E127: КХ | F127: 0 | G127: 0 | H127: 0 | J127: 0
A128: 6.19 | B128: Замена и восстановление отдельных элементов системы канализации, в том числе ликвидация засоров, за исключением внутриквартирного сантехоборудования | C128: 1 | D128: В ходе подготовки к эксплуатации дома в осенне-зимний период | E128: КХ | F128: 1 | G128: =H128*1000 -> 3453.04 | H128: =ROUND(($I$138*0.07),5) -> 3.45304 | J128: 3453.04
A129: 6.20 | B129: Замена и восстановление отдельных элементов внутридомового электрооборудования (за исключением внутриквартирных устройств и приборов) | C129: 1 | D129: В ходе подготовки к эксплуатации дома в осенне-зимний период | E129: КХ | F129: 1 | G129: =H129*1000 -> 8879.24 | H129: =ROUND(($I$138*0.18),5) -> 8.87924 | J129: 8879.24
A130: 6.21 | B130: Гидропневматическая очистка системы отопления | C130: 0 | D130: Работа не выполняется | F130: 0 | G130: 0 | H130: 0 | I130: 0 | J130: 0
A131: 6.22 | B131: Обслуживание и ремонт АУУТЭ | C131: 0 | D131: раз в месяц | E131: КХ | F131: 0 | G131: 0 | H131: 0 | J131: 0
A132: 6.23 | B132: Обслуживание и ремонт АСКУЭ | C132: 0 | D132: раз в месяц | E132: КХ | F132: 0 | G132: 0 | H132: 0 | J132: 0
A133: 6.24 | B133: Обслуживание и ремонт насосных пунктов | C133: 0 | D133: раз в месяц | E133: КХ | F133: 0 | G133: 0 | H133: 0 | J133: 0
A134: 6.25 | B134: Обслуживание и ремонт тепловых пунктов | C134: 0 | D134: Работа не выполняется | F134: 0 | G134: 0 | H134: 0 | I134: 0 | J134: 0
A135: 6.26 | B135: Обслуживание и ремонт крышных газовых котельных | C135: 0 | D135: Работа не выполняется | F135: 0 | G135: 0 | H135: 0 | I135: 0 | J135: 0
A136: 6.27 | B136: Ремонт электрооборудования (эл. щитков, замена АВР (аварийное включение резерва) и др. работы) | C136: 0 | D136: по мере необходимости | E136: КХ | F136: 0 | G136: 0 | H136: 0 | J136: 0
A137: 6.28 | B137: Техническое обслуживание светильников дежурного освещения | C137: 0 | D137: по мере необходимости | E137: КХ | F137: 0 | G137: 0 | H137: 0 | J137: 0
A138: 6.29 | B138: Иное (Работы по содержанию и ремонту оборудования и систем инженерно-технического обеспечения, входящих в состав общего имущества в многоквартирном доме) | C138: Х | D138: 0 | E138: 0 | F138: Х | G138: Х | H138: =I138-H110-H111-H125-H126-H127-H128-H129-H116 -> 3.453032 | I138: =J197*0.7 -> 49.329112 | J138: =ROUND(L19,2) -> 0
A139: 7 | B139: Работы по содержанию и ремонту мусоропроводов в многоквартирном доме | H139: 0 | I139: =I140+I141+I142+I143+I144+I145+I146+I147+I148+I149+I150 -> 0 | J139: =J140+J141+J142+J143+J144+J145+J146+J147+J148+J149+J150 -> 0 | BV139: ммм | CQ139: mmm
A140: 7.1 | B140: Восстановление работоспособности вентиляционных и промывочных устройств, мусороприемных клапанов и шиберных устройств | C140: 0 | D140: В ходе подготовки к эксплуатации дома в осенне-зимний период | E140: КХ | F140: 0 | G140: 0 | H140: 0
A141: 7.2 | B141: Профилактический осмотр мусоропроводов | C141: 0 | D141: В ходе подготовки к эксплуатации дома в осенне-зимний период | E141: КХ | F141: 0 | G141: 0 | H141: 0 | J141: =ROUND(H141*1000,2) -> 0
A142: 7.3 | B142: Видеодиагностика внутренней поверхности асбестоцементных стволов мусоропровода | C142: 0 | D142: В ходе подготовки к эксплуатации дома в осенне-зимний период | E142: КХ | F142: 0 | G142: 0 | H142: 0
A143: 7.4 | B143: Уборка загрузочных клапанов мусоропроводов | C143: 0 | D143: В ходе подготовки к эксплуатации дома в осенне-зимний период | E143: КХ | F143: 0 | G143: 0 | H143: 0
A144: 7.5 | B144: Мойка сменных мусоросборников | C144: 0 | D144: В ходе подготовки к эксплуатации дома в осенне-зимний период | E144: КХ | F144: 0 | G144: 0 | H144: 0
A145: 7.6 | B145: Мойка нижней части ствола и шибера мусоропровода | C145: 0 | D145: В ходе подготовки к эксплуатации дома в осенне-зимний период | E145: КХ | F145: 0 | G145: 0 | H145: 0
A146: 7.7 | B146: Очистка и дезинфекция всех элементов ствола мусоропровода | C146: 0 | D146: В ходе подготовки к эксплуатации дома в осенне-зимний период | E146: КХ | F146: 0 | G146: 0 | H146: 0
A147: 7.8 | B147: Дезинфекция мусоросборников | C147: 0 | D147: В ходе подготовки к эксплуатации дома в осенне-зимний период | E147: КХ | F147: 0 | G147: 0 | H147: 0
A148: 7.9 | B148: Устранение засора | C148: 0 | D148: В ходе подготовки к эксплуатации дома в осенне-зимний период | E148: КХ | F148: 0 | G148: 0 | H148: 0
A149: 7.10 | B149: Мелкий ремонт неисправностей мусоропровода | C149: 0 | D149: В ходе подготовки к эксплуатации дома в осенне-зимний период | E149: КХ | F149: 0 | G149: 0 | H149: 0
A150: 7.11 | B150: Иное (Работы по содержанию и ремонту мусоропроводов в многоквартирном доме) | C150: Х | D150: 0 | E150: 0 | F150: Х | G150: Х | H150: 0
A151: 8 | B151: Работы по содержанию и ремонту лифта (лифтов) в многоквартирном доме | H151: 0 | I151: =I152+I153+I154 -> 0 | J151: =J152+J153+J154 -> 0
A152: 8.1 | B152: Обслуживание лифтов и лифтового оборудования | C152: 0 | D152: Круглосуточно | E152: шт | F152: 0 | G152: 0 | H152: =ROUND((C152*F152*G152/1000),5) -> 0
A153: 8.2 | B153: Организация системы диспетчерского контроля и обеспечение диспетчерской связи с кабиной лифта | C153: 0 | D153: Работа не выполняется | E153: КХ | F153: 0 | G153: 0 | H153: 0
A154: 8.3 | B154: Иное (Работы по содержанию и ремонту лифта (лифтов) в многоквартирном доме) | C154: Х | D154: 0 | E154: 0 | F154: Х | G154: Х | H154: 0
A155: 9 | B155: Работы по обеспечению требований пожарной безопасности | H155: 0 | I155: =I156+I157+I158+I159 -> 0 | J155: =J156+J157+J158+J159 -> 0
A156: 9.1 | B156: Осмотр пожарной сигнализации и средств тушения в домах | C156: 0 | D156: раз в год | E156: КХ | F156: 0 | G156: 0 | H156: 0 | J156: =ROUND(H156*1000,2) -> 0
A157: 9.2 | B157: Обслуживание систем дымоудаления и противопожарной безопасности | C157: =IF(F157>0,12,0) -> 0 | D157: Круглосуточно | E157: шт | F157: =IF(J157>0,F152,0) -> 0 | G157: =IF(F157>0,J157/C157/F157,0) -> 0 | H157: =ROUND((C157*F157*G157/1000),5) -> 0 | I157: 0 | J157: =ROUND(H157*1000,2) -> 0
A158: 9.3 | B158: Замена и восстановление работоспособности элементов пожаротушения (трубопроводов, включая ввод и стояки пожарного водопровода) | C158: 0 | D158: в течение суток после обнаружения | E158: КХ | F158: 0 | G158: 0 | H158: 0 | J158: =ROUND(H158*1000,2) -> 0
A159: 9.4 | B159: Иное (Работы по обеспечению требований пожарной безопасности) | C159: Х | D159: 0 | E159: 0 | F159: Х | G159: Х | H159: 0
A160: 10 | B160: Работы по содержанию и ремонту систем вентиляции | H160: =H161+H162+H163+H164 -> 0 | I160: =I161+I162+I163+I164 -> 0 | J160: =J161+J162+J163+J164 -> 0
A161: 10.1 | B161: Проверка наличия тяги в дымоходах, вентиляционных каналах | C161: 0 | F161: 0 | G161: 0 | H161: 0 | J161: =ROUND(H161*1000,2) -> 0
A162: 10.2 | B162: Регулировка и наладка систем вентиляции | C162: 0 | F162: 0 | G162: 0 | H162: 0 | J162: =ROUND(H162*1000,2) -> 0
A163: 10.3 | B163: Замена и восстановление работоспособности отдельных общедомовых элементов | C163: 0 | F163: 0 | G163: 0 | H163: 0 | I163: 0 | J163: =ROUND(H163*1000,2) -> 0
A164: 10.4 | B164: Иное (Работы по содержанию и ремонту систем вентиляции) | C164: Х | D164: 0 | E164: 0 | F164: Х | G164: Х | H164: 0
A165: 11 | B165: Работы по содержанию и ремонту систем внутридомового газового оборудования | H165: =H166+H167+H168 -> 9.776 | I165: =I166+I167+I168 -> 9.78 | J165: =J166+J167+J168 -> 9776
A166: 11.1 | B166: Проверка состояния системы внутридомового газового оборудования и ее отдельных элементов | C166: =IF(H166>0,1,0) -> 1 | D166: раз в год | E166: шт | F166: =IF(H166>0,1,0) -> 1 | G166: =J166 -> 9776 | H166: 9.776 | I166: 9.78 | J166: =ROUND(H166*1000,2) -> 9776
A167: 11.2 | B167: Замена и восстановление работоспособности отдельных элементов системы внутридомового газового оборудования | C167: 0 | D167: по мере необходимости | E167: шт | F167: 0 | G167: 0 | H167: 0 | J167: =ROUND(H167*1000,2) -> 0
A168: 11.3 | B168: Иное (Работы по содержанию и ремонту систем внутридомового газового оборудования) | C168: Х | D168: 0 | E168: 0 | F168: Х | G168: Х | H168: 0
A169: 12 | B169: Обеспечение устранения аварий на внутридомовых инженерных системах в многоквартирном доме | H169: =H170+H171+H172 -> 20.961 | I169: =I170+I171+I172 -> 20.96 | J169: =J170+J171+J172 -> 20961
A170: 12.1 | B170: Устранение аварии | C170: 1 | D170: Незамедлительное реагирование с момента получения заявки | E170: КХ | F170: 1 | G170: =J170 -> 20961 | H170: 20.961 | I170: 20.96 | J170: =ROUND(H170*1000,2) -> 20961
A171: 12.2 | B171: Выполнение заявок населения | C171: =IF(H171>0,1,0) -> 0 | D171: Незамедлительное реагирование с момента получения заявки | E171: КХ | F171: =IF(H171>0,1,0) -> 0 | G171: =J171 -> 0 | H171: 0 | I171: 0 | J171: =ROUND(H171*1000,2) -> 0
A172: 12.3 | B172: Иное (Обеспечение устранения аварий на внутридомовых инженерных системах в многоквартирном доме) | C172: Х | D172: 0 | E172: 0 | F172: Х | G172: Х | H172: 0
A173: 13 | B173: Расход электроэнергии, потребленной на дежурное освещение мест общего пользования и работу лифтов (общедомовые нужды) | H173: 14.919 | I173: 14.92 | J173: =ROUND(H173*1000,2) -> 14919
A174: 14 | B174: Расход воды на общедомовые нужды | H174: 10.587 | I174: 10.59 | J174: =ROUND(H174*1000,2) -> 10587
A175: 15 | B175: Проведение дератизации и дезинсекции помещений, входящих в состав общего имущества в многоквартирном доме | H175: =H176+H177 -> 0 | I175: =I176+I177 -> 0.01 | J175: =J176+J177 -> 0
A176: 15.1 | B176: Дератизация | C176: 0 | D176: раз в год | E176: КХ | F176: 0 | G176: 0 | H176: 0 | I176: 0 | J176: =ROUND(H176*1000,2) -> 0
A177: 15.2 | B177: Дезинсекция | C177: =IF(H177>0,1,0) -> 0 | D177: Незамедлительное реагирование с момента получения заявки | E177: КХ | F177: =IF(H177>0,1,0) -> 0 | G177: =J177 -> 0 | H177: 0 | I177: 0.01 | J177: =ROUND(H177*1000,2) -> 0
A178: 16 | B178: Прочие работы и услуги по содержанию и ремонту общего имущества в многоквартирном доме | H178: =H179+H180+H181 -> 4.93291 | I178: =I179+I180+I181 -> 27.25 | J178: =J179+J180+J181 -> 4932.91
A179: 16.1 | B179: Техническая инвентаризация | C179: 0 | D179: раз в год | E179: КХ | F179: 0 | G179: 0 | H179: 0 | I179: 0 | J179: =ROUND(H179*1000,2) -> 0
A180: 16.2 | B180: Техническое обслуживание систем дистанционного снятия показаний индивидуальных приборов учета (водопотребления и электроэнергии) | C180: 0 | D180: Работа не выполняется | F180: 0 | G180: 0 | H180: 0 | I180: 0 | J180: =ROUND(H180*1000,2) -> 0
A181: 16.3 | B181: Иное (Прочие работы и услуги по содержанию и ремонту общего имущества в многоквартирном доме) | C181: Х | D181: 0 | E181: 0 | F181: Х | G181: Х | H181: =ROUND((J197*0.07),5) -> 4.93291 | I181: 27.25 | J181: =ROUND(H181*1000,2) -> 4932.91
A182: 17 | B182: Работы по содержанию земельного участка с элементами озеленения и благоустройства, иными объектами, предназначенными для обслуживания и эксплуатации многоквартирного дома | H182: 0
A183: 17.1 | B183: Подметание земельного участка в летний период | C183: 0 | D183: Работа не выполняется | F183: 0 | G183: 0 | H183: 0
A184: 17.2 | B184: Полив тротуаров | C184: 0 | D184: Работа не выполняется | F184: 0 | G184: 0 | H184: 0
A185: 17.3 | B185: Уборка мусора с газона, очистка урн | C185: 0 | D185: Работа не выполняется | F185: 0 | G185: 0 | H185: 0
A186: 17.4 | B186: Уборка мусора на контейнерных площадках | C186: 0 | D186: Работа не выполняется | F186: 0 | G186: 0 | H186: 0
A187: 17.5 | B187: Полив газонов | C187: 0 | D187: Работа не выполняется | F187: 0 | G187: 0 | H187: 0
A188: 17.6 | B188: Стрижка газонов | C188: 0 | D188: Работа не выполняется | F188: 0 | G188: 0 | H188: 0
A189: 17.7 | B189: Подрезка деревьев и кустов | C189: 0 | D189: Работа не выполняется | F189: 0 | G189: 0 | H189: 0
A190: 17.8 | B190: Очистка и ремонт детских и спортивных площадок, элементов благоустройства | C190: 0 | D190: Работа не выполняется | F190: 0 | G190: 0 | H190: 0
A191: 17.9 | B191: Сдвижка и подметание снега | C191: 0 | D191: Работа не выполняется | F191: 0 | G191: 0 | H191: 0
A192: 17.10 | B192: Ликвидация скользкости | C192: 0 | D192: Работа не выполняется | F192: 0 | G192: 0 | H192: 0
A193: 17.11 | B193: Иное (Работы по содержанию земельного участка с элементами озеленения и благоустройства, иными объектами, предназначенными для обслуживания и эксплуатации многоквартирного дома) | C193: Х | D193: 0 | E193: 0 | F193: Х | G193: Х | H193: 0
B194: ИТОГО РАСХОДОВ | H194: =H9+H10+H42+H45+H46+H109+H151+H155+H160+H165+H169+H173+H174+H175+H178+H182+H139 -> 347.5995 | I194: =I10+I9+I42+I46+I109+I139+I151+I155+I160+I165+I169+I173+I174+I175+I178+I45 -> 369.93859 | J194: =J10+J9+J42+J46+J109+J139+J151+J155+J160+J165+J169+J173+J174+J175+J178+J45 -> 231686.8
B195: Всего ПНР | H195: 347.5995 | I195: =J195/1000 -> 486.11094 | J195: 486110.94
I196: =I194 -> 369.93859 | J196: 0
G197: разница | H197: =H195-H194 -> 0 | I197: =I195-I196 -> 116.17235 | J197: 70.47016
H198: =H9+H10+H42+H45+H46+H109+H139+H151+H155+H160+H165+H169+H173+H174+H175+H178+H182 -> 347.5995
H201: =H195-H194 -> 0 | I201: =I199-I209 -> 0
A206: Директор ГБУ «Жилищник Красносельского района» | H206: Г.Б.Бобкова

Sheet Балканский Б. пер. 5
A1: Фактические затраты проведению работ (оказанию услуг) на 2017 год
A2: по содержанию и ремонту общего имущества многоквартирного дома
A3: и предоставлению коммунальных услуг по адресу:
A4: Балканский Б. пер. 5
A7: № п/п | B7: Наименование работ (услуг)* | C7: Фактическая периодичность работ (услуг) | E7: Ед.измер. работ (услуг) | F7: Фактическое количество /объем | G7: Фактическая стоимость за единицу работ (услуг), руб. | H7: Фактическая стоимость в год за работы (услуги), тыс. руб. для портала | I7: Фактическая стоимость в год за работы (услуги), тыс. руб. расчетная | J7: Фвктическая стоимость в год за работы (услуги), руб.
A8: 1 | B8: 2 | C8: 3 | E8: 4 | F8: 4 | G8: 5 | H8: 6 | I8: 7
A9: 1 | B9: Работы (услуги) по управлению многоквартирным домом | H9: 52.79 | I9: 52.79 | J9: =ROUND(H9*1000,2) -> 52790 | BV9: ттт
A10: 2 | B10: Работы по содержанию помещений, входящих в состав общего имущества в многоквартирном доме | H10: =H11+H12+H13+H14+H15+H16+H19+H20+H31+H35+H38+H39 -> 129.37443 | I10: =I11+I12+I13+I14+I15+I16+I20+I31+I35+I38+I39+I40+I41+I19 -> 129.37443 | J10: =J11+J12+J13+J14+J15+J16+J20+J31+J35+J38+J39+J40+J41+J19 -> 129374.43 | K10: 179.05745 | L10: =H10-K10 -> -49.68302 | BW10: 179.05745
A11: 2.1 | B11: Влажное подметание лестничных площадок и маршей нижних 2 этажей | C11: 299 | D11: раз в день, кроме праздничных и воскресных дней | E11: М2 | F11: 57.64 | G11: 2.29 | H11: =ROUND((F11*G11*K11)/1000,5) -> 39.46668 | I11: =H11 -> 39.46668 | J11: =ROUND(F11*G11*K11,2) -> 39466.68 | K11: 299
A12: 2.2 | B12: Влажное подметание лестничных площадок и маршей выше 2-го этажа | C12: 52 | D12: раз в неделю | E12: М2 | F12: =144.1-F11 -> 86.46 | G12: 2 | H12: =ROUND((F12*G12*C12)/1000,5) -> 8.99184 | I12: 8.99184 | J12: =ROUND(F12*G12*K12,2) -> 8991.84 | K12: 52
A13: 2.3 | B13: Влажное подметание перед загрузочными клапанами мусоропроводов | C13: 0 | D13: раз в день, кроме праздничных и воскресных дней | E13: М2 | F13: 0 | G13: 0 | H13: =ROUND((F13*G13*K13)/1000,5) -> 0 | I13: 0 | J13: =ROUND(F13*G13*K13,2) -> 0 | K13: 299
A14: 2.4 | B14: Уборка загрузочных клапанов мусоропровода | C14: 0 | D14: раз в неделю | E14: ШТ | F14: 0 | G14: 0 | H14: =ROUND((F14*G14*K14)/1000,5) -> 0 | I14: 0 | J14: =ROUND(F14*G14*K14,2) -> 0 | K14: 52
A15: 2.5 | B15: Мытье пола кабины лифта | C15: 299 | D15: раз в день, кроме праздничных и воскресных дней | E15: М2 | F15: =ROUND(F152*2,2) -> 2 | G15: 3.3 | H15: =ROUND((F15*G15*K15)/1000,5) -> 1.9734 | I15: 1.9734 | J15: =ROUND(F15*G15*K15,2) -> 1973.4 | K15: 299
A16: 2.6 | B16: Мытье лестничных площадок | C16: Х | D16: 0 | E16: 0 | F16: Х | G16: Х | H16: =H17+H18 -> 4.94206 | I16: 4.94206 | J16: =J17+J18 -> 4942.06
A17: 2.6.1 | B17: Мытье лестничных площадок и маршей нижних 2-х этажей | C17: 12 | D17: раз в месяц | E17: М2 | F17: =F11 -> 57.64 | G17: 3.29 | H17: =ROUND((F17*G17*C17)/1000,5) -> 2.27563 | I17: 2.27563 | J17: =ROUND(F17*G17*K17,2) -> 2275.63 | K17: 12
A18: 2.6.2 | B18: Мытье лестничных площадок и маршей выше 2-го этажа | C18: 12 | D18: раз в месяц | E18: М2 | F18: =F12 -> 86.46 | G18: 2.57 | H18: =ROUND((F18*G18*C18)/1000,5) -> 2.66643 | I18: 2.66643 | J18: =ROUND(F18*G18*K18,2) -> 2666.43 | K18: 12
A19: 2.7 | B19: Мытье окон | C19: 1 | D19: раз в год | E19: М2 | F19: 21 | G19: 8.43 | H19: =ROUND((F19*G19*K19)/1000,5) -> 0.17703 | I19: 0.17703 | J19: =ROUND(F19*G19*K19,2) -> 177.03 | K19: 1
A20: 2.8 | B20: Влажная протирка | C20: Х | D20: 0 | E20: 0 | F20: Х | G20: Х | H20: =H21+H22+H23+H24+H25+H26+H27+H28+H29+H30 -> 21.40134 | I20: 21.40134 | J20: =J21+J22+J23+J24+J25+J26+J27+J28+J29+J30 -> 21401.34
A21: 2.8.1 | B21: Влажная протирка стен | C21: 1 | D21: раз в год | E21: М2 | F21: 7280 | G21: 2.81 | H21: =ROUND((F21*G21*K21)/1000,5) -> 20.4568 | I21: 20.4568 | J21: =ROUND(F21*G21*K21,2) -> 20456.8 | K21: 1
A22: 2.8.2 | B22: Влажная протирка плафонов на лестничных клетках | C22: 1 | D22: раз в год | E22: ШТ | F22: 10 | G22: 1.75 | H22: 0.0175 | I22: 0.0175 | J22: 17.5 | K22: 1
A23: 2.8.3 | B23: Влажная протирка дверных полотен на лестничных клетках | C23: 1 | D23: раз в год | E23: М2 | F23: 33,5 | G23: 4.1 | H23: 0.13735 | I23: 0.13735 | J23: 137.35 | K23: 1
A24: 2.8.4 | B24: Влажная протирка подоконников | C24: 2 | D24: раз в год | E24: М2 | F24: 1,58 | G24: 4.08 | H24: 0.01289 | I24: 0.01289 | J24: 12.89 | K24: 2
A25: 2.8.5 | B25: Влажная протирка оконных решеток | C25: 1 | D25: раз в год | E25: М2 | F25: 4,38 | G25: 3.93 | H25: 0.01721 | I25: 0.01721 | J25: 17.21 | K25: 1
A26: 2.8.6 | B26: Влажная протирка чердачных лестниц | C26: 1 | D26: раз в год | E26: М2 | F26: 60 | G26: 2.64 | H26: 0.1584 | I26: 0.1584 | J26: 158.4 | K26: 1
A27: 2.8.7 | B27: Влажная протирка отопительных приборов | C27: 2 | D27: раз в год | E27: М2 | F27: 24 | G27: 5.07 | H27: 0.24336 | I27: 0.24336 | J27: 243.36 | K27: 2
A28: 2.8.8 | B28: Влажная протирка шкафов для электросчетчиков, слаботочных устройств | C28: 1 | D28: раз в год | E28: М2 | F28: 2 | G28: 2.52 | H28: 0.00504 | I28: 0.00504 | J28: 5.04 | K28: 1
A29: 2.8.9 | B29: Влажная протирка почтовых ящиков | C29: 1 | D29: раз в год | E29: М2 | F29: 2,1 | G29: 2.05 | H29: 0.00431 | I29: 0.00431 | J29: 4.31 | K29: 1
A30: 2.8.10 | B30: Влажная протирка стен, дверей кабины лифта | C30: 24 | D30: раз в месяц | E30: М2 | F30: 4 | G30: 3.63 | H30: 0.34848 | I30: 0.34848 | J30: 348.48 | K30: 24
A31: 2.9 | B31: Очистка кровли | C31: Х | D31: 0 | E31: 0 | F31: Х | G31: Х | H31: =H32+H33+H34 -> 11.8932 | I31: =I32+I33+I34 -> 11.8932 | J31: =J32+J33+J34 -> 11893.2
A32: 2.9.1 | B32: Очистка кровли и ее элементов (в том числе козырьков над подъездами) от мусора и листьев | C32: 2 | D32: раз в год | E32: М2 | F32: 440 | G32: 2.01 | H32: =ROUND(F32*G32*K32/1000,5) -> 1.7688 | I32: =H32 -> 1.7688 | J32: =ROUND(H32*1000,2) -> 1768.8 | K32: 2 | M32: 440
A33: 2.9.2 | B33: Очистка кровли от снега | C33: 3 | D33: Работа не выполняется | E33: КХ | F33: 440 | G33: 7.67 | H33: =ROUND(G33*F33*K33/1000,5) -> 10.1244 | I33: =H33 -> 10.1244 | J33: =ROUND(H33*1000,2) -> 10124.4 | K33: 3
A34: 2.9.3 | B34: Очистка кровли от снега и наледеобразований | C34: 0 | D34: Работа не выполняется | E34: КХ | F34: 0 | G34: 0 | H34: =ROUND(G34*F34*K34/1000,5) -> 0 | I34: =H34 -> 0 | J34: =ROUND(H34*1000,2) -> 0 | K34: 3
A35: 2.10 | B35: Смена частей водосточных труб и прочистка внутреннего водостока | C35: Х | D35: 0 | E35: 0 | F35: Х | G35: Х | H35: =H36+H37 -> 0 | I35: =I36+I37 -> 0 | J35: =J36+J37 -> 0
A36: 2.10.1 | B36: Смена частей водосточных труб | C36: 0 | D36: в течение суток после обнаружения | E36: ШТ | F36: 0 | G36: 0 | H36: 0 | I36: 0 | J36: 0
A37: 2.10.2 | B37: Прочистка водоприемной воронки внутреннего водостока | C37: =IF(F37>0,2,0) -> 0 | D37: в течение суток после обнаружения | E37: ШТ | F37: 0 | G37: 0 | H37: =ROUND(G37*F37*C37/1000,5) -> 0 | M37: 440
A38: 2.11 | B38: Очистка подвалов и чердаков от мусора | C38: 1 | D38: раз в год | E38: М2 | F38: =L38 -> 440 | G38: 1.65 | H38: =ROUND((F38*G38*K38)/1000,5) -> 0.726 | I38: =H38 -> 0.726 | J38: =ROUND(F38*G38*K38,2) -> 726 | K38: 1 | L38: =M37+M38 -> 440 | M38: 0
A39: 2.12 | B39: Уборка мусороприемной камеры | C39: 299 | D39: раз в день, кроме праздничных и воскресных дней | E39: М2 | F39: 16 | G39: 8.32 | H39: =ROUND((F39*G39*K39)/1000,5) -> 39.80288 | I39: =H39 -> 39.80288 | J39: =ROUND(F39*G39*K39,2) -> 39802.88 | K39: 299
A40: 2.13 | B40: Ремонт почтовых ящиков, установка, смена замка | C40: 0 | D40: В течении суток с момента получения заявки | E40: КХ | F40: 0 | G40: 0 | H40: =ROUND(G40*F40/1000,5) -> 0 | I40: =H40 -> 0 | J40: =ROUND(H40*1000,2) -> 0
A41: 2.14 | B41: Иное (Работы по содержанию помещений, входящих в состав общего имущества в многоквартирном доме) | C41: Х | D41: 0 | E41: 0 | F41: Х | G41: Х | H41: 0
A42: 3 | B42: Работы по обеспечению вывоза твердых бытовых отходов | H42: =H43+H44 -> 0 | I42: =I43+I44 -> 0 | J42: =J43+J44 -> 0 | Q42: жители | R42: 26
A43: 3.1 | B43: Удаление мусора из мусороприемных камер | C43: 0 | D43: раз в день | E43: М3 | F43: =IF(N43>0,ROUND(N43*1,2),ROUND(N43*1,2)) -> 0.1 | G43: 0 | H43: =ROUND((F43*G43*K43)/1000,5) -> 0 | I43: =H43 -> 0 | J43: =ROUND(H43*1000,2) -> 0 | K43: 365 | N43: =ROUND(R42*1.45/365,3) -> 0.103 | O43: м3 мусора в день | Q43: место мусороприемной камеры | R43: на 1 этаже
A44: 3.2 | B44: Иное (Работы по обеспечению вывоза твердых бытовых отходов) | C44: 0 | D44: 0 | E44: 0 | F44: 0 | G44: 0 | H44: 0 | J44: =ROUND(H44*1000,2) -> 0 | Q44: на 1 этаже | R44: =IF(R43=Q44,209.48,0) -> 209.48
A45: 4 | B45: Работы по обеспечению вывоза крупногабаритного мусора | C45: 0 | D45: 0 | E45: 0 | F45: 0 | G45: 0 | H45: 0 | J45: =ROUND(H45*1000,2) -> 0 | Q45: в цокольном этаже | R45: =IF(R43=Q45,274.83,0) -> 0
A46: 5 | B46: Работы по содержанию и ремонту конструктивных элементов (несущих и ненесущих конструкций) многоквартирных домов | H46: =H47+H53+H63+H68+H77+H85+H98+H103 -> 27.856197 | I46: =I47+I53+I63+I68+I77+I85+I98+I103 -> 27.856197 | J46: =J47+J53+J63+J68+J77+J85+J98+J103 -> 27020.51 | Q46: в подвале | R46: =IF(R43=Q46,341.86,0) -> 0 | BV46: ррр | CQ46: ррр
A47: 5.1 | B47: Фундамент | H47: =H48+H49+H50+H51+H52 -> 1.39281 | I47: =I48+I49+I50+I51+I52 -> 0 | J47: =J48+J49+J50+J51+J52 -> 1392.81 | R47: =SUM(R44:R46:R45) -> 209.48
A48: 5.1.1 | B48: Восстановление поврежденных участков фундаментов | C48: 0 | D48: 0 | E48: 0 | F48: 0 | G48: 0 | H48: 0
A49: 5.1.2 | B49: Восстановление гидроизоляции и систем водоотвода фундаментов | C49: 0 | D49: 0 | E49: 0 | F49: 0 | G49: 0 | H49: =ROUND(($I$108*0.03),5) -> 0.83569 | J49: =ROUND(H49*1000,2) -> 835.69 | K49: 5
A50: 5.1.3 | B50: Восстановление поврежденных участков вентиляционных продухов | C50: 0 | D50: 0 | E50: 0 | F50: 0 | G50: 0 | H50: =ROUND(($I$108*0.02),5) -> 0.55712 | J50: =ROUND(H50*1000,2) -> 557.12
A51: 5.1.4 | B51: Восстановление поврежденных участков входов в подвалы | C51: 0 | D51: 0 | E51: 0 | F51: 0 | G51: 0 | H51: 0 | J51: =ROUND(H51*1000,2) -> 0
A52: 5.1.5 | B52: Иное (Фундамент) | C52: Х | D52: 0 | E52: 0 | F52: Х | G52: Х | H52: 0 | J52: =ROUND(H52*1000,2) -> 0
A53: 5.2 | B53: Стены и фасад | H53: =H54+H55+H56+H57+H58+H59+H60+H61+H62 -> 1.94993 | I53: =I54+I55+I56+I57+I58+I59+I60+I61+I62 -> 0 | J53: =J54+J55+J56+J57+J58+J59+J60+J61+J62 -> 1949.93
A54: 5.2.1 | B54: Герметизация стыков стен и фасадов | C54: 0 | D54: 0 | E54: 0 | F54: 0 | G54: 0 | H54: 0 | J54: =ROUND(H54*1000,2) -> 0
A55: 5.2.2 | B55: Заделка и восстановление архитектурных элементов | C55: 0 | D55: 0 | E55: 0 | F55: 0 | G55: 0 | H55: 0 | J55: 0
A56: 5.2.3 | B56: Ремонт штукатурки гладких фасадов | C56: 0 | D56: 0 | E56: 0 | F56: 0 | G56: 0 | H56: 0 | J56: 0
A57: 5.2.4 | B57: Окраска, промывка фасадов | C57: 0 | D57: 0 | E57: 0 | F57: 0 | G57: 0 | H57: 0 | J57: 0
A58: 5.2.5 | B58: Восстановление поврежденных участков цоколей | C58: 0 | D58: 0 | E58: 0 | F58: 0 | G58: 0 | H58: 0 | J58: 0
A59: 5.2.6 | B59: Окраска, промывка цоколей | C59: 0 | D59: 0 | E59: 0 | F59: 0 | G59: 0 | H59: =ROUND(($I$108*0.07),5) -> 1.94993 | J59: 1949.93 | K59: 7
A60: 5.2.7 | B60: Смена пластмассового короба домового знака или уличного указателя | C60: 0 | D60: 0 | E60: 0 | F60: 0 | G60: 0 | H60: 0 | J60: 0
A61: 5.2.8 | B61: Восстановление гидроизоляции между цокольной частью здания и стенами | C61: 0 | D61: 0 | E61: 0 | F61: 0 | G61: 0 | H61: 0 | J61: 0
A62: 5.2.9 | B62: Иное (Стены и фасад) | C62: Х | D62: 0 | E62: 0 | F62: Х | G62: Х | H62: 0
A63: 5.3 | B63: Перекрытия | H63: =H64+H65+H66+H67 -> 0 | I63: =I64+I65+I66+I67 -> 0 | J63: =J64+J65+J66+J67 -> 0
A64: 5.3.1 | B64: Частичная смена отдельных деревянных элементов | C64: 0 | D64: 0 | E64: 0 | F64: 0 | G64: 0 | H64: 0 | J64: =ROUND(H64*1000,2) -> 0
A65: 5.3.2 | B65: Заделка швов и трещин | C65: 0 | D65: 0 | E65: 0 | F65: 0 | G65: 0 | H65: 0 | J65: =ROUND(H65*1000,2) -> 0
A66: 5.3.3 | B66: Укрепление и окраска | C66: 0 | D66: 0 | E66: 0 | F66: 0 | G66: 0 | H66: 0 | J66: =ROUND(H66*1000,2) -> 0
A67: 5.3.4 | B67: Иное (Перекрытия) | C67: Х | D67: 0 | E67: 0 | F67: Х | G67: Х | H67: 0
A68: 5.4 | B68: Крыши | H68: =H69+H70+H71+H72+H75+H76 -> 2.50706 | I68: =I69+I70+I71+I72+I75+I76 -> 0 | J68: =J69+J70+J71+J72+J73+J74+J75+J76 -> 2507.06
A69: 5.4.1 | B69: Усиление элементов деревянной стропильной системы, | C69: 0 | D69: 0 | E69: 0 | F69: 0 | G69: 0 | H69: 0 | J69: =ROUND(H69*1000,2) -> 0
A70: 5.4.2 | B70: Устранение неисправностей и ремонт стальных, асбестоцементных и других кровельных покрытий | C70: 0 | D70: 0 | E70: 0 | F70: 0 | G70: 0 | H70: 0 | J70: =ROUND(H70*1000,2) -> 0
A71: 5.4.3 | B71: Разборка и ремонт кровли из рулонных материалов | C71: 0 | D71: 0 | E71: 0 | F71: 0 | G71: 0 | H71: 0 | J71: =ROUND(H71*1000,2) -> 0
A72: 5.4.4 | B72: Ремонт конструкций и элементов крыши | C72: 0 | D72: 0 | E72: 0 | F72: 0 | G72: 0 | H72: 0 | I72: =I73+I74 -> 0 | J72: =J73+J74 -> 0
A73: 5.4.4.1 | B73: Ремонт частей водосточных труб | C73: 0 | D73: 0 | E73: 0 | F73: 0 | G73: 0 | H73: 0 | J73: =ROUND(H73*1000,2) -> 0
A74: 5.4.4.2 | B74: Ремонт металлической парапетной решетки | C74: 0 | D74: 0 | E74: 0 | F74: 0 | G74: 0 | H74: 0 | J74: =ROUND(H74*1000,2) -> 0
A75: 5.4.5 | B75: Окраска конструкций и элементов крыши | C75: 0 | D75: 0 | E75: 0 | F75: 0 | G75: 0 | H75: 0 | J75: =ROUND(H75*1000,2) -> 0
A76: 5.4.6 | B76: Иное (Крыши) | C76: Х | D76: 0 | E76: 0 | F76: Х | G76: Х | H76: =ROUND(($I$108*0.09),5) -> 2.50706 | J76: =ROUND(H76*1000,2) -> 2507.06 | K76: 9
A77: 5.5 | B77: Оконные и дверные заполнения на лестничных клетках и во вспомогательных помещениях общего пользования, входные двери | H77: =H78+H79+H80+H81+H82+H83+H84 -> 3.89987 | I77: =I78+I79+I80+I81+I82+I83+I84 -> 0 | J77: =J78+J79+J80+J81+J82+J83+J84 -> 3064.18
A78: 5.5.1 | B78: Ремонт дверей в помещениях общего пользования | C78: 0 | D78: 0 | E78: 0 | F78: 0 | G78: 0 | H78: =ROUND(($I$108*0.07),5) -> 1.94993 | J78: =ROUND(H78*1000,2) -> 1949.93 | K78: 7
A79: 5.5.2 | B79: Замена дверей в помещениях общего пользования | C79: 0 | D79: 0 | E79: 0 | F79: 0 | G79: 0 | H79: 0 | J79: 0
A80: 5.5.3 | B80: Ремонт или замена входных дверей в подъезды | C80: 0 | D80: 0 | E80: 0 | F80: 0 | G80: 0 | H80: 0 | J80: 0
A81: 5.5.4 | B81: Ремонт окон в помещениях общего пользования | C81: 0 | D81: 0 | E81: 0 | F81: 0 | G81: 0 | H81: =ROUND(($I$108*0.04),5) -> 1.11425 | J81: 1114.25 | K81: 4
A82: 5.5.5 | B82: Замена окон в помещениях общего пользования | C82: 0 | D82: 0 | E82: 0 | F82: 0 | G82: 0 | H82: 0 | J82: 0
A83: 5.5.6 | B83: Установка и текущий ремонт доводчиков | C83: 0 | D83: 0 | E83: 0 | F83: 0 | G83: 0 | H83: 0 | J83: 0
A84: 5.5.7 | B84: Иное (Оконные и дверные заполнения на лестничных клетках и во вспомогательных помещениях общего пользования, входные двери) | C84: Х | D84: 0 | E84: 0 | F84: Х | G84: Х | H84: =ROUND(($I$108*0.03),5) -> 0.83569 | K84: 3
A85: 5.6 | B85: Лестницы, пандусы, крыльца, козырьки над входами в подъезды, подвалы и над балконами верхних этажей | H85: =H86+H87+H88+H89+H90+H91+H92+H93+H94+H95+H96+H97 -> 9.4711 | I85: =I86+I87+I88+I89+I90+I91+I92+I93+I94+I95+I96+I97 -> 0 | J85: =J86+J87+J88+J89+J90+J91+J92+J93+J94+J95+J96+J97 -> 9471.1
A86: 5.6.1 | B86: Восстановление лестницы | C86: 0 | D86: 0 | E86: 0 | F86: 0 | G86: 0 | H86: 0 | J86: =ROUND(H86*1000,2) -> 0
A87: 5.6.2 | B87: Замена лестницы | C87: 0 | D87: 0 | E87: 0 | F87: 0 | G87: 0 | H87: 0 | J87: =ROUND(I87*1000,2) -> 0
A88: 5.6.3 | B88: Восстановление пандуса | C88: 0 | D88: 0 | E88: 0 | F88: 0 | G88: 0 | H88: 0 | J88: =ROUND(H88*1000,2) -> 0
A89: 5.6.4 | B89: Замена пандуса | C89: 0 | D89: 0 | E89: 0 | F89: 0 | G89: 0 | H89: 0 | J89: 0
A90: 5.6.5 | B90: Восстановление крыльца | C90: 0 | D90: 0 | E90: 0 | F90: 0 | G90: 0 | H90: =ROUND(($I$108*0.12),5) -> 3.34274 | J90: 3342.74 | K90: 12
A91: 5.6.6 | B91: Замена крыльца | C91: 0 | D91: 0 | E91: 0 | F91: 0 | G91: 0 | H91: 0 | J91: 0
A92: 5.6.7 | B92: Восстановление козырьков над входами в подъезды, ремонт кровельного покрытия козырьков, ложных балконов | C92: 0 | D92: 0 | E92: 0 | F92: 0 | G92: 0 | H92: 0 | J92: 0
A93: 5.6.8 | B93: Замена козырьков над входами в подъезды | C93: 0 | D93: 0 | E93: 0 | F93: 0 | G93: 0 | H93: 0 | J93: 0
A94: 5.6.9 | B94: Восстановление конструкций над балконами верхних этажей | C94: 0 | D94: 0 | E94: 0 | F94: 0 | G94: 0 | H94: 0 | J94: 0
A95: 5.6.10 | B95: Замена конструкций над балконами верхних этажей | C95: 0 | D95: 0 | E95: 0 | F95: 0 | G95: 0 | H95: 0 | J95: 0
A96: 5.6.11 | B96: Ремонт полов (на лестницах, чердаках, в холлах и подвалах) | C96: 0 | D96: 0 | E96: 0 | F96: 0 | G96: 0 | H96: =ROUND(($I$108*0.16),5) -> 4.45699 | J96: 4456.99 | K96: 16
A97: 5.6.12 | B97: Иное (Лестницы, пандусы, крыльца, козырьки над входами в подъезды, подвалы и над балконами верхних этажей) | C97: 0 | D97: 0 | E97: 0 | F97: 0 | G97: 0 | H97: =ROUND(($I$108*0.06),5) -> 1.67137 | J97: 1671.37 | K97: 6
A98: 5.7 | B98: Внутренняя отделка в подъездах, технических помещениях, и других помещениях общего пользования | H98: =H99+H100+H101+H102 -> 1.11425 | I98: =I99+I100+I101+I102 -> 0 | J98: =J99+J100+J101+J102 -> 1114.25
A99: 5.7.1 | B99: Восстановление отделки стен | C99: 0 | D99: 0 | E99: 0 | F99: 0 | G99: 0 | H99: =ROUND(($I$108*0.04),5) -> 1.11425 | I99: 0 | J99: =ROUND(H99*1000,2) -> 1114.25 | K99: 4 | BV99: ррр
A100: 5.7.2 | B100: Восстановление отделки потолков | C100: 0 | D100: 0 | E100: 0 | F100: 0 | G100: 0 | H100: 0 | J100: =ROUND(H100*1000,2) -> 0
A101: 5.7.3 | B101: Ремонт лестничных клеток | C101: 0 | D101: 0 | E101: 0 | F101: 0 | G101: 0 | H101: 0 | J101: =ROUND(H101*1000,2) -> 0
A102: 5.7.4 | B102: Ремонт технических и вспомогательных помещений | C102: 0 | D102: 0 | E102: 0 | F102: 0 | G102: 0 | H102: 0 | J102: =ROUND(H102*1000,2) -> 0
A103: 5.8 | B103: Ремонт чердаков, подвалов | H103: =H104+H105+H106+H107+H108 -> 7.521177 | I103: =I104+I105+I106+I107+I108 -> 27.856197 | J103: =J104+J105+J106+J107+J108 -> 7521.18
A104: 5.8.1 | B104: Утепление чердачных перекрытий | C104: 0 | D104: 0 | E104: 0 | F104: 0 | G104: 0 | H104: 0 | J104: =ROUND(H104*1000,2) -> 0
A105: 5.8.2 | B105: Утепление трубопроводов в чердачных помещениях | C105: 0 | D105: 0 | E105: 0 | F105: 0 | G105: 0 | H105: 0 | J105: =ROUND(H105*1000,2) -> 0
A106: 5.8.3 | B106: Утепление трубопроводов в подвальных помещениях | C106: 0 | D106: 0 | E106: 0 | F106: 0 | G106: 0 | H106: =ROUND(($I$108*0.065),5) -> 1.81065 | J106: =ROUND(H106*1000,2) -> 1810.65 | K106: 6.5
A107: 5.8.4 | B107: Изготовление новых или ремонт существующих ходовых досок и переходных мостиков на чердаках, в подвалах | C107: 0 | D107: 0 | E107: 0 | F107: 0 | G107: 0 | H107: 0 | J107: =ROUND(H107*1000,2) -> 0
A108: 5.8.5 | B108: Иное (Ремонт чердаков, подвалов) | C108: Х | D108: 0 | E108: 0 | F108: Х | G108: Х | H108: =I108-H47-H53-H63-H68-H77-H85-H98-H106 -> 5.710527 | I108: =J197-I138-H181 -> 27.856197 | J108: =ROUND(H108*1000,2) -> 5710.53
A109: 6 | B109: Работы по содержанию и ремонту оборудования и систем инженерно-технического обеспечения, входящих в состав общего имущества в многоквартирном доме | H109: =H110+H111+H112+H113+H114+H115+H116+H117+H118+H119+H120+H121+H122+H123+H124+H125+H126+H127+H128+H129+H130+H131+H132+H133+H134+H135+H136+H137+H138 -> 103.328723 | I109: =I110+I111+I112+I113+I114+I115+I116+I117+I118+I119+I120+I121+I122+I123+I124+I125+I126+I127+I128+I129+I130+I131+I132+I133+I134+I135+I136+I137+I138 -> 103.329723 | J109: =J110+J111+J112+J113+J114+J115+J116+J117+J118+J119+J120+J121+J122+J123+J124+J125+J126+J127+J128+J129+J130+J131+J132+J133+J134+J135+J136+J137+J138 -> 97394.15 | BV109: ддд | CQ109: ддд
A110: 6.1 | B110: Консервация (расконсервация) поливочной системы | C110: 1 | D110: В ходе подготовки к эксплуатации дома в осенне-зимний период | E110: КХ | F110: 1 | G110: =H110*1000 -> 4238.99 | H110: =ROUND(($I$138*0.05),5) -> 4.23899 | J110: =ROUND(H110*1000,2) -> 4238.99
A111: 6.2 | B111: Ремонт, регулировка, промывка и опрессовка систем центрального отопления, утепление бойлеров | C111: 1 | D111: В ходе подготовки к эксплуатации дома в осенне-зимний период | E111: КХ | F111: 1 | G111: =H111*1000 -> 21194.93 | H111: =ROUND(($I$138*0.25),5) -> 21.19493 | J111: 21194.93
A112: 6.3 | B112: Утепление вентиляционных и дымовых каналов | C112: 0 | D112: В ходе подготовки к эксплуатации дома в осенне-зимний период | E112: КХ | F112: 0 | G112: 0 | H112: 0 | J112: 0
A113: 6.4 | B113: Прочистка вентиляционных и дымовых каналов | C113: 0 | D113: В ходе подготовки к эксплуатации дома в осенне-зимний период | E113: КХ | F113: 0 | G113: 0 | H113: 0 | J113: 0
A114: 6.5 | B114: Ремонт и утепление наружных водоразборных кранов | C114: 0 | D114: В ходе подготовки к эксплуатации дома в осенне-зимний период | E114: КХ | F114: 0 | G114: 0 | H114: 0 | J114: 0
A115: 6.6 | B115: Проведение технических осмотров систем водопровода и канализации, центрального отопления и горячего водоснабжения, электротехнических устройств, вентиляционных каналов | C115: 0 | D115: по мере необходимости | E115: КХ | F115: 0 | G115: 0 | H115: 0 | J115: 0
A116: 6.7 | B116: Устранение неисправностей в системах водопровода и канализации, центрального отопления и горячего водоснабжения, электротехнических устройств, вентиляционных и дымовых каналов | C116: 1 | D116: В ходе подготовки к эксплуатации дома в осенне-зимний период | E116: КХ | F116: 1 | G116: =H116*1000 -> 10173.57 | H116: =ROUND(($I$138*0.12),5) -> 10.17357 | J116: 10173.57
A117: 6.8 | B117: Проверка исправности канализационных вытяжек | C117: 0 | D117: Устранение по мере обнаружения дефектов | E117: КХ | F117: 0 | G117: 0 | H117: 0 | J117: 0
A118: 6.9 | B118: Устранение засора внутреннего канализационного трубопровода | C118: 0 | D118: раз в год | E118: КХ | F118: 0 | G118: 0 | H118: 0 | J118: 0
A119: 6.10 | B119: Регулировка и наладка систем автоматики расширительных баков | C119: =IF(F119>0,1,0) -> 0 | D119: раз в месяц | E119: КХ | F119: 0 | G119: 0 | H119: 0 | I119: 0 | J119: 0
A120: 6.11 | B120: Проверка заземления оболочки электрокабеля, оборудования (насосы, щитовые вентиляторы и др.) | C120: =IF(H120,1,0) -> 0 | D120: раз в год | E120: КХ | F120: =C120 -> 0 | G120: =H120*1000 -> 0 | H120: 0 | I120: 0 | J120: 0
A121: 6.12 | B121: Замеры сопротивления изоляции проводов, трубопроводов и восстановление цепей заземления | C121: 1 | D121: раз в год | E121: КХ | F121: 1 | G121: =H121*1000 -> 18549 | H121: 18.549 | I121: 18.55 | J121: 18549
A122: 6.13 | B122: Поверка общедомовых приборов учета горячего и холодного водоснабжения, отопления, электроснабжения | C122: 0 | D122: В ходе подготовки к эксплуатации дома в осенне-зимний период | E122: КХ | F122: 0 | G122: 0 | H122: 0 | J122: 0
A123: 6.14 | B123: Ремонт общедомовых приборов учета горячего и холодного водоснабжения, отопления, электроснабжения | C123: 0 | D123: В ходе подготовки к эксплуатации дома в осенне-зимний период | E123: КХ | F123: 0 | G123: 0 | H123: 0 | J123: 0
A124: 6.15 | B124: Обслуживание ламп-сигналов | C124: 0 | D124: Работа не выполняется | F124: 0 | G124: 0 | H124: 0 | J124: 0
A125: 6.16 | B125: Замена и восстановление отдельных элементов системы отопления с выполнением наладочных регулировочных работ, ликвидацией непрогревов и неисправностей в квартирах | C125: 1 | D125: В ходе подготовки к эксплуатации дома в осенне-зимний период | E125: КХ | F125: 1 | G125: =H125*1000 -> 12716.96 | H125: =ROUND(($I$138*0.15),5) -> 12.71696 | J125: 12716.96
A126: 6.17 | B126: Замена и восстановление отдельных элементов системы холодного водоснабжения, при необходимости отключение и включение стояков | C126: 1 | D126: В ходе подготовки к эксплуатации дома в осенне-зимний период | E126: КХ | F126: 1 | G126: =H126*1000 -> 9325.77 | H126: =ROUND(($I$138*0.11),5) -> 9.32577 | J126: 9325.77
A127: 6.18 | B127: Замена и восстановление отдельных элементов системы горячего водоснабжения, при необходимости отключение и включение стояков | C127: 0 | D127: В ходе подготовки к эксплуатации дома в осенне-зимний период | E127: КХ | F127: 0 | G127: 0 | H127: 0 | J127: 0
A128: 6.19 | B128: Замена и восстановление отдельных элементов системы канализации, в том числе ликвидация засоров, за исключением внутриквартирного сантехоборудования | C128: 1 | D128: В ходе подготовки к эксплуатации дома в осенне-зимний период | E128: КХ | F128: 1 | G128: =H128*1000 -> 5934.58 | H128: =ROUND(($I$138*0.07),5) -> 5.93458 | J128: 5934.58
A129: 6.20 | B129: Замена и восстановление отдельных элементов внутридомового электрооборудования (за исключением внутриквартирных устройств и приборов) | C129: 1 | D129: В ходе подготовки к эксплуатации дома в осенне-зимний период | E129: КХ | F129: 1 | G129: =H129*1000 -> 15260.35 | H129: =ROUND(($I$138*0.18),5) -> 15.26035 | J129: 15260.35
A130: 6.21 | B130: Гидропневматическая очистка системы отопления | C130: 0 | D130: Работа не выполняется | F130: 0 | G130: 0 | H130: 0 | I130: 0 | J130: 0
A131: 6.22 | B131: Обслуживание и ремонт АУУТЭ | C131: 0 | D131: раз в месяц | E131: КХ | F131: 0 | G131: 0 | H131: 0 | J131: 0
A132: 6.23 | B132: Обслуживание и ремонт АСКУЭ | C132: 0 | D132: раз в месяц | E132: КХ | F132: 0 | G132: 0 | H132: 0 | J132: 0
A133: 6.24 | B133: Обслуживание и ремонт насосных пунктов | C133: 0 | D133: раз в месяц | E133: КХ | F133: 0 | G133: 0 | H133: 0 | J133: 0
A134: 6.25 | B134: Обслуживание и ремонт тепловых пунктов | C134: 0 | D134: Работа не выполняется | F134: 0 | G134: 0 | H134: 0 | I134: 0 | J134: 0
A135: 6.26 | B135: Обслуживание и ремонт крышных газовых котельных | C135: 0 | D135: Работа не выполняется | F135: 0 | G135: 0 | H135: 0 | I135: 0 | J135: 0
A136: 6.27 | B136: Ремонт электрооборудования (эл. щитков, замена АВР (аварийное включение резерва) и др. работы) | C136: 0 | D136: по мере необходимости | E136: КХ | F136: 0 | G136: 0 | H136: 0 | J136: 0
A137: 6.28 | B137: Техническое обслуживание светильников дежурного освещения | C137: 0 | D137: по мере необходимости | E137: КХ | F137: 0 | G137: 0 | H137: 0 | J137: 0
A138: 6.29 | B138: Иное (Работы по содержанию и ремонту оборудования и систем инженерно-технического обеспечения, входящих в состав общего имущества в многоквартирном доме) | C138: Х | D138: 0 | E138: 0 | F138: Х | G138: Х | H138: =I138-H110-H111-H125-H126-H127-H128-H129-H116 -> 5.934573 | I138: =J197*0.7 -> 84.779723 | J138: =ROUND(L19,2) -> 0
A139: 7 | B139: Работы по содержанию и ремонту мусоропроводов в многоквартирном доме | H139: 2.25388 | I139: =I140+I141+I142+I143+I144+I145+I146+I147+I148+I149+I150 -> 2.25388 | J139: =J140+J141+J142+J143+J144+J145+J146+J147+J148+J149+J150 -> 2332.56 | BV139: ммм | CQ139: mmm
A140: 7.1 | B140: Восстановление работоспособности вентиляционных и промывочных устройств, мусороприемных клапанов и шиберных устройств | C140: 0 | D140: В ходе подготовки к эксплуатации дома в осенне-зимний период | E140: КХ | F140: 0 | G140: 0 | H140: 0 | J140: =ROUND(H140*1000,2) -> 0
A141: 7.2 | B141: Профилактический осмотр мусоропроводов | C141: 0 | D141: по мере необходимости | E141: КХ | F141: 0 | G141: 0 | H141: 0 | J141: 0
A142: 7.3 | B142: Видеодиагностика внутренней поверхности асбестоцементных стволов мусоропровода | C142: =IF(F142>0,1,0) -> 0 | D142: раз в год | E142: КХ | F142: =IF(H142>0,1,0) -> 0 | G142: =IF(F142>0,J142/C142/F142,0) -> 0 | H142: 0 | I142: 0 | J142: 0
A143: 7.4 | B143: Уборка загрузочных клапанов мусоропроводов | C143: =IF(H143>0,52,0) -> 0 | D143: раз в неделю | E143: ШТ | F143: 0 | G143: 0 | H143: =ROUND((F143*G143*K143)/1000,5) -> 0 | I143: =H143 -> 0 | J143: 0 | K143: 52
A144: 7.5 | B144: Мойка сменных мусоросборников | C144: =IF(H144>0,52,0) -> 52 | D144: раз в неделю | E144: ШТ | F144: 1 | G144: 9.13 | H144: =ROUND((F144*G144*K144)/1000,5) -> 0.47476 | I144: =H144 -> 0.47476 | J144: 474.76 | K144: 52
A145: 7.6 | B145: Мойка нижней части ствола и шибера мусоропровода | C145: =IF(H145>0,12,0) -> 12 | D145: раз в месяц | E145: ШТ | F145: 1 | G145: 63.36 | H145: =ROUND((F145*G145*K145)/1000,5) -> 0.76032 | I145: =H145 -> 0.76032 | J145: 760.32 | K145: 12
A146: 7.7 | B146: Очистка и дезинфекция всех элементов ствола мусоропровода | C146: =IF(F146>0,1,0) -> 0 | D146: раз в год | E146: КХ | F146: =IF(H146>0,1,0) -> 0 | G146: =IF(F146>0,J146/C146/F146,0) -> 0 | H146: =J146 -> 0 | J146: 0
A147: 7.8 | B147: Дезинфекция мусоросборников | C147: =IF(H147>0,12,0) -> 12 | D147: раз в месяц | E147: ШТ | F147: 1 | G147: 11.41 | H147: =ROUND((F147*G147*K147)/1000,5) -> 0.13692 | I147: =H147 -> 0.13692 | J147: 136.92 | K147: 12
A148: 7.9 | B148: Устранение засора | C148: =IF(H148>0,1,0) -> 1 | D148: по мере необходимости | E148: ШТ | F148: 1 | G148: 881.88 | H148: =ROUND((F148*G148*K148)/1000,5) -> 0.88188 | I148: =H148 -> 0.88188 | J148: 881.88 | K148: 1
A149: 7.10 | B149: Мелкий ремонт неисправностей мусоропровода | C149: 0 | D149: по мере необходимости | E149: М | F149: 0 | G149: 0 | H149: 0 | J149: 0
A150: 7.11 | B150: Иное (Работы по содержанию и ремонту мусоропроводов в многоквартирном доме) | C150: Х | D150: 0 | E150: 0 | F150: Х | G150: Х | H150: 0
A151: 8 | B151: Работы по содержанию и ремонту лифта (лифтов) в многоквартирном доме | H151: 33.582 | I151: =I152+I153+I154 -> 33.58 | J151: =J152+J153+J154 -> 33582
A152: 8.1 | B152: Обслуживание лифтов и лифтового оборудования | C152: =IF(F152>0,12,0) -> 12 | D152: Круглосуточно | E152: шт | F152: 1 | G152: =IF(F152>0,J152/C152/F152,0) -> 2798.5 | H152: =ROUND((C152*F152*G152/1000),5) -> 33.582 | I152: 33.58 | J152: =ROUND(H152*1000,2) -> 33582
A153: 8.2 | B153: Организация системы диспетчерского контроля и обеспечение диспетчерской связи с кабиной лифта | C153: 0 | D153: Работа не выполняется | E153: КХ | F153: 0 | G153: 0 | H153: 0 | I153: 0 | J153: 0
